Workbook

Sheet Notes

Sheet Input
A4: Data
A5: 55 | B5: 53 | C5: 24 | D5: 76 | E5: 2 | F5: 55 | G5: 8 | H5: 85 | I5: 51 | J5: 41 | K5: 5 | L5: 12 | M5: 76 | N5: 41 | O5: 13 | P5: 10 | Q5: 88 | R5: 49 | S5: 91 | T5: 19 | U5: 67 | V5: 47 | W5: 43 | X5: 18 | Y5: 100 | Z5: 68 | AA5: 83 | AB5: 1 | AC5: 80 | AD5: 55 | AE5: 38 | AF5: 34 | AG5: 48 | AH5: 12 | AI5: 31 | AJ5: 67 | AK5: 1 | AL5: 75 | AM5: 15 | AN5: 1 | AO5: 70 | AP5: 60 | AQ5: 72 | AR5: 78 | AS5: 52 | AT5: 67 | AU5: 86 | AV5: 10 | AW5: 3 | AX5: 70 | AY5: 56 | AZ5: 42 | BA5: 85 | BB5: 89 | BC5: 75 | BD5: 54 | BE5: 81 | BF5: 76 | BG5: 38 | BH5: 50 | BI5: 12 | BJ5: 4 | BK5: 40 | BL5: 46 | BM5: 30 | BN5: 40 | BO5: 6 | BP5: 10 | BQ5: 32 | BR5: 3 | BS5: 70 | BT5: 90 | BU5: 5 | BV5: 95 | BW5: 21 | BX5: 81 | BY5: 34 | BZ5: 9 | CA5: 94 | CB5: 1 | CC5: 94 | CD5: 48 | CE5: 30 | CF5: 63 | CG5: 12 | CH5: 62 | CI5: 88 | CJ5: 12 | CK5: 46 | CL5: 6 | CM5: 45 | CN5: 81 | CO5: 99 | CP5: 69 | CQ5: 77 | CR5: 69 | CS5: 55 | CT5: 48 | CU5: 97 | CV5: 34
A6: 76 | B6: 7 | C6: 84 | D6: 80 | E6: 85 | F6: 17 | G6: 80 | H6: 93 | I6: 71 | J6: 25 | K6: 80 | L6: 55 | M6: 74 | N6: 22 | O6: 1 | P6: 7 | Q6: 34 | R6: 3 | S6: 31 | T6: 63 | U6: 55 | V6: 81 | W6: 29 | X6: 82 | Y6: 23 | Z6: 6 | AA6: 90 | AB6: 84 | AC6: 40 | AD6: 51 | AE6: 54 | AF6: 28 | AG6: 28 | AH6: 82 | AI6: 46 | AJ6: 35 | AK6: 31 | AL6: 64 | AM6: 73 | AN6: 96 | AO6: 61 | AP6: 89 | AQ6: 24 | AR6: 22 | AS6: 79 | AT6: 19 | AU6: 18 | AV6: 71 | AW6: 61 | AX6: 24 | AY6: 80 | AZ6: 31 | BA6: 25 | BB6: 3 | BC6: 95 | BD6: 52 | BE6: 35 | BF6: 71 | BG6: 59 | BH6: 31 | BI6: 56 | BJ6: 68 | BK6: 88 | BL6: 98 | BM6: 10 | BN6: 63 | BO6: 94 | BP6: 71 | BQ6: 69 | BR6: 68 | BS6: 72 | BT6: 33 | BU6: 2 | BV6: 65 | BW6: 62 | BX6: 7 | BY6: 100 | BZ6: 32 | CA6: 32 | CB6: 75 | CC6: 11 | CD6: 43 | CE6: 21 | CF6: 17 | CG6: 84 | CH6: 26 | CI6: 94 | CJ6: 17 | CK6: 75 | CL6: 55 | CM6: 32 | CN6: 7 | CO6: 87 | CP6: 71 | CQ6: 96 | CR6: 60 | CS6: 90 | CT6: 95 | CU6: 45 | CV6: 2
A7: 83 | B7: 40 | C7: 57 | D7: 19 | E7: 7 | F7: 37 | G7: 61 | H7: 84 | I7: 17 | J7: 71 | K7: 61 | L7: 94 | M7: 29 | N7: 86 | O7: 26 | P7: 92 | Q7: 56 | R7: 56 | S7: 94 | T7: 21 | U7: 36 | V7: 8 | W7: 1 | X7: 92 | Y7: 47 | Z7: 25 | AA7: 70 | AB7: 42 | AC7: 66 | AD7: 38 | AE7: 28 | AF7: 29 | AG7: 18 | AH7: 22 | AI7: 33 | AJ7: 66 | AK7: 14 | AL7: 26 | AM7: 11 | AN7: 91 | AO7: 10 | AP7: 7 | AQ7: 61 | AR7: 66 | AS7: 20 | AT7: 89 | AU7: 5 | AV7: 73 | AW7: 32 | AX7: 87 | AY7: 65 | AZ7: 3 | BA7: 6 | BB7: 59 | BC7: 15 | BD7: 56 | BE7: 24 | BF7: 17 | BG7: 80 | BH7: 19 | BI7: 12 | BJ7: 83 | BK7: 98 | BL7: 87 | BM7: 55 | BN7: 69 | BO7: 35 | BP7: 51 | BQ7: 15 | BR7: 32 | BS7: 8 | BT7: 97 | BU7: 5 | BV7: 22 | BW7: 65 | BX7: 27 | BY7: 10 | BZ7: 64 | CA7: 91 | CB7: 16 | CC7: 56 | CD7: 4 | CE7: 56 | CF7: 94 | CG7: 19 | CH7: 66 | CI7: 19 | CJ7: 44 | CK7: 36 | CL7: 35 | CM7: 31 | CN7: 41 | CO7: 26 | CP7: 29 | CQ7: 78 | CR7: 59 | CS7: 42 | CT7: 97 | CU7: 66 | CV7: 29
A8: 43 | B8: 83 | C8: 71 | D8: 99 | E8: 33 | F8: 24 | G8: 3 | H8: 95 | I8: 16 | J8: 80 | K8: 62 | L8: 88 | M8: 9 | N8: 48 | O8: 76 | P8: 53 | Q8: 67 | R8: 30 | S8: 52 | T8: 92 | U8: 11 | V8: 60 | W8: 46 | X8: 77 | Y8: 56 | Z8: 62 | AA8: 96 | AB8: 98 | AC8: 71 | AD8: 88 | AE8: 56 | AF8: 19 | AG8: 58 | AH8: 65 | AI8: 35 | AJ8: 44 | AK8: 61 | AL8: 78 | AM8: 14 | AN8: 23 | AO8: 74 | AP8: 99 | AQ8: 72 | AR8: 61 | AS8: 44 | AT8: 11 | AU8: 78 | AV8: 70 | AW8: 20 | AX8: 22 | AY8: 26 | AZ8: 51 | BA8: 37 | BB8: 58 | BC8: 77 | BD8: 39 | BE8: 69 | BF8: 90 | BG8: 60 | BH8: 96 | BI8: 10 | BJ8: 49 | BK8: 76 | BL8: 22 | BM8: 57 | BN8: 40 | BO8: 50 | BP8: 40 | BQ8: 89 | BR8: 7 | BS8: 70 | BT8: 100 | BU8: 92 | BV8: 20 | BW8: 56 | BX8: 76 | BY8: 33 | BZ8: 4 | CA8: 89 | CB8: 55 | CC8: 59 | CD8: 29 | CE8: 30 | CF8: 4 | CG8: 23 | CH8: 31 | CI8: 44 | CJ8: 31 | CK8: 60 | CL8: 85 | CM8: 20 | CN8: 73 | CO8: 97 | CP8: 50 | CQ8: 92 | CR8: 17 | CS8: 53 | CT8: 4 | CU8: 69 | CV8: 33
A9: 25 | B9: 79 | C9: 7 | D9: 23 | E9: 51 | F9: 47 | G9: 51 | H9: 53 | I9: 100 | J9: 79 | K9: 81 | L9: 54 | M9: 82 | N9: 64 | O9: 96 | P9: 26 | Q9: 99 | R9: 22 | S9: 96 | T9: 87 | U9: 62 | V9: 56 | W9: 52 | X9: 38 | Y9: 76 | Z9: 26 | AA9: 62 | AB9: 8 | AC9: 68 | AD9: 52 | AE9: 73 | AF9: 86 | AG9: 92 | AH9: 50 | AI9: 52 | AJ9: 64 | AK9: 64 | AL9: 24 | AM9: 30 | AN9: 69 | AO9: 34 | AP9: 51 | AQ9: 17 | AR9: 73 | AS9: 74 | AT9: 15 | AU9: 10 | AV9: 16 | AW9: 96 | AX9: 79 | AY9: 6 | AZ9: 45 | BA9: 13 | BB9: 98 | BC9: 56 | BD9: 61 | BE9: 98 | BF9: 1 | BG9: 97 | BH9: 34 | BI9: 91 | BJ9: 9 | BK9: 44 | BL9: 16 | BM9: 73 | BN9: 35 | BO9: 75 | BP9: 98 | BQ9: 26 | BR9: 20 | BS9: 78 | BT9: 21 | BU9: 8 | BV9: 92 | BW9: 5 | BX9: 43 | BY9: 3 | BZ9: 41 | CA9: 53 | CB9: 88 | CC9: 62 | CD9: 96 | CE9: 18 | CF9: 9 | CG9: 96 | CH9: 33 | CI9: 34 | CJ9: 95 | CK9: 65 | CL9: 9 | CM9: 99 | CN9: 90 | CO9: 22 | CP9: 89 | CQ9: 67 | CR9: 35 | CS9: 80 | CT9: 72 | CU9: 90 | CV9: 62
A10: 33 | B10: 20 | C10: 51 | D10: 84 | E10: 10 | F10: 14 | G10: 95 | H10: 28 | I10: 14 | J10: 10 | K10: 30 | L10: 90 | M10: 37 | N10: 93 | O10: 10 | P10: 59 | Q10: 49 | R10: 71 | S10: 94 | T10: 27 | U10: 47 | V10: 32 | W10: 40 | X10: 8 | Y10: 10 | Z10: 19 | AA10: 21 | AB10: 80 | AC10: 46 | AD10: 50 | AE10: 54 | AF10: 70 | AG10: 55 | AH10: 52 | AI10: 61 | AJ10: 85 | AK10: 74 | AL10: 15 | AM10: 58 | AN10: 42 | AO10: 4 | AP10: 4 | AQ10: 41 | AR10: 3 | AS10: 3 | AT10: 47 | AU10: 95 | AV10: 72 | AW10: 27 | AX10: 47 | AY10: 12 | AZ10: 71 | BA10: 68 | BB10: 11 | BC10: 55 | BD10: 62 | BE10: 83 | BF10: 86 | BG10: 7 | BH10: 31 | BI10: 37 | BJ10: 62 | BK10: 38 | BL10: 16 | BM10: 17 | BN10: 21 | BO10: 82 | BP10: 38 | BQ10: 14 | BR10: 45 | BS10: 75 | BT10: 57 | BU10: 56 | BV10: 58 | BW10: 69 | BX10: 89 | BY10: 36 | BZ10: 47 | CA10: 40 | CB10: 34 | CC10: 65 | CD10: 29 | CE10: 88 | CF10: 82 | CG10: 60 | CH10: 77 | CI10: 39 | CJ10: 66 | CK10: 9 | CL10: 46 | CM10: 69 | CN10: 78 | CO10: 6 | CP10: 96 | CQ10: 1 | CR10: 18 | CS10: 62 | CT10: 75 | CU10: 51 | CV10: 48
A11: 41 | B11: 92 | C11: 22 | D11: 7 | E11: 17 | F11: 93 | G11: 75 | H11: 2 | I11: 76 | J11: 100 | K11: 94 | L11: 76 | M11: 68 | N11: 41 | O11: 40 | P11: 79 | Q11: 4 | R11: 60 | S11: 73 | T11: 48 | U11: 72 | V11: 94 | W11: 16 | X11: 1 | Y11: 74 | Z11: 20 | AA11: 68 | AB11: 80 | AC11: 39 | AD11: 25 | AE11: 97 | AF11: 34 | AG11: 65 | AH11: 8 | AI11: 10 | AJ11: 82 | AK11: 62 | AL11: 4 | AM11: 59 | AN11: 100 | AO11: 44 | AP11: 92 | AQ11: 95 | AR11: 97 | AS11: 70 | AT11: 66 | AU11: 67 | AV11: 69 | AW11: 96 | AX11: 34 | AY11: 94 | AZ11: 33 | BA11: 56 | BB11: 97 | BC11: 42 | BD11: 8 | BE11: 88 | BF11: 87 | BG11: 20 | BH11: 78 | BI11: 88 | BJ11: 55 | BK11: 68 | BL11: 10 | BM11: 24 | BN11: 13 | BO11: 17 | BP11: 54 | BQ11: 90 | BR11: 10 | BS11: 55 | BT11: 19 | BU11: 97 | BV11: 22 | BW11: 62 | BX11: 77 | BY11: 36 | BZ11: 16 | CA11: 6 | CB11: 28 | CC11: 12 | CD11: 49 | CE11: 13 | CF11: 25 | CG11: 72 | CH11: 49 | CI11: 57 | CJ11: 50 | CK11: 77 | CL11: 84 | CM11: 59 | CN11: 49 | CO11: 14 | CP11: 28 | CQ11: 47 | CR11: 53 | CS11: 19 | CT11: 17 | CU11: 48 | CV11: 22
A12: 78 | B12: 3 | C12: 42 | D12: 67 | E12: 13 | F12: 8 | G12: 62 | H12: 57 | I12: 39 | J12: 92 | K12: 31 | L12: 44 | M12: 70 | N12: 29 | O12: 11 | P12: 95 | Q12: 1 | R12: 46 | S12: 59 | T12: 22 | U12: 74 | V12: 37 | W12: 47 | X12: 44 | Y12: 28 | Z12: 69 | AA12: 92 | AB12: 22 | AC12: 40 | AD12: 33 | AE12: 40 | AF12: 95 | AG12: 16 | AH12: 95 | AI12: 80 | AJ12: 42 | AK12: 28 | AL12: 21 | AM12: 25 | AN12: 58 | AO12: 48 | AP12: 3 | AQ12: 50 | AR12: 96 | AS12: 40 | AT12: 17 | AU12: 51 | AV12: 55 | AW12: 33 | AX12: 5 | AY12: 66 | AZ12: 88 | BA12: 18 | BB12: 60 | BC12: 90 | BD12: 30 | BE12: 57 | BF12: 20 | BG12: 62 | BH12: 76 | BI12: 92 | BJ12: 64 | BK12: 31 | BL12: 45 | BM12: 27 | BN12: 64 | BO12: 95 | BP12: 46 | BQ12: 46 | BR12: 21 | BS12: 88 | BT12: 34 | BU12: 80 | BV12: 70 | BW12: 99 | BX12: 55 | BY12: 10 | BZ12: 26 | CA12: 99 | CB12: 12 | CC12: 73 | CD12: 28 | CE12: 52 | CF12: 28 | CG12: 50 | CH12: 98 | CI12: 6 | CJ12: 92 | CK12: 13 | CL12: 4 | CM12: 49 | CN12: 24 | CO12: 46 | CP12: 48 | CQ12: 79 | CR12: 15 | CS12: 86 | CT12: 85 | CU12: 78 | CV12: 26
A13: 24 | B13: 48 | C13: 16 | D13: 8 | E13: 69 | F13: 29 | G13: 21 | H13: 52 | I13: 30 | J13: 54 | K13: 68 | L13: 2 | M13: 73 | N13: 7 | O13: 1 | P13: 76 | Q13: 4 | R13: 95 | S13: 96 | T13: 75 | U13: 86 | V13: 79 | W13: 43 | X13: 7 | Y13: 75 | Z13: 93 | AA13: 92 | AB13: 87 | AC13: 16 | AD13: 76 | AE13: 85 | AF13: 45 | AG13: 24 | AH13: 60 | AI13: 53 | AJ13: 32 | AK13: 62 | AL13: 9 | AM13: 52 | AN13: 80 | AO13: 65 | AP13: 42 | AQ13: 73 | AR13: 3 | AS13: 74 | AT13: 51 | AU13: 84 | AV13: 17 | AW13: 93 | AX13: 59 | AY13: 39 | AZ13: 37 | BA13: 36 | BB13: 8 | BC13: 43 | BD13: 58 | BE13: 56 | BF13: 65 | BG13: 99 | BH13: 85 | BI13: 19 | BJ13: 24 | BK13: 3 | BL13: 45 | BM13: 81 | BN13: 1 | BO13: 38 | BP13: 84 | BQ13: 58 | BR13: 41 | BS13: 65 | BT13: 98 | BU13: 37 | BV13: 15 | BW13: 11 | BX13: 97 | BY13: 10 | BZ13: 27 | CA13: 75 | CB13: 82 | CC13: 30 | CD13: 63 | CE13: 39 | CF13: 51 | CG13: 88 | CH13: 64 | CI13: 81 | CJ13: 58 | CK13: 87 | CL13: 57 | CM13: 2 | CN13: 51 | CO13: 60 | CP13: 99 | CQ13: 62 | CR13: 11 | CS13: 97 | CT13: 82 | CU13: 66 | CV13: 80
A14: 72 | B14: 62 | C14: 25 | D14: 27 | E14: 33 | F14: 32 | G14: 59 | H14: 35 | I14: 64 | J14: 28 | K14: 99 | L14: 87 | M14: 40 | N14: 70 | O14: 27 | P14: 18 | Q14: 50 | R14: 46 | S14: 17 | T14: 83 | U14: 37 | V14: 38 | W14: 92 | X14: 87 | Y14: 48 | Z14: 30 | AA14: 61 | AB14: 95 | AC14: 37 | AD14: 49 | AE14: 65 | AF14: 98 | AG14: 65 | AH14: 51 | AI14: 94 | AJ14: 97 | AK14: 6 | AL14: 14 | AM14: 22 | AN14: 35 | AO14: 68 | AP14: 41 | AQ14: 48 | AR14: 97 | AS14: 33 | AT14: 74 | AU14: 25 | AV14: 72 | AW14: 37 | AX14: 65 | AY14: 6 | AZ14: 54 | BA14: 85 | BB14: 49 | BC14: 4 | BD14: 94 | BE14: 4 | BF14: 67 | BG14: 91 | BH14: 82 | BI14: 54 | BJ14: 8 | BK14: 83 | BL14: 49 | BM14: 66 | BN14: 55 | BO14: 8 | BP14: 37 | BQ14: 76 | BR14: 50 | BS14: 14 | BT14: 39 | BU14: 59 | BV14: 74 | BW14: 39 | BX14: 44 | BY14: 76 | BZ14: 75 | CA14: 76 | CB14: 56 | CC14: 90 | CD14: 85 | CE14: 41 | CF14: 30 | CG14: 42 | CH14: 100 | CI14: 59 | CJ14: 89 | CK14: 7 | CL14: 39 | CM14: 15 | CN14: 29 | CO14: 82 | CP14: 8 | CQ14: 86 | CR14: 1 | CS14: 38 | CT14: 67 | CU14: 18 | CV14: 18
A15: 59 | B15: 87 | C15: 5 | D15: 93 | E15: 2 | F15: 3 | G15: 81 | H15: 97 | I15: 4 | J15: 1 | K15: 21 | L15: 6 | M15: 16 | N15: 49 | O15: 74 | P15: 75 | Q15: 20 | R15: 90 | S15: 29 | T15: 44 | U15: 15 | V15: 19 | W15: 73 | X15: 29 | Y15: 67 | Z15: 36 | AA15: 36 | AB15: 18 | AC15: 31 | AD15: 59 | AE15: 82 | AF15: 93 | AG15: 75 | AH15: 66 | AI15: 52 | AJ15: 13 | AK15: 24 | AL15: 88 | AM15: 19 | AN15: 16 | AO15: 24 | AP15: 29 | AQ15: 85 | AR15: 92 | AS15: 52 | AT15: 33 | AU15: 62 | AV15: 64 | AW15: 71 | AX15: 81 | AY15: 31 | AZ15: 7 | BA15: 60 | BB15: 14 | BC15: 49 | BD15: 95 | BE15: 27 | BF15: 12 | BG15: 18 | BH15: 82 | BI15: 96 | BJ15: 9 | BK15: 77 | BL15: 51 | BM15: 14 | BN15: 12 | BO15: 46 | BP15: 48 | BQ15: 89 | BR15: 4 | BS15: 45 | BT15: 92 | BU15: 71 | BV15: 85 | BW15: 100 | BX15: 40 | BY15: 39 | BZ15: 10 | CA15: 33 | CB15: 6 | CC15: 5 | CD15: 60 | CE15: 42 | CF15: 30 | CG15: 92 | CH15: 76 | CI15: 6 | CJ15: 5 | CK15: 62 | CL15: 97 | CM15: 42 | CN15: 90 | CO15: 93 | CP15: 36 | CQ15: 28 | CR15: 9 | CS15: 66 | CT15: 35 | CU15: 1 | CV15: 63
A16: 61 | B16: 81 | C16: 70 | D16: 23 | E16: 85 | F16: 80 | G16: 52 | H16: 8 | I16: 95 | J16: 52 | K16: 15 | L16: 65 | M16: 29 | N16: 50 | O16: 85 | P16: 96 | Q16: 2 | R16: 12 | S16: 87 | T16: 53 | U16: 64 | V16: 54 | W16: 66 | X16: 36 | Y16: 76 | Z16: 26 | AA16: 78 | AB16: 93 | AC16: 2 | AD16: 97 | AE16: 39 | AF16: 77 | AG16: 55 | AH16: 51 | AI16: 3 | AJ16: 43 | AK16: 94 | AL16: 33 | AM16: 23 | AN16: 55 | AO16: 45 | AP16: 99 | AQ16: 69 | AR16: 87 | AS16: 55 | AT16: 92 | AU16: 98 | AV16: 69 | AW16: 5 | AX16: 13 | AY16: 6 | AZ16: 96 | BA16: 9 | BB16: 44 | BC16: 33 | BD16: 98 | BE16: 20 | BF16: 2 | BG16: 12 | BH16: 26 | BI16: 29 | BJ16: 62 | BK16: 13 | BL16: 44 | BM16: 22 | BN16: 36 | BO16: 41 | BP16: 88 | BQ16: 12 | BR16: 38 | BS16: 75 | BT16: 43 | BU16: 28 | BV16: 42 | BW16: 52 | BX16: 34 | BY16: 16 | BZ16: 50 | CA16: 79 | CB16: 10 | CC16: 87 | CD16: 79 | CE16: 91 | CF16: 45 | CG16: 81 | CH16: 63 | CI16: 23 | CJ16: 72 | CK16: 45 | CL16: 84 | CM16: 84 | CN16: 86 | CO16: 20 | CP16: 100 | CQ16: 94 | CR16: 56 | CS16: 30 | CT16: 99 | CU16: 50 | CV16: 59
A17: 12 | B17: 12 | C17: 42 | D17: 77 | E17: 32 | F17: 79 | G17: 4 | H17: 56 | I17: 28 | J17: 5 | K17: 10 | L17: 82 | M17: 24 | N17: 88 | O17: 71 | P17: 62 | Q17: 40 | R17: 30 | S17: 86 | T17: 82 | U17: 16 | V17: 46 | W17: 23 | X17: 67 | Y17: 93 | Z17: 56 | AA17: 7 | AB17: 9 | AC17: 67 | AD17: 10 | AE17: 15 | AF17: 68 | AG17: 25 | AH17: 64 | AI17: 5 | AJ17: 21 | AK17: 46 | AL17: 62 | AM17: 4 | AN17: 29 | AO17: 75 | AP17: 44 | AQ17: 20 | AR17: 29 | AS17: 88 | AT17: 73 | AU17: 18 | AV17: 59 | AW17: 22 | AX17: 5 | AY17: 14 | AZ17: 65 | BA17: 70 | BB17: 47 | BC17: 78 | BD17: 2 | BE17: 36 | BF17: 34 | BG17: 17 | BH17: 27 | BI17: 40 | BJ17: 33 | BK17: 41 | BL17: 64 | BM17: 54 | BN17: 65 | BO17: 72 | BP17: 4 | BQ17: 58 | BR17: 38 | BS17: 47 | BT17: 84 | BU17: 23 | BV17: 55 | BW17: 64 | BX17: 91 | BY17: 37 | BZ17: 54 | CA17: 8 | CB17: 22 | CC17: 50 | CD17: 97 | CE17: 93 | CF17: 68 | CG17: 66 | CH17: 13 | CI17: 13 | CJ17: 45 | CK17: 46 | CL17: 80 | CM17: 100 | CN17: 15 | CO17: 4 | CP17: 36 | CQ17: 77 | CR17: 83 | CS17: 71 | CT17: 40 | CU17: 62 | CV17: 73
A18: 2 | B18: 17 | C18: 94 | D18: 10 | E18: 49 | F18: 59 | G18: 93 | H18: 55 | I18: 82 | J18: 87 | K18: 77 | L18: 48 | M18: 90 | N18: 55 | O18: 84 | P18: 16 | Q18: 60 | R18: 14 | S18: 62 | T18: 85 | U18: 14 | V18: 15 | W18: 97 | X18: 14 | Y18: 9 | Z18: 64 | AA18: 5 | AB18: 76 | AC18: 94 | AD18: 7 | AE18: 15 | AF18: 86 | AG18: 34 | AH18: 55 | AI18: 37 | AJ18: 87 | AK18: 37 | AL18: 25 | AM18: 52 | AN18: 66 | AO18: 66 | AP18: 42 | AQ18: 93 | AR18: 3 | AS18: 10 | AT18: 66 | AU18: 15 | AV18: 85 | AW18: 81 | AX18: 77 | AY18: 81 | AZ18: 13 | BA18: 5 | BB18: 78 | BC18: 54 | BD18: 31 | BE18: 67 | BF18: 1 | BG18: 13 | BH18: 7 | BI18: 70 | BJ18: 53 | BK18: 2 | BL18: 60 | BM18: 43 | BN18: 58 | BO18: 89 | BP18: 42 | BQ18: 71 | BR18: 74 | BS18: 72 | BT18: 35 | BU18: 12 | BV18: 21 | BW18: 34 | BX18: 32 | BY18: 39 | BZ18: 92 | CA18: 21 | CB18: 53 | CC18: 36 | CD18: 8 | CE18: 15 | CF18: 81 | CG18: 48 | CH18: 72 | CI18: 65 | CJ18: 31 | CK18: 9 | CL18: 42 | CM18: 38 | CN18: 30 | CO18: 72 | CP18: 33 | CQ18: 77 | CR18: 52 | CS18: 66 | CT18: 4 | CU18: 19 | CV18: 9
A19: 5 | B19: 48 | C19: 90 | D19: 98 | E19: 34 | F19: 48 | G19: 70 | H19: 79 | I19: 18 | J19: 56 | K19: 43 | L19: 76 | M19: 95 | N19: 46 | O19: 36 | P19: 79 | Q19: 12 | R19: 48 | S19: 35 | T19: 59 | U19: 1 | V19: 95 | W19: 72 | X19: 53 | Y19: 48 | Z19: 36 | AA19: 9 | AB19: 55 | AC19: 80 | AD19: 6 | AE19: 89 | AF19: 95 | AG19: 17 | AH19: 18 | AI19: 9 | AJ19: 50 | AK19: 36 | AL19: 54 | AM19: 8 | AN19: 78 | AO19: 79 | AP19: 32 | AQ19: 35 | AR19: 16 | AS19: 16 | AT19: 83 | AU19: 85 | AV19: 38 | AW19: 39 | AX19: 89 | AY19: 77 | AZ19: 71 | BA19: 59 | BB19: 90 | BC19: 58 | BD19: 56 | BE19: 58 | BF19: 45 | BG19: 25 | BH19: 19 | BI19: 35 | BJ19: 71 | BK19: 84 | BL19: 92 | BM19: 18 | BN19: 47 | BO19: 87 | BP19: 4 | BQ19: 88 | BR19: 69 | BS19: 28 | BT19: 3 | BU19: 2 | BV19: 48 | BW19: 21 | BX19: 26 | BY19: 70 | BZ19: 39 | CA19: 75 | CB19: 64 | CC19: 95 | CD19: 67 | CE19: 60 | CF19: 51 | CG19: 50 | CH19: 10 | CI19: 80 | CJ19: 95 | CK19: 49 | CL19: 39 | CM19: 18 | CN19: 55 | CO19: 40 | CP19: 9 | CQ19: 87 | CR19: 16 | CS19: 10 | CT19: 51 | CU19: 61 | CV19: 54
A20: 95 | B20: 88 | C20: 78 | D20: 100 | E20: 54 | F20: 92 | G20: 18 | H20: 75 | I20: 13 | J20: 22 | K20: 29 | L20: 67 | M20: 81 | N20: 34 | O20: 25 | P20: 37 | Q20: 17 | R20: 18 | S20: 50 | T20: 86 | U20: 63 | V20: 9 | W20: 87 | X20: 34 | Y20: 90 | Z20: 25 | AA20: 64 | AB20: 75 | AC20: 58 | AD20: 81 | AE20: 48 | AF20: 70 | AG20: 9 | AH20: 10 | AI20: 8 | AJ20: 93 | AK20: 35 | AL20: 35 | AM20: 63 | AN20: 69 | AO20: 62 | AP20: 29 | AQ20: 13 | AR20: 59 | AS20: 43 | AT20: 56 | AU20: 43 | AV20: 84 | AW20: 25 | AX20: 6 | AY20: 68 | AZ20: 67 | BA20: 46 | BB20: 7 | BC20: 77 | BD20: 82 | BE20: 4 | BF20: 73 | BG20: 25 | BH20: 84 | BI20: 33 | BJ20: 98 | BK20: 93 | BL20: 73 | BM20: 15 | BN20: 91 | BO20: 16 | BP20: 90 | BQ20: 85 | BR20: 50 | BS20: 66 | BT20: 84 | BU20: 58 | BV20: 66 | BW20: 12 | BX20: 16 | BY20: 59 | BZ20: 62 | CA20: 32 | CB20: 33 | CC20: 99 | CD20: 11 | CE20: 73 | CF20: 5 | CG20: 31 | CH20: 94 | CI20: 78 | CJ20: 97 | CK20: 99 | CL20: 43 | CM20: 22 | CN20: 87 | CO20: 49 | CP20: 45 | CQ20: 88 | CR20: 8 | CS20: 87 | CT20: 75 | CU20: 27 | CV20: 69
A21: 48 | B21: 29 | C21: 6 | D21: 50 | E21: 16 | F21: 72 | G21: 81 | H21: 87 | I21: 49 | J21: 12 | K21: 4 | L21: 11 | M21: 45 | N21: 50 | O21: 19 | P21: 31 | Q21: 54 | R21: 22 | S21: 58 | T21: 62 | U21: 74 | V21: 60 | W21: 11 | X21: 63 | Y21: 95 | Z21: 49 | AA21: 70 | AB21: 33 | AC21: 74 | AD21: 67 | AE21: 97 | AF21: 2 | AG21: 30 | AH21: 10 | AI21: 26 | AJ21: 69 | AK21: 33 | AL21: 47 | AM21: 67 | AN21: 84 | AO21: 5 | AP21: 100 | AQ21: 45 | AR21: 41 | AS21: 53 | AT21: 73 | AU21: 93 | AV21: 22 | AW21: 89 | AX21: 11 | AY21: 75 | AZ21: 38 | BA21: 66 | BB21: 65 | BC21: 26 | BD21: 60 | BE21: 24 | BF21: 81 | BG21: 72 | BH21: 63 | BI21: 47 | BJ21: 39 | BK21: 33 | BL21: 96 | BM21: 2 | BN21: 62 | BO21: 20 | BP21: 64 | BQ21: 71 | BR21: 21 | BS21: 62 | BT21: 2 | BU21: 35 | BV21: 67 | BW21: 26 | BX21: 95 | BY21: 73 | BZ21: 34 | CA21: 56 | CB21: 56 | CC21: 59 | CD21: 100 | CE21: 14 | CF21: 18 | CG21: 21 | CH21: 9 | CI21: 85 | CJ21: 52 | CK21: 91 | CL21: 29 | CM21: 80 | CN21: 76 | CO21: 60 | CP21: 8 | CQ21: 59 | CR21: 61 | CS21: 11 | CT21: 94 | CU21: 64 | CV21: 43
A22: 52 | B22: 66 | C22: 30 | D22: 9 | E22: 70 | F22: 53 | G22: 13 | H22: 69 | I22: 75 | J22: 13 | K22: 70 | L22: 61 | M22: 52 | N22: 16 | O22: 16 | P22: 91 | Q22: 35 | R22: 58 | S22: 76 | T22: 99 | U22: 45 | V22: 13 | W22: 16 | X22: 66 | Y22: 11 | Z22: 23 | AA22: 35 | AB22: 26 | AC22: 69 | AD22: 7 | AE22: 93 | AF22: 82 | AG22: 1 | AH22: 96 | AI22: 57 | AJ22: 23 | AK22: 42 | AL22: 31 | AM22: 38 | AN22: 20 | AO22: 71 | AP22: 42 | AQ22: 46 | AR22: 47 | AS22: 76 | AT22: 1 | AU22: 89 | AV22: 76 | AW22: 56 | AX22: 82 | AY22: 25 | AZ22: 59 | BA22: 16 | BB22: 10 | BC22: 37 | BD22: 18 | BE22: 46 | BF22: 74 | BG22: 45 | BH22: 83 | BI22: 97 | BJ22: 21 | BK22: 16 | BL22: 1 | BM22: 49 | BN22: 1 | BO22: 1 | BP22: 81 | BQ22: 83 | BR22: 52 | BS22: 18 | BT22: 46 | BU22: 24 | BV22: 49 | BW22: 38 | BX22: 76 | BY22: 60 | BZ22: 59 | CA22: 47 | CB22: 39 | CC22: 47 | CD22: 85 | CE22: 36 | CF22: 51 | CG22: 94 | CH22: 12 | CI22: 30 | CJ22: 65 | CK22: 72 | CL22: 42 | CM22: 85 | CN22: 44 | CO22: 68 | CP22: 70 | CQ22: 83 | CR22: 60 | CS22: 53 | CT22: 88 | CU22: 18 | CV22: 88
A23: 98 | B23: 52 | C23: 91 | D23: 53 | E23: 71 | F23: 41 | G23: 94 | H23: 60 | I23: 46 | J23: 37 | K23: 34 | L23: 32 | M23: 82 | N23: 62 | O23: 25 | P23: 1 | Q23: 36 | R23: 62 | S23: 34 | T23: 68 | U23: 19 | V23: 76 | W23: 1 | X23: 71 | Y23: 57 | Z23: 51 | AA23: 90 | AB23: 67 | AC23: 89 | AD23: 74 | AE23: 95 | AF23: 39 | AG23: 29 | AH23: 56 | AI23: 87 | AJ23: 33 | AK23: 99 | AL23: 44 | AM23: 18 | AN23: 90 | AO23: 63 | AP23: 58 | AQ23: 37 | AR23: 30 | AS23: 48 | AT23: 30 | AU23: 80 | AV23: 44 | AW23: 48 | AX23: 85 | AY23: 82 | AZ23: 17 | BA23: 58 | BB23: 31 | BC23: 13 | BD23: 15 | BE23: 15 | BF23: 42 | BG23: 1 | BH23: 93 | BI23: 10 | BJ23: 88 | BK23: 42 | BL23: 16 | BM23: 73 | BN23: 16 | BO23: 44 | BP23: 96 | BQ23: 50 | BR23: 62 | BS23: 96 | BT23: 38 | BU23: 82 | BV23: 74 | BW23: 41 | BX23: 20 | BY23: 92 | BZ23: 53 | CA23: 46 | CB23: 14 | CC23: 70 | CD23: 23 | CE23: 29 | CF23: 72 | CG23: 99 | CH23: 60 | CI23: 29 | CJ23: 98 | CK23: 56 | CL23: 55 | CM23: 35 | CN23: 75 | CO23: 12 | CP23: 61 | CQ23: 68 | CR23: 86 | CS23: 15 | CT23: 29 | CU23: 76 | CV23: 79
A24: 97 | B24: 94 | C24: 81 | D24: 85 | E24: 71 | F24: 64 | G24: 92 | H24: 84 | I24: 14 | J24: 72 | K24: 50 | L24: 11 | M24: 75 | N24: 31 | O24: 51 | P24: 94 | Q24: 89 | R24: 3 | S24: 3 | T24: 37 | U24: 36 | V24: 9 | W24: 17 | X24: 6 | Y24: 62 | Z24: 88 | AA24: 94 | AB24: 19 | AC24: 73 | AD24: 59 | AE24: 51 | AF24: 43 | AG24: 63 | AH24: 43 | AI24: 60 | AJ24: 90 | AK24: 62 | AL24: 47 | AM24: 84 | AN24: 85 | AO24: 15 | AP24: 37 | AQ24: 40 | AR24: 13 | AS24: 4 | AT24: 53 | AU24: 77 | AV24: 24 | AW24: 16 | AX24: 23 | AY24: 6 | AZ24: 96 | BA24: 10 | BB24: 50 | BC24: 89 | BD24: 92 | BE24: 99 | BF24: 51 | BG24: 63 | BH24: 74 | BI24: 58 | BJ24: 95 | BK24: 35 | BL24: 5 | BM24: 15 | BN24: 34 | BO24: 41 | BP24: 60 | BQ24: 45 | BR24: 22 | BS24: 79 | BT24: 43 | BU24: 84 | BV24: 92 | BW24: 68 | BX24: 77 | BY24: 81 | BZ24: 45 | CA24: 28 | CB24: 55 | CC24: 96 | CD24: 73 | CE24: 77 | CF24: 37 | CG24: 63 | CH24: 18 | CI24: 2 | CJ24: 4 | CK24: 77 | CL24: 88 | CM24: 88 | CN24: 69 | CO24: 17 | CP24: 12 | CQ24: 24 | CR24: 78 | CS24: 99 | CT24: 44 | CU24: 79 | CV24: 81
A25: 93 | B25: 85 | C25: 34 | D25: 51 | E25: 19 | F25: 39 | G25: 85 | H25: 85 | I25: 53 | J25: 67 | K25: 64 | L25: 69 | M25: 11 | N25: 86 | O25: 34 | P25: 44 | Q25: 97 | R25: 93 | S25: 41 | T25: 44 | U25: 5 | V25: 95 | W25: 50 | X25: 71 | Y25: 66 | Z25: 43 | AA25: 49 | AB25: 45 | AC25: 62 | AD25: 51 | AE25: 23 | AF25: 31 | AG25: 90 | AH25: 39 | AI25: 51 | AJ25: 52 | AK25: 53 | AL25: 4 | AM25: 24 | AN25: 38 | AO25: 37 | AP25: 94 | AQ25: 42 | AR25: 30 | AS25: 33 | AT25: 55 | AU25: 69 | AV25: 14 | AW25: 3 | AX25: 59 | AY25: 13 | AZ25: 96 | BA25: 10 | BB25: 40 | BC25: 20 | BD25: 80 | BE25: 32 | BF25: 78 | BG25: 21 | BH25: 15 | BI25: 37 | BJ25: 47 | BK25: 39 | BL25: 74 | BM25: 14 | BN25: 22 | BO25: 69 | BP25: 3 | BQ25: 54 | BR25: 81 | BS25: 87 | BT25: 52 | BU25: 89 | BV25: 30 | BW25: 96 | BX25: 5 | BY25: 46 | BZ25: 95 | CA25: 24 | CB25: 93 | CC25: 59 | CD25: 2 | CE25: 4 | CF25: 95 | CG25: 49 | CH25: 68 | CI25: 88 | CJ25: 34 | CK25: 39 | CL25: 72 | CM25: 54 | CN25: 40 | CO25: 3 | CP25: 41 | CQ25: 37 | CR25: 66 | CS25: 96 | CT25: 13 | CU25: 51 | CV25: 10
A26: 14 | B26: 47 | C26: 97 | D26: 41 | E26: 34 | F26: 45 | G26: 83 | H26: 32 | I26: 5 | J26: 13 | K26: 94 | L26: 100 | M26: 78 | N26: 97 | O26: 59 | P26: 39 | Q26: 16 | R26: 50 | S26: 61 | T26: 8 | U26: 13 | V26: 60 | W26: 53 | X26: 22 | Y26: 74 | Z26: 26 | AA26: 53 | AB26: 53 | AC26: 57 | AD26: 57 | AE26: 18 | AF26: 100 | AG26: 18 | AH26: 57 | AI26: 49 | AJ26: 47 | AK26: 42 | AL26: 58 | AM26: 70 | AN26: 3 | AO26: 100 | AP26: 95 | AQ26: 53 | AR26: 41 | AS26: 19 | AT26: 44 | AU26: 61 | AV26: 91 | AW26: 64 | AX26: 4 | AY26: 69 | AZ26: 63 | BA26: 94 | BB26: 89 | BC26: 23 | BD26: 32 | BE26: 51 | BF26: 94 | BG26: 91 | BH26: 47 | BI26: 14 | BJ26: 50 | BK26: 25 | BL26: 51 | BM26: 44 | BN26: 4 | BO26: 29 | BP26: 30 | BQ26: 29 | BR26: 82 | BS26: 11 | BT26: 67 | BU26: 33 | BV26: 87 | BW26: 81 | BX26: 89 | BY26: 78 | BZ26: 63 | CA26: 56 | CB26: 69 | CC26: 66 | CD26: 77 | CE26: 1 | CF26: 41 | CG26: 42 | CH26: 76 | CI26: 8 | CJ26: 35 | CK26: 21 | CL26: 39 | CM26: 34 | CN26: 8 | CO26: 29 | CP26: 54 | CQ26: 7 | CR26: 34 | CS26: 81 | CT26: 36 | CU26: 38 | CV26: 6
A27: 16 | B27: 25 | C27: 25 | D27: 31 | E27: 43 | F27: 52 | G27: 95 | H27: 74 | I27: 55 | J27: 9 | K27: 56 | L27: 8 | M27: 69 | N27: 20 | O27: 76 | P27: 34 | Q27: 65 | R27: 60 | S27: 67 | T27: 36 | U27: 83 | V27: 43 | W27: 62 | X27: 1 | Y27: 16 | Z27: 59 | AA27: 83 | AB27: 8 | AC27: 24 | AD27: 18 | AE27: 88 | AF27: 1 | AG27: 43 | AH27: 83 | AI27: 65 | AJ27: 31 | AK27: 64 | AL27: 15 | AM27: 91 | AN27: 12 | AO27: 52 | AP27: 35 | AQ27: 29 | AR27: 65 | AS27: 73 | AT27: 70 | AU27: 11 | AV27: 18 | AW27: 34 | AX27: 82 | AY27: 54 | AZ27: 67 | BA27: 53 | BB27: 11 | BC27: 9 | BD27: 76 | BE27: 87 | BF27: 16 | BG27: 66 | BH27: 64 | BI27: 72 | BJ27: 87 | BK27: 10 | BL27: 87 | BM27: 10 | BN27: 98 | BO27: 71 | BP27: 38 | BQ27: 77 | BR27: 95 | BS27: 52 | BT27: 56 | BU27: 90 | BV27: 2 | BW27: 39 | BX27: 90 | BY27: 50 | BZ27: 6 | CA27: 57 | CB27: 25 | CC27: 3 | CD27: 48 | CE27: 56 | CF27: 51 | CG27: 81 | CH27: 82 | CI27: 66 | CJ27: 17 | CK27: 34 | CL27: 41 | CM27: 39 | CN27: 15 | CO27: 88 | CP27: 40 | CQ27: 49 | CR27: 85 | CS27: 95 | CT27: 89 | CU27: 97 | CV27: 58
A28: 25 | B28: 48 | C28: 11 | D28: 66 | E28: 88 | F28: 85 | G28: 98 | H28: 2 | I28: 95 | J28: 90 | K28: 73 | L28: 97 | M28: 33 | N28: 36 | O28: 94 | P28: 44 | Q28: 34 | R28: 47 | S28: 62 | T28: 16 | U28: 93 | V28: 67 | W28: 35 | X28: 80 | Y28: 40 | Z28: 29 | AA28: 57 | AB28: 91 | AC28: 48 | AD28: 76 | AE28: 37 | AF28: 10 | AG28: 69 | AH28: 37 | AI28: 89 | AJ28: 44 | AK28: 86 | AL28: 15 | AM28: 83 | AN28: 5 | AO28: 19 | AP28: 7 | AQ28: 94 | AR28: 64 | AS28: 96 | AT28: 15 | AU28: 15 | AV28: 70 | AW28: 88 | AX28: 20 | AY28: 19 | AZ28: 85 | BA28: 78 | BB28: 78 | BC28: 53 | BD28: 46 | BE28: 37 | BF28: 68 | BG28: 77 | BH28: 45 | BI28: 48 | BJ28: 41 | BK28: 79 | BL28: 20 | BM28: 91 | BN28: 21 | BO28: 71 | BP28: 69 | BQ28: 52 | BR28: 6 | BS28: 27 | BT28: 52 | BU28: 4 | BV28: 90 | BW28: 46 | BX28: 2 | BY28: 4 | BZ28: 61 | CA28: 67 | CB28: 34 | CC28: 49 | CD28: 53 | CE28: 2 | CF28: 89 | CG28: 17 | CH28: 91 | CI28: 61 | CJ28: 23 | CK28: 10 | CL28: 74 | CM28: 74 | CN28: 76 | CO28: 48 | CP28: 57 | CQ28: 98 | CR28: 59 | CS28: 2 | CT28: 67 | CU28: 18 | CV28: 27
A29: 10 | B29: 62 | C29: 24 | D29: 22 | E29: 93 | F29: 46 | G29: 98 | H29: 54 | I29: 19 | J29: 89 | K29: 96 | L29: 31 | M29: 46 | N29: 26 | O29: 20 | P29: 37 | Q29: 89 | R29: 35 | S29: 74 | T29: 78 | U29: 55 | V29: 4 | W29: 58 | X29: 69 | Y29: 14 | Z29: 93 | AA29: 11 | AB29: 18 | AC29: 70 | AD29: 78 | AE29: 75 | AF29: 15 | AG29: 24 | AH29: 3 | AI29: 36 | AJ29: 31 | AK29: 83 | AL29: 75 | AM29: 37 | AN29: 35 | AO29: 58 | AP29: 45 | AQ29: 85 | AR29: 40 | AS29: 60 | AT29: 12 | AU29: 9 | AV29: 45 | AW29: 41 | AX29: 29 | AY29: 54 | AZ29: 66 | BA29: 10 | BB29: 96 | BC29: 89 | BD29: 7 | BE29: 42 | BF29: 2 | BG29: 62 | BH29: 9 | BI29: 23 | BJ29: 4 | BK29: 97 | BL29: 70 | BM29: 30 | BN29: 3 | BO29: 15 | BP29: 19 | BQ29: 86 | BR29: 35 | BS29: 44 | BT29: 36 | BU29: 84 | BV29: 44 | BW29: 67 | BX29: 34 | BY29: 39 | BZ29: 39 | CA29: 84 | CB29: 34 | CC29: 7 | CD29: 77 | CE29: 75 | CF29: 55 | CG29: 98 | CH29: 74 | CI29: 64 | CJ29: 38 | CK29: 18 | CL29: 11 | CM29: 73 | CN29: 71 | CO29: 26 | CP29: 100 | CQ29: 46 | CR29: 52 | CS29: 13 | CT29: 68 | CU29: 97 | CV29: 39
A30: 28 | B30: 15 | C30: 84 | D30: 66 | E30: 72 | F30: 22 | G30: 87 | H30: 38 | I30: 27 | J30: 80 | K30: 87 | L30: 42 | M30: 66 | N30: 33 | O30: 10 | P30: 32 | Q30: 97 | R30: 74 | S30: 16 | T30: 37 | U30: 16 | V30: 68 | W30: 89 | X30: 52 | Y30: 81 | Z30: 87 | AA30: 64 | AB30: 43 | AC30: 6 | AD30: 33 | AE30: 39 | AF30: 26 | AG30: 26 | AH30: 95 | AI30: 98 | AJ30: 38 | AK30: 8 | AL30: 12 | AM30: 35 | AN30: 24 | AO30: 79 | AP30: 46 | AQ30: 28 | AR30: 72 | AS30: 87 | AT30: 57 | AU30: 9 | AV30: 56 | AW30: 18 | AX30: 83 | AY30: 1 | AZ30: 65 | BA30: 80 | BB30: 71 | BC30: 69 | BD30: 55 | BE30: 94 | BF30: 50 | BG30: 93 | BH30: 5 | BI30: 3 | BJ30: 17 | BK30: 67 | BL30: 11 | BM30: 90 | BN30: 69 | BO30: 92 | BP30: 99 | BQ30: 97 | BR30: 47 | BS30: 19 | BT30: 6 | BU30: 71 | BV30: 19 | BW30: 34 | BX30: 77 | BY30: 94 | BZ30: 28 | CA30: 83 | CB30: 34 | CC30: 43 | CD30: 75 | CE30: 44 | CF30: 99 | CG30: 94 | CH30: 59 | CI30: 79 | CJ30: 39 | CK30: 61 | CL30: 95 | CM30: 27 | CN30: 50 | CO30: 10 | CP30: 76 | CQ30: 44 | CR30: 57 | CS30: 42 | CT30: 79 | CU30: 55 | CV30: 47
A31: 95 | B31: 90 | C31: 36 | D31: 6 | E31: 86 | F31: 41 | G31: 15 | H31: 69 | I31: 49 | J31: 61 | K31: 95 | L31: 35 | M31: 58 | N31: 13 | O31: 99 | P31: 19 | Q31: 73 | R31: 27 | S31: 69 | T31: 45 | U31: 44 | V31: 48 | W31: 82 | X31: 22 | Y31: 21 | Z31: 59 | AA31: 32 | AB31: 26 | AC31: 5 | AD31: 6 | AE31: 69 | AF31: 48 | AG31: 63 | AH31: 82 | AI31: 38 | AJ31: 85 | AK31: 87 | AL31: 22 | AM31: 47 | AN31: 6 | AO31: 10 | AP31: 23 | AQ31: 53 | AR31: 18 | AS31: 5 | AT31: 11 | AU31: 10 | AV31: 83 | AW31: 45 | AX31: 4 | AY31: 98 | AZ31: 52 | BA31: 28 | BB31: 37 | BC31: 64 | BD31: 23 | BE31: 68 | BF31: 80 | BG31: 20 | BH31: 45 | BI31: 84 | BJ31: 43 | BK31: 81 | BL31: 89 | BM31: 54 | BN31: 12 | BO31: 32 | BP31: 69 | BQ31: 15 | BR31: 7 | BS31: 88 | BT31: 100 | BU31: 39 | BV31: 45 | BW31: 36 | BX31: 28 | BY31: 46 | BZ31: 68 | CA31: 62 | CB31: 5 | CC31: 86 | CD31: 36 | CE31: 30 | CF31: 94 | CG31: 65 | CH31: 98 | CI31: 22 | CJ31: 55 | CK31: 21 | CL31: 10 | CM31: 55 | CN31: 43 | CO31: 3 | CP31: 34 | CQ31: 14 | CR31: 85 | CS31: 82 | CT31: 58 | CU31: 100 | CV31: 33
A32: 42 | B32: 56 | C32: 27 | D32: 98 | E32: 93 | F32: 49 | G32: 97 | H32: 96 | I32: 92 | J32: 4 | K32: 86 | L32: 14 | M32: 46 | N32: 4 | O32: 2 | P32: 50 | Q32: 2 | R32: 64 | S32: 81 | T32: 15 | U32: 30 | V32: 97 | W32: 92 | X32: 7 | Y32: 86 | Z32: 11 | AA32: 29 | AB32: 91 | AC32: 19 | AD32: 84 | AE32: 81 | AF32: 38 | AG32: 78 | AH32: 36 | AI32: 46 | AJ32: 42 | AK32: 14 | AL32: 48 | AM32: 5 | AN32: 59 | AO32: 11 | AP32: 9 | AQ32: 16 | AR32: 10 | AS32: 83 | AT32: 75 | AU32: 97 | AV32: 72 | AW32: 5 | AX32: 77 | AY32: 27 | AZ32: 14 | BA32: 93 | BB32: 17 | BC32: 12 | BD32: 25 | BE32: 13 | BF32: 60 | BG32: 90 | BH32: 63 | BI32: 7 | BJ32: 79 | BK32: 62 | BL32: 95 | BM32: 78 | BN32: 78 | BO32: 90 | BP32: 31 | BQ32: 49 | BR32: 39 | BS32: 44 | BT32: 80 | BU32: 3 | BV32: 19 | BW32: 39 | BX32: 17 | BY32: 100 | BZ32: 72 | CA32: 10 | CB32: 33 | CC32: 14 | CD32: 87 | CE32: 8 | CF32: 82 | CG32: 77 | CH32: 75 | CI32: 51 | CJ32: 94 | CK32: 89 | CL32: 80 | CM32: 70 | CN32: 48 | CO32: 60 | CP32: 66 | CQ32: 51 | CR32: 84 | CS32: 82 | CT32: 3 | CU32: 68 | CV32: 36
A33: 99 | B33: 45 | C33: 69 | D33: 64 | E33: 23 | F33: 82 | G33: 13 | H33: 14 | I33: 78 | J33: 88 | K33: 33 | L33: 91 | M33: 52 | N33: 85 | O33: 84 | P33: 85 | Q33: 46 | R33: 15 | S33: 19 | T33: 87 | U33: 20 | V33: 73 | W33: 59 | X33: 22 | Y33: 20 | Z33: 58 | AA33: 26 | AB33: 99 | AC33: 70 | AD33: 50 | AE33: 73 | AF33: 48 | AG33: 74 | AH33: 39 | AI33: 54 | AJ33: 15 | AK33: 31 | AL33: 84 | AM33: 35 | AN33: 37 | AO33: 61 | AP33: 71 | AQ33: 49 | AR33: 33 | AS33: 47 | AT33: 66 | AU33: 97 | AV33: 47 | AW33: 19 | AX33: 92 | AY33: 38 | AZ33: 75 | BA33: 36 | BB33: 2 | BC33: 19 | BD33: 6 | BE33: 43 | BF33: 36 | BG33: 42 | BH33: 49 | BI33: 53 | BJ33: 56 | BK33: 75 | BL33: 46 | BM33: 94 | BN33: 94 | BO33: 57 | BP33: 69 | BQ33: 27 | BR33: 35 | BS33: 78 | BT33: 2 | BU33: 8 | BV33: 50 | BW33: 39 | BX33: 56 | BY33: 60 | BZ33: 72 | CA33: 81 | CB33: 15 | CC33: 40 | CD33: 84 | CE33: 44 | CF33: 35 | CG33: 66 | CH33: 99 | CI33: 22 | CJ33: 4 | CK33: 79 | CL33: 4 | CM33: 36 | CN33: 42 | CO33: 92 | CP33: 92 | CQ33: 28 | CR33: 52 | CS33: 83 | CT33: 76 | CU33: 77 | CV33: 42
A34: 54 | B34: 71 | C34: 25 | D34: 69 | E34: 8 | F34: 21 | G34: 61 | H34: 18 | I34: 17 | J34: 90 | K34: 94 | L34: 94 | M34: 54 | N34: 95 | O34: 55 | P34: 53 | Q34: 100 | R34: 54 | S34: 84 | T34: 9 | U34: 4 | V34: 83 | W34: 14 | X34: 68 | Y34: 76 | Z34: 16 | AA34: 84 | AB34: 33 | AC34: 58 | AD34: 96 | AE34: 22 | AF34: 68 | AG34: 43 | AH34: 98 | AI34: 33 | AJ34: 43 | AK34: 54 | AL34: 74 | AM34: 9 | AN34: 28 | AO34: 6 | AP34: 73 | AQ34: 98 | AR34: 42 | AS34: 30 | AT34: 31 | AU34: 3 | AV34: 8 | AW34: 15 | AX34: 89 | AY34: 43 | AZ34: 66 | BA34: 74 | BB34: 13 | BC34: 87 | BD34: 21 | BE34: 12 | BF34: 85 | BG34: 43 | BH34: 66 | BI34: 95 | BJ34: 15 | BK34: 48 | BL34: 93 | BM34: 83 | BN34: 25 | BO34: 13 | BP34: 3 | BQ34: 77 | BR34: 38 | BS34: 76 | BT34: 58 | BU34: 49 | BV34: 55 | BW34: 26 | BX34: 53 | BY34: 57 | BZ34: 86 | CA34: 93 | CB34: 6 | CC34: 64 | CD34: 81 | CE34: 22 | CF34: 82 | CG34: 92 | CH34: 46 | CI34: 56 | CJ34: 83 | CK34: 25 | CL34: 15 | CM34: 26 | CN34: 50 | CO34: 49 | CP34: 2 | CQ34: 46 | CR34: 53 | CS34: 21 | CT34: 26 | CU34: 87 | CV34: 96
A35: 74 | B35: 24 | C35: 35 | D35: 97 | E35: 11 | F35: 39 | G35: 77 | H35: 78 | I35: 12 | J35: 19 | K35: 78 | L35: 50 | M35: 73 | N35: 50 | O35: 23 | P35: 40 | Q35: 49 | R35: 14 | S35: 46 | T35: 73 | U35: 95 | V35: 74 | W35: 72 | X35: 98 | Y35: 79 | Z35: 100 | AA35: 68 | AB35: 92 | AC35: 33 | AD35: 70 | AE35: 62 | AF35: 75 | AG35: 73 | AH35: 38 | AI35: 21 | AJ35: 5 | AK35: 85 | AL35: 48 | AM35: 1 | AN35: 47 | AO35: 100 | AP35: 17 | AQ35: 58 | AR35: 20 | AS35: 72 | AT35: 40 | AU35: 12 | AV35: 88 | AW35: 6 | AX35: 73 | AY35: 55 | AZ35: 3 | BA35: 32 | BB35: 64 | BC35: 100 | BD35: 9 | BE35: 13 | BF35: 47 | BG35: 90 | BH35: 8 | BI35: 22 | BJ35: 33 | BK35: 70 | BL35: 44 | BM35: 20 | BN35: 90 | BO35: 25 | BP35: 11 | BQ35: 17 | BR35: 35 | BS35: 4 | BT35: 66 | BU35: 10 | BV35: 25 | BW35: 31 | BX35: 8 | BY35: 86 | BZ35: 87 | CA35: 96 | CB35: 61 | CC35: 18 | CD35: 87 | CE35: 81 | CF35: 58 | CG35: 43 | CH35: 42 | CI35: 90 | CJ35: 57 | CK35: 71 | CL35: 92 | CM35: 25 | CN35: 26 | CO35: 19 | CP35: 66 | CQ35: 73 | CR35: 59 | CS35: 68 | CT35: 35 | CU35: 71 | CV35: 45
A36: 22 | B36: 78 | C36: 3 | D36: 10 | E36: 83 | F36: 58 | G36: 37 | H36: 21 | I36: 34 | J36: 43 | K36: 45 | L36: 98 | M36: 50 | N36: 36 | O36: 51 | P36: 35 | Q36: 57 | R36: 45 | S36: 21 | T36: 7 | U36: 100 | V36: 77 | W36: 81 | X36: 52 | Y36: 39 | Z36: 17 | AA36: 40 | AB36: 4 | AC36: 55 | AD36: 64 | AE36: 15 | AF36: 81 | AG36: 3 | AH36: 40 | AI36: 48 | AJ36: 84 | AK36: 74 | AL36: 66 | AM36: 82 | AN36: 38 | AO36: 97 | AP36: 74 | AQ36: 48 | AR36: 89 | AS36: 19 | AT36: 89 | AU36: 11 | AV36: 94 | AW36: 27 | AX36: 84 | AY36: 49 | AZ36: 20 | BA36: 1 | BB36: 74 | BC36: 70 | BD36: 17 | BE36: 75 | BF36: 70 | BG36: 55 | BH36: 11 | BI36: 19 | BJ36: 93 | BK36: 64 | BL36: 83 | BM36: 82 | BN36: 2 | BO36: 42 | BP36: 54 | BQ36: 10 | BR36: 24 | BS36: 12 | BT36: 54 | BU36: 62 | BV36: 87 | BW36: 35 | BX36: 28 | BY36: 20 | BZ36: 37 | CA36: 76 | CB36: 64 | CC36: 51 | CD36: 97 | CE36: 17 | CF36: 6 | CG36: 13 | CH36: 71 | CI36: 79 | CJ36: 3 | CK36: 83 | CL36: 18 | CM36: 25 | CN36: 57 | CO36: 92 | CP36: 39 | CQ36: 43 | CR36: 82 | CS36: 100 | CT36: 62 | CU36: 99 | CV36: 72
A37: 76 | B37: 22 | C37: 66 | D37: 69 | E37: 90 | F37: 29 | G37: 52 | H37: 39 | I37: 12 | J37: 11 | K37: 15 | L37: 20 | M37: 60 | N37: 45 | O37: 93 | P37: 36 | Q37: 26 | R37: 23 | S37: 84 | T37: 42 | U37: 61 | V37: 85 | W37: 69 | X37: 45 | Y37: 11 | Z37: 78 | AA37: 9 | AB37: 2 | AC37: 32 | AD37: 38 | AE37: 3 | AF37: 14 | AG37: 41 | AH37: 66 | AI37: 97 | AJ37: 25 | AK37: 82 | AL37: 60 | AM37: 8 | AN37: 43 | AO37: 30 | AP37: 25 | AQ37: 48 | AR37: 62 | AS37: 41 | AT37: 17 | AU37: 35 | AV37: 75 | AW37: 16 | AX37: 46 | AY37: 100 | AZ37: 40 | BA37: 24 | BB37: 83 | BC37: 68 | BD37: 60 | BE37: 43 | BF37: 98 | BG37: 14 | BH37: 62 | BI37: 71 | BJ37: 81 | BK37: 27 | BL37: 47 | BM37: 9 | BN37: 100 | BO37: 36 | BP37: 53 | BQ37: 40 | BR37: 89 | BS37: 59 | BT37: 16 | BU37: 59 | BV37: 58 | BW37: 50 | BX37: 67 | BY37: 22 | BZ37: 37 | CA37: 12 | CB37: 88 | CC37: 3 | CD37: 44 | CE37: 61 | CF37: 85 | CG37: 79 | CH37: 65 | CI37: 62 | CJ37: 13 | CK37: 94 | CL37: 17 | CM37: 98 | CN37: 57 | CO37: 90 | CP37: 12 | CQ37: 1 | CR37: 71 | CS37: 65 | CT37: 71 | CU37: 73 | CV37: 64
A38: 82 | B38: 84 | C38: 59 | D38: 83 | E38: 80 | F38: 33 | G38: 22 | H38: 82 | I38: 21 | J38: 28 | K38: 87 | L38: 91 | M38: 76 | N38: 74 | O38: 59 | P38: 64 | Q38: 41 | R38: 27 | S38: 75 | T38: 41 | U38: 8 | V38: 22 | W38: 41 | X38: 26 | Y38: 17 | Z38: 91 | AA38: 42 | AB38: 22 | AC38: 4 | AD38: 87 | AE38: 43 | AF38: 49 | AG38: 9 | AH38: 11 | AI38: 21 | AJ38: 4 | AK38: 98 | AL38: 86 | AM38: 87 | AN38: 48 | AO38: 95 | AP38: 41 | AQ38: 35 | AR38: 92 | AS38: 15 | AT38: 72 | AU38: 26 | AV38: 11 | AW38: 21 | AX38: 21 | AY38: 24 | AZ38: 9 | BA38: 95 | BB38: 39 | BC38: 32 | BD38: 90 | BE38: 78 | BF38: 39 | BG38: 50 | BH38: 98 | BI38: 71 | BJ38: 33 | BK38: 23 | BL38: 81 | BM38: 1 | BN38: 71 | BO38: 76 | BP38: 73 | BQ38: 90 | BR38: 31 | BS38: 47 | BT38: 20 | BU38: 35 | BV38: 36 | BW38: 63 | BX38: 53 | BY38: 52 | BZ38: 61 | CA38: 75 | CB38: 50 | CC38: 87 | CD38: 19 | CE38: 12 | CF38: 23 | CG38: 92 | CH38: 5 | CI38: 52 | CJ38: 75 | CK38: 53 | CL38: 3 | CM38: 86 | CN38: 16 | CO38: 9 | CP38: 43 | CQ38: 37 | CR38: 30 | CS38: 84 | CT38: 18 | CU38: 50 | CV38: 76
A39: 25 | B39: 7 | C39: 2 | D39: 7 | E39: 55 | F39: 9 | G39: 68 | H39: 97 | I39: 13 | J39: 88 | K39: 3 | L39: 74 | M39: 17 | N39: 50 | O39: 32 | P39: 35 | Q39: 45 | R39: 10 | S39: 14 | T39: 61 | U39: 71 | V39: 58 | W39: 62 | X39: 90 | Y39: 85 | Z39: 9 | AA39: 90 | AB39: 87 | AC39: 13 | AD39: 26 | AE39: 1 | AF39: 93 | AG39: 7 | AH39: 73 | AI39: 78 | AJ39: 71 | AK39: 72 | AL39: 60 | AM39: 78 | AN39: 77 | AO39: 2 | AP39: 69 | AQ39: 64 | AR39: 74 | AS39: 56 | AT39: 15 | AU39: 31 | AV39: 5 | AW39: 60 | AX39: 22 | AY39: 54 | AZ39: 23 | BA39: 90 | BB39: 94 | BC39: 8 | BD39: 56 | BE39: 4 | BF39: 83 | BG39: 21 | BH39: 47 | BI39: 70 | BJ39: 89 | BK39: 54 | BL39: 43 | BM39: 87 | BN39: 91 | BO39: 83 | BP39: 35 | BQ39: 80 | BR39: 55 | BS39: 35 | BT39: 8 | BU39: 35 | BV39: 97 | BW39: 25 | BX39: 24 | BY39: 13 | BZ39: 49 | CA39: 94 | CB39: 73 | CC39: 75 | CD39: 25 | CE39: 46 | CF39: 30 | CG39: 58 | CH39: 18 | CI39: 39 | CJ39: 4 | CK39: 56 | CL39: 91 | CM39: 1 | CN39: 64 | CO39: 81 | CP39: 89 | CQ39: 2 | CR39: 26 | CS39: 55 | CT39: 74 | CU39: 56 | CV39: 96
A40: 3 | B40: 6 | C40: 66 | D40: 7 | E40: 49 | F40: 29 | G40: 95 | H40: 71 | I40: 27 | J40: 85 | K40: 13 | L40: 91 | M40: 97 | N40: 68 | O40: 92 | P40: 8 | Q40: 40 | R40: 43 | S40: 1 | T40: 71 | U40: 15 | V40: 23 | W40: 47 | X40: 66 | Y40: 93 | Z40: 98 | AA40: 88 | AB40: 5 | AC40: 81 | AD40: 86 | AE40: 27 | AF40: 41 | AG40: 44 | AH40: 96 | AI40: 27 | AJ40: 60 | AK40: 97 | AL40: 5 | AM40: 15 | AN40: 35 | AO40: 82 | AP40: 21 | AQ40: 54 | AR40: 78 | AS40: 2 | AT40: 25 | AU40: 38 | AV40: 87 | AW40: 67 | AX40: 1 | AY40: 48 | AZ40: 81 | BA40: 88 | BB40: 95 | BC40: 26 | BD40: 25 | BE40: 96 | BF40: 18 | BG40: 93 | BH40: 100 | BI40: 75 | BJ40: 82 | BK40: 38 | BL40: 96 | BM40: 47 | BN40: 100 | BO40: 21 | BP40: 84 | BQ40: 20 | BR40: 55 | BS40: 12 | BT40: 46 | BU40: 17 | BV40: 66 | BW40: 26 | BX40: 54 | BY40: 69 | BZ40: 34 | CA40: 37 | CB40: 97 | CC40: 48 | CD40: 24 | CE40: 10 | CF40: 97 | CG40: 73 | CH40: 80 | CI40: 9 | CJ40: 41 | CK40: 1 | CL40: 43 | CM40: 43 | CN40: 40 | CO40: 82 | CP40: 68 | CQ40: 90 | CR40: 70 | CS40: 55 | CT40: 14 | CU40: 71 | CV40: 26
A41: 4 | B41: 67 | C41: 74 | D41: 23 | E41: 38 | F41: 87 | G41: 49 | H41: 29 | I41: 16 | J41: 42 | K41: 47 | L41: 47 | M41: 77 | N41: 15 | O41: 6 | P41: 24 | Q41: 58 | R41: 38 | S41: 96 | T41: 98 | U41: 92 | V41: 78 | W41: 68 | X41: 14 | Y41: 47 | Z41: 63 | AA41: 80 | AB41: 56 | AC41: 4 | AD41: 47 | AE41: 83 | AF41: 90 | AG41: 75 | AH41: 53 | AI41: 98 | AJ41: 34 | AK41: 3 | AL41: 25 | AM41: 3 | AN41: 57 | AO41: 22 | AP41: 18 | AQ41: 27 | AR41: 40 | AS41: 65 | AT41: 13 | AU41: 95 | AV41: 46 | AW41: 50 | AX41: 55 | AY41: 52 | AZ41: 69 | BA41: 2 | BB41: 71 | BC41: 62 | BD41: 42 | BE41: 54 | BF41: 43 | BG41: 99 | BH41: 51 | BI41: 10 | BJ41: 97 | BK41: 26 | BL41: 99 | BM41: 11 | BN41: 50 | BO41: 92 | BP41: 27 | BQ41: 2 | BR41: 85 | BS41: 53 | BT41: 82 | BU41: 55 | BV41: 82 | BW41: 58 | BX41: 24 | BY41: 47 | BZ41: 42 | CA41: 91 | CB41: 35 | CC41: 28 | CD41: 81 | CE41: 84 | CF41: 68 | CG41: 74 | CH41: 13 | CI41: 76 | CJ41: 93 | CK41: 24 | CL41: 75 | CM41: 7 | CN41: 81 | CO41: 52 | CP41: 12 | CQ41: 95 | CR41: 83 | CS41: 73 | CT41: 82 | CU41: 95 | CV41: 98
A42: 28 | B42: 50 | C42: 35 | D42: 54 | E42: 39 | F42: 38 | G42: 78 | H42: 38 | I42: 48 | J42: 15 | K42: 12 | L42: 19 | M42: 16 | N42: 19 | O42: 93 | P42: 74 | Q42: 45 | R42: 34 | S42: 47 | T42: 80 | U42: 83 | V42: 61 | W42: 62 | X42: 41 | Y42: 82 | Z42: 66 | AA42: 42 | AB42: 34 | AC42: 69 | AD42: 77 | AE42: 15 | AF42: 66 | AG42: 59 | AH42: 41 | AI42: 48 | AJ42: 19 | AK42: 50 | AL42: 85 | AM42: 18 | AN42: 21 | AO42: 39 | AP42: 83 | AQ42: 61 | AR42: 55 | AS42: 13 | AT42: 17 | AU42: 63 | AV42: 70 | AW42: 2 | AX42: 47 | AY42: 8 | AZ42: 9 | BA42: 53 | BB42: 48 | BC42: 52 | BD42: 48 | BE42: 4 | BF42: 23 | BG42: 59 | BH42: 1 | BI42: 96 | BJ42: 73 | BK42: 31 | BL42: 41 | BM42: 5 | BN42: 9 | BO42: 38 | BP42: 96 | BQ42: 83 | BR42: 42 | BS42: 55 | BT42: 21 | BU42: 24 | BV42: 2 | BW42: 81 | BX42: 99 | BY42: 26 | BZ42: 11 | CA42: 85 | CB42: 8 | CC42: 19 | CD42: 91 | CE42: 90 | CF42: 9 | CG42: 18 | CH42: 100 | CI42: 98 | CJ42: 5 | CK42: 32 | CL42: 18 | CM42: 36 | CN42: 33 | CO42: 9 | CP42: 86 | CQ42: 99 | CR42: 40 | CS42: 87 | CT42: 4 | CU42: 51 | CV42: 30
A43: 13 | B43: 83 | C43: 43 | D43: 78 | E43: 70 | F43: 11 | G43: 61 | H43: 30 | I43: 18 | J43: 74 | K43: 7 | L43: 19 | M43: 55 | N43: 80 | O43: 3 | P43: 1 | Q43: 43 | R43: 35 | S43: 60 | T43: 16 | U43: 77 | V43: 56 | W43: 1 | X43: 18 | Y43: 98 | Z43: 24 | AA43: 59 | AB43: 5 | AC43: 73 | AD43: 48 | AE43: 50 | AF43: 39 | AG43: 70 | AH43: 16 | AI43: 99 | AJ43: 33 | AK43: 50 | AL43: 99 | AM43: 44 | AN43: 87 | AO43: 6 | AP43: 11 | AQ43: 98 | AR43: 17 | AS43: 1 | AT43: 58 | AU43: 91 | AV43: 49 | AW43: 13 | AX43: 76 | AY43: 84 | AZ43: 49 | BA43: 96 | BB43: 53 | BC43: 84 | BD43: 93 | BE43: 10 | BF43: 77 | BG43: 92 | BH43: 64 | BI43: 23 | BJ43: 22 | BK43: 67 | BL43: 66 | BM43: 43 | BN43: 27 | BO43: 8 | BP43: 30 | BQ43: 32 | BR43: 95 | BS43: 30 | BT43: 100 | BU43: 98 | BV43: 92 | BW43: 51 | BX43: 94 | BY43: 90 | BZ43: 75 | CA43: 85 | CB43: 76 | CC43: 10 | CD43: 84 | CE43: 97 | CF43: 45 | CG43: 9 | CH43: 81 | CI43: 75 | CJ43: 87 | CK43: 53 | CL43: 4 | CM43: 24 | CN43: 61 | CO43: 69 | CP43: 43 | CQ43: 34 | CR43: 67 | CS43: 80 | CT43: 89 | CU43: 85 | CV43: 97
A44: 13 | B44: 21 | C44: 17 | D44: 33 | E44: 95 | F44: 19 | G44: 22 | H44: 41 | I44: 48 | J44: 12 | K44: 54 | L44: 17 | M44: 23 | N44: 8 | O44: 55 | P44: 1 | Q44: 82 | R44: 71 | S44: 50 | T44: 70 | U44: 48 | V44: 83 | W44: 39 | X44: 73 | Y44: 86 | Z44: 74 | AA44: 76 | AB44: 54 | AC44: 2 | AD44: 76 | AE44: 63 | AF44: 13 | AG44: 38 | AH44: 61 | AI44: 9 | AJ44: 71 | AK44: 52 | AL44: 28 | AM44: 24 | AN44: 36 | AO44: 1 | AP44: 39 | AQ44: 45 | AR44: 44 | AS44: 49 | AT44: 25 | AU44: 2 | AV44: 41 | AW44: 92 | AX44: 78 | AY44: 41 | AZ44: 69 | BA44: 26 | BB44: 37 | BC44: 79 | BD44: 57 | BE44: 57 | BF44: 53 | BG44: 43 | BH44: 46 | BI44: 20 | BJ44: 37 | BK44: 11 | BL44: 59 | BM44: 11 | BN44: 25 | BO44: 5 | BP44: 37 | BQ44: 50 | BR44: 3 | BS44: 90 | BT44: 58 | BU44: 57 | BV44: 87 | BW44: 77 | BX44: 98 | BY44: 71 | BZ44: 64 | CA44: 79 | CB44: 14 | CC44: 78 | CD44: 54 | CE44: 98 | CF44: 100 | CG44: 96 | CH44: 58 | CI44: 97 | CJ44: 9 | CK44: 36 | CL44: 13 | CM44: 34 | CN44: 41 | CO44: 10 | CP44: 99 | CQ44: 40 | CR44: 21 | CS44: 41 | CT44: 28 | CU44: 26 | CV44: 90
A45: 58 | B45: 22 | C45: 97 | D45: 68 | E45: 6 | F45: 8 | G45: 33 | H45: 99 | I45: 57 | J45: 9 | K45: 63 | L45: 34 | M45: 1 | N45: 10 | O45: 31 | P45: 40 | Q45: 51 | R45: 57 | S45: 7 | T45: 22 | U45: 13 | V45: 24 | W45: 57 | X45: 7 | Y45: 18 | Z45: 36 | AA45: 85 | AB45: 49 | AC45: 57 | AD45: 89 | AE45: 38 | AF45: 14 | AG45: 89 | AH45: 66 | AI45: 1 | AJ45: 92 | AK45: 51 | AL45: 65 | AM45: 22 | AN45: 53 | AO45: 47 | AP45: 67 | AQ45: 64 | AR45: 15 | AS45: 27 | AT45: 22 | AU45: 67 | AV45: 14 | AW45: 71 | AX45: 71 | AY45: 67 | AZ45: 84 | BA45: 1 | BB45: 51 | BC45: 25 | BD45: 29 | BE45: 10 | BF45: 8 | BG45: 59 | BH45: 98 | BI45: 42 | BJ45: 18 | BK45: 75 | BL45: 5 | BM45: 20 | BN45: 5 | BO45: 42 | BP45: 14 | BQ45: 98 | BR45: 67 | BS45: 33 | BT45: 55 | BU45: 29 | BV45: 94 | BW45: 96 | BX45: 100 | BY45: 18 | BZ45: 59 | CA45: 28 | CB45: 11 | CC45: 32 | CD45: 91 | CE45: 89 | CF45: 31 | CG45: 89 | CH45: 6 | CI45: 18 | CJ45: 46 | CK45: 3 | CL45: 25 | CM45: 27 | CN45: 45 | CO45: 41 | CP45: 98 | CQ45: 58 | CR45: 91 | CS45: 51 | CT45: 97 | CU45: 91 | CV45: 10
A46: 29 | B46: 75 | C46: 22 | D46: 18 | E46: 41 | F46: 57 | G46: 16 | H46: 4 | I46: 28 | J46: 74 | K46: 8 | L46: 64 | M46: 22 | N46: 41 | O46: 15 | P46: 54 | Q46: 24 | R46: 93 | S46: 97 | T46: 9 | U46: 27 | V46: 38 | W46: 46 | X46: 22 | Y46: 34 | Z46: 49 | AA46: 33 | AB46: 36 | AC46: 44 | AD46: 67 | AE46: 97 | AF46: 81 | AG46: 41 | AH46: 26 | AI46: 81 | AJ46: 96 | AK46: 96 | AL46: 59 | AM46: 31 | AN46: 37 | AO46: 64 | AP46: 18 | AQ46: 15 | AR46: 93 | AS46: 1 | AT46: 78 | AU46: 61 | AV46: 38 | AW46: 89 | AX46: 81 | AY46: 86 | AZ46: 86 | BA46: 85 | BB46: 62 | BC46: 12 | BD46: 20 | BE46: 70 | BF46: 46 | BG46: 34 | BH46: 89 | BI46: 80 | BJ46: 41 | BK46: 48 | BL46: 53 | BM46: 83 | BN46: 32 | BO46: 45 | BP46: 8 | BQ46: 100 | BR46: 95 | BS46: 78 | BT46: 5 | BU46: 42 | BV46: 78 | BW46: 51 | BX46: 79 | BY46: 66 | BZ46: 94 | CA46: 15 | CB46: 3 | CC46: 79 | CD46: 34 | CE46: 63 | CF46: 100 | CG46: 64 | CH46: 58 | CI46: 69 | CJ46: 52 | CK46: 32 | CL46: 44 | CM46: 19 | CN46: 97 | CO46: 51 | CP46: 74 | CQ46: 65 | CR46: 49 | CS46: 62 | CT46: 80 | CU46: 85 | CV46: 35
A47: 42 | B47: 62 | C47: 1 | D47: 18 | E47: 97 | F47: 71 | G47: 32 | H47: 49 | I47: 1 | J47: 13 | K47: 41 | L47: 99 | M47: 73 | N47: 31 | O47: 98 | P47: 68 | Q47: 75 | R47: 57 | S47: 46 | T47: 43 | U47: 73 | V47: 29 | W47: 64 | X47: 24 | Y47: 78 | Z47: 81 | AA47: 36 | AB47: 51 | AC47: 95 | AD47: 73 | AE47: 52 | AF47: 20 | AG47: 53 | AH47: 91 | AI47: 10 | AJ47: 95 | AK47: 66 | AL47: 17 | AM47: 82 | AN47: 80 | AO47: 63 | AP47: 91 | AQ47: 98 | AR47: 86 | AS47: 86 | AT47: 60 | AU47: 22 | AV47: 47 | AW47: 28 | AX47: 93 | AY47: 36 | AZ47: 76 | BA47: 33 | BB47: 98 | BC47: 1 | BD47: 9 | BE47: 80 | BF47: 26 | BG47: 53 | BH47: 31 | BI47: 94 | BJ47: 12 | BK47: 2 | BL47: 6 | BM47: 59 | BN47: 52 | BO47: 18 | BP47: 73 | BQ47: 27 | BR47: 49 | BS47: 4 | BT47: 15 | BU47: 46 | BV47: 99 | BW47: 34 | BX47: 15 | BY47: 95 | BZ47: 25 | CA47: 12 | CB47: 82 | CC47: 69 | CD47: 69 | CE47: 85 | CF47: 64 | CG47: 75 | CH47: 30 | CI47: 48 | CJ47: 87 | CK47: 15 | CL47: 80 | CM47: 7 | CN47: 38 | CO47: 13 | CP47: 61 | CQ47: 49 | CR47: 74 | CS47: 64 | CT47: 41 | CU47: 13 | CV47: 67
A48: 2 | B48: 25 | C48: 14 | D48: 21 | E48: 30 | F48: 46 | G48: 46 | H48: 40 | I48: 98 | J48: 4 | K48: 43 | L48: 71 | M48: 33 | N48: 93 | O48: 48 | P48: 24 | Q48: 24 | R48: 21 | S48: 64 | T48: 30 | U48: 6 | V48: 3 | W48: 80 | X48: 96 | Y48: 31 | Z48: 66 | AA48: 20 | AB48: 42 | AC48: 39 | AD48: 26 | AE48: 12 | AF48: 76 | AG48: 56 | AH48: 97 | AI48: 48 | AJ48: 31 | AK48: 24 | AL48: 42 | AM48: 16 | AN48: 48 | AO48: 45 | AP48: 8 | AQ48: 48 | AR48: 24 | AS48: 32 | AT48: 54 | AU48: 59 | AV48: 27 | AW48: 61 | AX48: 88 | AY48: 64 | AZ48: 46 | BA48: 37 | BB48: 63 | BC48: 3 | BD48: 68 | BE48: 94 | BF48: 71 | BG48: 32 | BH48: 18 | BI48: 53 | BJ48: 71 | BK48: 76 | BL48: 69 | BM48: 36 | BN48: 38 | BO48: 76 | BP48: 10 | BQ48: 93 | BR48: 87 | BS48: 11 | BT48: 32 | BU48: 88 | BV48: 100 | BW48: 80 | BX48: 65 | BY48: 45 | BZ48: 84 | CA48: 25 | CB48: 66 | CC48: 12 | CD48: 60 | CE48: 80 | CF48: 68 | CG48: 34 | CH48: 42 | CI48: 30 | CJ48: 63 | CK48: 33 | CL48: 42 | CM48: 43 | CN48: 19 | CO48: 50 | CP48: 31 | CQ48: 46 | CR48: 78 | CS48: 61 | CT48: 98 | CU48: 89 | CV48: 90
A49: 1 | B49: 18 | C49: 78 | D49: 86 | E49: 8 | F49: 49 | G49: 6 | H49: 31 | I49: 34 | J49: 12 | K49: 19 | L49: 91 | M49: 43 | N49: 35 | O49: 72 | P49: 18 | Q49: 65 | R49: 56 | S49: 19 | T49: 44 | U49: 84 | V49: 10 | W49: 52 | X49: 90 | Y49: 12 | Z49: 51 | AA49: 32 | AB49: 68 | AC49: 16 | AD49: 63 | AE49: 99 | AF49: 31 | AG49: 70 | AH49: 52 | AI49: 99 | AJ49: 81 | AK49: 10 | AL49: 63 | AM49: 75 | AN49: 56 | AO49: 27 | AP49: 21 | AQ49: 49 | AR49: 7 | AS49: 81 | AT49: 75 | AU49: 61 | AV49: 74 | AW49: 72 | AX49: 48 | AY49: 53 | AZ49: 22 | BA49: 30 | BB49: 14 | BC49: 77 | BD49: 5 | BE49: 7 | BF49: 35 | BG49: 24 | BH49: 28 | BI49: 43 | BJ49: 58 | BK49: 44 | BL49: 39 | BM49: 47 | BN49: 21 | BO49: 89 | BP49: 83 | BQ49: 58 | BR49: 3 | BS49: 74 | BT49: 52 | BU49: 4 | BV49: 55 | BW49: 42 | BX49: 64 | BY49: 24 | BZ49: 49 | CA49: 82 | CB49: 27 | CC49: 78 | CD49: 96 | CE49: 21 | CF49: 40 | CG49: 99 | CH49: 93 | CI49: 1 | CJ49: 95 | CK49: 5 | CL49: 12 | CM49: 56 | CN49: 32 | CO49: 73 | CP49: 68 | CQ49: 73 | CR49: 13 | CS49: 1 | CT49: 88 | CU49: 49 | CV49: 13
A50: 10 | B50: 22 | C50: 42 | D50: 4 | E50: 32 | F50: 23 | G50: 86 | H50: 29 | I50: 30 | J50: 52 | K50: 84 | L50: 65 | M50: 81 | N50: 89 | O50: 80 | P50: 12 | Q50: 33 | R50: 46 | S50: 16 | T50: 38 | U50: 78 | V50: 69 | W50: 77 | X50: 70 | Y50: 63 | Z50: 35 | AA50: 32 | AB50: 56 | AC50: 41 | AD50: 60 | AE50: 5 | AF50: 65 | AG50: 61 | AH50: 91 | AI50: 96 | AJ50: 63 | AK50: 83 | AL50: 67 | AM50: 27 | AN50: 96 | AO50: 81 | AP50: 47 | AQ50: 84 | AR50: 88 | AS50: 78 | AT50: 6 | AU50: 55 | AV50: 46 | AW50: 24 | AX50: 5 | AY50: 64 | AZ50: 49 | BA50: 13 | BB50: 16 | BC50: 80 | BD50: 67 | BE50: 55 | BF50: 10 | BG50: 23 | BH50: 86 | BI50: 90 | BJ50: 94 | BK50: 11 | BL50: 64 | BM50: 42 | BN50: 40 | BO50: 82 | BP50: 12 | BQ50: 62 | BR50: 60 | BS50: 57 | BT50: 53 | BU50: 19 | BV50: 22 | BW50: 84 | BX50: 66 | BY50: 88 | BZ50: 41 | CA50: 66 | CB50: 55 | CC50: 25 | CD50: 86 | CE50: 40 | CF50: 13 | CG50: 73 | CH50: 10 | CI50: 79 | CJ50: 75 | CK50: 57 | CL50: 58 | CM50: 64 | CN50: 79 | CO50: 61 | CP50: 65 | CQ50: 76 | CR50: 34 | CS50: 94 | CT50: 36 | CU50: 97 | CV50: 13
A51: 55 | B51: 23 | C51: 69 | D51: 29 | E51: 22 | F51: 74 | G51: 94 | H51: 32 | I51: 68 | J51: 8 | K51: 18 | L51: 19 | M51: 17 | N51: 48 | O51: 17 | P51: 45 | Q51: 57 | R51: 74 | S51: 69 | T51: 75 | U51: 37 | V51: 92 | W51: 97 | X51: 52 | Y51: 64 | Z51: 44 | AA51: 4 | AB51: 31 | AC51: 60 | AD51: 39 | AE51: 10 | AF51: 83 | AG51: 32 | AH51: 56 | AI51: 91 | AJ51: 45 | AK51: 87 | AL51: 53 | AM51: 62 | AN51: 76 | AO51: 84 | AP51: 60 | AQ51: 12 | AR51: 85 | AS51: 10 | AT51: 39 | AU51: 65 | AV51: 41 | AW51: 68 | AX51: 79 | AY51: 87 | AZ51: 40 | BA51: 73 | BB51: 35 | BC51: 28 | BD51: 37 | BE51: 15 | BF51: 21 | BG51: 97 | BH51: 86 | BI51: 3 | BJ51: 24 | BK51: 39 | BL51: 38 | BM51: 80 | BN51: 10 | BO51: 86 | BP51: 92 | BQ51: 47 | BR51: 84 | BS51: 67 | BT51: 97 | BU51: 81 | BV51: 68 | BW51: 91 | BX51: 94 | BY51: 33 | BZ51: 38 | CA51: 80 | CB51: 51 | CC51: 18 | CD51: 88 | CE51: 89 | CF51: 91 | CG51: 6 | CH51: 75 | CI51: 44 | CJ51: 34 | CK51: 75 | CL51: 81 | CM51: 1 | CN51: 57 | CO51: 13 | CP51: 52 | CQ51: 92 | CR51: 47 | CS51: 98 | CT51: 91 | CU51: 43 | CV51: 24
A52: 70 | B52: 37 | C52: 42 | D52: 4 | E52: 52 | F52: 41 | G52: 51 | H52: 50 | I52: 57 | J52: 25 | K52: 29 | L52: 23 | M52: 93 | N52: 61 | O52: 85 | P52: 53 | Q52: 25 | R52: 92 | S52: 70 | T52: 43 | U52: 97 | V52: 46 | W52: 85 | X52: 53 | Y52: 76 | Z52: 4 | AA52: 43 | AB52: 87 | AC52: 59 | AD52: 87 | AE52: 27 | AF52: 50 | AG52: 21 | AH52: 50 | AI52: 44 | AJ52: 93 | AK52: 5 | AL52: 47 | AM52: 11 | AN52: 16 | AO52: 59 | AP52: 15 | AQ52: 6 | AR52: 70 | AS52: 91 | AT52: 31 | AU52: 24 | AV52: 80 | AW52: 18 | AX52: 23 | AY52: 68 | AZ52: 69 | BA52: 89 | BB52: 60 | BC52: 100 | BD52: 20 | BE52: 93 | BF52: 55 | BG52: 72 | BH52: 10 | BI52: 29 | BJ52: 69 | BK52: 15 | BL52: 44 | BM52: 62 | BN52: 49 | BO52: 65 | BP52: 80 | BQ52: 52 | BR52: 54 | BS52: 19 | BT52: 63 | BU52: 85 | BV52: 2 | BW52: 58 | BX52: 59 | BY52: 37 | BZ52: 7 | CA52: 23 | CB52: 50 | CC52: 57 | CD52: 85 | CE52: 9 | CF52: 73 | CG52: 95 | CH52: 96 | CI52: 86 | CJ52: 14 | CK52: 33 | CL52: 1 | CM52: 49 | CN52: 70 | CO52: 78 | CP52: 94 | CQ52: 33 | CR52: 6 | CS52: 12 | CT52: 59 | CU52: 87 | CV52: 4
A53: 17 | B53: 97 | C53: 20 | D53: 58 | E53: 95 | F53: 99 | G53: 6 | H53: 6 | I53: 80 | J53: 60 | K53: 17 | L53: 100 | M53: 59 | N53: 84 | O53: 43 | P53: 58 | Q53: 59 | R53: 81 | S53: 18 | T53: 10 | U53: 91 | V53: 46 | W53: 14 | X53: 89 | Y53: 47 | Z53: 67 | AA53: 23 | AB53: 55 | AC53: 97 | AD53: 4 | AE53: 18 | AF53: 18 | AG53: 70 | AH53: 22 | AI53: 85 | AJ53: 65 | AK53: 52 | AL53: 80 | AM53: 35 | AN53: 20 | AO53: 34 | AP53: 61 | AQ53: 16 | AR53: 62 | AS53: 6 | AT53: 68 | AU53: 86 | AV53: 78 | AW53: 80 | AX53: 8 | AY53: 15 | AZ53: 10 | BA53: 40 | BB53: 12 | BC53: 24 | BD53: 77 | BE53: 46 | BF53: 7 | BG53: 42 | BH53: 55 | BI53: 99 | BJ53: 90 | BK53: 47 | BL53: 53 | BM53: 28 | BN53: 28 | BO53: 36 | BP53: 46 | BQ53: 64 | BR53: 72 | BS53: 12 | BT53: 3 | BU53: 44 | BV53: 32 | BW53: 7 | BX53: 83 | BY53: 65 | BZ53: 70 | CA53: 86 | CB53: 52 | CC53: 60 | CD53: 40 | CE53: 81 | CF53: 49 | CG53: 89 | CH53: 67 | CI53: 20 | CJ53: 63 | CK53: 64 | CL53: 80 | CM53: 45 | CN53: 27 | CO53: 25 | CP53: 24 | CQ53: 80 | CR53: 23 | CS53: 83 | CT53: 56 | CU53: 31 | CV53: 85
A54: 68 | B54: 27 | C54: 52 | D54: 4 | E54: 77 | F54: 20 | G54: 62 | H54: 4 | I54: 55 | J54: 74 | K54: 55 | L54: 44 | M54: 57 | N54: 93 | O54: 54 | P54: 63 | Q54: 50 | R54: 44 | S54: 51 | T54: 8 | U54: 83 | V54: 63 | W54: 22 | X54: 97 | Y54: 87 | Z54: 87 | AA54: 6 | AB54: 92 | AC54: 27 | AD54: 12 | AE54: 96 | AF54: 74 | AG54: 9 | AH54: 48 | AI54: 51 | AJ54: 35 | AK54: 77 | AL54: 71 | AM54: 22 | AN54: 64 | AO54: 54 | AP54: 82 | AQ54: 68 | AR54: 43 | AS54: 43 | AT54: 37 | AU54: 27 | AV54: 38 | AW54: 54 | AX54: 42 | AY54: 23 | AZ54: 47 | BA54: 2 | BB54: 95 | BC54: 27 | BD54: 34 | BE54: 31 | BF54: 16 | BG54: 9 | BH54: 21 | BI54: 55 | BJ54: 24 | BK54: 7 | BL54: 63 | BM54: 29 | BN54: 64 | BO54: 38 | BP54: 31 | BQ54: 61 | BR54: 90 | BS54: 3 | BT54: 27 | BU54: 41 | BV54: 8 | BW54: 96 | BX54: 51 | BY54: 97 | BZ54: 85 | CA54: 98 | CB54: 17 | CC54: 34 | CD54: 9 | CE54: 69 | CF54: 80 | CG54: 56 | CH54: 18 | CI54: 100 | CJ54: 86 | CK54: 46 | CL54: 86 | CM54: 78 | CN54: 12 | CO54: 21 | CP54: 89 | CQ54: 58 | CR54: 45 | CS54: 61 | CT54: 59 | CU54: 93 | CV54: 97
A55: 48 | B55: 32 | C55: 74 | D55: 74 | E55: 40 | F55: 40 | G55: 1 | H55: 37 | I55: 65 | J55: 84 | K55: 19 | L55: 6 | M55: 61 | N55: 68 | O55: 28 | P55: 6 | Q55: 14 | R55: 74 | S55: 77 | T55: 6 | U55: 71 | V55: 86 | W55: 7 | X55: 52 | Y55: 74 | Z55: 71 | AA55: 16 | AB55: 57 | AC55: 34 | AD55: 91 | AE55: 82 | AF55: 85 | AG55: 34 | AH55: 32 | AI55: 35 | AJ55: 70 | AK55: 66 | AL55: 1 | AM55: 64 | AN55: 55 | AO55: 53 | AP55: 47 | AQ55: 94 | AR55: 57 | AS55: 66 | AT55: 37 | AU55: 30 | AV55: 28 | AW55: 44 | AX55: 27 | AY55: 9 | AZ55: 56 | BA55: 31 | BB55: 10 | BC55: 82 | BD55: 35 | BE55: 76 | BF55: 66 | BG55: 33 | BH55: 65 | BI55: 75 | BJ55: 52 | BK55: 86 | BL55: 49 | BM55: 2 | BN55: 44 | BO55: 10 | BP55: 72 | BQ55: 60 | BR55: 88 | BS55: 66 | BT55: 92 | BU55: 40 | BV55: 89 | BW55: 23 | BX55: 63 | BY55: 95 | BZ55: 42 | CA55: 88 | CB55: 77 | CC55: 18 | CD55: 31 | CE55: 54 | CF55: 16 | CG55: 93 | CH55: 20 | CI55: 49 | CJ55: 90 | CK55: 100 | CL55: 50 | CM55: 89 | CN55: 36 | CO55: 14 | CP55: 88 | CQ55: 49 | CR55: 60 | CS55: 32 | CT55: 38 | CU55: 55 | CV55: 70
A56: 35 | B56: 35 | C56: 71 | D56: 67 | E56: 9 | F56: 1 | G56: 39 | H56: 38 | I56: 18 | J56: 2 | K56: 59 | L56: 65 | M56: 53 | N56: 45 | O56: 59 | P56: 86 | Q56: 50 | R56: 38 | S56: 40 | T56: 3 | U56: 81 | V56: 3 | W56: 44 | X56: 53 | Y56: 45 | Z56: 53 | AA56: 15 | AB56: 45 | AC56: 55 | AD56: 56 | AE56: 69 | AF56: 27 | AG56: 71 | AH56: 5 | AI56: 57 | AJ56: 80 | AK56: 30 | AL56: 58 | AM56: 46 | AN56: 56 | AO56: 71 | AP56: 16 | AQ56: 81 | AR56: 81 | AS56: 57 | AT56: 11 | AU56: 5 | AV56: 41 | AW56: 96 | AX56: 8 | AY56: 26 | AZ56: 64 | BA56: 86 | BB56: 9 | BC56: 100 | BD56: 75 | BE56: 90 | BF56: 31 | BG56: 7 | BH56: 14 | BI56: 89 | BJ56: 99 | BK56: 13 | BL56: 90 | BM56: 28 | BN56: 34 | BO56: 46 | BP56: 38 | BQ56: 26 | BR56: 100 | BS56: 10 | BT56: 14 | BU56: 74 | BV56: 13 | BW56: 65 | BX56: 32 | BY56: 57 | BZ56: 2 | CA56: 32 | CB56: 97 | CC56: 41 | CD56: 68 | CE56: 10 | CF56: 9 | CG56: 13 | CH56: 65 | CI56: 78 | CJ56: 54 | CK56: 91 | CL56: 74 | CM56: 47 | CN56: 91 | CO56: 89 | CP56: 7 | CQ56: 29 | CR56: 95 | CS56: 76 | CT56: 30 | CU56: 92 | CV56: 30
A57: 56 | B57: 4 | C57: 54 | D57: 72 | E57: 23 | F57: 22 | G57: 86 | H57: 87 | I57: 60 | J57: 31 | K57: 88 | L57: 80 | M57: 46 | N57: 42 | O57: 36 | P57: 54 | Q57: 28 | R57: 45 | S57: 61 | T57: 45 | U57: 53 | V57: 27 | W57: 73 | X57: 55 | Y57: 98 | Z57: 38 | AA57: 51 | AB57: 59 | AC57: 19 | AD57: 40 | AE57: 11 | AF57: 70 | AG57: 87 | AH57: 85 | AI57: 63 | AJ57: 12 | AK57: 38 | AL57: 11 | AM57: 73 | AN57: 88 | AO57: 38 | AP57: 92 | AQ57: 82 | AR57: 38 | AS57: 93 | AT57: 18 | AU57: 1 | AV57: 54 | AW57: 44 | AX57: 5 | AY57: 19 | AZ57: 66 | BA57: 74 | BB57: 29 | BC57: 72 | BD57: 44 | BE57: 6 | BF57: 75 | BG57: 70 | BH57: 85 | BI57: 87 | BJ57: 33 | BK57: 50 | BL57: 89 | BM57: 67 | BN57: 69 | BO57: 31 | BP57: 24 | BQ57: 63 | BR57: 6 | BS57: 70 | BT57: 53 | BU57: 11 | BV57: 30 | BW57: 10 | BX57: 10 | BY57: 43 | BZ57: 93 | CA57: 91 | CB57: 18 | CC57: 10 | CD57: 28 | CE57: 50 | CF57: 68 | CG57: 8 | CH57: 50 | CI57: 45 | CJ57: 60 | CK57: 90 | CL57: 66 | CM57: 94 | CN57: 13 | CO57: 5 | CP57: 49 | CQ57: 49 | CR57: 20 | CS57: 21 | CT57: 33 | CU57: 75 | CV57: 69
A58: 59 | B58: 39 | C58: 33 | D58: 37 | E58: 82 | F58: 5 | G58: 10 | H58: 17 | I58: 26 | J58: 75 | K58: 45 | L58: 58 | M58: 99 | N58: 70 | O58: 52 | P58: 84 | Q58: 71 | R58: 49 | S58: 73 | T58: 42 | U58: 95 | V58: 71 | W58: 61 | X58: 84 | Y58: 16 | Z58: 43 | AA58: 35 | AB58: 27 | AC58: 23 | AD58: 70 | AE58: 2 | AF58: 57 | AG58: 69 | AH58: 42 | AI58: 34 | AJ58: 77 | AK58: 80 | AL58: 48 | AM58: 55 | AN58: 68 | AO58: 8 | AP58: 88 | AQ58: 85 | AR58: 70 | AS58: 41 | AT58: 59 | AU58: 92 | AV58: 99 | AW58: 78 | AX58: 26 | AY58: 15 | AZ58: 74 | BA58: 61 | BB58: 32 | BC58: 58 | BD58: 4 | BE58: 64 | BF58: 13 | BG58: 77 | BH58: 50 | BI58: 54 | BJ58: 83 | BK58: 36 | BL58: 50 | BM58: 75 | BN58: 77 | BO58: 37 | BP58: 38 | BQ58: 99 | BR58: 71 | BS58: 2 | BT58: 20 | BU58: 20 | BV58: 31 | BW58: 41 | BX58: 57 | BY58: 48 | BZ58: 2 | CA58: 88 | CB58: 19 | CC58: 15 | CD58: 85 | CE58: 16 | CF58: 45 | CG58: 11 | CH58: 57 | CI58: 38 | CJ58: 17 | CK58: 43 | CL58: 62 | CM58: 17 | CN58: 29 | CO58: 92 | CP58: 50 | CQ58: 78 | CR58: 70 | CS58: 70 | CT58: 60 | CU58: 29 | CV58: 24
A59: 14 | B59: 100 | C59: 84 | D59: 60 | E59: 55 | F59: 21 | G59: 68 | H59: 24 | I59: 87 | J59: 12 | K59: 28 | L59: 64 | M59: 84 | N59: 86 | O59: 10 | P59: 16 | Q59: 14 | R59: 78 | S59: 29 | T59: 92 | U59: 44 | V59: 73 | W59: 56 | X59: 23 | Y59: 65 | Z59: 98 | AA59: 38 | AB59: 79 | AC59: 68 | AD59: 50 | AE59: 82 | AF59: 2 | AG59: 46 | AH59: 63 | AI59: 19 | AJ59: 53 | AK59: 75 | AL59: 77 | AM59: 55 | AN59: 68 | AO59: 24 | AP59: 72 | AQ59: 87 | AR59: 5 | AS59: 24 | AT59: 65 | AU59: 92 | AV59: 40 | AW59: 90 | AX59: 27 | AY59: 46 | AZ59: 10 | BA59: 57 | BB59: 55 | BC59: 16 | BD59: 94 | BE59: 10 | BF59: 35 | BG59: 60 | BH59: 67 | BI59: 79 | BJ59: 5 | BK59: 8 | BL59: 61 | BM59: 29 | BN59: 82 | BO59: 51 | BP59: 87 | BQ59: 18 | BR59: 94 | BS59: 76 | BT59: 66 | BU59: 54 | BV59: 40 | BW59: 87 | BX59: 10 | BY59: 75 | BZ59: 72 | CA59: 18 | CB59: 85 | CC59: 8 | CD59: 72 | CE59: 10 | CF59: 57 | CG59: 3 | CH59: 44 | CI59: 96 | CJ59: 100 | CK59: 46 | CL59: 26 | CM59: 47 | CN59: 94 | CO59: 62 | CP59: 18 | CQ59: 75 | CR59: 3 | CS59: 13 | CT59: 23 | CU59: 50 | CV59: 85
A60: 19 | B60: 50 | C60: 12 | D60: 55 | E60: 21 | F60: 18 | G60: 58 | H60: 2 | I60: 29 | J60: 10 | K60: 27 | L60: 86 | M60: 45 | N60: 70 | O60: 88 | P60: 11 | Q60: 66 | R60: 94 | S60: 21 | T60: 7 | U60: 9 | V60: 20 | W60: 27 | X60: 83 | Y60: 76 | Z60: 80 | AA60: 89 | AB60: 15 | AC60: 20 | AD60: 83 | AE60: 16 | AF60: 97 | AG60: 2 | AH60: 3 | AI60: 50 | AJ60: 43 | AK60: 93 | AL60: 24 | AM60: 46 | AN60: 73 | AO60: 5 | AP60: 42 | AQ60: 46 | AR60: 15 | AS60: 81 | AT60: 89 | AU60: 52 | AV60: 20 | AW60: 2 | AX60: 46 | AY60: 79 | AZ60: 5 | BA60: 96 | BB60: 39 | BC60: 75 | BD60: 25 | BE60: 78 | BF60: 51 | BG60: 41 | BH60: 31 | BI60: 29 | BJ60: 4 | BK60: 37 | BL60: 90 | BM60: 85 | BN60: 15 | BO60: 33 | BP60: 100 | BQ60: 100 | BR60: 85 | BS60: 14 | BT60: 14 | BU60: 83 | BV60: 30 | BW60: 90 | BX60: 21 | BY60: 36 | BZ60: 93 | CA60: 8 | CB60: 2 | CC60: 24 | CD60: 86 | CE60: 67 | CF60: 21 | CG60: 39 | CH60: 35 | CI60: 5 | CJ60: 97 | CK60: 97 | CL60: 29 | CM60: 3 | CN60: 1 | CO60: 24 | CP60: 29 | CQ60: 84 | CR60: 84 | CS60: 32 | CT60: 74 | CU60: 3 | CV60: 3
A61: 83 | B61: 19 | C61: 88 | D61: 5 | E61: 83 | F61: 98 | G61: 11 | H61: 68 | I61: 65 | J61: 38 | K61: 86 | L61: 26 | M61: 93 | N61: 93 | O61: 9 | P61: 19 | Q61: 60 | R61: 36 | S61: 44 | T61: 59 | U61: 11 | V61: 5 | W61: 4 | X61: 11 | Y61: 70 | Z61: 59 | AA61: 20 | AB61: 49 | AC61: 39 | AD61: 9 | AE61: 44 | AF61: 89 | AG61: 71 | AH61: 52 | AI61: 17 | AJ61: 9 | AK61: 56 | AL61: 84 | AM61: 20 | AN61: 89 | AO61: 14 | AP61: 51 | AQ61: 70 | AR61: 51 | AS61: 47 | AT61: 30 | AU61: 16 | AV61: 82 | AW61: 13 | AX61: 9 | AY61: 90 | AZ61: 62 | BA61: 79 | BB61: 38 | BC61: 20 | BD61: 51 | BE61: 39 | BF61: 52 | BG61: 64 | BH61: 55 | BI61: 9 | BJ61: 40 | BK61: 23 | BL61: 90 | BM61: 45 | BN61: 94 | BO61: 88 | BP61: 60 | BQ61: 66 | BR61: 81 | BS61: 24 | BT61: 38 | BU61: 24 | BV61: 74 | BW61: 18 | BX61: 69 | BY61: 9 | BZ61: 12 | CA61: 61 | CB61: 12 | CC61: 32 | CD61: 59 | CE61: 29 | CF61: 63 | CG61: 20 | CH61: 11 | CI61: 56 | CJ61: 96 | CK61: 8 | CL61: 55 | CM61: 77 | CN61: 5 | CO61: 75 | CP61: 64 | CQ61: 100 | CR61: 1 | CS61: 94 | CT61: 51 | CU61: 26 | CV61: 57
A62: 72 | B62: 13 | C62: 56 | D62: 19 | E62: 55 | F62: 20 | G62: 28 | H62: 69 | I62: 50 | J62: 18 | K62: 63 | L62: 94 | M62: 46 | N62: 79 | O62: 62 | P62: 82 | Q62: 44 | R62: 60 | S62: 69 | T62: 19 | U62: 12 | V62: 40 | W62: 47 | X62: 21 | Y62: 80 | Z62: 74 | AA62: 45 | AB62: 5 | AC62: 20 | AD62: 72 | AE62: 90 | AF62: 80 | AG62: 81 | AH62: 14 | AI62: 5 | AJ62: 94 | AK62: 80 | AL62: 92 | AM62: 47 | AN62: 98 | AO62: 65 | AP62: 30 | AQ62: 43 | AR62: 47 | AS62: 18 | AT62: 46 | AU62: 10 | AV62: 41 | AW62: 18 | AX62: 75 | AY62: 26 | AZ62: 66 | BA62: 26 | BB62: 49 | BC62: 14 | BD62: 3 | BE62: 26 | BF62: 26 | BG62: 78 | BH62: 75 | BI62: 39 | BJ62: 21 | BK62: 29 | BL62: 45 | BM62: 10 | BN62: 47 | BO62: 70 | BP62: 17 | BQ62: 98 | BR62: 64 | BS62: 77 | BT62: 30 | BU62: 32 | BV62: 74 | BW62: 61 | BX62: 75 | BY62: 97 | BZ62: 22 | CA62: 66 | CB62: 71 | CC62: 81 | CD62: 91 | CE62: 16 | CF62: 61 | CG62: 91 | CH62: 97 | CI62: 6 | CJ62: 45 | CK62: 59 | CL62: 65 | CM62: 86 | CN62: 16 | CO62: 38 | CP62: 92 | CQ62: 91 | CR62: 69 | CS62: 77 | CT62: 47 | CU62: 61 | CV62: 52
A63: 50 | B63: 98 | C63: 58 | D63: 49 | E63: 100 | F63: 16 | G63: 88 | H63: 62 | I63: 8 | J63: 87 | K63: 58 | L63: 16 | M63: 30 | N63: 90 | O63: 95 | P63: 61 | Q63: 70 | R63: 77 | S63: 27 | T63: 39 | U63: 87 | V63: 46 | W63: 34 | X63: 53 | Y63: 37 | Z63: 3 | AA63: 74 | AB63: 91 | AC63: 61 | AD63: 73 | AE63: 70 | AF63: 95 | AG63: 78 | AH63: 35 | AI63: 49 | AJ63: 97 | AK63: 4 | AL63: 39 | AM63: 95 | AN63: 36 | AO63: 92 | AP63: 88 | AQ63: 91 | AR63: 68 | AS63: 58 | AT63: 50 | AU63: 43 | AV63: 6 | AW63: 62 | AX63: 39 | AY63: 61 | AZ63: 1 | BA63: 68 | BB63: 11 | BC63: 61 | BD63: 36 | BE63: 16 | BF63: 59 | BG63: 90 | BH63: 36 | BI63: 5 | BJ63: 9 | BK63: 83 | BL63: 27 | BM63: 87 | BN63: 45 | BO63: 76 | BP63: 76 | BQ63: 71 | BR63: 37 | BS63: 2 | BT63: 9 | BU63: 28 | BV63: 64 | BW63: 87 | BX63: 74 | BY63: 60 | BZ63: 7 | CA63: 78 | CB63: 66 | CC63: 33 | CD63: 36 | CE63: 7 | CF63: 99 | CG63: 10 | CH63: 83 | CI63: 1 | CJ63: 36 | CK63: 62 | CL63: 15 | CM63: 91 | CN63: 36 | CO63: 71 | CP63: 72 | CQ63: 16 | CR63: 63 | CS63: 1 | CT63: 68 | CU63: 46 | CV63: 74
A64: 16 | B64: 99 | C64: 82 | D64: 60 | E64: 75 | F64: 38 | G64: 59 | H64: 81 | I64: 26 | J64: 14 | K64: 32 | L64: 39 | M64: 63 | N64: 84 | O64: 22 | P64: 82 | Q64: 85 | R64: 49 | S64: 63 | T64: 97 | U64: 6 | V64: 30 | W64: 92 | X64: 96 | Y64: 1 | Z64: 87 | AA64: 34 | AB64: 20 | AC64: 22 | AD64: 56 | AE64: 85 | AF64: 26 | AG64: 69 | AH64: 98 | AI64: 22 | AJ64: 53 | AK64: 19 | AL64: 32 | AM64: 61 | AN64: 63 | AO64: 77 | AP64: 71 | AQ64: 1 | AR64: 29 | AS64: 79 | AT64: 97 | AU64: 34 | AV64: 5 | AW64: 35 | AX64: 48 | AY64: 92 | AZ64: 18 | BA64: 95 | BB64: 1 | BC64: 32 | BD64: 79 | BE64: 62 | BF64: 50 | BG64: 16 | BH64: 88 | BI64: 37 | BJ64: 83 | BK64: 29 | BL64: 70 | BM64: 15 | BN64: 20 | BO64: 92 | BP64: 34 | BQ64: 9 | BR64: 67 | BS64: 23 | BT64: 46 | BU64: 8 | BV64: 34 | BW64: 63 | BX64: 44 | BY64: 35 | BZ64: 37 | CA64: 94 | CB64: 72 | CC64: 77 | CD64: 29 | CE64: 85 | CF64: 29 | CG64: 48 | CH64: 4 | CI64: 84 | CJ64: 87 | CK64: 82 | CL64: 60 | CM64: 7 | CN64: 51 | CO64: 15 | CP64: 86 | CQ64: 20 | CR64: 37 | CS64: 63 | CT64: 21 | CU64: 92 | CV64: 78
A65: 29 | B65: 26 | C65: 51 | D65: 92 | E65: 23 | F65: 83 | G65: 86 | H65: 83 | I65: 9 | J65: 39 | K65: 72 | L65: 54 | M65: 38 | N65: 38 | O65: 38 | P65: 51 | Q65: 70 | R65: 6 | S65: 98 | T65: 9 | U65: 15 | V65: 85 | W65: 25 | X65: 28 | Y65: 17 | Z65: 88 | AA65: 81 | AB65: 73 | AC65: 16 | AD65: 22 | AE65: 97 | AF65: 81 | AG65: 76 | AH65: 22 | AI65: 14 | AJ65: 63 | AK65: 2 | AL65: 20 | AM65: 8 | AN65: 67 | AO65: 44 | AP65: 5 | AQ65: 24 | AR65: 6 | AS65: 58 | AT65: 79 | AU65: 95 | AV65: 31 | AW65: 12 | AX65: 9 | AY65: 52 | AZ65: 1 | BA65: 1 | BB65: 86 | BC65: 77 | BD65: 12 | BE65: 94 | BF65: 17 | BG65: 9 | BH65: 27 | BI65: 60 | BJ65: 89 | BK65: 87 | BL65: 70 | BM65: 51 | BN65: 48 | BO65: 71 | BP65: 49 | BQ65: 15 | BR65: 31 | BS65: 80 | BT65: 3 | BU65: 44 | BV65: 97 | BW65: 32 | BX65: 23 | BY65: 58 | BZ65: 68 | CA65: 89 | CB65: 81 | CC65: 39 | CD65: 81 | CE65: 31 | CF65: 69 | CG65: 92 | CH65: 1 | CI65: 2 | CJ65: 65 | CK65: 89 | CL65: 60 | CM65: 19 | CN65: 28 | CO65: 14 | CP65: 72 | CQ65: 74 | CR65: 98 | CS65: 47 | CT65: 41 | CU65: 75 | CV65: 29
A66: 60 | B66: 72 | C66: 17 | D66: 64 | E66: 57 | F66: 98 | G66: 34 | H66: 93 | I66: 27 | J66: 54 | K66: 45 | L66: 27 | M66: 33 | N66: 47 | O66: 54 | P66: 68 | Q66: 99 | R66: 77 | S66: 24 | T66: 31 | U66: 38 | V66: 11 | W66: 79 | X66: 35 | Y66: 53 | Z66: 18 | AA66: 51 | AB66: 30 | AC66: 72 | AD66: 12 | AE66: 43 | AF66: 30 | AG66: 77 | AH66: 63 | AI66: 54 | AJ66: 36 | AK66: 94 | AL66: 63 | AM66: 65 | AN66: 97 | AO66: 40 | AP66: 93 | AQ66: 6 | AR66: 57 | AS66: 22 | AT66: 60 | AU66: 87 | AV66: 85 | AW66: 99 | AX66: 49 | AY66: 28 | AZ66: 23 | BA66: 21 | BB66: 84 | BC66: 72 | BD66: 78 | BE66: 84 | BF66: 38 | BG66: 20 | BH66: 70 | BI66: 27 | BJ66: 52 | BK66: 47 | BL66: 45 | BM66: 54 | BN66: 94 | BO66: 92 | BP66: 83 | BQ66: 10 | BR66: 50 | BS66: 76 | BT66: 54 | BU66: 10 | BV66: 12 | BW66: 55 | BX66: 8 | BY66: 76 | BZ66: 53 | CA66: 39 | CB66: 86 | CC66: 59 | CD66: 79 | CE66: 77 | CF66: 30 | CG66: 55 | CH66: 54 | CI66: 61 | CJ66: 5 | CK66: 68 | CL66: 81 | CM66: 56 | CN66: 29 | CO66: 59 | CP66: 91 | CQ66: 100 | CR66: 51 | CS66: 21 | CT66: 99 | CU66: 98 | CV66: 46
A67: 58 | B67: 69 | C67: 45 | D67: 100 | E67: 7 | F67: 24 | G67: 48 | H67: 44 | I67: 13 | J67: 75 | K67: 18 | L67: 6 | M67: 15 | N67: 79 | O67: 96 | P67: 6 | Q67: 92 | R67: 26 | S67: 100 | T67: 39 | U67: 95 | V67: 75 | W67: 45 | X67: 96 | Y67: 69 | Z67: 25 | AA67: 42 | AB67: 40 | AC67: 73 | AD67: 24 | AE67: 38 | AF67: 68 | AG67: 24 | AH67: 57 | AI67: 68 | AJ67: 36 | AK67: 8 | AL67: 68 | AM67: 90 | AN67: 75 | AO67: 62 | AP67: 30 | AQ67: 23 | AR67: 45 | AS67: 37 | AT67: 89 | AU67: 90 | AV67: 90 | AW67: 91 | AX67: 83 | AY67: 67 | AZ67: 95 | BA67: 78 | BB67: 85 | BC67: 37 | BD67: 36 | BE67: 16 | BF67: 77 | BG67: 23 | BH67: 43 | BI67: 38 | BJ67: 83 | BK67: 20 | BL67: 57 | BM67: 85 | BN67: 34 | BO67: 33 | BP67: 50 | BQ67: 17 | BR67: 4 | BS67: 87 | BT67: 25 | BU67: 42 | BV67: 72 | BW67: 82 | BX67: 52 | BY67: 62 | BZ67: 41 | CA67: 57 | CB67: 46 | CC67: 38 | CD67: 10 | CE67: 8 | CF67: 23 | CG67: 28 | CH67: 32 | CI67: 93 | CJ67: 21 | CK67: 98 | CL67: 22 | CM67: 57 | CN67: 22 | CO67: 67 | CP67: 84 | CQ67: 30 | CR67: 44 | CS67: 81 | CT67: 79 | CU67: 50 | CV67: 35
A68: 47 | B68: 12 | C68: 43 | D68: 82 | E68: 24 | F68: 84 | G68: 46 | H68: 23 | I68: 94 | J68: 83 | K68: 63 | L68: 96 | M68: 78 | N68: 32 | O68: 70 | P68: 6 | Q68: 45 | R68: 88 | S68: 52 | T68: 93 | U68: 86 | V68: 99 | W68: 30 | X68: 49 | Y68: 97 | Z68: 24 | AA68: 23 | AB68: 80 | AC68: 91 | AD68: 64 | AE68: 97 | AF68: 39 | AG68: 72 | AH68: 97 | AI68: 85 | AJ68: 40 | AK68: 83 | AL68: 27 | AM68: 41 | AN68: 39 | AO68: 49 | AP68: 2 | AQ68: 39 | AR68: 28 | AS68: 8 | AT68: 57 | AU68: 36 | AV68: 42 | AW68: 6 | AX68: 58 | AY68: 50 | AZ68: 52 | BA68: 60 | BB68: 15 | BC68: 67 | BD68: 69 | BE68: 38 | BF68: 14 | BG68: 33 | BH68: 50 | BI68: 1 | BJ68: 57 | BK68: 89 | BL68: 44 | BM68: 40 | BN68: 25 | BO68: 9 | BP68: 32 | BQ68: 38 | BR68: 91 | BS68: 66 | BT68: 94 | BU68: 8 | BV68: 77 | BW68: 58 | BX68: 6 | BY68: 37 | BZ68: 71 | CA68: 6 | CB68: 54 | CC68: 6 | CD68: 30 | CE68: 93 | CF68: 29 | CG68: 36 | CH68: 33 | CI68: 65 | CJ68: 5 | CK68: 65 | CL68: 70 | CM68: 69 | CN68: 16 | CO68: 46 | CP68: 57 | CQ68: 49 | CR68: 44 | CS68: 3 | CT68: 99 | CU68: 11 | CV68: 67
A69: 46 | B69: 88 | C69: 100 | D69: 64 | E69: 30 | F69: 39 | G69: 100 | H69: 88 | I69: 55 | J69: 12 | K69: 83 | L69: 34 | M69: 89 | N69: 33 | O69: 59 | P69: 7 | Q69: 50 | R69: 13 | S69: 72 | T69: 45 | U69: 61 | V69: 45 | W69: 41 | X69: 15 | Y69: 7 | Z69: 69 | AA69: 58 | AB69: 71 | AC69: 62 | AD69: 38 | AE69: 16 | AF69: 32 | AG69: 75 | AH69: 80 | AI69: 51 | AJ69: 29 | AK69: 12 | AL69: 28 | AM69: 50 | AN69: 73 | AO69: 84 | AP69: 80 | AQ69: 86 | AR69: 88 | AS69: 2 | AT69: 92 | AU69: 91 | AV69: 36 | AW69: 96 | AX69: 78 | AY69: 30 | AZ69: 70 | BA69: 43 | BB69: 30 | BC69: 77 | BD69: 16 | BE69: 20 | BF69: 25 | BG69: 70 | BH69: 18 | BI69: 87 | BJ69: 39 | BK69: 70 | BL69: 78 | BM69: 6 | BN69: 60 | BO69: 58 | BP69: 4 | BQ69: 46 | BR69: 83 | BS69: 72 | BT69: 87 | BU69: 70 | BV69: 100 | BW69: 1 | BX69: 64 | BY69: 57 | BZ69: 65 | CA69: 71 | CB69: 16 | CC69: 95 | CD69: 80 | CE69: 63 | CF69: 57 | CG69: 5 | CH69: 25 | CI69: 19 | CJ69: 9 | CK69: 37 | CL69: 73 | CM69: 16 | CN69: 66 | CO69: 92 | CP69: 87 | CQ69: 94 | CR69: 17 | CS69: 39 | CT69: 81 | CU69: 30 | CV69: 65
A70: 12 | B70: 6 | C70: 79 | D70: 40 | E70: 48 | F70: 86 | G70: 43 | H70: 56 | I70: 24 | J70: 43 | K70: 16 | L70: 52 | M70: 86 | N70: 68 | O70: 40 | P70: 72 | Q70: 67 | R70: 69 | S70: 41 | T70: 52 | U70: 18 | V70: 31 | W70: 73 | X70: 17 | Y70: 59 | Z70: 8 | AA70: 13 | AB70: 63 | AC70: 10 | AD70: 93 | AE70: 36 | AF70: 32 | AG70: 99 | AH70: 4 | AI70: 96 | AJ70: 1 | AK70: 59 | AL70: 85 | AM70: 45 | AN70: 58 | AO70: 51 | AP70: 72 | AQ70: 74 | AR70: 51 | AS70: 76 | AT70: 8 | AU70: 48 | AV70: 100 | AW70: 36 | AX70: 29 | AY70: 39 | AZ70: 47 | BA70: 15 | BB70: 77 | BC70: 17 | BD70: 22 | BE70: 7 | BF70: 50 | BG70: 75 | BH70: 89 | BI70: 92 | BJ70: 23 | BK70: 56 | BL70: 75 | BM70: 72 | BN70: 55 | BO70: 1 | BP70: 31 | BQ70: 53 | BR70: 47 | BS70: 6 | BT70: 93 | BU70: 21 | BV70: 32 | BW70: 76 | BX70: 64 | BY70: 92 | BZ70: 63 | CA70: 67 | CB70: 30 | CC70: 5 | CD70: 11 | CE70: 7 | CF70: 67 | CG70: 59 | CH70: 43 | CI70: 5 | CJ70: 30 | CK70: 42 | CL70: 35 | CM70: 98 | CN70: 45 | CO70: 10 | CP70: 85 | CQ70: 5 | CR70: 54 | CS70: 90 | CT70: 16 | CU70: 94 | CV70: 48
A71: 21 | B71: 38 | C71: 71 | D71: 54 | E71: 74 | F71: 93 | G71: 17 | H71: 76 | I71: 66 | J71: 65 | K71: 96 | L71: 65 | M71: 17 | N71: 48 | O71: 90 | P71: 28 | Q71: 84 | R71: 15 | S71: 76 | T71: 52 | U71: 34 | V71: 81 | W71: 77 | X71: 42 | Y71: 22 | Z71: 10 | AA71: 55 | AB71: 36 | AC71: 58 | AD71: 88 | AE71: 63 | AF71: 65 | AG71: 1 | AH71: 45 | AI71: 76 | AJ71: 1 | AK71: 26 | AL71: 92 | AM71: 55 | AN71: 72 | AO71: 78 | AP71: 52 | AQ71: 63 | AR71: 61 | AS71: 45 | AT71: 10 | AU71: 35 | AV71: 42 | AW71: 77 | AX71: 74 | AY71: 67 | AZ71: 94 | BA71: 46 | BB71: 23 | BC71: 19 | BD71: 98 | BE71: 63 | BF71: 47 | BG71: 22 | BH71: 30 | BI71: 87 | BJ71: 58 | BK71: 50 | BL71: 8 | BM71: 39 | BN71: 56 | BO71: 98 | BP71: 49 | BQ71: 34 | BR71: 51 | BS71: 70 | BT71: 26 | BU71: 89 | BV71: 84 | BW71: 86 | BX71: 21 | BY71: 83 | BZ71: 19 | CA71: 85 | CB71: 1 | CC71: 28 | CD71: 79 | CE71: 66 | CF71: 46 | CG71: 33 | CH71: 88 | CI71: 90 | CJ71: 79 | CK71: 15 | CL71: 86 | CM71: 60 | CN71: 76 | CO71: 99 | CP71: 37 | CQ71: 32 | CR71: 12 | CS71: 35 | CT71: 42 | CU71: 13 | CV71: 6
A72: 20 | B72: 11 | C72: 13 | D72: 68 | E72: 67 | F72: 53 | G72: 42 | H72: 62 | I72: 11 | J72: 16 | K72: 42 | L72: 57 | M72: 59 | N72: 78 | O72: 16 | P72: 34 | Q72: 14 | R72: 75 | S72: 80 | T72: 92 | U72: 99 | V72: 81 | W72: 65 | X72: 68 | Y72: 21 | Z72: 67 | AA72: 79 | AB72: 44 | AC72: 8 | AD72: 59 | AE72: 12 | AF72: 63 | AG72: 72 | AH72: 49 | AI72: 14 | AJ72: 99 | AK72: 38 | AL72: 97 | AM72: 63 | AN72: 63 | AO72: 84 | AP72: 97 | AQ72: 87 | AR72: 47 | AS72: 46 | AT72: 10 | AU72: 78 | AV72: 95 | AW72: 100 | AX72: 70 | AY72: 47 | AZ72: 82 | BA72: 43 | BB72: 90 | BC72: 90 | BD72: 92 | BE72: 80 | BF72: 11 | BG72: 72 | BH72: 20 | BI72: 46 | BJ72: 92 | BK72: 91 | BL72: 99 | BM72: 88 | BN72: 34 | BO72: 26 | BP72: 22 | BQ72: 46 | BR72: 71 | BS72: 6 | BT72: 30 | BU72: 91 | BV72: 100 | BW72: 45 | BX72: 95 | BY72: 79 | BZ72: 87 | CA72: 22 | CB72: 46 | CC72: 59 | CD72: 6 | CE72: 35 | CF72: 39 | CG72: 88 | CH72: 89 | CI72: 20 | CJ72: 31 | CK72: 27 | CL72: 90 | CM72: 25 | CN72: 21 | CO72: 30 | CP72: 10 | CQ72: 48 | CR72: 79 | CS72: 95 | CT72: 16 | CU72: 70 | CV72: 3
A73: 3 | B73: 78 | C73: 70 | D73: 77 | E73: 91 | F73: 29 | G73: 4 | H73: 46 | I73: 60 | J73: 76 | K73: 94 | L73: 21 | M73: 19 | N73: 53 | O73: 68 | P73: 3 | Q73: 57 | R73: 79 | S73: 17 | T73: 10 | U73: 48 | V73: 10 | W73: 75 | X73: 49 | Y73: 90 | Z73: 87 | AA73: 1 | AB73: 33 | AC73: 12 | AD73: 41 | AE73: 84 | AF73: 96 | AG73: 5 | AH73: 99 | AI73: 98 | AJ73: 64 | AK73: 39 | AL73: 4 | AM73: 44 | AN73: 62 | AO73: 77 | AP73: 47 | AQ73: 44 | AR73: 3 | AS73: 52 | AT73: 50 | AU73: 2 | AV73: 60 | AW73: 18 | AX73: 57 | AY73: 41 | AZ73: 99 | BA73: 11 | BB73: 40 | BC73: 31 | BD73: 80 | BE73: 83 | BF73: 38 | BG73: 59 | BH73: 27 | BI73: 83 | BJ73: 57 | BK73: 37 | BL73: 71 | BM73: 36 | BN73: 68 | BO73: 73 | BP73: 77 | BQ73: 63 | BR73: 87 | BS73: 52 | BT73: 61 | BU73: 80 | BV73: 45 | BW73: 64 | BX73: 80 | BY73: 7 | BZ73: 7 | CA73: 97 | CB73: 99 | CC73: 66 | CD73: 60 | CE73: 97 | CF73: 95 | CG73: 86 | CH73: 6 | CI73: 76 | CJ73: 69 | CK73: 3 | CL73: 48 | CM73: 38 | CN73: 100 | CO73: 40 | CP73: 60 | CQ73: 37 | CR73: 89 | CS73: 3 | CT73: 49 | CU73: 24 | CV73: 47
A74: 13 | B74: 21 | C74: 77 | D74: 17 | E74: 93 | F74: 26 | G74: 42 | H74: 24 | I74: 36 | J74: 52 | K74: 64 | L74: 18 | M74: 22 | N74: 88 | O74: 91 | P74: 16 | Q74: 41 | R74: 93 | S74: 53 | T74: 53 | U74: 65 | V74: 39 | W74: 88 | X74: 17 | Y74: 82 | Z74: 73 | AA74: 74 | AB74: 11 | AC74: 1 | AD74: 83 | AE74: 85 | AF74: 49 | AG74: 91 | AH74: 15 | AI74: 94 | AJ74: 50 | AK74: 48 | AL74: 99 | AM74: 46 | AN74: 1 | AO74: 84 | AP74: 41 | AQ74: 48 | AR74: 74 | AS74: 62 | AT74: 35 | AU74: 55 | AV74: 1 | AW74: 13 | AX74: 51 | AY74: 75 | AZ74: 53 | BA74: 70 | BB74: 4 | BC74: 37 | BD74: 20 | BE74: 42 | BF74: 83 | BG74: 46 | BH74: 81 | BI74: 76 | BJ74: 40 | BK74: 75 | BL74: 66 | BM74: 11 | BN74: 79 | BO74: 5 | BP74: 7 | BQ74: 41 | BR74: 66 | BS74: 90 | BT74: 24 | BU74: 12 | BV74: 46 | BW74: 32 | BX74: 5 | BY74: 80 | BZ74: 54 | CA74: 89 | CB74: 15 | CC74: 82 | CD74: 65 | CE74: 20 | CF74: 81 | CG74: 3 | CH74: 12 | CI74: 31 | CJ74: 49 | CK74: 95 | CL74: 87 | CM74: 75 | CN74: 65 | CO74: 86 | CP74: 12 | CQ74: 59 | CR74: 48 | CS74: 35 | CT74: 49 | CU74: 14 | CV74: 8
A75: 70 | B75: 40 | C75: 70 | D75: 55 | E75: 26 | F75: 81 | G75: 65 | H75: 47 | I75: 86 | J75: 84 | K75: 71 | L75: 81 | M75: 75 | N75: 18 | O75: 37 | P75: 33 | Q75: 84 | R75: 73 | S75: 59 | T75: 38 | U75: 91 | V75: 77 | W75: 7 | X75: 91 | Y75: 33 | Z75: 42 | AA75: 30 | AB75: 13 | AC75: 40 | AD75: 12 | AE75: 41 | AF75: 50 | AG75: 7 | AH75: 56 | AI75: 60 | AJ75: 29 | AK75: 33 | AL75: 44 | AM75: 13 | AN75: 3 | AO75: 67 | AP75: 24 | AQ75: 32 | AR75: 19 | AS75: 46 | AT75: 94 | AU75: 48 | AV75: 30 | AW75: 98 | AX75: 19 | AY75: 58 | AZ75: 68 | BA75: 57 | BB75: 39 | BC75: 94 | BD75: 80 | BE75: 100 | BF75: 17 | BG75: 84 | BH75: 20 | BI75: 62 | BJ75: 95 | BK75: 60 | BL75: 42 | BM75: 50 | BN75: 68 | BO75: 33 | BP75: 65 | BQ75: 4 | BR75: 62 | BS75: 56 | BT75: 2 | BU75: 13 | BV75: 24 | BW75: 90 | BX75: 65 | BY75: 79 | BZ75: 19 | CA75: 69 | CB75: 72 | CC75: 38 | CD75: 35 | CE75: 94 | CF75: 46 | CG75: 57 | CH75: 62 | CI75: 37 | CJ75: 58 | CK75: 2 | CL75: 68 | CM75: 79 | CN75: 53 | CO75: 69 | CP75: 33 | CQ75: 58 | CR75: 5 | CS75: 66 | CT75: 48 | CU75: 68 | CV75: 34
A76: 97 | B76: 12 | C76: 70 | D76: 96 | E76: 3 | F76: 15 | G76: 71 | H76: 38 | I76: 35 | J76: 79 | K76: 14 | L76: 74 | M76: 17 | N76: 20 | O76: 75 | P76: 22 | Q76: 9 | R76: 38 | S76: 37 | T76: 94 | U76: 89 | V76: 8 | W76: 90 | X76: 70 | Y76: 87 | Z76: 91 | AA76: 58 | AB76: 37 | AC76: 40 | AD76: 35 | AE76: 88 | AF76: 26 | AG76: 93 | AH76: 84 | AI76: 85 | AJ76: 20 | AK76: 15 | AL76: 49 | AM76: 18 | AN76: 67 | AO76: 53 | AP76: 86 | AQ76: 8 | AR76: 23 | AS76: 59 | AT76: 27 | AU76: 84 | AV76: 74 | AW76: 71 | AX76: 37 | AY76: 71 | AZ76: 39 | BA76: 57 | BB76: 44 | BC76: 92 | BD76: 50 | BE76: 66 | BF76: 72 | BG76: 34 | BH76: 16 | BI76: 6 | BJ76: 7 | BK76: 35 | BL76: 83 | BM76: 43 | BN76: 95 | BO76: 69 | BP76: 14 | BQ76: 32 | BR76: 82 | BS76: 35 | BT76: 97 | BU76: 37 | BV76: 5 | BW76: 58 | BX76: 56 | BY76: 67 | BZ76: 10 | CA76: 56 | CB76: 17 | CC76: 72 | CD76: 39 | CE76: 61 | CF76: 60 | CG76: 58 | CH76: 60 | CI76: 22 | CJ76: 8 | CK76: 93 | CL76: 67 | CM76: 49 | CN76: 41 | CO76: 12 | CP76: 20 | CQ76: 73 | CR76: 38 | CS76: 45 | CT76: 55 | CU76: 10 | CV76: 53
A77: 85 | B77: 90 | C77: 95 | D77: 28 | E77: 9 | F77: 46 | G77: 93 | H77: 53 | I77: 99 | J77: 74 | K77: 12 | L77: 91 | M77: 19 | N77: 36 | O77: 94 | P77: 41 | Q77: 7 | R77: 20 | S77: 57 | T77: 6 | U77: 78 | V77: 74 | W77: 58 | X77: 72 | Y77: 92 | Z77: 24 | AA77: 22 | AB77: 18 | AC77: 86 | AD77: 62 | AE77: 88 | AF77: 68 | AG77: 48 | AH77: 15 | AI77: 62 | AJ77: 64 | AK77: 29 | AL77: 65 | AM77: 88 | AN77: 39 | AO77: 1 | AP77: 80 | AQ77: 19 | AR77: 75 | AS77: 67 | AT77: 97 | AU77: 54 | AV77: 42 | AW77: 30 | AX77: 91 | AY77: 79 | AZ77: 58 | BA77: 36 | BB77: 89 | BC77: 92 | BD77: 91 | BE77: 67 | BF77: 29 | BG77: 15 | BH77: 9 | BI77: 37 | BJ77: 19 | BK77: 46 | BL77: 35 | BM77: 34 | BN77: 89 | BO77: 18 | BP77: 71 | BQ77: 3 | BR77: 74 | BS77: 7 | BT77: 64 | BU77: 42 | BV77: 89 | BW77: 56 | BX77: 66 | BY77: 69 | BZ77: 64 | CA77: 82 | CB77: 18 | CC77: 43 | CD77: 12 | CE77: 80 | CF77: 74 | CG77: 58 | CH77: 54 | CI77: 1 | CJ77: 22 | CK77: 39 | CL77: 55 | CM77: 60 | CN77: 68 | CO77: 96 | CP77: 96 | CQ77: 63 | CR77: 67 | CS77: 1 | CT77: 94 | CU77: 39 | CV77: 100
A78: 4 | B78: 60 | C78: 60 | D78: 16 | E78: 11 | F78: 37 | G78: 8 | H78: 9 | I78: 41 | J78: 33 | K78: 13 | L78: 19 | M78: 40 | N78: 92 | O78: 77 | P78: 45 | Q78: 3 | R78: 46 | S78: 18 | T78: 6 | U78: 25 | V78: 23 | W78: 8 | X78: 63 | Y78: 7 | Z78: 18 | AA78: 57 | AB78: 14 | AC78: 28 | AD78: 70 | AE78: 85 | AF78: 35 | AG78: 25 | AH78: 88 | AI78: 58 | AJ78: 91 | AK78: 96 | AL78: 39 | AM78: 95 | AN78: 18 | AO78: 1 | AP78: 59 | AQ78: 66 | AR78: 3 | AS78: 27 | AT78: 85 | AU78: 53 | AV78: 5 | AW78: 81 | AX78: 90 | AY78: 80 | AZ78: 64 | BA78: 10 | BB78: 51 | BC78: 79 | BD78: 53 | BE78: 82 | BF78: 23 | BG78: 17 | BH78: 7 | BI78: 74 | BJ78: 29 | BK78: 50 | BL78: 83 | BM78: 59 | BN78: 24 | BO78: 26 | BP78: 20 | BQ78: 34 | BR78: 10 | BS78: 85 | BT78: 89 | BU78: 63 | BV78: 89 | BW78: 62 | BX78: 56 | BY78: 51 | BZ78: 45 | CA78: 93 | CB78: 14 | CC78: 71 | CD78: 28 | CE78: 94 | CF78: 3 | CG78: 11 | CH78: 40 | CI78: 41 | CJ78: 70 | CK78: 5 | CL78: 10 | CM78: 75 | CN78: 16 | CO78: 70 | CP78: 97 | CQ78: 53 | CR78: 14 | CS78: 57 | CT78: 13 | CU78: 65 | CV78: 67
A79: 46 | B79: 72 | C79: 85 | D79: 11 | E79: 5 | F79: 42 | G79: 88 | H79: 59 | I79: 56 | J79: 32 | K79: 14 | L79: 86 | M79: 72 | N79: 73 | O79: 26 | P79: 57 | Q79: 24 | R79: 90 | S79: 50 | T79: 27 | U79: 11 | V79: 2 | W79: 31 | X79: 26 | Y79: 15 | Z79: 17 | AA79: 1 | AB79: 52 | AC79: 71 | AD79: 86 | AE79: 71 | AF79: 49 | AG79: 12 | AH79: 59 | AI79: 57 | AJ79: 3 | AK79: 16 | AL79: 26 | AM79: 21 | AN79: 9 | AO79: 44 | AP79: 11 | AQ79: 83 | AR79: 31 | AS79: 17 | AT79: 60 | AU79: 23 | AV79: 70 | AW79: 27 | AX79: 66 | AY79: 57 | AZ79: 28 | BA79: 42 | BB79: 82 | BC79: 24 | BD79: 21 | BE79: 54 | BF79: 31 | BG79: 44 | BH79: 61 | BI79: 1 | BJ79: 8 | BK79: 10 | BL79: 58 | BM79: 1 | BN79: 7 | BO79: 35 | BP79: 15 | BQ79: 5 | BR79: 17 | BS79: 53 | BT79: 26 | BU79: 89 | BV79: 25 | BW79: 48 | BX79: 22 | BY79: 24 | BZ79: 16 | CA79: 60 | CB79: 16 | CC79: 72 | CD79: 38 | CE79: 98 | CF79: 91 | CG79: 2 | CH79: 34 | CI79: 71 | CJ79: 12 | CK79: 12 | CL79: 99 | CM79: 85 | CN79: 89 | CO79: 2 | CP79: 73 | CQ79: 34 | CR79: 70 | CS79: 88 | CT79: 80 | CU79: 29 | CV79: 46
A80: 98 | B80: 37 | C80: 53 | D80: 22 | E80: 91 | F80: 5 | G80: 48 | H80: 25 | I80: 19 | J80: 89 | K80: 32 | L80: 21 | M80: 64 | N80: 78 | O80: 50 | P80: 56 | Q80: 25 | R80: 12 | S80: 97 | T80: 2 | U80: 12 | V80: 22 | W80: 68 | X80: 17 | Y80: 66 | Z80: 8 | AA80: 96 | AB80: 35 | AC80: 19 | AD80: 62 | AE80: 8 | AF80: 12 | AG80: 78 | AH80: 24 | AI80: 6 | AJ80: 66 | AK80: 38 | AL80: 88 | AM80: 61 | AN80: 54 | AO80: 31 | AP80: 72 | AQ80: 65 | AR80: 86 | AS80: 43 | AT80: 80 | AU80: 96 | AV80: 85 | AW80: 12 | AX80: 57 | AY80: 98 | AZ80: 1 | BA80: 95 | BB80: 49 | BC80: 51 | BD80: 1 | BE80: 33 | BF80: 90 | BG80: 76 | BH80: 84 | BI80: 58 | BJ80: 8 | BK80: 12 | BL80: 51 | BM80: 96 | BN80: 6 | BO80: 60 | BP80: 54 | BQ80: 98 | BR80: 32 | BS80: 57 | BT80: 50 | BU80: 8 | BV80: 35 | BW80: 75 | BX80: 60 | BY80: 85 | BZ80: 46 | CA80: 22 | CB80: 36 | CC80: 36 | CD80: 4 | CE80: 33 | CF80: 4 | CG80: 2 | CH80: 20 | CI80: 16 | CJ80: 59 | CK80: 79 | CL80: 36 | CM80: 31 | CN80: 38 | CO80: 24 | CP80: 68 | CQ80: 78 | CR80: 21 | CS80: 94 | CT80: 24 | CU80: 95 | CV80: 23
A81: 5 | B81: 10 | C81: 24 | D81: 100 | E81: 88 | F81: 50 | G81: 66 | H81: 34 | I81: 9 | J81: 14 | K81: 27 | L81: 27 | M81: 66 | N81: 56 | O81: 39 | P81: 60 | Q81: 11 | R81: 7 | S81: 94 | T81: 100 | U81: 45 | V81: 37 | W81: 25 | X81: 67 | Y81: 89 | Z81: 93 | AA81: 5 | AB81: 55 | AC81: 94 | AD81: 61 | AE81: 42 | AF81: 88 | AG81: 50 | AH81: 60 | AI81: 77 | AJ81: 63 | AK81: 7 | AL81: 19 | AM81: 7 | AN81: 83 | AO81: 33 | AP81: 30 | AQ81: 24 | AR81: 44 | AS81: 27 | AT81: 85 | AU81: 40 | AV81: 58 | AW81: 85 | AX81: 71 | AY81: 56 | AZ81: 58 | BA81: 53 | BB81: 55 | BC81: 74 | BD81: 10 | BE81: 41 | BF81: 54 | BG81: 95 | BH81: 89 | BI81: 25 | BJ81: 20 | BK81: 50 | BL81: 75 | BM81: 54 | BN81: 13 | BO81: 19 | BP81: 60 | BQ81: 38 | BR81: 33 | BS81: 83 | BT81: 70 | BU81: 57 | BV81: 59 | BW81: 96 | BX81: 92 | BY81: 69 | BZ81: 23 | CA81: 95 | CB81: 76 | CC81: 51 | CD81: 90 | CE81: 97 | CF81: 81 | CG81: 35 | CH81: 23 | CI81: 57 | CJ81: 50 | CK81: 63 | CL81: 61 | CM81: 82 | CN81: 21 | CO81: 76 | CP81: 7 | CQ81: 35 | CR81: 97 | CS81: 62 | CT81: 59 | CU81: 17 | CV81: 11
A82: 10 | B82: 98 | C82: 20 | D82: 85 | E82: 97 | F82: 81 | G82: 38 | H82: 86 | I82: 94 | J82: 1 | K82: 39 | L82: 67 | M82: 70 | N82: 8 | O82: 96 | P82: 95 | Q82: 12 | R82: 55 | S82: 19 | T82: 81 | U82: 58 | V82: 79 | W82: 35 | X82: 23 | Y82: 22 | Z82: 72 | AA82: 72 | AB82: 13 | AC82: 11 | AD82: 52 | AE82: 48 | AF82: 54 | AG82: 13 | AH82: 66 | AI82: 74 | AJ82: 22 | AK82: 71 | AL82: 40 | AM82: 72 | AN82: 34 | AO82: 83 | AP82: 77 | AQ82: 77 | AR82: 10 | AS82: 19 | AT82: 70 | AU82: 97 | AV82: 78 | AW82: 66 | AX82: 15 | AY82: 8 | AZ82: 36 | BA82: 83 | BB82: 93 | BC82: 63 | BD82: 28 | BE82: 22 | BF82: 37 | BG82: 64 | BH82: 89 | BI82: 48 | BJ82: 11 | BK82: 44 | BL82: 66 | BM82: 87 | BN82: 8 | BO82: 14 | BP82: 27 | BQ82: 27 | BR82: 17 | BS82: 82 | BT82: 33 | BU82: 32 | BV82: 78 | BW82: 51 | BX82: 78 | BY82: 91 | BZ82: 85 | CA82: 38 | CB82: 25 | CC82: 92 | CD82: 74 | CE82: 58 | CF82: 42 | CG82: 2 | CH82: 34 | CI82: 96 | CJ82: 26 | CK82: 33 | CL82: 96 | CM82: 9 | CN82: 93 | CO82: 34 | CP82: 25 | CQ82: 63 | CR82: 56 | CS82: 56 | CT82: 29 | CU82: 29 | CV82: 40
A83: 33 | B83: 63 | C83: 97 | D83: 30 | E83: 90 | F83: 28 | G83: 53 | H83: 18 | I83: 76 | J83: 24 | K83: 89 | L83: 57 | M83: 58 | N83: 23 | O83: 49 | P83: 74 | Q83: 57 | R83: 79 | S83: 7 | T83: 59 | U83: 36 | V83: 38 | W83: 33 | X83: 78 | Y83: 28 | Z83: 88 | AA83: 89 | AB83: 27 | AC83: 36 | AD83: 14 | AE83: 9 | AF83: 80 | AG83: 84 | AH83: 79 | AI83: 97 | AJ83: 92 | AK83: 8 | AL83: 41 | AM83: 81 | AN83: 5 | AO83: 23 | AP83: 69 | AQ83: 18 | AR83: 29 | AS83: 37 | AT83: 60 | AU83: 74 | AV83: 81 | AW83: 46 | AX83: 79 | AY83: 34 | AZ83: 23 | BA83: 100 | BB83: 77 | BC83: 12 | BD83: 5 | BE83: 79 | BF83: 55 | BG83: 80 | BH83: 39 | BI83: 21 | BJ83: 49 | BK83: 47 | BL83: 10 | BM83: 20 | BN83: 14 | BO83: 37 | BP83: 62 | BQ83: 74 | BR83: 53 | BS83: 67 | BT83: 43 | BU83: 85 | BV83: 60 | BW83: 22 | BX83: 5 | BY83: 29 | BZ83: 40 | CA83: 28 | CB83: 75 | CC83: 35 | CD83: 10 | CE83: 13 | CF83: 79 | CG83: 18 | CH83: 27 | CI83: 14 | CJ83: 21 | CK83: 96 | CL83: 22 | CM83: 42 | CN83: 26 | CO83: 64 | CP83: 37 | CQ83: 76 | CR83: 52 | CS83: 56 | CT83: 9 | CU83: 9 | CV83: 67
A84: 92 | B84: 79 | C84: 93 | D84: 2 | E84: 76 | F84: 60 | G84: 79 | H84: 46 | I84: 18 | J84: 92 | K84: 74 | L84: 45 | M84: 9 | N84: 26 | O84: 52 | P84: 90 | Q84: 79 | R84: 65 | S84: 7 | T84: 60 | U84: 65 | V84: 94 | W84: 38 | X84: 40 | Y84: 80 | Z84: 84 | AA84: 21 | AB84: 41 | AC84: 97 | AD84: 45 | AE84: 17 | AF84: 84 | AG84: 30 | AH84: 36 | AI84: 65 | AJ84: 43 | AK84: 39 | AL84: 72 | AM84: 21 | AN84: 56 | AO84: 26 | AP84: 22 | AQ84: 43 | AR84: 67 | AS84: 82 | AT84: 38 | AU84: 87 | AV84: 92 | AW84: 46 | AX84: 73 | AY84: 7 | AZ84: 97 | BA84: 33 | BB84: 91 | BC84: 3 | BD84: 39 | BE84: 24 | BF84: 99 | BG84: 60 | BH84: 17 | BI84: 25 | BJ84: 3 | BK84: 40 | BL84: 17 | BM84: 100 | BN84: 66 | BO84: 62 | BP84: 40 | BQ84: 28 | BR84: 42 | BS84: 76 | BT84: 18 | BU84: 23 | BV84: 23 | BW84: 99 | BX84: 7 | BY84: 61 | BZ84: 24 | CA84: 82 | CB84: 20 | CC84: 2 | CD84: 98 | CE84: 64 | CF84: 76 | CG84: 15 | CH84: 34 | CI84: 14 | CJ84: 25 | CK84: 72 | CL84: 44 | CM84: 71 | CN84: 59 | CO84: 21 | CP84: 68 | CQ84: 73 | CR84: 22 | CS84: 34 | CT84: 82 | CU84: 95 | CV84: 85
A85: 67 | B85: 39 | C85: 25 | D85: 8 | E85: 29 | F85: 47 | G85: 17 | H85: 15 | I85: 90 | J85: 14 | K85: 55 | L85: 89 | M85: 80 | N85: 84 | O85: 63 | P85: 16 | Q85: 51 | R85: 92 | S85: 74 | T85: 63 | U85: 37 | V85: 73 | W85: 77 | X85: 63 | Y85: 40 | Z85: 19 | AA85: 31 | AB85: 44 | AC85: 17 | AD85: 32 | AE85: 84 | AF85: 46 | AG85: 70 | AH85: 31 | AI85: 100 | AJ85: 35 | AK85: 61 | AL85: 53 | AM85: 68 | AN85: 23 | AO85: 54 | AP85: 37 | AQ85: 32 | AR85: 35 | AS85: 81 | AT85: 100 | AU85: 43 | AV85: 44 | AW85: 17 | AX85: 66 | AY85: 22 | AZ85: 97 | BA85: 36 | BB85: 37 | BC85: 99 | BD85: 72 | BE85: 90 | BF85: 23 | BG85: 100 | BH85: 11 | BI85: 96 | BJ85: 25 | BK85: 23 | BL85: 93 | BM85: 35 | BN85: 22 | BO85: 7 | BP85: 100 | BQ85: 46 | BR85: 54 | BS85: 79 | BT85: 93 | BU85: 70 | BV85: 34 | BW85: 30 | BX85: 43 | BY85: 49 | BZ85: 54 | CA85: 96 | CB85: 7 | CC85: 52 | CD85: 5 | CE85: 74 | CF85: 90 | CG85: 99 | CH85: 41 | CI85: 56 | CJ85: 54 | CK85: 88 | CL85: 57 | CM85: 85 | CN85: 99 | CO85: 9 | CP85: 99 | CQ85: 20 | CR85: 39 | CS85: 88 | CT85: 13 | CU85: 12 | CV85: 74
A86: 77 | B86: 88 | C86: 96 | D86: 8 | E86: 98 | F86: 81 | G86: 23 | H86: 60 | I86: 55 | J86: 13 | K86: 89 | L86: 45 | M86: 56 | N86: 28 | O86: 39 | P86: 24 | Q86: 94 | R86: 77 | S86: 88 | T86: 49 | U86: 73 | V86: 19 | W86: 15 | X86: 94 | Y86: 1 | Z86: 97 | AA86: 38 | AB86: 16 | AC86: 34 | AD86: 61 | AE86: 33 | AF86: 96 | AG86: 96 | AH86: 59 | AI86: 59 | AJ86: 4 | AK86: 92 | AL86: 46 | AM86: 63 | AN86: 70 | AO86: 92 | AP86: 80 | AQ86: 26 | AR86: 2 | AS86: 28 | AT86: 6 | AU86: 98 | AV86: 88 | AW86: 52 | AX86: 87 | AY86: 92 | AZ86: 88 | BA86: 51 | BB86: 1 | BC86: 48 | BD86: 18 | BE86: 24 | BF86: 77 | BG86: 26 | BH86: 94 | BI86: 67 | BJ86: 50 | BK86: 15 | BL86: 51 | BM86: 45 | BN86: 33 | BO86: 60 | BP86: 58 | BQ86: 27 | BR86: 100 | BS86: 6 | BT86: 63 | BU86: 32 | BV86: 36 | BW86: 39 | BX86: 10 | BY86: 58 | BZ86: 67 | CA86: 80 | CB86: 79 | CC86: 24 | CD86: 41 | CE86: 78 | CF86: 46 | CG86: 49 | CH86: 68 | CI86: 89 | CJ86: 43 | CK86: 82 | CL86: 13 | CM86: 64 | CN86: 82 | CO86: 65 | CP86: 47 | CQ86: 10 | CR86: 21 | CS86: 86 | CT86: 29 | CU86: 52 | CV86: 5
A87: 42 | B87: 59 | C87: 94 | D87: 48 | E87: 22 | F87: 69 | G87: 1 | H87: 91 | I87: 13 | J87: 72 | K87: 59 | L87: 94 | M87: 30 | N87: 7 | O87: 68 | P87: 51 | Q87: 54 | R87: 55 | S87: 76 | T87: 2 | U87: 83 | V87: 13 | W87: 71 | X87: 32 | Y87: 87 | Z87: 70 | AA87: 49 | AB87: 71 | AC87: 76 | AD87: 23 | AE87: 90 | AF87: 82 | AG87: 96 | AH87: 67 | AI87: 23 | AJ87: 90 | AK87: 27 | AL87: 77 | AM87: 79 | AN87: 24 | AO87: 28 | AP87: 42 | AQ87: 28 | AR87: 31 | AS87: 77 | AT87: 27 | AU87: 83 | AV87: 52 | AW87: 26 | AX87: 51 | AY87: 51 | AZ87: 61 | BA87: 5 | BB87: 66 | BC87: 98 | BD87: 73 | BE87: 49 | BF87: 23 | BG87: 39 | BH87: 79 | BI87: 10 | BJ87: 95 | BK87: 40 | BL87: 16 | BM87: 93 | BN87: 67 | BO87: 43 | BP87: 58 | BQ87: 91 | BR87: 10 | BS87: 95 | BT87: 14 | BU87: 58 | BV87: 29 | BW87: 7 | BX87: 4 | BY87: 31 | BZ87: 10 | CA87: 49 | CB87: 14 | CC87: 5 | CD87: 22 | CE87: 67 | CF87: 71 | CG87: 96 | CH87: 50 | CI87: 95 | CJ87: 73 | CK87: 58 | CL87: 86 | CM87: 66 | CN87: 6 | CO87: 86 | CP87: 54 | CQ87: 23 | CR87: 25 | CS87: 82 | CT87: 42 | CU87: 81 | CV87: 50
A88: 71 | B88: 77 | C88: 35 | D88: 61 | E88: 99 | F88: 77 | G88: 34 | H88: 10 | I88: 59 | J88: 38 | K88: 74 | L88: 1 | M88: 26 | N88: 77 | O88: 15 | P88: 54 | Q88: 20 | R88: 29 | S88: 64 | T88: 56 | U88: 81 | V88: 41 | W88: 51 | X88: 92 | Y88: 38 | Z88: 91 | AA88: 49 | AB88: 57 | AC88: 78 | AD88: 66 | AE88: 80 | AF88: 60 | AG88: 96 | AH88: 71 | AI88: 38 | AJ88: 8 | AK88: 29 | AL88: 13 | AM88: 76 | AN88: 2 | AO88: 78 | AP88: 69 | AQ88: 81 | AR88: 67 | AS88: 85 | AT88: 58 | AU88: 30 | AV88: 34 | AW88: 52 | AX88: 35 | AY88: 98 | AZ88: 49 | BA88: 100 | BB88: 60 | BC88: 55 | BD88: 14 | BE88: 57 | BF88: 51 | BG88: 69 | BH88: 42 | BI88: 29 | BJ88: 97 | BK88: 15 | BL88: 28 | BM88: 17 | BN88: 54 | BO88: 23 | BP88: 33 | BQ88: 77 | BR88: 30 | BS88: 36 | BT88: 30 | BU88: 1 | BV88: 57 | BW88: 55 | BX88: 48 | BY88: 41 | BZ88: 40 | CA88: 75 | CB88: 52 | CC88: 68 | CD88: 88 | CE88: 72 | CF88: 72 | CG88: 59 | CH88: 91 | CI88: 55 | CJ88: 19 | CK88: 18 | CL88: 23 | CM88: 23 | CN88: 36 | CO88: 9 | CP88: 99 | CQ88: 79 | CR88: 81 | CS88: 23 | CT88: 61 | CU88: 79 | CV88: 56
A89: 39 | B89: 68 | C89: 78 | D89: 69 | E89: 81 | F89: 85 | G89: 28 | H89: 56 | I89: 68 | J89: 17 | K89: 76 | L89: 27 | M89: 98 | N89: 41 | O89: 48 | P89: 42 | Q89: 87 | R89: 39 | S89: 80 | T89: 11 | U89: 77 | V89: 42 | W89: 7 | X89: 53 | Y89: 14 | Z89: 57 | AA89: 45 | AB89: 73 | AC89: 73 | AD89: 6 | AE89: 44 | AF89: 95 | AG89: 86 | AH89: 43 | AI89: 5 | AJ89: 79 | AK89: 67 | AL89: 19 | AM89: 5 | AN89: 88 | AO89: 67 | AP89: 11 | AQ89: 95 | AR89: 38 | AS89: 99 | AT89: 9 | AU89: 28 | AV89: 55 | AW89: 65 | AX89: 97 | AY89: 45 | AZ89: 74 | BA89: 92 | BB89: 94 | BC89: 91 | BD89: 59 | BE89: 2 | BF89: 23 | BG89: 73 | BH89: 33 | BI89: 38 | BJ89: 67 | BK89: 77 | BL89: 25 | BM89: 28 | BN89: 26 | BO89: 72 | BP89: 71 | BQ89: 48 | BR89: 38 | BS89: 34 | BT89: 5 | BU89: 42 | BV89: 98 | BW89: 73 | BX89: 11 | BY89: 87 | BZ89: 2 | CA89: 69 | CB89: 59 | CC89: 91 | CD89: 71 | CE89: 84 | CF89: 94 | CG89: 82 | CH89: 34 | CI89: 10 | CJ89: 52 | CK89: 8 | CL89: 97 | CM89: 35 | CN89: 72 | CO89: 78 | CP89: 33 | CQ89: 71 | CR89: 88 | CS89: 57 | CT89: 96 | CU89: 12 | CV89: 99
A90: 28 | B90: 30 | C90: 32 | D90: 38 | E90: 35 | F90: 88 | G90: 32 | H90: 49 | I90: 14 | J90: 30 | K90: 51 | L90: 96 | M90: 83 | N90: 51 | O90: 9 | P90: 5 | Q90: 38 | R90: 87 | S90: 89 | T90: 80 | U90: 41 | V90: 78 | W90: 94 | X90: 27 | Y90: 80 | Z90: 23 | AA90: 92 | AB90: 88 | AC90: 99 | AD90: 81 | AE90: 46 | AF90: 52 | AG90: 68 | AH90: 40 | AI90: 92 | AJ90: 66 | AK90: 93 | AL90: 3 | AM90: 36 | AN90: 62 | AO90: 48 | AP90: 34 | AQ90: 100 | AR90: 19 | AS90: 76 | AT90: 74 | AU90: 11 | AV90: 37 | AW90: 74 | AX90: 84 | AY90: 85 | AZ90: 34 | BA90: 11 | BB90: 69 | BC90: 41 | BD90: 5 | BE90: 46 | BF90: 46 | BG90: 7 | BH90: 5 | BI90: 49 | BJ90: 51 | BK90: 15 | BL90: 45 | BM90: 19 | BN90: 12 | BO90: 67 | BP90: 92 | BQ90: 78 | BR90: 31 | BS90: 98 | BT90: 92 | BU90: 57 | BV90: 49 | BW90: 22 | BX90: 24 | BY90: 72 | BZ90: 94 | CA90: 91 | CB90: 36 | CC90: 18 | CD90: 35 | CE90: 75 | CF90: 98 | CG90: 98 | CH90: 7 | CI90: 75 | CJ90: 78 | CK90: 1 | CL90: 47 | CM90: 35 | CN90: 82 | CO90: 46 | CP90: 3 | CQ90: 10 | CR90: 90 | CS90: 94 | CT90: 74 | CU90: 79 | CV90: 2
A91: 31 | B91: 58 | C91: 58 | D91: 5 | E91: 6 | F91: 75 | G91: 48 | H91: 1 | I91: 23 | J91: 66 | K91: 26 | L91: 38 | M91: 84 | N91: 4 | O91: 45 | P91: 27 | Q91: 40 | R91: 62 | S91: 13 | T91: 60 | U91: 7 | V91: 17 | W91: 78 | X91: 34 | Y91: 40 | Z91: 83 | AA91: 19 | AB91: 87 | AC91: 25 | AD91: 9 | AE91: 41 | AF91: 45 | AG91: 6 | AH91: 93 | AI91: 29 | AJ91: 30 | AK91: 97 | AL91: 87 | AM91: 92 | AN91: 35 | AO91: 42 | AP91: 10 | AQ91: 27 | AR91: 17 | AS91: 41 | AT91: 71 | AU91: 48 | AV91: 48 | AW91: 87 | AX91: 20 | AY91: 32 | AZ91: 81 | BA91: 6 | BB91: 58 | BC91: 48 | BD91: 9 | BE91: 92 | BF91: 1 | BG91: 82 | BH91: 37 | BI91: 96 | BJ91: 23 | BK91: 57 | BL91: 69 | BM91: 5 | BN91: 86 | BO91: 93 | BP91: 40 | BQ91: 74 | BR91: 92 | BS91: 62 | BT91: 83 | BU91: 23 | BV91: 14 | BW91: 60 | BX91: 48 | BY91: 61 | BZ91: 48 | CA91: 49 | CB91: 89 | CC91: 13 | CD91: 88 | CE91: 46 | CF91: 15 | CG91: 80 | CH91: 66 | CI91: 22 | CJ91: 83 | CK91: 59 | CL91: 73 | CM91: 44 | CN91: 98 | CO91: 74 | CP91: 90 | CQ91: 36 | CR91: 43 | CS91: 69 | CT91: 32 | CU91: 8 | CV91: 74
A92: 5 | B92: 4 | C92: 4 | D92: 75 | E92: 75 | F92: 54 | G92: 60 | H92: 99 | I92: 12 | J92: 96 | K92: 2 | L92: 93 | M92: 79 | N92: 54 | O92: 66 | P92: 10 | Q92: 86 | R92: 50 | S92: 11 | T92: 22 | U92: 57 | V92: 98 | W92: 52 | X92: 53 | Y92: 89 | Z92: 18 | AA92: 74 | AB92: 4 | AC92: 75 | AD92: 56 | AE92: 4 | AF92: 56 | AG92: 69 | AH92: 97 | AI92: 25 | AJ92: 72 | AK92: 74 | AL92: 22 | AM92: 7 | AN92: 88 | AO92: 96 | AP92: 61 | AQ92: 36 | AR92: 34 | AS92: 12 | AT92: 98 | AU92: 26 | AV92: 80 | AW92: 73 | AX92: 32 | AY92: 6 | AZ92: 53 | BA92: 83 | BB92: 52 | BC92: 96 | BD92: 66 | BE92: 79 | BF92: 17 | BG92: 90 | BH92: 37 | BI92: 32 | BJ92: 35 | BK92: 36 | BL92: 46 | BM92: 58 | BN92: 5 | BO92: 16 | BP92: 76 | BQ92: 64 | BR92: 94 | BS92: 65 | BT92: 63 | BU92: 19 | BV92: 26 | BW92: 7 | BX92: 94 | BY92: 47 | BZ92: 54 | CA92: 95 | CB92: 50 | CC92: 47 | CD92: 56 | CE92: 4 | CF92: 95 | CG92: 45 | CH92: 19 | CI92: 84 | CJ92: 71 | CK92: 28 | CL92: 27 | CM92: 97 | CN92: 49 | CO92: 99 | CP92: 25 | CQ92: 11 | CR92: 4 | CS92: 57 | CT92: 52 | CU92: 82 | CV92: 81
A93: 97 | B93: 20 | C93: 70 | D93: 24 | E93: 21 | F93: 67 | G93: 17 | H93: 97 | I93: 19 | J93: 68 | K93: 26 | L93: 24 | M93: 51 | N93: 52 | O93: 62 | P93: 83 | Q93: 79 | R93: 50 | S93: 5 | T93: 26 | U93: 34 | V93: 25 | W93: 59 | X93: 62 | Y93: 34 | Z93: 9 | AA93: 64 | AB93: 72 | AC93: 71 | AD93: 1 | AE93: 56 | AF93: 66 | AG93: 59 | AH93: 85 | AI93: 48 | AJ93: 27 | AK93: 17 | AL93: 35 | AM93: 53 | AN93: 50 | AO93: 100 | AP93: 79 | AQ93: 62 | AR93: 97 | AS93: 12 | AT93: 84 | AU93: 71 | AV93: 44 | AW93: 53 | AX93: 14 | AY93: 50 | AZ93: 47 | BA93: 22 | BB93: 68 | BC93: 44 | BD93: 66 | BE93: 67 | BF93: 51 | BG93: 62 | BH93: 33 | BI93: 21 | BJ93: 10 | BK93: 39 | BL93: 69 | BM93: 30 | BN93: 100 | BO93: 73 | BP93: 38 | BQ93: 2 | BR93: 81 | BS93: 65 | BT93: 22 | BU93: 10 | BV93: 89 | BW93: 58 | BX93: 1 | BY93: 80 | BZ93: 23 | CA93: 80 | CB93: 13 | CC93: 10 | CD93: 59 | CE93: 61 | CF93: 27 | CG93: 25 | CH93: 34 | CI93: 41 | CJ93: 19 | CK93: 77 | CL93: 50 | CM93: 3 | CN93: 37 | CO93: 7 | CP93: 86 | CQ93: 77 | CR93: 26 | CS93: 28 | CT93: 13 | CU93: 24 | CV93: 18
A94: 39 | B94: 85 | C94: 100 | D94: 9 | E94: 31 | F94: 48 | G94: 97 | H94: 39 | I94: 37 | J94: 21 | K94: 91 | L94: 76 | M94: 20 | N94: 100 | O94: 87 | P94: 21 | Q94: 38 | R94: 98 | S94: 85 | T94: 65 | U94: 27 | V94: 29 | W94: 18 | X94: 11 | Y94: 90 | Z94: 77 | AA94: 100 | AB94: 53 | AC94: 27 | AD94: 100 | AE94: 81 | AF94: 27 | AG94: 88 | AH94: 90 | AI94: 33 | AJ94: 1 | AK94: 81 | AL94: 30 | AM94: 49 | AN94: 19 | AO94: 86 | AP94: 21 | AQ94: 44 | AR94: 84 | AS94: 75 | AT94: 49 | AU94: 91 | AV94: 99 | AW94: 24 | AX94: 82 | AY94: 92 | AZ94: 45 | BA94: 63 | BB94: 50 | BC94: 32 | BD94: 100 | BE94: 18 | BF94: 70 | BG94: 60 | BH94: 8 | BI94: 98 | BJ94: 33 | BK94: 42 | BL94: 95 | BM94: 78 | BN94: 61 | BO94: 49 | BP94: 43 | BQ94: 10 | BR94: 95 | BS94: 15 | BT94: 41 | BU94: 77 | BV94: 44 | BW94: 44 | BX94: 5 | BY94: 7 | BZ94: 90 | CA94: 47 | CB94: 68 | CC94: 73 | CD94: 78 | CE94: 53 | CF94: 4 | CG94: 29 | CH94: 56 | CI94: 79 | CJ94: 85 | CK94: 77 | CL94: 36 | CM94: 83 | CN94: 58 | CO94: 33 | CP94: 77 | CQ94: 88 | CR94: 15 | CS94: 72 | CT94: 22 | CU94: 22 | CV94: 15
A95: 81 | B95: 81 | C95: 53 | D95: 76 | E95: 76 | F95: 13 | G95: 63 | H95: 78 | I95: 92 | J95: 43 | K95: 59 | L95: 4 | M95: 8 | N95: 27 | O95: 89 | P95: 84 | Q95: 1 | R95: 51 | S95: 30 | T95: 75 | U95: 26 | V95: 31 | W95: 10 | X95: 96 | Y95: 28 | Z95: 79 | AA95: 56 | AB95: 88 | AC95: 100 | AD95: 53 | AE95: 38 | AF95: 6 | AG95: 26 | AH95: 89 | AI95: 8 | AJ95: 57 | AK95: 70 | AL95: 58 | AM95: 4 | AN95: 45 | AO95: 7 | AP95: 23 | AQ95: 39 | AR95: 49 | AS95: 4 | AT95: 81 | AU95: 72 | AV95: 99 | AW95: 100 | AX95: 65 | AY95: 28 | AZ95: 2 | BA95: 37 | BB95: 19 | BC95: 5 | BD95: 39 | BE95: 1 | BF95: 70 | BG95: 25 | BH95: 6 | BI95: 6 | BJ95: 66 | BK95: 64 | BL95: 96 | BM95: 68 | BN95: 46 | BO95: 68 | BP95: 33 | BQ95: 88 | BR95: 22 | BS95: 48 | BT95: 36 | BU95: 10 | BV95: 32 | BW95: 86 | BX95: 37 | BY95: 29 | BZ95: 41 | CA95: 27 | CB95: 20 | CC95: 75 | CD95: 9 | CE95: 18 | CF95: 67 | CG95: 72 | CH95: 18 | CI95: 35 | CJ95: 58 | CK95: 47 | CL95: 2 | CM95: 81 | CN95: 32 | CO95: 57 | CP95: 17 | CQ95: 81 | CR95: 24 | CS95: 57 | CT95: 22 | CU95: 77 | CV95: 56
A96: 87 | B96: 23 | C96: 75 | D96: 24 | E96: 52 | F96: 52 | G96: 9 | H96: 87 | I96: 6 | J96: 49 | K96: 57 | L96: 38 | M96: 36 | N96: 79 | O96: 77 | P96: 11 | Q96: 71 | R96: 20 | S96: 92 | T96: 24 | U96: 90 | V96: 99 | W96: 2 | X96: 36 | Y96: 93 | Z96: 16 | AA96: 37 | AB96: 35 | AC96: 66 | AD96: 55 | AE96: 42 | AF96: 63 | AG96: 33 | AH96: 91 | AI96: 32 | AJ96: 59 | AK96: 54 | AL96: 12 | AM96: 84 | AN96: 46 | AO96: 39 | AP96: 26 | AQ96: 69 | AR96: 78 | AS96: 79 | AT96: 72 | AU96: 55 | AV96: 39 | AW96: 70 | AX96: 81 | AY96: 24 | AZ96: 28 | BA96: 61 | BB96: 1 | BC96: 35 | BD96: 57 | BE96: 31 | BF96: 81 | BG96: 61 | BH96: 97 | BI96: 73 | BJ96: 86 | BK96: 46 | BL96: 52 | BM96: 21 | BN96: 1 | BO96: 53 | BP96: 94 | BQ96: 8 | BR96: 66 | BS96: 2 | BT96: 18 | BU96: 16 | BV96: 34 | BW96: 20 | BX96: 17 | BY96: 62 | BZ96: 64 | CA96: 3 | CB96: 43 | CC96: 93 | CD96: 14 | CE96: 13 | CF96: 4 | CG96: 74 | CH96: 96 | CI96: 86 | CJ96: 7 | CK96: 46 | CL96: 36 | CM96: 70 | CN96: 75 | CO96: 93 | CP96: 56 | CQ96: 87 | CR96: 75 | CS96: 75 | CT96: 62 | CU96: 46 | CV96: 11
A97: 87 | B97: 71 | C97: 39 | D97: 31 | E97: 13 | F97: 6 | G97: 84 | H97: 51 | I97: 21 | J97: 58 | K97: 74 | L97: 10 | M97: 61 | N97: 3 | O97: 63 | P97: 56 | Q97: 48 | R97: 35 | S97: 44 | T97: 43 | U97: 98 | V97: 54 | W97: 100 | X97: 24 | Y97: 80 | Z97: 69 | AA97: 11 | AB97: 98 | AC97: 21 | AD97: 66 | AE97: 5 | AF97: 51 | AG97: 23 | AH97: 85 | AI97: 4 | AJ97: 75 | AK97: 63 | AL97: 88 | AM97: 100 | AN97: 77 | AO97: 5 | AP97: 27 | AQ97: 30 | AR97: 38 | AS97: 53 | AT97: 80 | AU97: 4 | AV97: 77 | AW97: 93 | AX97: 57 | AY97: 11 | AZ97: 46 | BA97: 10 | BB97: 100 | BC97: 21 | BD97: 63 | BE97: 33 | BF97: 77 | BG97: 82 | BH97: 23 | BI97: 61 | BJ97: 2 | BK97: 74 | BL97: 100 | BM97: 23 | BN97: 19 | BO97: 88 | BP97: 99 | BQ97: 17 | BR97: 51 | BS97: 29 | BT97: 46 | BU97: 53 | BV97: 33 | BW97: 43 | BX97: 67 | BY97: 3 | BZ97: 93 | CA97: 60 | CB97: 7 | CC97: 30 | CD97: 12 | CE97: 75 | CF97: 76 | CG97: 44 | CH97: 25 | CI97: 67 | CJ97: 5 | CK97: 31 | CL97: 30 | CM97: 76 | CN97: 30 | CO97: 82 | CP97: 88 | CQ97: 39 | CR97: 47 | CS97: 31 | CT97: 60 | CU97: 94 | CV97: 86
A98: 81 | B98: 6 | C98: 71 | D98: 29 | E98: 11 | F98: 82 | G98: 75 | H98: 89 | I98: 4 | J98: 78 | K98: 94 | L98: 69 | M98: 3 | N98: 17 | O98: 52 | P98: 71 | Q98: 55 | R98: 76 | S98: 74 | T98: 9 | U98: 10 | V98: 96 | W98: 33 | X98: 73 | Y98: 4 | Z98: 97 | AA98: 23 | AB98: 93 | AC98: 40 | AD98: 64 | AE98: 88 | AF98: 76 | AG98: 53 | AH98: 50 | AI98: 98 | AJ98: 50 | AK98: 5 | AL98: 92 | AM98: 43 | AN98: 44 | AO98: 80 | AP98: 23 | AQ98: 53 | AR98: 10 | AS98: 36 | AT98: 58 | AU98: 31 | AV98: 10 | AW98: 100 | AX98: 46 | AY98: 56 | AZ98: 4 | BA98: 84 | BB98: 96 | BC98: 70 | BD98: 72 | BE98: 22 | BF98: 38 | BG98: 13 | BH98: 56 | BI98: 96 | BJ98: 74 | BK98: 47 | BL98: 24 | BM98: 74 | BN98: 89 | BO98: 2 | BP98: 4 | BQ98: 77 | BR98: 52 | BS98: 54 | BT98: 42 | BU98: 34 | BV98: 57 | BW98: 73 | BX98: 68 | BY98: 90 | BZ98: 80 | CA98: 35 | CB98: 74 | CC98: 69 | CD98: 38 | CE98: 21 | CF98: 100 | CG98: 54 | CH98: 25 | CI98: 12 | CJ98: 59 | CK98: 60 | CL98: 51 | CM98: 28 | CN98: 67 | CO98: 21 | CP98: 33 | CQ98: 67 | CR98: 8 | CS98: 58 | CT98: 40 | CU98: 38 | CV98: 70
A99: 99 | B99: 56 | C99: 8 | D99: 58 | E99: 50 | F99: 73 | G99: 69 | H99: 39 | I99: 3 | J99: 37 | K99: 49 | L99: 94 | M99: 33 | N99: 41 | O99: 47 | P99: 33 | Q99: 64 | R99: 56 | S99: 40 | T99: 68 | U99: 56 | V99: 12 | W99: 9 | X99: 91 | Y99: 61 | Z99: 84 | AA99: 68 | AB99: 54 | AC99: 14 | AD99: 25 | AE99: 87 | AF99: 7 | AG99: 80 | AH99: 11 | AI99: 40 | AJ99: 67 | AK99: 84 | AL99: 94 | AM99: 47 | AN99: 5 | AO99: 31 | AP99: 30 | AQ99: 30 | AR99: 55 | AS99: 49 | AT99: 38 | AU99: 27 | AV99: 78 | AW99: 39 | AX99: 73 | AY99: 50 | AZ99: 64 | BA99: 77 | BB99: 53 | BC99: 53 | BD99: 90 | BE99: 14 | BF99: 8 | BG99: 28 | BH99: 82 | BI99: 59 | BJ99: 30 | BK99: 3 | BL99: 94 | BM99: 66 | BN99: 65 | BO99: 18 | BP99: 31 | BQ99: 28 | BR99: 83 | BS99: 22 | BT99: 26 | BU99: 45 | BV99: 56 | BW99: 88 | BX99: 92 | BY99: 47 | BZ99: 46 | CA99: 39 | CB99: 69 | CC99: 14 | CD99: 59 | CE99: 37 | CF99: 55 | CG99: 48 | CH99: 92 | CI99: 49 | CJ99: 2 | CK99: 47 | CL99: 3 | CM99: 12 | CN99: 10 | CO99: 64 | CP99: 23 | CQ99: 17 | CR99: 90 | CS99: 82 | CT99: 90 | CU99: 26 | CV99: 3
A100: 7 | B100: 44 | C100: 12 | D100: 66 | E100: 93 | F100: 3 | G100: 42 | H100: 66 | I100: 33 | J100: 10 | K100: 67 | L100: 40 | M100: 78 | N100: 11 | O100: 11 | P100: 3 | Q100: 6 | R100: 79 | S100: 55 | T100: 46 | U100: 23 | V100: 24 | W100: 16 | X100: 45 | Y100: 91 | Z100: 46 | AA100: 15 | AB100: 41 | AC100: 48 | AD100: 81 | AE100: 5 | AF100: 89 | AG100: 39 | AH100: 19 | AI100: 11 | AJ100: 48 | AK100: 49 | AL100: 19 | AM100: 52 | AN100: 98 | AO100: 24 | AP100: 89 | AQ100: 66 | AR100: 87 | AS100: 80 | AT100: 46 | AU100: 36 | AV100: 24 | AW100: 95 | AX100: 29 | AY100: 82 | AZ100: 55 | BA100: 13 | BB100: 1 | BC100: 88 | BD100: 37 | BE100: 13 | BF100: 69 | BG100: 16 | BH100: 90 | BI100: 70 | BJ100: 81 | BK100: 28 | BL100: 95 | BM100: 54 | BN100: 37 | BO100: 84 | BP100: 64 | BQ100: 88 | BR100: 61 | BS100: 74 | BT100: 85 | BU100: 83 | BV100: 17 | BW100: 95 | BX100: 95 | BY100: 12 | BZ100: 39 | CA100: 62 | CB100: 69 | CC100: 60 | CD100: 76 | CE100: 54 | CF100: 86 | CG100: 2 | CH100: 80 | CI100: 43 | CJ100: 27 | CK100: 91 | CL100: 92 | CM100: 18 | CN100: 79 | CO100: 38 | CP100: 100 | CQ100: 79 | CR100: 76 | CS100: 11 | CT100: 42 | CU100: 76 | CV100: 67
A101: 81 | B101: 44 | C101: 61 | D101: 58 | E101: 70 | F101: 55 | G101: 87 | H101: 93 | I101: 1 | J101: 12 | K101: 50 | L101: 94 | M101: 18 | N101: 49 | O101: 39 | P101: 53 | Q101: 32 | R101: 34 | S101: 91 | T101: 3 | U101: 20 | V101: 5 | W101: 36 | X101: 26 | Y101: 40 | Z101: 39 | AA101: 38 | AB101: 72 | AC101: 23 | AD101: 94 | AE101: 18 | AF101: 47 | AG101: 73 | AH101: 68 | AI101: 8 | AJ101: 15 | AK101: 39 | AL101: 26 | AM101: 58 | AN101: 54 | AO101: 92 | AP101: 46 | AQ101: 59 | AR101: 4 | AS101: 41 | AT101: 1 | AU101: 3 | AV101: 73 | AW101: 84 | AX101: 73 | AY101: 17 | AZ101: 73 | BA101: 14 | BB101: 29 | BC101: 29 | BD101: 74 | BE101: 93 | BF101: 9 | BG101: 27 | BH101: 2 | BI101: 92 | BJ101: 36 | BK101: 49 | BL101: 35 | BM101: 77 | BN101: 20 | BO101: 51 | BP101: 5 | BQ101: 30 | BR101: 53 | BS101: 80 | BT101: 11 | BU101: 77 | BV101: 17 | BW101: 50 | BX101: 52 | BY101: 76 | BZ101: 73 | CA101: 70 | CB101: 55 | CC101: 30 | CD101: 73 | CE101: 16 | CF101: 8 | CG101: 57 | CH101: 40 | CI101: 9 | CJ101: 17 | CK101: 15 | CL101: 26 | CM101: 91 | CN101: 8 | CO101: 97 | CP101: 58 | CQ101: 18 | CR101: 23 | CS101: 6 | CT101: 5 | CU101: 57 | CV101: 84
A102: 49 | B102: 79 | C102: 83 | D102: 14 | E102: 82 | F102: 20 | G102: 72 | H102: 66 | I102: 27 | J102: 66 | K102: 97 | L102: 84 | M102: 23 | N102: 15 | O102: 92 | P102: 98 | Q102: 19 | R102: 4 | S102: 6 | T102: 61 | U102: 68 | V102: 48 | W102: 78 | X102: 36 | Y102: 36 | Z102: 87 | AA102: 72 | AB102: 34 | AC102: 94 | AD102: 95 | AE102: 100 | AF102: 57 | AG102: 24 | AH102: 15 | AI102: 77 | AJ102: 23 | AK102: 11 | AL102: 72 | AM102: 48 | AN102: 24 | AO102: 58 | AP102: 32 | AQ102: 88 | AR102: 88 | AS102: 98 | AT102: 69 | AU102: 78 | AV102: 13 | AW102: 54 | AX102: 21 | AY102: 66 | AZ102: 13 | BA102: 34 | BB102: 51 | BC102: 21 | BD102: 68 | BE102: 72 | BF102: 66 | BG102: 83 | BH102: 94 | BI102: 100 | BJ102: 27 | BK102: 52 | BL102: 31 | BM102: 76 | BN102: 35 | BO102: 34 | BP102: 94 | BQ102: 17 | BR102: 82 | BS102: 84 | BT102: 78 | BU102: 77 | BV102: 36 | BW102: 27 | BX102: 60 | BY102: 86 | BZ102: 68 | CA102: 65 | CB102: 45 | CC102: 49 | CD102: 96 | CE102: 67 | CF102: 35 | CG102: 58 | CH102: 16 | CI102: 66 | CJ102: 36 | CK102: 35 | CL102: 40 | CM102: 23 | CN102: 2 | CO102: 96 | CP102: 84 | CQ102: 81 | CR102: 50 | CS102: 11 | CT102: 16 | CU102: 70 | CV102: 69
A103: 24 | B103: 77 | C103: 10 | D103: 40 | E103: 77 | F103: 3 | G103: 42 | H103: 9 | I103: 97 | J103: 83 | K103: 43 | L103: 90 | M103: 69 | N103: 86 | O103: 100 | P103: 30 | Q103: 30 | R103: 55 | S103: 87 | T103: 49 | U103: 5 | V103: 16 | W103: 89 | X103: 29 | Y103: 98 | Z103: 100 | AA103: 66 | AB103: 48 | AC103: 3 | AD103: 78 | AE103: 29 | AF103: 14 | AG103: 13 | AH103: 100 | AI103: 25 | AJ103: 48 | AK103: 8 | AL103: 50 | AM103: 55 | AN103: 77 | AO103: 53 | AP103: 75 | AQ103: 59 | AR103: 70 | AS103: 71 | AT103: 95 | AU103: 4 | AV103: 85 | AW103: 37 | AX103: 98 | AY103: 85 | AZ103: 91 | BA103: 6 | BB103: 12 | BC103: 51 | BD103: 4 | BE103: 52 | BF103: 62 | BG103: 94 | BH103: 22 | BI103: 91 | BJ103: 42 | BK103: 92 | BL103: 5 | BM103: 51 | BN103: 92 | BO103: 70 | BP103: 56 | BQ103: 59 | BR103: 81 | BS103: 98 | BT103: 54 | BU103: 25 | BV103: 54 | BW103: 48 | BX103: 91 | BY103: 91 | BZ103: 77 | CA103: 23 | CB103: 45 | CC103: 59 | CD103: 79 | CE103: 30 | CF103: 81 | CG103: 79 | CH103: 87 | CI103: 55 | CJ103: 86 | CK103: 37 | CL103: 28 | CM103: 52 | CN103: 21 | CO103: 87 | CP103: 65 | CQ103: 85 | CR103: 19 | CS103: 42 | CT103: 25 | CU103: 85 | CV103: 68
A104: 5 | B104: 76 | C104: 36 | D104: 69 | E104: 94 | F104: 64 | G104: 94 | H104: 72 | I104: 98 | J104: 41 | K104: 38 | L104: 97 | M104: 63 | N104: 90 | O104: 70 | P104: 99 | Q104: 33 | R104: 38 | S104: 61 | T104: 82 | U104: 46 | V104: 26 | W104: 16 | X104: 72 | Y104: 15 | Z104: 12 | AA104: 17 | AB104: 59 | AC104: 18 | AD104: 61 | AE104: 23 | AF104: 22 | AG104: 94 | AH104: 3 | AI104: 54 | AJ104: 76 | AK104: 9 | AL104: 25 | AM104: 46 | AN104: 80 | AO104: 3 | AP104: 16 | AQ104: 71 | AR104: 41 | AS104: 78 | AT104: 88 | AU104: 36 | AV104: 29 | AW104: 80 | AX104: 49 | AY104: 63 | AZ104: 58 | BA104: 89 | BB104: 49 | BC104: 98 | BD104: 55 | BE104: 31 | BF104: 6 | BG104: 19 | BH104: 23 | BI104: 73 | BJ104: 55 | BK104: 61 | BL104: 99 | BM104: 45 | BN104: 65 | BO104: 80 | BP104: 53 | BQ104: 20 | BR104: 49 | BS104: 1 | BT104: 62 | BU104: 93 | BV104: 95 | BW104: 11 | BX104: 84 | BY104: 25 | BZ104: 36 | CA104: 64 | CB104: 86 | CC104: 91 | CD104: 11 | CE104: 18 | CF104: 50 | CG104: 19 | CH104: 75 | CI104: 9 | CJ104: 8 | CK104: 6 | CL104: 97 | CM104: 15 | CN104: 97 | CO104: 25 | CP104: 77 | CQ104: 25 | CR104: 52 | CS104: 43 | CT104: 87 | CU104: 27 | CV104: 78
A105: 56 | B105: 7 | C105: 55 | D105: 95 | E105: 74 | F105: 71 | G105: 79 | H105: 86 | I105: 78 | J105: 6 | K105: 36 | L105: 12 | M105: 12 | N105: 60 | O105: 70 | P105: 1 | Q105: 19 | R105: 66 | S105: 48 | T105: 22 | U105: 99 | V105: 29 | W105: 58 | X105: 30 | Y105: 98 | Z105: 80 | AA105: 76 | AB105: 71 | AC105: 32 | AD105: 91 | AE105: 52 | AF105: 33 | AG105: 85 | AH105: 90 | AI105: 72 | AJ105: 30 | AK105: 66 | AL105: 61 | AM105: 16 | AN105: 67 | AO105: 54 | AP105: 29 | AQ105: 73 | AR105: 38 | AS105: 88 | AT105: 22 | AU105: 7 | AV105: 27 | AW105: 64 | AX105: 90 | AY105: 23 | AZ105: 83 | BA105: 26 | BB105: 39 | BC105: 40 | BD105: 15 | BE105: 55 | BF105: 7 | BG105: 62 | BH105: 73 | BI105: 79 | BJ105: 22 | BK105: 75 | BL105: 18 | BM105: 5 | BN105: 9 | BO105: 17 | BP105: 75 | BQ105: 36 | BR105: 75 | BS105: 24 | BT105: 7 | BU105: 49 | BV105: 78 | BW105: 55 | BX105: 80 | BY105: 29 | BZ105: 50 | CA105: 63 | CB105: 30 | CC105: 23 | CD105: 70 | CE105: 14 | CF105: 28 | CG105: 42 | CH105: 62 | CI105: 69 | CJ105: 3 | CK105: 98 | CL105: 11 | CM105: 95 | CN105: 86 | CO105: 53 | CP105: 85 | CQ105: 5 | CR105: 3 | CS105: 25 | CT105: 37 | CU105: 1 | CV105: 54
A106: 46 | B106: 62 | C106: 69 | D106: 16 | E106: 97 | F106: 73 | G106: 8 | H106: 13 | I106: 21 | J106: 20 | K106: 7 | L106: 80 | M106: 72 | N106: 76 | O106: 34 | P106: 95 | Q106: 91 | R106: 45 | S106: 96 | T106: 31 | U106: 57 | V106: 69 | W106: 54 | X106: 65 | Y106: 20 | Z106: 27 | AA106: 69 | AB106: 51 | AC106: 15 | AD106: 90 | AE106: 54 | AF106: 40 | AG106: 93 | AH106: 12 | AI106: 9 | AJ106: 63 | AK106: 1 | AL106: 69 | AM106: 36 | AN106: 56 | AO106: 31 | AP106: 73 | AQ106: 62 | AR106: 34 | AS106: 63 | AT106: 9 | AU106: 87 | AV106: 65 | AW106: 20 | AX106: 77 | AY106: 81 | AZ106: 80 | BA106: 42 | BB106: 45 | BC106: 12 | BD106: 4 | BE106: 51 | BF106: 89 | BG106: 43 | BH106: 40 | BI106: 16 | BJ106: 24 | BK106: 23 | BL106: 73 | BM106: 25 | BN106: 1 | BO106: 56 | BP106: 78 | BQ106: 79 | BR106: 36 | BS106: 75 | BT106: 2 | BU106: 9 | BV106: 34 | BW106: 70 | BX106: 76 | BY106: 68 | BZ106: 25 | CA106: 97 | CB106: 11 | CC106: 9 | CD106: 73 | CE106: 64 | CF106: 57 | CG106: 54 | CH106: 38 | CI106: 47 | CJ106: 95 | CK106: 81 | CL106: 18 | CM106: 2 | CN106: 75 | CO106: 34 | CP106: 20 | CQ106: 35 | CR106: 72 | CS106: 6 | CT106: 82 | CU106: 27 | CV106: 48
A107: 19 | B107: 96 | C107: 1 | D107: 86 | E107: 18 | F107: 21 | G107: 39 | H107: 91 | I107: 30 | J107: 31 | K107: 77 | L107: 91 | M107: 80 | N107: 1 | O107: 87 | P107: 25 | Q107: 80 | R107: 66 | S107: 63 | T107: 5 | U107: 12 | V107: 67 | W107: 80 | X107: 7 | Y107: 53 | Z107: 44 | AA107: 45 | AB107: 8 | AC107: 37 | AD107: 5 | AE107: 27 | AF107: 62 | AG107: 71 | AH107: 8 | AI107: 46 | AJ107: 57 | AK107: 57 | AL107: 36 | AM107: 68 | AN107: 83 | AO107: 21 | AP107: 41 | AQ107: 91 | AR107: 22 | AS107: 89 | AT107: 58 | AU107: 8 | AV107: 19 | AW107: 39 | AX107: 32 | AY107: 66 | AZ107: 61 | BA107: 31 | BB107: 9 | BC107: 65 | BD107: 83 | BE107: 44 | BF107: 85 | BG107: 28 | BH107: 40 | BI107: 47 | BJ107: 65 | BK107: 13 | BL107: 10 | BM107: 52 | BN107: 72 | BO107: 54 | BP107: 95 | BQ107: 14 | BR107: 17 | BS107: 29 | BT107: 7 | BU107: 87 | BV107: 28 | BW107: 23 | BX107: 75 | BY107: 20 | BZ107: 5 | CA107: 60 | CB107: 63 | CC107: 70 | CD107: 16 | CE107: 72 | CF107: 90 | CG107: 12 | CH107: 10 | CI107: 98 | CJ107: 61 | CK107: 90 | CL107: 50 | CM107: 76 | CN107: 24 | CO107: 57 | CP107: 87 | CQ107: 98 | CR107: 17 | CS107: 94 | CT107: 4 | CU107: 65 | CV107: 56
A108: 5 | B108: 12 | C108: 97 | D108: 28 | E108: 3 | F108: 78 | G108: 43 | H108: 19 | I108: 92 | J108: 27 | K108: 89 | L108: 19 | M108: 14 | N108: 16 | O108: 94 | P108: 6 | Q108: 12 | R108: 25 | S108: 5 | T108: 4 | U108: 78 | V108: 45 | W108: 71 | X108: 30 | Y108: 9 | Z108: 64 | AA108: 50 | AB108: 36 | AC108: 84 | AD108: 51 | AE108: 40 | AF108: 5 | AG108: 49 | AH108: 51 | AI108: 3 | AJ108: 82 | AK108: 59 | AL108: 95 | AM108: 42 | AN108: 64 | AO108: 76 | AP108: 5 | AQ108: 59 | AR108: 70 | AS108: 44 | AT108: 91 | AU108: 79 | AV108: 83 | AW108: 18 | AX108: 62 | AY108: 50 | AZ108: 25 | BA108: 81 | BB108: 49 | BC108: 64 | BD108: 77 | BE108: 12 | BF108: 40 | BG108: 68 | BH108: 33 | BI108: 58 | BJ108: 72 | BK108: 71 | BL108: 83 | BM108: 86 | BN108: 31 | BO108: 75 | BP108: 68 | BQ108: 88 | BR108: 53 | BS108: 81 | BT108: 4 | BU108: 26 | BV108: 78 | BW108: 84 | BX108: 41 | BY108: 40 | BZ108: 34 | CA108: 94 | CB108: 16 | CC108: 74 | CD108: 34 | CE108: 46 | CF108: 65 | CG108: 14 | CH108: 29 | CI108: 33 | CJ108: 64 | CK108: 28 | CL108: 12 | CM108: 3 | CN108: 17 | CO108: 44 | CP108: 95 | CQ108: 3 | CR108: 88 | CS108: 6 | CT108: 91 | CU108: 31 | CV108: 17
A109: 81 | B109: 65 | C109: 75 | D109: 18 | E109: 26 | F109: 5 | G109: 9 | H109: 39 | I109: 53 | J109: 17 | K109: 96 | L109: 50 | M109: 85 | N109: 21 | O109: 66 | P109: 3 | Q109: 38 | R109: 87 | S109: 77 | T109: 42 | U109: 71 | V109: 67 | W109: 53 | X109: 4 | Y109: 9 | Z109: 63 | AA109: 72 | AB109: 67 | AC109: 48 | AD109: 6 | AE109: 75 | AF109: 27 | AG109: 94 | AH109: 72 | AI109: 88 | AJ109: 92 | AK109: 18 | AL109: 91 | AM109: 48 | AN109: 96 | AO109: 77 | AP109: 86 | AQ109: 6 | AR109: 81 | AS109: 30 | AT109: 91 | AU109: 70 | AV109: 68 | AW109: 70 | AX109: 30 | AY109: 34 | AZ109: 99 | BA109: 76 | BB109: 27 | BC109: 88 | BD109: 17 | BE109: 70 | BF109: 100 | BG109: 93 | BH109: 20 | BI109: 92 | BJ109: 64 | BK109: 10 | BL109: 22 | BM109: 51 | BN109: 7 | BO109: 4 | BP109: 73 | BQ109: 73 | BR109: 80 | BS109: 13 | BT109: 78 | BU109: 31 | BV109: 68 | BW109: 60 | BX109: 77 | BY109: 62 | BZ109: 35 | CA109: 85 | CB109: 77 | CC109: 88 | CD109: 8 | CE109: 63 | CF109: 30 | CG109: 24 | CH109: 38 | CI109: 44 | CJ109: 53 | CK109: 4 | CL109: 39 | CM109: 94 | CN109: 86 | CO109: 95 | CP109: 3 | CQ109: 98 | CR109: 21 | CS109: 48 | CT109: 81 | CU109: 78 | CV109: 10
A110: 85 | B110: 18 | C110: 49 | D110: 76 | E110: 34 | F110: 68 | G110: 93 | H110: 88 | I110: 28 | J110: 64 | K110: 61 | L110: 95 | M110: 100 | N110: 3 | O110: 41 | P110: 25 | Q110: 35 | R110: 49 | S110: 11 | T110: 98 | U110: 62 | V110: 31 | W110: 23 | X110: 37 | Y110: 68 | Z110: 67 | AA110: 88 | AB110: 57 | AC110: 35 | AD110: 60 | AE110: 64 | AF110: 21 | AG110: 37 | AH110: 38 | AI110: 53 | AJ110: 96 | AK110: 88 | AL110: 78 | AM110: 44 | AN110: 61 | AO110: 84 | AP110: 33 | AQ110: 70 | AR110: 35 | AS110: 99 | AT110: 27 | AU110: 67 | AV110: 71 | AW110: 16 | AX110: 76 | AY110: 99 | AZ110: 25 | BA110: 35 | BB110: 92 | BC110: 56 | BD110: 51 | BE110: 38 | BF110: 68 | BG110: 92 | BH110: 89 | BI110: 36 | BJ110: 19 | BK110: 13 | BL110: 61 | BM110: 62 | BN110: 63 | BO110: 71 | BP110: 68 | BQ110: 46 | BR110: 50 | BS110: 86 | BT110: 85 | BU110: 66 | BV110: 10 | BW110: 20 | BX110: 65 | BY110: 38 | BZ110: 39 | CA110: 24 | CB110: 78 | CC110: 37 | CD110: 85 | CE110: 8 | CF110: 7 | CG110: 86 | CH110: 87 | CI110: 13 | CJ110: 96 | CK110: 30 | CL110: 89 | CM110: 12 | CN110: 3 | CO110: 59 | CP110: 92 | CQ110: 8 | CR110: 94 | CS110: 30 | CT110: 74 | CU110: 7 | CV110: 38
A111: 48 | B111: 38 | C111: 33 | D111: 11 | E111: 81 | F111: 75 | G111: 39 | H111: 34 | I111: 61 | J111: 65 | K111: 99 | L111: 85 | M111: 86 | N111: 19 | O111: 23 | P111: 32 | Q111: 29 | R111: 59 | S111: 75 | T111: 38 | U111: 5 | V111: 1 | W111: 52 | X111: 10 | Y111: 57 | Z111: 62 | AA111: 34 | AB111: 87 | AC111: 83 | AD111: 61 | AE111: 100 | AF111: 38 | AG111: 24 | AH111: 30 | AI111: 13 | AJ111: 43 | AK111: 24 | AL111: 11 | AM111: 88 | AN111: 44 | AO111: 1 | AP111: 71 | AQ111: 3 | AR111: 72 | AS111: 97 | AT111: 39 | AU111: 54 | AV111: 48 | AW111: 26 | AX111: 2 | AY111: 94 | AZ111: 45 | BA111: 91 | BB111: 1 | BC111: 3 | BD111: 53 | BE111: 52 | BF111: 81 | BG111: 47 | BH111: 32 | BI111: 71 | BJ111: 18 | BK111: 5 | BL111: 39 | BM111: 15 | BN111: 70 | BO111: 98 | BP111: 48 | BQ111: 93 | BR111: 86 | BS111: 57 | BT111: 18 | BU111: 82 | BV111: 3 | BW111: 35 | BX111: 78 | BY111: 7 | BZ111: 6 | CA111: 34 | CB111: 8 | CC111: 5 | CD111: 50 | CE111: 30 | CF111: 35 | CG111: 40 | CH111: 17 | CI111: 76 | CJ111: 31 | CK111: 3 | CL111: 29 | CM111: 98 | CN111: 63 | CO111: 23 | CP111: 31 | CQ111: 81 | CR111: 36 | CS111: 26 | CT111: 56 | CU111: 50 | CV111: 87
A112: 81 | B112: 55 | C112: 63 | D112: 93 | E112: 43 | F112: 69 | G112: 10 | H112: 54 | I112: 3 | J112: 79 | K112: 52 | L112: 71 | M112: 59 | N112: 6 | O112: 85 | P112: 65 | Q112: 4 | R112: 85 | S112: 22 | T112: 4 | U112: 6 | V112: 81 | W112: 59 | X112: 77 | Y112: 83 | Z112: 13 | AA112: 84 | AB112: 80 | AC112: 6 | AD112: 29 | AE112: 3 | AF112: 11 | AG112: 64 | AH112: 85 | AI112: 53 | AJ112: 30 | AK112: 63 | AL112: 81 | AM112: 11 | AN112: 94 | AO112: 53 | AP112: 40 | AQ112: 98 | AR112: 34 | AS112: 67 | AT112: 70 | AU112: 7 | AV112: 54 | AW112: 15 | AX112: 25 | AY112: 95 | AZ112: 16 | BA112: 84 | BB112: 74 | BC112: 94 | BD112: 69 | BE112: 7 | BF112: 88 | BG112: 51 | BH112: 97 | BI112: 84 | BJ112: 76 | BK112: 89 | BL112: 93 | BM112: 20 | BN112: 13 | BO112: 19 | BP112: 60 | BQ112: 45 | BR112: 17 | BS112: 64 | BT112: 9 | BU112: 3 | BV112: 10 | BW112: 39 | BX112: 77 | BY112: 96 | BZ112: 56 | CA112: 6 | CB112: 80 | CC112: 17 | CD112: 69 | CE112: 65 | CF112: 50 | CG112: 28 | CH112: 83 | CI112: 34 | CJ112: 83 | CK112: 64 | CL112: 76 | CM112: 76 | CN112: 83 | CO112: 61 | CP112: 78 | CQ112: 95 | CR112: 99 | CS112: 100 | CT112: 25 | CU112: 93 | CV112: 80
A113: 65 | B113: 94 | C113: 89 | D113: 67 | E113: 65 | F113: 56 | G113: 58 | H113: 22 | I113: 27 | J113: 2 | K113: 67 | L113: 15 | M113: 90 | N113: 37 | O113: 38 | P113: 12 | Q113: 35 | R113: 12 | S113: 35 | T113: 35 | U113: 22 | V113: 54 | W113: 81 | X113: 42 | Y113: 43 | Z113: 82 | AA113: 29 | AB113: 16 | AC113: 65 | AD113: 70 | AE113: 76 | AF113: 56 | AG113: 52 | AH113: 85 | AI113: 78 | AJ113: 36 | AK113: 11 | AL113: 47 | AM113: 48 | AN113: 45 | AO113: 45 | AP113: 57 | AQ113: 93 | AR113: 46 | AS113: 93 | AT113: 93 | AU113: 81 | AV113: 75 | AW113: 25 | AX113: 70 | AY113: 30 | AZ113: 52 | BA113: 25 | BB113: 20 | BC113: 97 | BD113: 93 | BE113: 11 | BF113: 78 | BG113: 4 | BH113: 60 | BI113: 40 | BJ113: 35 | BK113: 32 | BL113: 44 | BM113: 13 | BN113: 71 | BO113: 26 | BP113: 95 | BQ113: 87 | BR113: 45 | BS113: 15 | BT113: 10 | BU113: 60 | BV113: 90 | BW113: 85 | BX113: 98 | BY113: 79 | BZ113: 89 | CA113: 32 | CB113: 74 | CC113: 66 | CD113: 8 | CE113: 51 | CF113: 69 | CG113: 74 | CH113: 64 | CI113: 15 | CJ113: 59 | CK113: 30 | CL113: 4 | CM113: 87 | CN113: 71 | CO113: 93 | CP113: 95 | CQ113: 21 | CR113: 29 | CS113: 69 | CT113: 27 | CU113: 13 | CV113: 31
A114: 77 | B114: 37 | C114: 84 | D114: 96 | E114: 81 | F114: 49 | G114: 86 | H114: 46 | I114: 92 | J114: 31 | K114: 5 | L114: 73 | M114: 43 | N114: 6 | O114: 62 | P114: 29 | Q114: 2 | R114: 79 | S114: 45 | T114: 63 | U114: 26 | V114: 68 | W114: 81 | X114: 66 | Y114: 52 | Z114: 95 | AA114: 47 | AB114: 69 | AC114: 63 | AD114: 1 | AE114: 26 | AF114: 85 | AG114: 39 | AH114: 94 | AI114: 79 | AJ114: 61 | AK114: 25 | AL114: 22 | AM114: 16 | AN114: 9 | AO114: 62 | AP114: 50 | AQ114: 83 | AR114: 72 | AS114: 40 | AT114: 33 | AU114: 30 | AV114: 13 | AW114: 56 | AX114: 77 | AY114: 27 | AZ114: 61 | BA114: 93 | BB114: 34 | BC114: 60 | BD114: 35 | BE114: 46 | BF114: 51 | BG114: 3 | BH114: 59 | BI114: 43 | BJ114: 7 | BK114: 36 | BL114: 15 | BM114: 71 | BN114: 25 | BO114: 95 | BP114: 21 | BQ114: 86 | BR114: 4 | BS114: 61 | BT114: 28 | BU114: 36 | BV114: 47 | BW114: 18 | BX114: 48 | BY114: 76 | BZ114: 30 | CA114: 85 | CB114: 97 | CC114: 68 | CD114: 29 | CE114: 8 | CF114: 12 | CG114: 15 | CH114: 55 | CI114: 78 | CJ114: 22 | CK114: 26 | CL114: 35 | CM114: 35 | CN114: 56 | CO114: 8 | CP114: 19 | CQ114: 88 | CR114: 17 | CS114: 20 | CT114: 35 | CU114: 94 | CV114: 44
A115: 43 | B115: 49 | C115: 36 | D115: 28 | E115: 18 | F115: 40 | G115: 56 | H115: 63 | I115: 57 | J115: 67 | K115: 62 | L115: 100 | M115: 10 | N115: 85 | O115: 69 | P115: 80 | Q115: 4 | R115: 50 | S115: 87 | T115: 60 | U115: 73 | V115: 25 | W115: 94 | X115: 13 | Y115: 39 | Z115: 50 | AA115: 8 | AB115: 78 | AC115: 61 | AD115: 76 | AE115: 33 | AF115: 97 | AG115: 77 | AH115: 44 | AI115: 64 | AJ115: 48 | AK115: 10 | AL115: 96 | AM115: 30 | AN115: 39 | AO115: 3 | AP115: 81 | AQ115: 96 | AR115: 23 | AS115: 71 | AT115: 86 | AU115: 22 | AV115: 92 | AW115: 68 | AX115: 33 | AY115: 87 | AZ115: 96 | BA115: 38 | BB115: 32 | BC115: 63 | BD115: 55 | BE115: 92 | BF115: 28 | BG115: 76 | BH115: 22 | BI115: 7 | BJ115: 96 | BK115: 19 | BL115: 21 | BM115: 46 | BN115: 62 | BO115: 59 | BP115: 95 | BQ115: 20 | BR115: 91 | BS115: 45 | BT115: 71 | BU115: 66 | BV115: 75 | BW115: 23 | BX115: 97 | BY115: 75 | BZ115: 4 | CA115: 73 | CB115: 56 | CC115: 16 | CD115: 95 | CE115: 79 | CF115: 44 | CG115: 67 | CH115: 23 | CI115: 19 | CJ115: 70 | CK115: 26 | CL115: 98 | CM115: 78 | CN115: 63 | CO115: 65 | CP115: 34 | CQ115: 75 | CR115: 94 | CS115: 94 | CT115: 74 | CU115: 52 | CV115: 83
A116: 57 | B116: 38 | C116: 47 | D116: 16 | E116: 48 | F116: 86 | G116: 4 | H116: 88 | I116: 29 | J116: 65 | K116: 88 | L116: 33 | M116: 56 | N116: 59 | O116: 99 | P116: 57 | Q116: 44 | R116: 88 | S116: 45 | T116: 76 | U116: 93 | V116: 30 | W116: 20 | X116: 48 | Y116: 66 | Z116: 79 | AA116: 47 | AB116: 64 | AC116: 3 | AD116: 92 | AE116: 45 | AF116: 8 | AG116: 43 | AH116: 72 | AI116: 59 | AJ116: 14 | AK116: 39 | AL116: 93 | AM116: 78 | AN116: 12 | AO116: 82 | AP116: 50 | AQ116: 49 | AR116: 27 | AS116: 13 | AT116: 96 | AU116: 47 | AV116: 3 | AW116: 4 | AX116: 19 | AY116: 27 | AZ116: 22 | BA116: 72 | BB116: 50 | BC116: 8 | BD116: 96 | BE116: 99 | BF116: 68 | BG116: 13 | BH116: 73 | BI116: 77 | BJ116: 57 | BK116: 43 | BL116: 28 | BM116: 22 | BN116: 4 | BO116: 21 | BP116: 2 | BQ116: 89 | BR116: 6 | BS116: 35 | BT116: 25 | BU116: 56 | BV116: 18 | BW116: 13 | BX116: 88 | BY116: 29 | BZ116: 11 | CA116: 10 | CB116: 93 | CC116: 47 | CD116: 75 | CE116: 72 | CF116: 50 | CG116: 24 | CH116: 22 | CI116: 63 | CJ116: 18 | CK116: 50 | CL116: 7 | CM116: 10 | CN116: 78 | CO116: 58 | CP116: 74 | CQ116: 49 | CR116: 16 | CS116: 76 | CT116: 24 | CU116: 36 | CV116: 17
A117: 52 | B117: 90 | C117: 7 | D117: 47 | E117: 98 | F117: 40 | G117: 17 | H117: 73 | I117: 21 | J117: 25 | K117: 87 | L117: 75 | M117: 74 | N117: 43 | O117: 23 | P117: 32 | Q117: 41 | R117: 99 | S117: 29 | T117: 84 | U117: 62 | V117: 10 | W117: 16 | X117: 84 | Y117: 49 | Z117: 90 | AA117: 16 | AB117: 91 | AC117: 86 | AD117: 56 | AE117: 32 | AF117: 5 | AG117: 51 | AH117: 58 | AI117: 17 | AJ117: 54 | AK117: 64 | AL117: 76 | AM117: 80 | AN117: 42 | AO117: 43 | AP117: 99 | AQ117: 60 | AR117: 71 | AS117: 62 | AT117: 100 | AU117: 86 | AV117: 29 | AW117: 26 | AX117: 3 | AY117: 95 | AZ117: 38 | BA117: 9 | BB117: 83 | BC117: 6 | BD117: 94 | BE117: 100 | BF117: 23 | BG117: 56 | BH117: 70 | BI117: 70 | BJ117: 34 | BK117: 63 | BL117: 1 | BM117: 91 | BN117: 9 | BO117: 97 | BP117: 71 | BQ117: 61 | BR117: 70 | BS117: 82 | BT117: 37 | BU117: 36 | BV117: 46 | BW117: 13 | BX117: 2 | BY117: 72 | BZ117: 81 | CA117: 45 | CB117: 65 | CC117: 98 | CD117: 22 | CE117: 33 | CF117: 78 | CG117: 22 | CH117: 99 | CI117: 25 | CJ117: 77 | CK117: 26 | CL117: 13 | CM117: 26 | CN117: 94 | CO117: 48 | CP117: 96 | CQ117: 57 | CR117: 18 | CS117: 99 | CT117: 30 | CU117: 42 | CV117: 87
A118: 10 | B118: 59 | C118: 65 | D118: 5 | E118: 87 | F118: 51 | G118: 23 | H118: 74 | I118: 88 | J118: 65 | K118: 70 | L118: 53 | M118: 58 | N118: 71 | O118: 57 | P118: 5 | Q118: 87 | R118: 6 | S118: 53 | T118: 95 | U118: 98 | V118: 62 | W118: 37 | X118: 77 | Y118: 82 | Z118: 10 | AA118: 41 | AB118: 28 | AC118: 10 | AD118: 29 | AE118: 77 | AF118: 55 | AG118: 32 | AH118: 96 | AI118: 50 | AJ118: 31 | AK118: 51 | AL118: 18 | AM118: 23 | AN118: 59 | AO118: 28 | AP118: 43 | AQ118: 58 | AR118: 56 | AS118: 49 | AT118: 56 | AU118: 91 | AV118: 72 | AW118: 36 | AX118: 61 | AY118: 52 | AZ118: 43 | BA118: 30 | BB118: 24 | BC118: 40 | BD118: 46 | BE118: 81 | BF118: 21 | BG118: 62 | BH118: 97 | BI118: 91 | BJ118: 84 | BK118: 96 | BL118: 35 | BM118: 14 | BN118: 79 | BO118: 80 | BP118: 84 | BQ118: 41 | BR118: 42 | BS118: 90 | BT118: 50 | BU118: 96 | BV118: 17 | BW118: 65 | BX118: 40 | BY118: 65 | BZ118: 40 | CA118: 99 | CB118: 91 | CC118: 24 | CD118: 35 | CE118: 13 | CF118: 39 | CG118: 94 | CH118: 71 | CI118: 60 | CJ118: 2 | CK118: 65 | CL118: 82 | CM118: 76 | CN118: 47 | CO118: 68 | CP118: 81 | CQ118: 83 | CR118: 64 | CS118: 8 | CT118: 10 | CU118: 46 | CV118: 74
A119: 85 | B119: 48 | C119: 1 | D119: 48 | E119: 45 | F119: 78 | G119: 1 | H119: 24 | I119: 35 | J119: 88 | K119: 45 | L119: 58 | M119: 58 | N119: 23 | O119: 36 | P119: 78 | Q119: 99 | R119: 34 | S119: 69 | T119: 38 | U119: 91 | V119: 46 | W119: 16 | X119: 39 | Y119: 58 | Z119: 68 | AA119: 4 | AB119: 59 | AC119: 89 | AD119: 93 | AE119: 73 | AF119: 84 | AG119: 48 | AH119: 72 | AI119: 25 | AJ119: 8 | AK119: 26 | AL119: 21 | AM119: 61 | AN119: 76 | AO119: 5 | AP119: 13 | AQ119: 17 | AR119: 3 | AS119: 44 | AT119: 51 | AU119: 52 | AV119: 7 | AW119: 33 | AX119: 97 | AY119: 89 | AZ119: 14 | BA119: 71 | BB119: 38 | BC119: 22 | BD119: 21 | BE119: 93 | BF119: 57 | BG119: 5 | BH119: 22 | BI119: 73 | BJ119: 21 | BK119: 49 | BL119: 38 | BM119: 21 | BN119: 71 | BO119: 27 | BP119: 23 | BQ119: 48 | BR119: 13 | BS119: 82 | BT119: 13 | BU119: 66 | BV119: 31 | BW119: 13 | BX119: 96 | BY119: 72 | BZ119: 84 | CA119: 63 | CB119: 53 | CC119: 62 | CD119: 55 | CE119: 40 | CF119: 93 | CG119: 28 | CH119: 52 | CI119: 83 | CJ119: 25 | CK119: 57 | CL119: 68 | CM119: 41 | CN119: 85 | CO119: 20 | CP119: 96 | CQ119: 72 | CR119: 49 | CS119: 30 | CT119: 77 | CU119: 35 | CV119: 27
A120: 94 | B120: 66 | C120: 18 | D120: 59 | E120: 18 | F120: 16 | G120: 65 | H120: 22 | I120: 46 | J120: 38 | K120: 26 | L120: 30 | M120: 89 | N120: 66 | O120: 98 | P120: 40 | Q120: 71 | R120: 91 | S120: 34 | T120: 52 | U120: 67 | V120: 49 | W120: 84 | X120: 80 | Y120: 24 | Z120: 51 | AA120: 79 | AB120: 44 | AC120: 85 | AD120: 10 | AE120: 55 | AF120: 84 | AG120: 7 | AH120: 14 | AI120: 30 | AJ120: 70 | AK120: 34 | AL120: 84 | AM120: 50 | AN120: 94 | AO120: 81 | AP120: 81 | AQ120: 68 | AR120: 21 | AS120: 97 | AT120: 6 | AU120: 38 | AV120: 14 | AW120: 40 | AX120: 7 | AY120: 28 | AZ120: 11 | BA120: 9 | BB120: 18 | BC120: 21 | BD120: 45 | BE120: 6 | BF120: 30 | BG120: 29 | BH120: 5 | BI120: 1 | BJ120: 98 | BK120: 56 | BL120: 36 | BM120: 1 | BN120: 80 | BO120: 13 | BP120: 5 | BQ120: 47 | BR120: 64 | BS120: 89 | BT120: 75 | BU120: 5 | BV120: 10 | BW120: 2 | BX120: 35 | BY120: 98 | BZ120: 69 | CA120: 17 | CB120: 34 | CC120: 49 | CD120: 91 | CE120: 20 | CF120: 34 | CG120: 79 | CH120: 23 | CI120: 25 | CJ120: 29 | CK120: 58 | CL120: 51 | CM120: 26 | CN120: 52 | CO120: 8 | CP120: 10 | CQ120: 59 | CR120: 89 | CS120: 88 | CT120: 34 | CU120: 98 | CV120: 34
A121: 85 | B121: 45 | C121: 38 | D121: 17 | E121: 17 | F121: 28 | G121: 14 | H121: 45 | I121: 16 | J121: 39 | K121: 33 | L121: 25 | M121: 56 | N121: 1 | O121: 79 | P121: 67 | Q121: 77 | R121: 21 | S121: 21 | T121: 25 | U121: 56 | V121: 33 | W121: 78 | X121: 32 | Y121: 85 | Z121: 19 | AA121: 55 | AB121: 59 | AC121: 97 | AD121: 42 | AE121: 60 | AF121: 96 | AG121: 7 | AH121: 75 | AI121: 12 | AJ121: 61 | AK121: 100 | AL121: 7 | AM121: 92 | AN121: 32 | AO121: 15 | AP121: 1 | AQ121: 37 | AR121: 3 | AS121: 58 | AT121: 91 | AU121: 34 | AV121: 22 | AW121: 29 | AX121: 3 | AY121: 65 | AZ121: 32 | BA121: 63 | BB121: 94 | BC121: 37 | BD121: 53 | BE121: 60 | BF121: 7 | BG121: 28 | BH121: 13 | BI121: 80 | BJ121: 87 | BK121: 55 | BL121: 27 | BM121: 8 | BN121: 51 | BO121: 83 | BP121: 67 | BQ121: 44 | BR121: 96 | BS121: 64 | BT121: 96 | BU121: 70 | BV121: 93 | BW121: 44 | BX121: 8 | BY121: 77 | BZ121: 42 | CA121: 49 | CB121: 26 | CC121: 82 | CD121: 37 | CE121: 30 | CF121: 92 | CG121: 69 | CH121: 20 | CI121: 96 | CJ121: 30 | CK121: 98 | CL121: 80 | CM121: 54 | CN121: 6 | CO121: 40 | CP121: 15 | CQ121: 79 | CR121: 78 | CS121: 35 | CT121: 89 | CU121: 93 | CV121: 66
A122: 61 | B122: 5 | C122: 38 | D122: 98 | E122: 69 | F122: 75 | G122: 95 | H122: 88 | I122: 94 | J122: 71 | K122: 8 | L122: 78 | M122: 75 | N122: 7 | O122: 70 | P122: 69 | Q122: 7 | R122: 99 | S122: 34 | T122: 97 | U122: 75 | V122: 30 | W122: 15 | X122: 39 | Y122: 74 | Z122: 23 | AA122: 9 | AB122: 36 | AC122: 25 | AD122: 51 | AE122: 81 | AF122: 95 | AG122: 97 | AH122: 32 | AI122: 10 | AJ122: 53 | AK122: 51 | AL122: 71 | AM122: 99 | AN122: 78 | AO122: 46 | AP122: 10 | AQ122: 65 | AR122: 32 | AS122: 82 | AT122: 66 | AU122: 3 | AV122: 41 | AW122: 100 | AX122: 80 | AY122: 83 | AZ122: 72 | BA122: 35 | BB122: 35 | BC122: 66 | BD122: 85 | BE122: 49 | BF122: 18 | BG122: 6 | BH122: 2 | BI122: 5 | BJ122: 10 | BK122: 22 | BL122: 20 | BM122: 16 | BN122: 41 | BO122: 84 | BP122: 35 | BQ122: 95 | BR122: 24 | BS122: 18 | BT122: 71 | BU122: 37 | BV122: 46 | BW122: 85 | BX122: 25 | BY122: 36 | BZ122: 87 | CA122: 68 | CB122: 17 | CC122: 8 | CD122: 45 | CE122: 8 | CF122: 13 | CG122: 11 | CH122: 20 | CI122: 19 | CJ122: 41 | CK122: 89 | CL122: 94 | CM122: 45 | CN122: 45 | CO122: 13 | CP122: 63 | CQ122: 16 | CR122: 98 | CS122: 36 | CT122: 58 | CU122: 27 | CV122: 10
A123: 48 | B123: 93 | C123: 3 | D123: 39 | E123: 27 | F123: 76 | G123: 23 | H123: 38 | I123: 52 | J123: 79 | K123: 78 | L123: 69 | M123: 3 | N123: 20 | O123: 46 | P123: 18 | Q123: 37 | R123: 78 | S123: 88 | T123: 71 | U123: 36 | V123: 79 | W123: 85 | X123: 1 | Y123: 84 | Z123: 98 | AA123: 30 | AB123: 69 | AC123: 13 | AD123: 90 | AE123: 9 | AF123: 71 | AG123: 60 | AH123: 31 | AI123: 18 | AJ123: 68 | AK123: 58 | AL123: 27 | AM123: 95 | AN123: 35 | AO123: 89 | AP123: 28 | AQ123: 35 | AR123: 13 | AS123: 53 | AT123: 41 | AU123: 8 | AV123: 99 | AW123: 65 | AX123: 63 | AY123: 62 | AZ123: 40 | BA123: 96 | BB123: 10 | BC123: 22 | BD123: 7 | BE123: 57 | BF123: 47 | BG123: 67 | BH123: 46 | BI123: 52 | BJ123: 31 | BK123: 1 | BL123: 58 | BM123: 5 | BN123: 26 | BO123: 63 | BP123: 20 | BQ123: 67 | BR123: 45 | BS123: 64 | BT123: 61 | BU123: 20 | BV123: 55 | BW123: 47 | BX123: 53 | BY123: 39 | BZ123: 21 | CA123: 34 | CB123: 93 | CC123: 79 | CD123: 75 | CE123: 29 | CF123: 79 | CG123: 56 | CH123: 47 | CI123: 27 | CJ123: 10 | CK123: 65 | CL123: 41 | CM123: 85 | CN123: 34 | CO123: 39 | CP123: 57 | CQ123: 5 | CR123: 92 | CS123: 94 | CT123: 93 | CU123: 97 | CV123: 1
A124: 98 | B124: 46 | C124: 9 | D124: 78 | E124: 61 | F124: 55 | G124: 92 | H124: 31 | I124: 26 | J124: 92 | K124: 94 | L124: 44 | M124: 43 | N124: 73 | O124: 55 | P124: 70 | Q124: 95 | R124: 87 | S124: 96 | T124: 84 | U124: 49 | V124: 85 | W124: 68 | X124: 20 | Y124: 70 | Z124: 92 | AA124: 73 | AB124: 45 | AC124: 62 | AD124: 12 | AE124: 81 | AF124: 73 | AG124: 96 | AH124: 78 | AI124: 33 | AJ124: 98 | AK124: 42 | AL124: 19 | AM124: 83 | AN124: 57 | AO124: 26 | AP124: 33 | AQ124: 74 | AR124: 62 | AS124: 35 | AT124: 57 | AU124: 14 | AV124: 66 | AW124: 43 | AX124: 81 | AY124: 1 | AZ124: 40 | BA124: 40 | BB124: 18 | BC124: 64 | BD124: 6 | BE124: 81 | BF124: 42 | BG124: 35 | BH124: 66 | BI124: 100 | BJ124: 20 | BK124: 51 | BL124: 91 | BM124: 6 | BN124: 33 | BO124: 53 | BP124: 18 | BQ124: 59 | BR124: 11 | BS124: 29 | BT124: 63 | BU124: 28 | BV124: 19 | BW124: 56 | BX124: 55 | BY124: 51 | BZ124: 73 | CA124: 42 | CB124: 92 | CC124: 33 | CD124: 94 | CE124: 10 | CF124: 30 | CG124: 48 | CH124: 31 | CI124: 66 | CJ124: 73 | CK124: 6 | CL124: 5 | CM124: 66 | CN124: 40 | CO124: 66 | CP124: 48 | CQ124: 58 | CR124: 75 | CS124: 52 | CT124: 40 | CU124: 49 | CV124: 83
A125: 35 | B125: 75 | C125: 85 | D125: 26 | E125: 43 | F125: 93 | G125: 90 | H125: 74 | I125: 98 | J125: 93 | K125: 69 | L125: 48 | M125: 98 | N125: 1 | O125: 54 | P125: 19 | Q125: 38 | R125: 10 | S125: 61 | T125: 94 | U125: 95 | V125: 13 | W125: 70 | X125: 1 | Y125: 41 | Z125: 73 | AA125: 86 | AB125: 94 | AC125: 49 | AD125: 67 | AE125: 100 | AF125: 20 | AG125: 17 | AH125: 77 | AI125: 57 | AJ125: 73 | AK125: 67 | AL125: 81 | AM125: 11 | AN125: 89 | AO125: 38 | AP125: 40 | AQ125: 33 | AR125: 77 | AS125: 75 | AT125: 7 | AU125: 8 | AV125: 54 | AW125: 95 | AX125: 1 | AY125: 36 | AZ125: 84 | BA125: 89 | BB125: 4 | BC125: 17 | BD125: 75 | BE125: 80 | BF125: 51 | BG125: 57 | BH125: 37 | BI125: 42 | BJ125: 72 | BK125: 85 | BL125: 66 | BM125: 11 | BN125: 26 | BO125: 93 | BP125: 22 | BQ125: 85 | BR125: 46 | BS125: 35 | BT125: 65 | BU125: 64 | BV125: 79 | BW125: 75 | BX125: 1 | BY125: 50 | BZ125: 94 | CA125: 44 | CB125: 83 | CC125: 63 | CD125: 29 | CE125: 25 | CF125: 73 | CG125: 86 | CH125: 64 | CI125: 86 | CJ125: 4 | CK125: 24 | CL125: 51 | CM125: 82 | CN125: 58 | CO125: 22 | CP125: 41 | CQ125: 12 | CR125: 32 | CS125: 51 | CT125: 59 | CU125: 41 | CV125: 92
A126: 85 | B126: 62 | C126: 51 | D126: 45 | E126: 68 | F126: 93 | G126: 12 | H126: 63 | I126: 93 | J126: 12 | K126: 8 | L126: 58 | M126: 93 | N126: 81 | O126: 19 | P126: 97 | Q126: 28 | R126: 64 | S126: 6 | T126: 1 | U126: 63 | V126: 54 | W126: 26 | X126: 100 | Y126: 93 | Z126: 84 | AA126: 51 | AB126: 93 | AC126: 65 | AD126: 28 | AE126: 24 | AF126: 36 | AG126: 84 | AH126: 47 | AI126: 66 | AJ126: 13 | AK126: 33 | AL126: 78 | AM126: 58 | AN126: 17 | AO126: 65 | AP126: 8 | AQ126: 63 | AR126: 72 | AS126: 60 | AT126: 48 | AU126: 66 | AV126: 78 | AW126: 40 | AX126: 96 | AY126: 44 | AZ126: 60 | BA126: 51 | BB126: 13 | BC126: 78 | BD126: 18 | BE126: 68 | BF126: 56 | BG126: 21 | BH126: 12 | BI126: 95 | BJ126: 65 | BK126: 30 | BL126: 92 | BM126: 53 | BN126: 73 | BO126: 60 | BP126: 23 | BQ126: 95 | BR126: 55 | BS126: 20 | BT126: 71 | BU126: 87 | BV126: 42 | BW126: 42 | BX126: 55 | BY126: 30 | BZ126: 58 | CA126: 62 | CB126: 86 | CC126: 1 | CD126: 86 | CE126: 33 | CF126: 23 | CG126: 80 | CH126: 49 | CI126: 85 | CJ126: 57 | CK126: 63 | CL126: 85 | CM126: 10 | CN126: 45 | CO126: 27 | CP126: 30 | CQ126: 56 | CR126: 55 | CS126: 99 | CT126: 31 | CU126: 19 | CV126: 31
A127: 22 | B127: 61 | C127: 55 | D127: 21 | E127: 29 | F127: 68 | G127: 36 | H127: 63 | I127: 14 | J127: 18 | K127: 36 | L127: 84 | M127: 13 | N127: 34 | O127: 36 | P127: 49 | Q127: 39 | R127: 46 | S127: 64 | T127: 9 | U127: 59 | V127: 8 | W127: 4 | X127: 55 | Y127: 19 | Z127: 4 | AA127: 45 | AB127: 50 | AC127: 77 | AD127: 9 | AE127: 54 | AF127: 73 | AG127: 3 | AH127: 11 | AI127: 60 | AJ127: 45 | AK127: 20 | AL127: 83 | AM127: 67 | AN127: 67 | AO127: 87 | AP127: 17 | AQ127: 10 | AR127: 17 | AS127: 97 | AT127: 1 | AU127: 9 | AV127: 74 | AW127: 66 | AX127: 12 | AY127: 82 | AZ127: 91 | BA127: 62 | BB127: 92 | BC127: 29 | BD127: 80 | BE127: 63 | BF127: 19 | BG127: 87 | BH127: 90 | BI127: 74 | BJ127: 46 | BK127: 14 | BL127: 13 | BM127: 50 | BN127: 31 | BO127: 63 | BP127: 52 | BQ127: 74 | BR127: 93 | BS127: 85 | BT127: 55 | BU127: 27 | BV127: 7 | BW127: 82 | BX127: 29 | BY127: 51 | BZ127: 90 | CA127: 74 | CB127: 37 | CC127: 80 | CD127: 85 | CE127: 19 | CF127: 45 | CG127: 37 | CH127: 13 | CI127: 99 | CJ127: 61 | CK127: 11 | CL127: 34 | CM127: 87 | CN127: 69 | CO127: 32 | CP127: 10 | CQ127: 93 | CR127: 98 | CS127: 18 | CT127: 12 | CU127: 31 | CV127: 50
A128: 59 | B128: 91 | C128: 2 | D128: 25 | E128: 86 | F128: 27 | G128: 64 | H128: 33 | I128: 20 | J128: 10 | K128: 26 | L128: 28 | M128: 77 | N128: 44 | O128: 4 | P128: 87 | Q128: 24 | R128: 64 | S128: 71 | T128: 84 | U128: 63 | V128: 73 | W128: 33 | X128: 19 | Y128: 51 | Z128: 4 | AA128: 18 | AB128: 18 | AC128: 54 | AD128: 33 | AE128: 98 | AF128: 67 | AG128: 80 | AH128: 41 | AI128: 81 | AJ128: 40 | AK128: 75 | AL128: 10 | AM128: 58 | AN128: 73 | AO128: 41 | AP128: 43 | AQ128: 36 | AR128: 46 | AS128: 46 | AT128: 14 | AU128: 68 | AV128: 17 | AW128: 98 | AX128: 42 | AY128: 47 | AZ128: 98 | BA128: 97 | BB128: 84 | BC128: 6 | BD128: 82 | BE128: 72 | BF128: 75 | BG128: 77 | BH128: 28 | BI128: 4 | BJ128: 67 | BK128: 75 | BL128: 81 | BM128: 53 | BN128: 89 | BO128: 39 | BP128: 77 | BQ128: 34 | BR128: 92 | BS128: 85 | BT128: 75 | BU128: 71 | BV128: 3 | BW128: 42 | BX128: 3 | BY128: 72 | BZ128: 24 | CA128: 32 | CB128: 31 | CC128: 53 | CD128: 16 | CE128: 100 | CF128: 40 | CG128: 92 | CH128: 58 | CI128: 15 | CJ128: 47 | CK128: 2 | CL128: 1 | CM128: 47 | CN128: 38 | CO128: 3 | CP128: 4 | CQ128: 69 | CR128: 29 | CS128: 11 | CT128: 1 | CU128: 93 | CV128: 74
A129: 94 | B129: 50 | C129: 56 | D129: 20 | E129: 95 | F129: 94 | G129: 51 | H129: 43 | I129: 95 | J129: 78 | K129: 14 | L129: 33 | M129: 4 | N129: 31 | O129: 21 | P129: 77 | Q129: 15 | R129: 75 | S129: 46 | T129: 86 | U129: 98 | V129: 43 | W129: 8 | X129: 29 | Y129: 22 | Z129: 37 | AA129: 76 | AB129: 77 | AC129: 25 | AD129: 70 | AE129: 24 | AF129: 49 | AG129: 16 | AH129: 95 | AI129: 3 | AJ129: 56 | AK129: 88 | AL129: 100 | AM129: 1 | AN129: 1 | AO129: 51 | AP129: 11 | AQ129: 36 | AR129: 42 | AS129: 79 | AT129: 46 | AU129: 48 | AV129: 72 | AW129: 69 | AX129: 93 | AY129: 82 | AZ129: 36 | BA129: 2 | BB129: 89 | BC129: 11 | BD129: 63 | BE129: 95 | BF129: 33 | BG129: 23 | BH129: 19 | BI129: 21 | BJ129: 64 | BK129: 39 | BL129: 12 | BM129: 15 | BN129: 43 | BO129: 7 | BP129: 58 | BQ129: 75 | BR129: 53 | BS129: 5 | BT129: 28 | BU129: 44 | BV129: 94 | BW129: 84 | BX129: 29 | BY129: 61 | BZ129: 92 | CA129: 57 | CB129: 84 | CC129: 56 | CD129: 87 | CE129: 85 | CF129: 93 | CG129: 6 | CH129: 65 | CI129: 62 | CJ129: 55 | CK129: 5 | CL129: 28 | CM129: 90 | CN129: 30 | CO129: 44 | CP129: 67 | CQ129: 67 | CR129: 50 | CS129: 38 | CT129: 100 | CU129: 41 | CV129: 51
A130: 50 | B130: 13 | C130: 48 | D130: 44 | E130: 27 | F130: 64 | G130: 83 | H130: 40 | I130: 69 | J130: 44 | K130: 83 | L130: 13 | M130: 96 | N130: 65 | O130: 51 | P130: 45 | Q130: 36 | R130: 18 | S130: 59 | T130: 64 | U130: 63 | V130: 47 | W130: 21 | X130: 88 | Y130: 57 | Z130: 75 | AA130: 56 | AB130: 22 | AC130: 51 | AD130: 44 | AE130: 12 | AF130: 81 | AG130: 29 | AH130: 58 | AI130: 43 | AJ130: 12 | AK130: 99 | AL130: 13 | AM130: 38 | AN130: 72 | AO130: 6 | AP130: 72 | AQ130: 80 | AR130: 24 | AS130: 58 | AT130: 40 | AU130: 43 | AV130: 19 | AW130: 42 | AX130: 91 | AY130: 2 | AZ130: 4 | BA130: 91 | BB130: 90 | BC130: 13 | BD130: 45 | BE130: 34 | BF130: 83 | BG130: 7 | BH130: 27 | BI130: 30 | BJ130: 83 | BK130: 87 | BL130: 93 | BM130: 58 | BN130: 79 | BO130: 19 | BP130: 39 | BQ130: 13 | BR130: 13 | BS130: 47 | BT130: 44 | BU130: 99 | BV130: 35 | BW130: 76 | BX130: 50 | BY130: 1 | BZ130: 33 | CA130: 26 | CB130: 24 | CC130: 46 | CD130: 98 | CE130: 21 | CF130: 33 | CG130: 100 | CH130: 22 | CI130: 73 | CJ130: 48 | CK130: 28 | CL130: 34 | CM130: 35 | CN130: 65 | CO130: 17 | CP130: 66 | CQ130: 56 | CR130: 46 | CS130: 27 | CT130: 45 | CU130: 65 | CV130: 19
A131: 62 | B131: 60 | C131: 86 | D131: 46 | E131: 13 | F131: 93 | G131: 87 | H131: 13 | I131: 36 | J131: 86 | K131: 11 | L131: 63 | M131: 16 | N131: 11 | O131: 39 | P131: 80 | Q131: 23 | R131: 59 | S131: 17 | T131: 19 | U131: 64 | V131: 97 | W131: 51 | X131: 88 | Y131: 15 | Z131: 39 | AA131: 63 | AB131: 79 | AC131: 73 | AD131: 40 | AE131: 3 | AF131: 76 | AG131: 77 | AH131: 2 | AI131: 86 | AJ131: 54 | AK131: 71 | AL131: 80 | AM131: 31 | AN131: 95 | AO131: 73 | AP131: 33 | AQ131: 89 | AR131: 64 | AS131: 24 | AT131: 45 | AU131: 4 | AV131: 73 | AW131: 43 | AX131: 52 | AY131: 1 | AZ131: 12 | BA131: 8 | BB131: 82 | BC131: 90 | BD131: 6 | BE131: 75 | BF131: 78 | BG131: 1 | BH131: 95 | BI131: 3 | BJ131: 49 | BK131: 93 | BL131: 33 | BM131: 57 | BN131: 70 | BO131: 63 | BP131: 93 | BQ131: 35 | BR131: 83 | BS131: 51 | BT131: 94 | BU131: 7 | BV131: 37 | BW131: 59 | BX131: 11 | BY131: 100 | BZ131: 65 | CA131: 7 | CB131: 27 | CC131: 9 | CD131: 20 | CE131: 87 | CF131: 100 | CG131: 7 | CH131: 54 | CI131: 59 | CJ131: 88 | CK131: 83 | CL131: 77 | CM131: 16 | CN131: 41 | CO131: 49 | CP131: 9 | CQ131: 50 | CR131: 11 | CS131: 47 | CT131: 55 | CU131: 16 | CV131: 79
A132: 64 | B132: 19 | C132: 3 | D132: 59 | E132: 21 | F132: 95 | G132: 99 | H132: 80 | I132: 43 | J132: 15 | K132: 1 | L132: 41 | M132: 19 | N132: 6 | O132: 11 | P132: 12 | Q132: 55 | R132: 7 | S132: 97 | T132: 72 | U132: 68 | V132: 1 | W132: 69 | X132: 75 | Y132: 33 | Z132: 17 | AA132: 44 | AB132: 35 | AC132: 99 | AD132: 69 | AE132: 88 | AF132: 71 | AG132: 17 | AH132: 33 | AI132: 99 | AJ132: 78 | AK132: 58 | AL132: 36 | AM132: 54 | AN132: 87 | AO132: 91 | AP132: 98 | AQ132: 39 | AR132: 47 | AS132: 57 | AT132: 1 | AU132: 87 | AV132: 92 | AW132: 35 | AX132: 93 | AY132: 98 | AZ132: 12 | BA132: 35 | BB132: 9 | BC132: 62 | BD132: 40 | BE132: 75 | BF132: 95 | BG132: 52 | BH132: 65 | BI132: 16 | BJ132: 92 | BK132: 38 | BL132: 41 | BM132: 95 | BN132: 2 | BO132: 9 | BP132: 37 | BQ132: 62 | BR132: 32 | BS132: 19 | BT132: 91 | BU132: 69 | BV132: 91 | BW132: 39 | BX132: 68 | BY132: 77 | BZ132: 39 | CA132: 83 | CB132: 60 | CC132: 36 | CD132: 49 | CE132: 26 | CF132: 27 | CG132: 61 | CH132: 24 | CI132: 51 | CJ132: 1 | CK132: 20 | CL132: 50 | CM132: 96 | CN132: 43 | CO132: 21 | CP132: 2 | CQ132: 95 | CR132: 70 | CS132: 2 | CT132: 49 | CU132: 21 | CV132: 41
A133: 12 | B133: 84 | C133: 86 | D133: 85 | E133: 6 | F133: 75 | G133: 1 | H133: 46 | I133: 17 | J133: 75 | K133: 36 | L133: 94 | M133: 38 | N133: 69 | O133: 57 | P133: 100 | Q133: 51 | R133: 69 | S133: 21 | T133: 75 | U133: 49 | V133: 79 | W133: 71 | X133: 66 | Y133: 28 | Z133: 74 | AA133: 77 | AB133: 84 | AC133: 20 | AD133: 46 | AE133: 22 | AF133: 3 | AG133: 23 | AH133: 48 | AI133: 63 | AJ133: 8 | AK133: 53 | AL133: 97 | AM133: 19 | AN133: 49 | AO133: 52 | AP133: 65 | AQ133: 81 | AR133: 1 | AS133: 67 | AT133: 74 | AU133: 25 | AV133: 19 | AW133: 58 | AX133: 59 | AY133: 29 | AZ133: 42 | BA133: 13 | BB133: 5 | BC133: 66 | BD133: 66 | BE133: 33 | BF133: 22 | BG133: 8 | BH133: 19 | BI133: 68 | BJ133: 1 | BK133: 95 | BL133: 37 | BM133: 33 | BN133: 57 | BO133: 1 | BP133: 60 | BQ133: 47 | BR133: 13 | BS133: 81 | BT133: 80 | BU133: 72 | BV133: 65 | BW133: 22 | BX133: 44 | BY133: 8 | BZ133: 3 | CA133: 77 | CB133: 47 | CC133: 73 | CD133: 15 | CE133: 5 | CF133: 56 | CG133: 1 | CH133: 31 | CI133: 23 | CJ133: 13 | CK133: 31 | CL133: 81 | CM133: 33 | CN133: 92 | CO133: 46 | CP133: 3 | CQ133: 79 | CR133: 67 | CS133: 94 | CT133: 62 | CU133: 47 | CV133: 94
A134: 5 | B134: 12 | C134: 28 | D134: 64 | E134: 71 | F134: 20 | G134: 8 | H134: 31 | I134: 18 | J134: 75 | K134: 87 | L134: 52 | M134: 74 | N134: 7 | O134: 100 | P134: 22 | Q134: 8 | R134: 58 | S134: 48 | T134: 98 | U134: 4 | V134: 64 | W134: 4 | X134: 27 | Y134: 19 | Z134: 55 | AA134: 80 | AB134: 100 | AC134: 32 | AD134: 90 | AE134: 60 | AF134: 31 | AG134: 57 | AH134: 26 | AI134: 74 | AJ134: 96 | AK134: 7 | AL134: 88 | AM134: 77 | AN134: 48 | AO134: 38 | AP134: 54 | AQ134: 24 | AR134: 5 | AS134: 16 | AT134: 56 | AU134: 35 | AV134: 42 | AW134: 80 | AX134: 59 | AY134: 10 | AZ134: 32 | BA134: 44 | BB134: 72 | BC134: 53 | BD134: 29 | BE134: 76 | BF134: 69 | BG134: 54 | BH134: 1 | BI134: 2 | BJ134: 40 | BK134: 16 | BL134: 20 | BM134: 94 | BN134: 100 | BO134: 71 | BP134: 83 | BQ134: 59 | BR134: 95 | BS134: 63 | BT134: 44 | BU134: 21 | BV134: 32 | BW134: 90 | BX134: 20 | BY134: 19 | BZ134: 35 | CA134: 81 | CB134: 49 | CC134: 56 | CD134: 27 | CE134: 95 | CF134: 30 | CG134: 9 | CH134: 76 | CI134: 71 | CJ134: 62 | CK134: 32 | CL134: 52 | CM134: 14 | CN134: 32 | CO134: 49 | CP134: 40 | CQ134: 33 | CR134: 70 | CS134: 39 | CT134: 100 | CU134: 38 | CV134: 13
A135: 37 | B135: 87 | C135: 77 | D135: 82 | E135: 86 | F135: 91 | G135: 18 | H135: 81 | I135: 41 | J135: 58 | K135: 99 | L135: 75 | M135: 61 | N135: 70 | O135: 38 | P135: 73 | Q135: 51 | R135: 93 | S135: 7 | T135: 53 | U135: 36 | V135: 54 | W135: 93 | X135: 59 | Y135: 26 | Z135: 32 | AA135: 18 | AB135: 94 | AC135: 54 | AD135: 73 | AE135: 51 | AF135: 34 | AG135: 51 | AH135: 43 | AI135: 23 | AJ135: 18 | AK135: 9 | AL135: 51 | AM135: 2 | AN135: 66 | AO135: 17 | AP135: 88 | AQ135: 87 | AR135: 17 | AS135: 41 | AT135: 11 | AU135: 29 | AV135: 69 | AW135: 4 | AX135: 53 | AY135: 40 | AZ135: 48 | BA135: 24 | BB135: 92 | BC135: 99 | BD135: 24 | BE135: 65 | BF135: 94 | BG135: 95 | BH135: 56 | BI135: 62 | BJ135: 47 | BK135: 97 | BL135: 88 | BM135: 20 | BN135: 59 | BO135: 30 | BP135: 20 | BQ135: 51 | BR135: 54 | BS135: 12 | BT135: 16 | BU135: 87 | BV135: 14 | BW135: 99 | BX135: 46 | BY135: 81 | BZ135: 10 | CA135: 39 | CB135: 68 | CC135: 71 | CD135: 49 | CE135: 9 | CF135: 77 | CG135: 4 | CH135: 92 | CI135: 90 | CJ135: 21 | CK135: 80 | CL135: 49 | CM135: 18 | CN135: 31 | CO135: 54 | CP135: 58 | CQ135: 20 | CR135: 80 | CS135: 20 | CT135: 88 | CU135: 8 | CV135: 10
A136: 6 | B136: 82 | C136: 52 | D136: 23 | E136: 42 | F136: 27 | G136: 92 | H136: 19 | I136: 34 | J136: 9 | K136: 41 | L136: 97 | M136: 86 | N136: 17 | O136: 27 | P136: 64 | Q136: 19 | R136: 99 | S136: 98 | T136: 33 | U136: 64 | V136: 13 | W136: 28 | X136: 31 | Y136: 94 | Z136: 60 | AA136: 55 | AB136: 68 | AC136: 63 | AD136: 53 | AE136: 87 | AF136: 52 | AG136: 1 | AH136: 96 | AI136: 61 | AJ136: 2 | AK136: 82 | AL136: 37 | AM136: 93 | AN136: 23 | AO136: 78 | AP136: 23 | AQ136: 81 | AR136: 28 | AS136: 64 | AT136: 43 | AU136: 58 | AV136: 94 | AW136: 85 | AX136: 94 | AY136: 78 | AZ136: 20 | BA136: 6 | BB136: 53 | BC136: 12 | BD136: 65 | BE136: 28 | BF136: 55 | BG136: 52 | BH136: 39 | BI136: 77 | BJ136: 73 | BK136: 49 | BL136: 85 | BM136: 70 | BN136: 10 | BO136: 90 | BP136: 86 | BQ136: 16 | BR136: 47 | BS136: 70 | BT136: 30 | BU136: 87 | BV136: 46 | BW136: 38 | BX136: 60 | BY136: 7 | BZ136: 71 | CA136: 32 | CB136: 74 | CC136: 96 | CD136: 71 | CE136: 37 | CF136: 51 | CG136: 56 | CH136: 88 | CI136: 62 | CJ136: 55 | CK136: 18 | CL136: 98 | CM136: 59 | CN136: 42 | CO136: 72 | CP136: 21 | CQ136: 100 | CR136: 96 | CS136: 19 | CT136: 20 | CU136: 95 | CV136: 99
A137: 27 | B137: 82 | C137: 45 | D137: 8 | E137: 47 | F137: 64 | G137: 70 | H137: 65 | I137: 40 | J137: 63 | K137: 17 | L137: 92 | M137: 69 | N137: 45 | O137: 23 | P137: 67 | Q137: 90 | R137: 32 | S137: 88 | T137: 84 | U137: 6 | V137: 38 | W137: 9 | X137: 17 | Y137: 8 | Z137: 22 | AA137: 46 | AB137: 93 | AC137: 82 | AD137: 94 | AE137: 78 | AF137: 58 | AG137: 21 | AH137: 70 | AI137: 69 | AJ137: 28 | AK137: 49 | AL137: 55 | AM137: 91 | AN137: 31 | AO137: 68 | AP137: 28 | AQ137: 42 | AR137: 80 | AS137: 13 | AT137: 21 | AU137: 19 | AV137: 10 | AW137: 58 | AX137: 18 | AY137: 49 | AZ137: 50 | BA137: 67 | BB137: 22 | BC137: 10 | BD137: 73 | BE137: 28 | BF137: 23 | BG137: 91 | BH137: 94 | BI137: 62 | BJ137: 23 | BK137: 98 | BL137: 64 | BM137: 99 | BN137: 90 | BO137: 3 | BP137: 77 | BQ137: 32 | BR137: 17 | BS137: 90 | BT137: 60 | BU137: 81 | BV137: 53 | BW137: 44 | BX137: 95 | BY137: 77 | BZ137: 99 | CA137: 35 | CB137: 59 | CC137: 20 | CD137: 54 | CE137: 4 | CF137: 92 | CG137: 69 | CH137: 92 | CI137: 25 | CJ137: 27 | CK137: 97 | CL137: 12 | CM137: 57 | CN137: 76 | CO137: 1 | CP137: 62 | CQ137: 71 | CR137: 38 | CS137: 10 | CT137: 10 | CU137: 17 | CV137: 32
A138: 84 | B138: 94 | C138: 87 | D138: 62 | E138: 44 | F138: 87 | G138: 94 | H138: 99 | I138: 88 | J138: 63 | K138: 9 | L138: 71 | M138: 28 | N138: 6 | O138: 10 | P138: 53 | Q138: 29 | R138: 82 | S138: 97 | T138: 65 | U138: 95 | V138: 90 | W138: 66 | X138: 71 | Y138: 4 | Z138: 93 | AA138: 38 | AB138: 20 | AC138: 58 | AD138: 70 | AE138: 46 | AF138: 9 | AG138: 58 | AH138: 17 | AI138: 31 | AJ138: 21 | AK138: 58 | AL138: 85 | AM138: 9 | AN138: 84 | AO138: 67 | AP138: 63 | AQ138: 15 | AR138: 51 | AS138: 19 | AT138: 50 | AU138: 8 | AV138: 9 | AW138: 68 | AX138: 99 | AY138: 30 | AZ138: 79 | BA138: 41 | BB138: 36 | BC138: 67 | BD138: 71 | BE138: 30 | BF138: 86 | BG138: 33 | BH138: 53 | BI138: 5 | BJ138: 30 | BK138: 79 | BL138: 48 | BM138: 93 | BN138: 49 | BO138: 53 | BP138: 85 | BQ138: 28 | BR138: 100 | BS138: 1 | BT138: 67 | BU138: 49 | BV138: 16 | BW138: 54 | BX138: 43 | BY138: 90 | BZ138: 90 | CA138: 31 | CB138: 57 | CC138: 43 | CD138: 22 | CE138: 68 | CF138: 58 | CG138: 8 | CH138: 61 | CI138: 73 | CJ138: 52 | CK138: 36 | CL138: 46 | CM138: 46 | CN138: 35 | CO138: 48 | CP138: 67 | CQ138: 92 | CR138: 47 | CS138: 62 | CT138: 12 | CU138: 70 | CV138: 51
A139: 79 | B139: 17 | C139: 95 | D139: 38 | E139: 56 | F139: 6 | G139: 91 | H139: 10 | I139: 14 | J139: 67 | K139: 41 | L139: 62 | M139: 3 | N139: 69 | O139: 88 | P139: 66 | Q139: 95 | R139: 62 | S139: 72 | T139: 31 | U139: 84 | V139: 1 | W139: 57 | X139: 36 | Y139: 16 | Z139: 31 | AA139: 54 | AB139: 68 | AC139: 63 | AD139: 60 | AE139: 49 | AF139: 79 | AG139: 97 | AH139: 68 | AI139: 84 | AJ139: 32 | AK139: 84 | AL139: 79 | AM139: 94 | AN139: 70 | AO139: 90 | AP139: 99 | AQ139: 67 | AR139: 61 | AS139: 26 | AT139: 79 | AU139: 77 | AV139: 55 | AW139: 93 | AX139: 94 | AY139: 98 | AZ139: 11 | BA139: 90 | BB139: 11 | BC139: 25 | BD139: 76 | BE139: 98 | BF139: 86 | BG139: 39 | BH139: 6 | BI139: 92 | BJ139: 27 | BK139: 83 | BL139: 46 | BM139: 61 | BN139: 40 | BO139: 14 | BP139: 6 | BQ139: 2 | BR139: 13 | BS139: 18 | BT139: 3 | BU139: 15 | BV139: 55 | BW139: 56 | BX139: 38 | BY139: 59 | BZ139: 51 | CA139: 92 | CB139: 15 | CC139: 54 | CD139: 50 | CE139: 81 | CF139: 89 | CG139: 77 | CH139: 64 | CI139: 79 | CJ139: 77 | CK139: 49 | CL139: 68 | CM139: 61 | CN139: 66 | CO139: 71 | CP139: 62 | CQ139: 32 | CR139: 30 | CS139: 81 | CT139: 56 | CU139: 87 | CV139: 37
A140: 82 | B140: 56 | C140: 66 | D140: 23 | E140: 63 | F140: 34 | G140: 41 | H140: 10 | I140: 10 | J140: 63 | K140: 53 | L140: 25 | M140: 13 | N140: 76 | O140: 85 | P140: 25 | Q140: 17 | R140: 89 | S140: 53 | T140: 8 | U140: 63 | V140: 56 | W140: 91 | X140: 57 | Y140: 52 | Z140: 55 | AA140: 29 | AB140: 57 | AC140: 78 | AD140: 47 | AE140: 18 | AF140: 19 | AG140: 4 | AH140: 5 | AI140: 37 | AJ140: 16 | AK140: 41 | AL140: 76 | AM140: 48 | AN140: 1 | AO140: 49 | AP140: 39 | AQ140: 83 | AR140: 22 | AS140: 22 | AT140: 11 | AU140: 69 | AV140: 20 | AW140: 53 | AX140: 18 | AY140: 57 | AZ140: 26 | BA140: 58 | BB140: 86 | BC140: 88 | BD140: 5 | BE140: 55 | BF140: 76 | BG140: 88 | BH140: 8 | BI140: 40 | BJ140: 56 | BK140: 37 | BL140: 83 | BM140: 30 | BN140: 50 | BO140: 66 | BP140: 19 | BQ140: 10 | BR140: 91 | BS140: 62 | BT140: 97 | BU140: 96 | BV140: 90 | BW140: 63 | BX140: 13 | BY140: 79 | BZ140: 73 | CA140: 11 | CB140: 66 | CC140: 7 | CD140: 90 | CE140: 46 | CF140: 91 | CG140: 92 | CH140: 80 | CI140: 52 | CJ140: 53 | CK140: 90 | CL140: 47 | CM140: 67 | CN140: 33 | CO140: 57 | CP140: 56 | CQ140: 21 | CR140: 34 | CS140: 42 | CT140: 69 | CU140: 21 | CV140: 2
A141: 21 | B141: 38 | C141: 87 | D141: 78 | E141: 47 | F141: 55 | G141: 90 | H141: 72 | I141: 100 | J141: 5 | K141: 74 | L141: 83 | M141: 72 | N141: 31 | O141: 37 | P141: 21 | Q141: 14 | R141: 99 | S141: 66 | T141: 72 | U141: 16 | V141: 14 | W141: 76 | X141: 6 | Y141: 75 | Z141: 66 | AA141: 65 | AB141: 41 | AC141: 10 | AD141: 99 | AE141: 30 | AF141: 35 | AG141: 76 | AH141: 3 | AI141: 47 | AJ141: 92 | AK141: 15 | AL141: 19 | AM141: 92 | AN141: 18 | AO141: 20 | AP141: 2 | AQ141: 66 | AR141: 42 | AS141: 19 | AT141: 96 | AU141: 18 | AV141: 93 | AW141: 68 | AX141: 34 | AY141: 83 | AZ141: 64 | BA141: 38 | BB141: 68 | BC141: 67 | BD141: 49 | BE141: 96 | BF141: 55 | BG141: 75 | BH141: 79 | BI141: 21 | BJ141: 30 | BK141: 93 | BL141: 16 | BM141: 50 | BN141: 35 | BO141: 64 | BP141: 40 | BQ141: 8 | BR141: 5 | BS141: 77 | BT141: 75 | BU141: 42 | BV141: 90 | BW141: 86 | BX141: 96 | BY141: 66 | BZ141: 60 | CA141: 55 | CB141: 22 | CC141: 83 | CD141: 55 | CE141: 59 | CF141: 68 | CG141: 34 | CH141: 93 | CI141: 33 | CJ141: 52 | CK141: 42 | CL141: 75 | CM141: 28 | CN141: 84 | CO141: 81 | CP141: 28 | CQ141: 6 | CR141: 22 | CS141: 5 | CT141: 80 | CU141: 18 | CV141: 36
A142: 89 | B142: 41 | C142: 43 | D142: 6 | E142: 89 | F142: 5 | G142: 66 | H142: 44 | I142: 89 | J142: 8 | K142: 100 | L142: 17 | M142: 2 | N142: 69 | O142: 71 | P142: 56 | Q142: 78 | R142: 70 | S142: 40 | T142: 1 | U142: 28 | V142: 75 | W142: 29 | X142: 74 | Y142: 87 | Z142: 51 | AA142: 94 | AB142: 14 | AC142: 10 | AD142: 33 | AE142: 94 | AF142: 67 | AG142: 71 | AH142: 80 | AI142: 76 | AJ142: 89 | AK142: 54 | AL142: 42 | AM142: 97 | AN142: 63 | AO142: 16 | AP142: 55 | AQ142: 52 | AR142: 25 | AS142: 66 | AT142: 10 | AU142: 38 | AV142: 35 | AW142: 23 | AX142: 9 | AY142: 36 | AZ142: 26 | BA142: 9 | BB142: 29 | BC142: 87 | BD142: 9 | BE142: 65 | BF142: 30 | BG142: 44 | BH142: 4 | BI142: 5 | BJ142: 10 | BK142: 90 | BL142: 84 | BM142: 94 | BN142: 38 | BO142: 15 | BP142: 9 | BQ142: 55 | BR142: 62 | BS142: 11 | BT142: 50 | BU142: 78 | BV142: 46 | BW142: 93 | BX142: 81 | BY142: 70 | BZ142: 63 | CA142: 21 | CB142: 9 | CC142: 30 | CD142: 95 | CE142: 41 | CF142: 84 | CG142: 42 | CH142: 24 | CI142: 44 | CJ142: 21 | CK142: 31 | CL142: 72 | CM142: 1 | CN142: 44 | CO142: 2 | CP142: 7 | CQ142: 1 | CR142: 8 | CS142: 21 | CT142: 25 | CU142: 62 | CV142: 17
A143: 81 | B143: 49 | C143: 57 | D143: 65 | E143: 64 | F143: 75 | G143: 22 | H143: 31 | I143: 34 | J143: 91 | K143: 32 | L143: 100 | M143: 50 | N143: 18 | O143: 29 | P143: 7 | Q143: 79 | R143: 97 | S143: 98 | T143: 60 | U143: 26 | V143: 74 | W143: 39 | X143: 22 | Y143: 40 | Z143: 71 | AA143: 95 | AB143: 17 | AC143: 100 | AD143: 13 | AE143: 72 | AF143: 38 | AG143: 35 | AH143: 36 | AI143: 87 | AJ143: 76 | AK143: 70 | AL143: 21 | AM143: 14 | AN143: 78 | AO143: 27 | AP143: 62 | AQ143: 84 | AR143: 98 | AS143: 27 | AT143: 4 | AU143: 65 | AV143: 75 | AW143: 17 | AX143: 77 | AY143: 49 | AZ143: 82 | BA143: 78 | BB143: 46 | BC143: 46 | BD143: 71 | BE143: 51 | BF143: 98 | BG143: 24 | BH143: 37 | BI143: 9 | BJ143: 63 | BK143: 53 | BL143: 71 | BM143: 4 | BN143: 28 | BO143: 15 | BP143: 14 | BQ143: 85 | BR143: 83 | BS143: 27 | BT143: 80 | BU143: 64 | BV143: 28 | BW143: 57 | BX143: 61 | BY143: 98 | BZ143: 49 | CA143: 6 | CB143: 78 | CC143: 19 | CD143: 3 | CE143: 98 | CF143: 26 | CG143: 18 | CH143: 14 | CI143: 50 | CJ143: 17 | CK143: 94 | CL143: 70 | CM143: 92 | CN143: 9 | CO143: 33 | CP143: 21 | CQ143: 53 | CR143: 75 | CS143: 99 | CT143: 80 | CU143: 66 | CV143: 11
A144: 86 | B144: 78 | C144: 61 | D144: 24 | E144: 12 | F144: 44 | G144: 68 | H144: 94 | I144: 33 | J144: 91 | K144: 91 | L144: 3 | M144: 51 | N144: 57 | O144: 8 | P144: 100 | Q144: 69 | R144: 67 | S144: 4 | T144: 79 | U144: 72 | V144: 88 | W144: 2 | X144: 79 | Y144: 49 | Z144: 31 | AA144: 2 | AB144: 92 | AC144: 56 | AD144: 5 | AE144: 14 | AF144: 59 | AG144: 7 | AH144: 62 | AI144: 9 | AJ144: 37 | AK144: 40 | AL144: 94 | AM144: 95 | AN144: 73 | AO144: 21 | AP144: 24 | AQ144: 17 | AR144: 71 | AS144: 61 | AT144: 93 | AU144: 46 | AV144: 67 | AW144: 73 | AX144: 96 | AY144: 44 | AZ144: 60 | BA144: 60 | BB144: 34 | BC144: 11 | BD144: 63 | BE144: 68 | BF144: 72 | BG144: 28 | BH144: 22 | BI144: 70 | BJ144: 100 | BK144: 49 | BL144: 80 | BM144: 13 | BN144: 8 | BO144: 77 | BP144: 52 | BQ144: 12 | BR144: 31 | BS144: 95 | BT144: 61 | BU144: 44 | BV144: 26 | BW144: 40 | BX144: 54 | BY144: 100 | BZ144: 96 | CA144: 73 | CB144: 18 | CC144: 35 | CD144: 20 | CE144: 6 | CF144: 50 | CG144: 2 | CH144: 15 | CI144: 29 | CJ144: 11 | CK144: 78 | CL144: 2 | CM144: 27 | CN144: 22 | CO144: 15 | CP144: 15 | CQ144: 23 | CR144: 65 | CS144: 78 | CT144: 79 | CU144: 85 | CV144: 31
A145: 54 | B145: 80 | C145: 79 | D145: 95 | E145: 64 | F145: 73 | G145: 13 | H145: 89 | I145: 35 | J145: 73 | K145: 29 | L145: 82 | M145: 10 | N145: 32 | O145: 55 | P145: 8 | Q145: 86 | R145: 81 | S145: 71 | T145: 82 | U145: 13 | V145: 11 | W145: 64 | X145: 81 | Y145: 83 | Z145: 4 | AA145: 64 | AB145: 31 | AC145: 4 | AD145: 29 | AE145: 51 | AF145: 83 | AG145: 88 | AH145: 99 | AI145: 12 | AJ145: 44 | AK145: 4 | AL145: 75 | AM145: 98 | AN145: 69 | AO145: 60 | AP145: 58 | AQ145: 52 | AR145: 19 | AS145: 15 | AT145: 96 | AU145: 22 | AV145: 10 | AW145: 58 | AX145: 7 | AY145: 77 | AZ145: 56 | BA145: 22 | BB145: 57 | BC145: 92 | BD145: 20 | BE145: 34 | BF145: 9 | BG145: 22 | BH145: 8 | BI145: 87 | BJ145: 3 | BK145: 42 | BL145: 54 | BM145: 54 | BN145: 2 | BO145: 83 | BP145: 86 | BQ145: 4 | BR145: 27 | BS145: 30 | BT145: 25 | BU145: 57 | BV145: 39 | BW145: 78 | BX145: 69 | BY145: 99 | BZ145: 71 | CA145: 67 | CB145: 60 | CC145: 63 | CD145: 18 | CE145: 56 | CF145: 67 | CG145: 25 | CH145: 99 | CI145: 11 | CJ145: 17 | CK145: 1 | CL145: 12 | CM145: 40 | CN145: 71 | CO145: 96 | CP145: 29 | CQ145: 13 | CR145: 18 | CS145: 99 | CT145: 44 | CU145: 20 | CV145: 19
A146: 68 | B146: 58 | C146: 16 | D146: 23 | E146: 31 | F146: 48 | G146: 40 | H146: 82 | I146: 13 | J146: 71 | K146: 29 | L146: 77 | M146: 28 | N146: 57 | O146: 24 | P146: 36 | Q146: 9 | R146: 57 | S146: 15 | T146: 100 | U146: 64 | V146: 8 | W146: 58 | X146: 41 | Y146: 89 | Z146: 50 | AA146: 83 | AB146: 24 | AC146: 92 | AD146: 45 | AE146: 97 | AF146: 59 | AG146: 70 | AH146: 94 | AI146: 81 | AJ146: 20 | AK146: 77 | AL146: 46 | AM146: 47 | AN146: 23 | AO146: 54 | AP146: 86 | AQ146: 11 | AR146: 47 | AS146: 14 | AT146: 82 | AU146: 41 | AV146: 97 | AW146: 47 | AX146: 100 | AY146: 57 | AZ146: 35 | BA146: 17 | BB146: 16 | BC146: 56 | BD146: 6 | BE146: 88 | BF146: 86 | BG146: 50 | BH146: 5 | BI146: 98 | BJ146: 13 | BK146: 39 | BL146: 88 | BM146: 49 | BN146: 87 | BO146: 11 | BP146: 14 | BQ146: 54 | BR146: 53 | BS146: 62 | BT146: 83 | BU146: 50 | BV146: 78 | BW146: 12 | BX146: 13 | BY146: 84 | BZ146: 93 | CA146: 23 | CB146: 65 | CC146: 84 | CD146: 33 | CE146: 78 | CF146: 48 | CG146: 16 | CH146: 21 | CI146: 86 | CJ146: 100 | CK146: 82 | CL146: 45 | CM146: 90 | CN146: 71 | CO146: 46 | CP146: 29 | CQ146: 85 | CR146: 15 | CS146: 40 | CT146: 14 | CU146: 6 | CV146: 31
A147: 20 | B147: 26 | C147: 75 | D147: 20 | E147: 80 | F147: 71 | G147: 40 | H147: 12 | I147: 30 | J147: 89 | K147: 91 | L147: 53 | M147: 29 | N147: 9 | O147: 33 | P147: 82 | Q147: 94 | R147: 17 | S147: 55 | T147: 58 | U147: 9 | V147: 24 | W147: 89 | X147: 68 | Y147: 31 | Z147: 4 | AA147: 41 | AB147: 1 | AC147: 29 | AD147: 95 | AE147: 37 | AF147: 83 | AG147: 71 | AH147: 55 | AI147: 96 | AJ147: 1 | AK147: 45 | AL147: 14 | AM147: 82 | AN147: 17 | AO147: 99 | AP147: 33 | AQ147: 70 | AR147: 11 | AS147: 96 | AT147: 78 | AU147: 20 | AV147: 96 | AW147: 62 | AX147: 100 | AY147: 46 | AZ147: 24 | BA147: 12 | BB147: 96 | BC147: 48 | BD147: 18 | BE147: 91 | BF147: 88 | BG147: 20 | BH147: 19 | BI147: 81 | BJ147: 8 | BK147: 72 | BL147: 72 | BM147: 64 | BN147: 59 | BO147: 64 | BP147: 28 | BQ147: 25 | BR147: 33 | BS147: 58 | BT147: 59 | BU147: 66 | BV147: 47 | BW147: 39 | BX147: 35 | BY147: 84 | BZ147: 3 | CA147: 17 | CB147: 51 | CC147: 66 | CD147: 39 | CE147: 67 | CF147: 81 | CG147: 66 | CH147: 53 | CI147: 46 | CJ147: 50 | CK147: 16 | CL147: 63 | CM147: 22 | CN147: 89 | CO147: 100 | CP147: 94 | CQ147: 93 | CR147: 73 | CS147: 37 | CT147: 52 | CU147: 9 | CV147: 92
A148: 59 | B148: 43 | C148: 90 | D148: 84 | E148: 5 | F148: 66 | G148: 41 | H148: 24 | I148: 76 | J148: 24 | K148: 64 | L148: 32 | M148: 22 | N148: 14 | O148: 77 | P148: 26 | Q148: 62 | R148: 5 | S148: 41 | T148: 2 | U148: 21 | V148: 78 | W148: 26 | X148: 56 | Y148: 69 | Z148: 29 | AA148: 58 | AB148: 88 | AC148: 97 | AD148: 97 | AE148: 48 | AF148: 42 | AG148: 57 | AH148: 14 | AI148: 4 | AJ148: 1 | AK148: 39 | AL148: 95 | AM148: 81 | AN148: 98 | AO148: 25 | AP148: 54 | AQ148: 91 | AR148: 17 | AS148: 63 | AT148: 59 | AU148: 63 | AV148: 66 | AW148: 64 | AX148: 44 | AY148: 93 | AZ148: 82 | BA148: 10 | BB148: 64 | BC148: 92 | BD148: 50 | BE148: 8 | BF148: 77 | BG148: 71 | BH148: 33 | BI148: 30 | BJ148: 97 | BK148: 13 | BL148: 25 | BM148: 15 | BN148: 92 | BO148: 58 | BP148: 85 | BQ148: 86 | BR148: 14 | BS148: 80 | BT148: 70 | BU148: 18 | BV148: 65 | BW148: 64 | BX148: 27 | BY148: 71 | BZ148: 12 | CA148: 52 | CB148: 15 | CC148: 7 | CD148: 87 | CE148: 74 | CF148: 80 | CG148: 2 | CH148: 84 | CI148: 42 | CJ148: 68 | CK148: 11 | CL148: 95 | CM148: 31 | CN148: 97 | CO148: 82 | CP148: 14 | CQ148: 46 | CR148: 20 | CS148: 19 | CT148: 23 | CU148: 17 | CV148: 72
A149: 61 | B149: 47 | C149: 83 | D149: 3 | E149: 58 | F149: 97 | G149: 16 | H149: 12 | I149: 11 | J149: 59 | K149: 85 | L149: 98 | M149: 34 | N149: 66 | O149: 18 | P149: 8 | Q149: 35 | R149: 52 | S149: 15 | T149: 95 | U149: 9 | V149: 51 | W149: 99 | X149: 31 | Y149: 62 | Z149: 20 | AA149: 47 | AB149: 78 | AC149: 98 | AD149: 15 | AE149: 27 | AF149: 37 | AG149: 49 | AH149: 10 | AI149: 46 | AJ149: 13 | AK149: 18 | AL149: 60 | AM149: 28 | AN149: 80 | AO149: 78 | AP149: 91 | AQ149: 50 | AR149: 28 | AS149: 33 | AT149: 67 | AU149: 34 | AV149: 48 | AW149: 5 | AX149: 67 | AY149: 66 | AZ149: 81 | BA149: 9 | BB149: 6 | BC149: 39 | BD149: 74 | BE149: 97 | BF149: 95 | BG149: 19 | BH149: 67 | BI149: 78 | BJ149: 98 | BK149: 96 | BL149: 3 | BM149: 99 | BN149: 65 | BO149: 98 | BP149: 76 | BQ149: 91 | BR149: 50 | BS149: 68 | BT149: 72 | BU149: 25 | BV149: 86 | BW149: 50 | BX149: 49 | BY149: 22 | BZ149: 88 | CA149: 61 | CB149: 66 | CC149: 52 | CD149: 97 | CE149: 43 | CF149: 54 | CG149: 17 | CH149: 71 | CI149: 87 | CJ149: 45 | CK149: 66 | CL149: 1 | CM149: 44 | CN149: 29 | CO149: 20 | CP149: 96 | CQ149: 7 | CR149: 46 | CS149: 93 | CT149: 74 | CU149: 70 | CV149: 69
A150: 65 | B150: 84 | C150: 11 | D150: 11 | E150: 21 | F150: 31 | G150: 32 | H150: 41 | I150: 66 | J150: 2 | K150: 46 | L150: 29 | M150: 45 | N150: 17 | O150: 20 | P150: 1 | Q150: 9 | R150: 4 | S150: 95 | T150: 49 | U150: 5 | V150: 96 | W150: 100 | X150: 46 | Y150: 41 | Z150: 78 | AA150: 87 | AB150: 61 | AC150: 9 | AD150: 5 | AE150: 55 | AF150: 20 | AG150: 47 | AH150: 48 | AI150: 84 | AJ150: 64 | AK150: 22 | AL150: 8 | AM150: 59 | AN150: 88 | AO150: 88 | AP150: 47 | AQ150: 92 | AR150: 39 | AS150: 45 | AT150: 67 | AU150: 85 | AV150: 42 | AW150: 53 | AX150: 70 | AY150: 15 | AZ150: 77 | BA150: 40 | BB150: 43 | BC150: 4 | BD150: 10 | BE150: 89 | BF150: 77 | BG150: 79 | BH150: 52 | BI150: 63 | BJ150: 70 | BK150: 87 | BL150: 68 | BM150: 35 | BN150: 69 | BO150: 62 | BP150: 18 | BQ150: 64 | BR150: 33 | BS150: 76 | BT150: 51 | BU150: 79 | BV150: 70 | BW150: 98 | BX150: 82 | BY150: 48 | BZ150: 78 | CA150: 83 | CB150: 93 | CC150: 49 | CD150: 83 | CE150: 46 | CF150: 40 | CG150: 46 | CH150: 14 | CI150: 36 | CJ150: 44 | CK150: 10 | CL150: 93 | CM150: 80 | CN150: 57 | CO150: 100 | CP150: 86 | CQ150: 74 | CR150: 13 | CS150: 4 | CT150: 54 | CU150: 5 | CV150: 47
A151: 80 | B151: 52 | C151: 20 | D151: 5 | E151: 8 | F151: 56 | G151: 18 | H151: 20 | I151: 90 | J151: 83 | K151: 96 | L151: 86 | M151: 77 | N151: 98 | O151: 23 | P151: 28 | Q151: 75 | R151: 51 | S151: 55 | T151: 52 | U151: 45 | V151: 2 | W151: 8 | X151: 28 | Y151: 54 | Z151: 80 | AA151: 78 | AB151: 79 | AC151: 41 | AD151: 59 | AE151: 54 | AF151: 57 | AG151: 86 | AH151: 38 | AI151: 83 | AJ151: 8 | AK151: 98 | AL151: 94 | AM151: 79 | AN151: 51 | AO151: 76 | AP151: 43 | AQ151: 31 | AR151: 61 | AS151: 55 | AT151: 89 | AU151: 67 | AV151: 23 | AW151: 48 | AX151: 94 | AY151: 42 | AZ151: 65 | BA151: 33 | BB151: 64 | BC151: 33 | BD151: 14 | BE151: 66 | BF151: 54 | BG151: 41 | BH151: 28 | BI151: 90 | BJ151: 74 | BK151: 65 | BL151: 10 | BM151: 13 | BN151: 67 | BO151: 50 | BP151: 15 | BQ151: 46 | BR151: 51 | BS151: 97 | BT151: 41 | BU151: 17 | BV151: 33 | BW151: 93 | BX151: 6 | BY151: 43 | BZ151: 36 | CA151: 64 | CB151: 27 | CC151: 40 | CD151: 11 | CE151: 37 | CF151: 90 | CG151: 99 | CH151: 26 | CI151: 11 | CJ151: 4 | CK151: 43 | CL151: 50 | CM151: 8 | CN151: 10 | CO151: 79 | CP151: 10 | CQ151: 15 | CR151: 21 | CS151: 97 | CT151: 16 | CU151: 30 | CV151: 35
A152: 29 | B152: 97 | C152: 98 | D152: 52 | E152: 55 | F152: 60 | G152: 29 | H152: 76 | I152: 56 | J152: 68 | K152: 94 | L152: 48 | M152: 74 | N152: 83 | O152: 30 | P152: 66 | Q152: 63 | R152: 51 | S152: 41 | T152: 34 | U152: 16 | V152: 38 | W152: 99 | X152: 7 | Y152: 74 | Z152: 15 | AA152: 93 | AB152: 84 | AC152: 13 | AD152: 82 | AE152: 92 | AF152: 86 | AG152: 73 | AH152: 13 | AI152: 73 | AJ152: 38 | AK152: 13 | AL152: 77 | AM152: 91 | AN152: 18 | AO152: 21 | AP152: 4 | AQ152: 6 | AR152: 11 | AS152: 99 | AT152: 47 | AU152: 95 | AV152: 2 | AW152: 90 | AX152: 79 | AY152: 82 | AZ152: 35 | BA152: 91 | BB152: 40 | BC152: 91 | BD152: 53 | BE152: 32 | BF152: 2 | BG152: 77 | BH152: 57 | BI152: 16 | BJ152: 42 | BK152: 49 | BL152: 88 | BM152: 37 | BN152: 36 | BO152: 40 | BP152: 5 | BQ152: 30 | BR152: 63 | BS152: 45 | BT152: 39 | BU152: 81 | BV152: 79 | BW152: 6 | BX152: 79 | BY152: 64 | BZ152: 15 | CA152: 97 | CB152: 54 | CC152: 62 | CD152: 2 | CE152: 17 | CF152: 5 | CG152: 30 | CH152: 50 | CI152: 54 | CJ152: 73 | CK152: 4 | CL152: 6 | CM152: 67 | CN152: 44 | CO152: 83 | CP152: 30 | CQ152: 82 | CR152: 19 | CS152: 40 | CT152: 22 | CU152: 27 | CV152: 65
A153: 61 | B153: 34 | C153: 33 | D153: 54 | E153: 72 | F153: 73 | G153: 89 | H153: 90 | I153: 30 | J153: 41 | K153: 91 | L153: 20 | M153: 78 | N153: 54 | O153: 37 | P153: 41 | Q153: 28 | R153: 59 | S153: 32 | T153: 23 | U153: 63 | V153: 35 | W153: 59 | X153: 37 | Y153: 50 | Z153: 39 | AA153: 28 | AB153: 40 | AC153: 79 | AD153: 60 | AE153: 33 | AF153: 12 | AG153: 18 | AH153: 79 | AI153: 36 | AJ153: 87 | AK153: 88 | AL153: 80 | AM153: 48 | AN153: 40 | AO153: 17 | AP153: 25 | AQ153: 90 | AR153: 33 | AS153: 62 | AT153: 63 | AU153: 6 | AV153: 91 | AW153: 65 | AX153: 74 | AY153: 55 | AZ153: 86 | BA153: 16 | BB153: 82 | BC153: 12 | BD153: 78 | BE153: 39 | BF153: 77 | BG153: 47 | BH153: 100 | BI153: 41 | BJ153: 66 | BK153: 23 | BL153: 79 | BM153: 75 | BN153: 52 | BO153: 27 | BP153: 74 | BQ153: 89 | BR153: 77 | BS153: 6 | BT153: 65 | BU153: 6 | BV153: 96 | BW153: 5 | BX153: 29 | BY153: 34 | BZ153: 27 | CA153: 26 | CB153: 42 | CC153: 69 | CD153: 93 | CE153: 4 | CF153: 79 | CG153: 64 | CH153: 4 | CI153: 33 | CJ153: 30 | CK153: 3 | CL153: 26 | CM153: 44 | CN153: 16 | CO153: 86 | CP153: 92 | CQ153: 13 | CR153: 26 | CS153: 24 | CT153: 97 | CU153: 34 | CV153: 10
A154: 65 | B154: 33 | C154: 1 | D154: 97 | E154: 70 | F154: 39 | G154: 40 | H154: 15 | I154: 90 | J154: 76 | K154: 72 | L154: 75 | M154: 48 | N154: 31 | O154: 63 | P154: 4 | Q154: 36 | R154: 25 | S154: 89 | T154: 74 | U154: 56 | V154: 68 | W154: 49 | X154: 99 | Y154: 85 | Z154: 36 | AA154: 79 | AB154: 52 | AC154: 63 | AD154: 77 | AE154: 45 | AF154: 31 | AG154: 52 | AH154: 99 | AI154: 88 | AJ154: 41 | AK154: 39 | AL154: 7 | AM154: 12 | AN154: 43 | AO154: 50 | AP154: 86 | AQ154: 24 | AR154: 86 | AS154: 69 | AT154: 86 | AU154: 61 | AV154: 13 | AW154: 82 | AX154: 94 | AY154: 54 | AZ154: 44 | BA154: 51 | BB154: 10 | BC154: 87 | BD154: 7 | BE154: 57 | BF154: 32 | BG154: 93 | BH154: 70 | BI154: 48 | BJ154: 23 | BK154: 95 | BL154: 82 | BM154: 58 | BN154: 55 | BO154: 70 | BP154: 13 | BQ154: 43 | BR154: 14 | BS154: 7 | BT154: 82 | BU154: 52 | BV154: 98 | BW154: 99 | BX154: 33 | BY154: 84 | BZ154: 47 | CA154: 90 | CB154: 26 | CC154: 86 | CD154: 64 | CE154: 12 | CF154: 74 | CG154: 56 | CH154: 74 | CI154: 92 | CJ154: 36 | CK154: 58 | CL154: 19 | CM154: 67 | CN154: 86 | CO154: 76 | CP154: 87 | CQ154: 21 | CR154: 76 | CS154: 92 | CT154: 35 | CU154: 64 | CV154: 54
A155: 44 | B155: 48 | C155: 47 | D155: 19 | E155: 69 | F155: 64 | G155: 38 | H155: 2 | I155: 46 | J155: 19 | K155: 30 | L155: 24 | M155: 39 | N155: 87 | O155: 13 | P155: 90 | Q155: 62 | R155: 12 | S155: 15 | T155: 31 | U155: 100 | V155: 29 | W155: 72 | X155: 76 | Y155: 95 | Z155: 36 | AA155: 2 | AB155: 52 | AC155: 27 | AD155: 26 | AE155: 65 | AF155: 89 | AG155: 29 | AH155: 46 | AI155: 19 | AJ155: 41 | AK155: 4 | AL155: 70 | AM155: 48 | AN155: 100 | AO155: 40 | AP155: 52 | AQ155: 87 | AR155: 66 | AS155: 42 | AT155: 20 | AU155: 48 | AV155: 75 | AW155: 73 | AX155: 85 | AY155: 9 | AZ155: 66 | BA155: 55 | BB155: 82 | BC155: 93 | BD155: 94 | BE155: 55 | BF155: 34 | BG155: 32 | BH155: 48 | BI155: 62 | BJ155: 82 | BK155: 91 | BL155: 65 | BM155: 76 | BN155: 43 | BO155: 50 | BP155: 25 | BQ155: 30 | BR155: 83 | BS155: 56 | BT155: 28 | BU155: 35 | BV155: 12 | BW155: 58 | BX155: 29 | BY155: 32 | BZ155: 67 | CA155: 100 | CB155: 25 | CC155: 59 | CD155: 68 | CE155: 36 | CF155: 74 | CG155: 95 | CH155: 22 | CI155: 50 | CJ155: 34 | CK155: 98 | CL155: 55 | CM155: 94 | CN155: 29 | CO155: 58 | CP155: 57 | CQ155: 45 | CR155: 28 | CS155: 29 | CT155: 10 | CU155: 45 | CV155: 84
A156: 97 | B156: 42 | C156: 11 | D156: 20 | E156: 27 | F156: 70 | G156: 66 | H156: 56 | I156: 22 | J156: 43 | K156: 95 | L156: 35 | M156: 66 | N156: 84 | O156: 67 | P156: 97 | Q156: 7 | R156: 17 | S156: 5 | T156: 25 | U156: 28 | V156: 43 | W156: 76 | X156: 59 | Y156: 34 | Z156: 94 | AA156: 55 | AB156: 9 | AC156: 22 | AD156: 16 | AE156: 33 | AF156: 15 | AG156: 99 | AH156: 59 | AI156: 40 | AJ156: 72 | AK156: 78 | AL156: 39 | AM156: 30 | AN156: 70 | AO156: 52 | AP156: 61 | AQ156: 16 | AR156: 47 | AS156: 48 | AT156: 53 | AU156: 36 | AV156: 15 | AW156: 15 | AX156: 81 | AY156: 37 | AZ156: 48 | BA156: 64 | BB156: 32 | BC156: 4 | BD156: 74 | BE156: 83 | BF156: 15 | BG156: 93 | BH156: 65 | BI156: 40 | BJ156: 41 | BK156: 15 | BL156: 83 | BM156: 4 | BN156: 71 | BO156: 1 | BP156: 16 | BQ156: 8 | BR156: 76 | BS156: 11 | BT156: 78 | BU156: 87 | BV156: 74 | BW156: 70 | BX156: 85 | BY156: 19 | BZ156: 25 | CA156: 95 | CB156: 100 | CC156: 89 | CD156: 22 | CE156: 6 | CF156: 59 | CG156: 30 | CH156: 89 | CI156: 73 | CJ156: 45 | CK156: 88 | CL156: 17 | CM156: 100 | CN156: 3 | CO156: 57 | CP156: 66 | CQ156: 92 | CR156: 26 | CS156: 3 | CT156: 31 | CU156: 62 | CV156: 82
A157: 73 | B157: 75 | C157: 11 | D157: 15 | E157: 91 | F157: 70 | G157: 1 | H157: 12 | I157: 40 | J157: 37 | K157: 29 | L157: 10 | M157: 5 | N157: 99 | O157: 12 | P157: 81 | Q157: 89 | R157: 28 | S157: 55 | T157: 72 | U157: 1 | V157: 81 | W157: 56 | X157: 38 | Y157: 99 | Z157: 17 | AA157: 78 | AB157: 66 | AC157: 69 | AD157: 70 | AE157: 81 | AF157: 96 | AG157: 92 | AH157: 84 | AI157: 16 | AJ157: 18 | AK157: 95 | AL157: 93 | AM157: 78 | AN157: 94 | AO157: 86 | AP157: 74 | AQ157: 28 | AR157: 62 | AS157: 68 | AT157: 77 | AU157: 1 | AV157: 9 | AW157: 11 | AX157: 24 | AY157: 96 | AZ157: 56 | BA157: 83 | BB157: 12 | BC157: 4 | BD157: 91 | BE157: 90 | BF157: 71 | BG157: 40 | BH157: 64 | BI157: 91 | BJ157: 58 | BK157: 95 | BL157: 41 | BM157: 39 | BN157: 83 | BO157: 85 | BP157: 34 | BQ157: 34 | BR157: 55 | BS157: 10 | BT157: 1 | BU157: 37 | BV157: 64 | BW157: 6 | BX157: 53 | BY157: 13 | BZ157: 13 | CA157: 15 | CB157: 2 | CC157: 45 | CD157: 40 | CE157: 25 | CF157: 89 | CG157: 59 | CH157: 3 | CI157: 10 | CJ157: 41 | CK157: 91 | CL157: 70 | CM157: 82 | CN157: 100 | CO157: 41 | CP157: 95 | CQ157: 49 | CR157: 71 | CS157: 8 | CT157: 65 | CU157: 21 | CV157: 78
A158: 70 | B158: 38 | C158: 34 | D158: 26 | E158: 49 | F158: 68 | G158: 69 | H158: 75 | I158: 80 | J158: 75 | K158: 28 | L158: 26 | M158: 77 | N158: 30 | O158: 82 | P158: 27 | Q158: 32 | R158: 64 | S158: 26 | T158: 78 | U158: 60 | V158: 38 | W158: 87 | X158: 10 | Y158: 24 | Z158: 79 | AA158: 92 | AB158: 71 | AC158: 1 | AD158: 14 | AE158: 75 | AF158: 40 | AG158: 46 | AH158: 23 | AI158: 44 | AJ158: 76 | AK158: 85 | AL158: 51 | AM158: 72 | AN158: 76 | AO158: 10 | AP158: 2 | AQ158: 3 | AR158: 50 | AS158: 7 | AT158: 62 | AU158: 30 | AV158: 35 | AW158: 71 | AX158: 26 | AY158: 42 | AZ158: 63 | BA158: 58 | BB158: 63 | BC158: 51 | BD158: 5 | BE158: 32 | BF158: 23 | BG158: 10 | BH158: 46 | BI158: 20 | BJ158: 48 | BK158: 72 | BL158: 74 | BM158: 38 | BN158: 31 | BO158: 66 | BP158: 14 | BQ158: 65 | BR158: 46 | BS158: 21 | BT158: 92 | BU158: 7 | BV158: 35 | BW158: 95 | BX158: 32 | BY158: 46 | BZ158: 10 | CA158: 51 | CB158: 86 | CC158: 28 | CD158: 28 | CE158: 51 | CF158: 95 | CG158: 99 | CH158: 69 | CI158: 7 | CJ158: 23 | CK158: 64 | CL158: 90 | CM158: 96 | CN158: 2 | CO158: 89 | CP158: 37 | CQ158: 6 | CR158: 89 | CS158: 99 | CT158: 60 | CU158: 79 | CV158: 23
A159: 13 | B159: 76 | C159: 49 | D159: 81 | E159: 30 | F159: 65 | G159: 12 | H159: 75 | I159: 67 | J159: 10 | K159: 20 | L159: 93 | M159: 16 | N159: 31 | O159: 76 | P159: 9 | Q159: 11 | R159: 67 | S159: 42 | T159: 72 | U159: 46 | V159: 70 | W159: 56 | X159: 60 | Y159: 75 | Z159: 18 | AA159: 54 | AB159: 75 | AC159: 55 | AD159: 58 | AE159: 59 | AF159: 71 | AG159: 99 | AH159: 93 | AI159: 64 | AJ159: 24 | AK159: 29 | AL159: 3 | AM159: 86 | AN159: 88 | AO159: 3 | AP159: 21 | AQ159: 95 | AR159: 56 | AS159: 12 | AT159: 53 | AU159: 96 | AV159: 36 | AW159: 70 | AX159: 5 | AY159: 66 | AZ159: 27 | BA159: 45 | BB159: 32 | BC159: 29 | BD159: 23 | BE159: 40 | BF159: 8 | BG159: 24 | BH159: 86 | BI159: 5 | BJ159: 59 | BK159: 61 | BL159: 5 | BM159: 57 | BN159: 48 | BO159: 31 | BP159: 49 | BQ159: 31 | BR159: 42 | BS159: 95 | BT159: 37 | BU159: 28 | BV159: 61 | BW159: 86 | BX159: 21 | BY159: 36 | BZ159: 76 | CA159: 100 | CB159: 96 | CC159: 22 | CD159: 49 | CE159: 47 | CF159: 9 | CG159: 96 | CH159: 5 | CI159: 90 | CJ159: 61 | CK159: 53 | CL159: 8 | CM159: 54 | CN159: 63 | CO159: 26 | CP159: 24 | CQ159: 57 | CR159: 68 | CS159: 85 | CT159: 79 | CU159: 93 | CV159: 14
A160: 69 | B160: 56 | C160: 58 | D160: 78 | E160: 88 | F160: 21 | G160: 43 | H160: 75 | I160: 8 | J160: 2 | K160: 89 | L160: 83 | M160: 93 | N160: 35 | O160: 65 | P160: 50 | Q160: 24 | R160: 41 | S160: 2 | T160: 86 | U160: 80 | V160: 29 | W160: 74 | X160: 80 | Y160: 71 | Z160: 97 | AA160: 2 | AB160: 54 | AC160: 5 | AD160: 23 | AE160: 87 | AF160: 98 | AG160: 96 | AH160: 51 | AI160: 44 | AJ160: 24 | AK160: 72 | AL160: 35 | AM160: 14 | AN160: 30 | AO160: 85 | AP160: 6 | AQ160: 23 | AR160: 28 | AS160: 95 | AT160: 53 | AU160: 35 | AV160: 83 | AW160: 27 | AX160: 48 | AY160: 52 | AZ160: 47 | BA160: 48 | BB160: 80 | BC160: 78 | BD160: 97 | BE160: 5 | BF160: 3 | BG160: 67 | BH160: 22 | BI160: 54 | BJ160: 23 | BK160: 20 | BL160: 82 | BM160: 90 | BN160: 40 | BO160: 66 | BP160: 74 | BQ160: 30 | BR160: 17 | BS160: 39 | BT160: 77 | BU160: 91 | BV160: 1 | BW160: 22 | BX160: 14 | BY160: 23 | BZ160: 48 | CA160: 55 | CB160: 15 | CC160: 84 | CD160: 47 | CE160: 5 | CF160: 18 | CG160: 99 | CH160: 87 | CI160: 79 | CJ160: 65 | CK160: 54 | CL160: 83 | CM160: 25 | CN160: 63 | CO160: 66 | CP160: 47 | CQ160: 47 | CR160: 14 | CS160: 61 | CT160: 8 | CU160: 53 | CV160: 20
A161: 28 | B161: 91 | C161: 39 | D161: 14 | E161: 61 | F161: 28 | G161: 89 | H161: 64 | I161: 45 | J161: 93 | K161: 63 | L161: 47 | M161: 46 | N161: 33 | O161: 73 | P161: 85 | Q161: 94 | R161: 45 | S161: 55 | T161: 68 | U161: 62 | V161: 19 | W161: 12 | X161: 46 | Y161: 34 | Z161: 72 | AA161: 75 | AB161: 47 | AC161: 48 | AD161: 30 | AE161: 49 | AF161: 77 | AG161: 58 | AH161: 69 | AI161: 53 | AJ161: 69 | AK161: 28 | AL161: 56 | AM161: 6 | AN161: 97 | AO161: 68 | AP161: 91 | AQ161: 23 | AR161: 15 | AS161: 14 | AT161: 70 | AU161: 35 | AV161: 17 | AW161: 15 | AX161: 68 | AY161: 10 | AZ161: 91 | BA161: 76 | BB161: 52 | BC161: 17 | BD161: 36 | BE161: 25 | BF161: 22 | BG161: 80 | BH161: 91 | BI161: 47 | BJ161: 27 | BK161: 100 | BL161: 43 | BM161: 54 | BN161: 46 | BO161: 44 | BP161: 80 | BQ161: 99 | BR161: 63 | BS161: 72 | BT161: 9 | BU161: 30 | BV161: 49 | BW161: 58 | BX161: 43 | BY161: 22 | BZ161: 34 | CA161: 30 | CB161: 96 | CC161: 76 | CD161: 3 | CE161: 18 | CF161: 77 | CG161: 34 | CH161: 31 | CI161: 93 | CJ161: 12 | CK161: 27 | CL161: 10 | CM161: 62 | CN161: 62 | CO161: 24 | CP161: 74 | CQ161: 89 | CR161: 5 | CS161: 28 | CT161: 46 | CU161: 10 | CV161: 98
A162: 67 | B162: 85 | C162: 13 | D162: 36 | E162: 54 | F162: 1 | G162: 16 | H162: 62 | I162: 5 | J162: 32 | K162: 70 | L162: 67 | M162: 31 | N162: 8 | O162: 61 | P162: 51 | Q162: 14 | R162: 90 | S162: 67 | T162: 98 | U162: 89 | V162: 61 | W162: 87 | X162: 98 | Y162: 55 | Z162: 10 | AA162: 4 | AB162: 65 | AC162: 31 | AD162: 47 | AE162: 18 | AF162: 60 | AG162: 75 | AH162: 34 | AI162: 63 | AJ162: 95 | AK162: 36 | AL162: 20 | AM162: 11 | AN162: 39 | AO162: 5 | AP162: 61 | AQ162: 100 | AR162: 53 | AS162: 12 | AT162: 82 | AU162: 81 | AV162: 92 | AW162: 58 | AX162: 20 | AY162: 17 | AZ162: 59 | BA162: 5 | BB162: 41 | BC162: 17 | BD162: 25 | BE162: 8 | BF162: 31 | BG162: 48 | BH162: 82 | BI162: 22 | BJ162: 33 | BK162: 90 | BL162: 45 | BM162: 30 | BN162: 73 | BO162: 30 | BP162: 60 | BQ162: 10 | BR162: 33 | BS162: 46 | BT162: 80 | BU162: 47 | BV162: 81 | BW162: 65 | BX162: 90 | BY162: 6 | BZ162: 50 | CA162: 27 | CB162: 92 | CC162: 14 | CD162: 20 | CE162: 89 | CF162: 34 | CG162: 1 | CH162: 45 | CI162: 33 | CJ162: 5 | CK162: 11 | CL162: 3 | CM162: 62 | CN162: 67 | CO162: 72 | CP162: 93 | CQ162: 45 | CR162: 10 | CS162: 37 | CT162: 44 | CU162: 30 | CV162: 96
A163: 70 | B163: 34 | C163: 96 | D163: 14 | E163: 77 | F163: 29 | G163: 35 | H163: 50 | I163: 84 | J163: 42 | K163: 29 | L163: 77 | M163: 29 | N163: 19 | O163: 70 | P163: 59 | Q163: 60 | R163: 30 | S163: 9 | T163: 15 | U163: 5 | V163: 47 | W163: 44 | X163: 13 | Y163: 40 | Z163: 98 | AA163: 66 | AB163: 31 | AC163: 21 | AD163: 27 | AE163: 24 | AF163: 26 | AG163: 56 | AH163: 30 | AI163: 71 | AJ163: 91 | AK163: 100 | AL163: 100 | AM163: 85 | AN163: 82 | AO163: 7 | AP163: 98 | AQ163: 71 | AR163: 48 | AS163: 88 | AT163: 67 | AU163: 28 | AV163: 75 | AW163: 75 | AX163: 36 | AY163: 73 | AZ163: 76 | BA163: 8 | BB163: 67 | BC163: 76 | BD163: 67 | BE163: 70 | BF163: 53 | BG163: 69 | BH163: 13 | BI163: 86 | BJ163: 26 | BK163: 59 | BL163: 26 | BM163: 31 | BN163: 56 | BO163: 42 | BP163: 26 | BQ163: 81 | BR163: 9 | BS163: 39 | BT163: 55 | BU163: 68 | BV163: 14 | BW163: 74 | BX163: 54 | BY163: 70 | BZ163: 60 | CA163: 71 | CB163: 60 | CC163: 52 | CD163: 34 | CE163: 21 | CF163: 2 | CG163: 86 | CH163: 81 | CI163: 15 | CJ163: 26 | CK163: 95 | CL163: 68 | CM163: 38 | CN163: 69 | CO163: 80 | CP163: 9 | CQ163: 89 | CR163: 54 | CS163: 39 | CT163: 19 | CU163: 42 | CV163: 61
A164: 64 | B164: 65 | C164: 57 | D164: 7 | E164: 56 | F164: 23 | G164: 13 | H164: 82 | I164: 39 | J164: 65 | K164: 14 | L164: 35 | M164: 92 | N164: 21 | O164: 47 | P164: 70 | Q164: 6 | R164: 95 | S164: 42 | T164: 67 | U164: 1 | V164: 13 | W164: 16 | X164: 98 | Y164: 5 | Z164: 56 | AA164: 94 | AB164: 67 | AC164: 31 | AD164: 80 | AE164: 10 | AF164: 41 | AG164: 63 | AH164: 12 | AI164: 78 | AJ164: 36 | AK164: 96 | AL164: 45 | AM164: 23 | AN164: 66 | AO164: 39 | AP164: 23 | AQ164: 45 | AR164: 75 | AS164: 13 | AT164: 17 | AU164: 75 | AV164: 70 | AW164: 10 | AX164: 62 | AY164: 68 | AZ164: 21 | BA164: 90 | BB164: 64 | BC164: 72 | BD164: 41 | BE164: 57 | BF164: 39 | BG164: 83 | BH164: 83 | BI164: 92 | BJ164: 11 | BK164: 75 | BL164: 84 | BM164: 89 | BN164: 4 | BO164: 2 | BP164: 4 | BQ164: 33 | BR164: 89 | BS164: 85 | BT164: 84 | BU164: 64 | BV164: 25 | BW164: 98 | BX164: 93 | BY164: 53 | BZ164: 6 | CA164: 12 | CB164: 56 | CC164: 32 | CD164: 47 | CE164: 87 | CF164: 1 | CG164: 31 | CH164: 1 | CI164: 90 | CJ164: 72 | CK164: 6 | CL164: 22 | CM164: 65 | CN164: 72 | CO164: 28 | CP164: 19 | CQ164: 95 | CR164: 32 | CS164: 13 | CT164: 8 | CU164: 41 | CV164: 87
A165: 8 | B165: 70 | C165: 92 | D165: 84 | E165: 7 | F165: 18 | G165: 11 | H165: 72 | I165: 42 | J165: 84 | K165: 72 | L165: 68 | M165: 15 | N165: 85 | O165: 36 | P165: 75 | Q165: 52 | R165: 99 | S165: 59 | T165: 86 | U165: 56 | V165: 48 | W165: 62 | X165: 3 | Y165: 64 | Z165: 40 | AA165: 37 | AB165: 49 | AC165: 41 | AD165: 19 | AE165: 100 | AF165: 54 | AG165: 20 | AH165: 83 | AI165: 38 | AJ165: 12 | AK165: 87 | AL165: 15 | AM165: 13 | AN165: 25 | AO165: 78 | AP165: 63 | AQ165: 88 | AR165: 1 | AS165: 69 | AT165: 19 | AU165: 56 | AV165: 5 | AW165: 47 | AX165: 5 | AY165: 10 | AZ165: 85 | BA165: 60 | BB165: 63 | BC165: 87 | BD165: 66 | BE165: 26 | BF165: 49 | BG165: 96 | BH165: 49 | BI165: 91 | BJ165: 48 | BK165: 20 | BL165: 30 | BM165: 94 | BN165: 50 | BO165: 18 | BP165: 40 | BQ165: 84 | BR165: 48 | BS165: 30 | BT165: 90 | BU165: 84 | BV165: 64 | BW165: 19 | BX165: 11 | BY165: 65 | BZ165: 41 | CA165: 41 | CB165: 14 | CC165: 24 | CD165: 49 | CE165: 17 | CF165: 53 | CG165: 75 | CH165: 80 | CI165: 70 | CJ165: 87 | CK165: 3 | CL165: 10 | CM165: 51 | CN165: 69 | CO165: 9 | CP165: 4 | CQ165: 80 | CR165: 89 | CS165: 4 | CT165: 1 | CU165: 96 | CV165: 19
A166: 71 | B166: 67 | C166: 8 | D166: 85 | E166: 43 | F166: 11 | G166: 52 | H166: 15 | I166: 69 | J166: 82 | K166: 88 | L166: 80 | M166: 85 | N166: 59 | O166: 3 | P166: 34 | Q166: 75 | R166: 30 | S166: 58 | T166: 33 | U166: 47 | V166: 72 | W166: 59 | X166: 11 | Y166: 59 | Z166: 18 | AA166: 51 | AB166: 70 | AC166: 93 | AD166: 17 | AE166: 98 | AF166: 6 | AG166: 19 | AH166: 58 | AI166: 75 | AJ166: 94 | AK166: 62 | AL166: 71 | AM166: 64 | AN166: 96 | AO166: 94 | AP166: 2 | AQ166: 2 | AR166: 18 | AS166: 46 | AT166: 33 | AU166: 87 | AV166: 67 | AW166: 13 | AX166: 41 | AY166: 85 | AZ166: 94 | BA166: 18 | BB166: 45 | BC166: 62 | BD166: 35 | BE166: 57 | BF166: 100 | BG166: 67 | BH166: 8 | BI166: 77 | BJ166: 96 | BK166: 4 | BL166: 59 | BM166: 2 | BN166: 93 | BO166: 24 | BP166: 7 | BQ166: 39 | BR166: 99 | BS166: 70 | BT166: 13 | BU166: 6 | BV166: 88 | BW166: 75 | BX166: 53 | BY166: 65 | BZ166: 47 | CA166: 14 | CB166: 28 | CC166: 37 | CD166: 24 | CE166: 63 | CF166: 64 | CG166: 59 | CH166: 74 | CI166: 48 | CJ166: 76 | CK166: 6 | CL166: 64 | CM166: 64 | CN166: 52 | CO166: 87 | CP166: 1 | CQ166: 9 | CR166: 50 | CS166: 27 | CT166: 85 | CU166: 92 | CV166: 30
A167: 12 | B167: 55 | C167: 35 | D167: 23 | E167: 37 | F167: 99 | G167: 91 | H167: 16 | I167: 14 | J167: 61 | K167: 85 | L167: 92 | M167: 89 | N167: 19 | O167: 12 | P167: 74 | Q167: 51 | R167: 34 | S167: 22 | T167: 80 | U167: 48 | V167: 17 | W167: 15 | X167: 75 | Y167: 65 | Z167: 100 | AA167: 28 | AB167: 37 | AC167: 66 | AD167: 41 | AE167: 94 | AF167: 94 | AG167: 48 | AH167: 55 | AI167: 78 | AJ167: 92 | AK167: 9 | AL167: 38 | AM167: 8 | AN167: 57 | AO167: 27 | AP167: 15 | AQ167: 31 | AR167: 28 | AS167: 89 | AT167: 11 | AU167: 30 | AV167: 99 | AW167: 86 | AX167: 21 | AY167: 23 | AZ167: 11 | BA167: 6 | BB167: 61 | BC167: 70 | BD167: 89 | BE167: 98 | BF167: 76 | BG167: 14 | BH167: 45 | BI167: 94 | BJ167: 36 | BK167: 92 | BL167: 47 | BM167: 22 | BN167: 7 | BO167: 55 | BP167: 72 | BQ167: 98 | BR167: 6 | BS167: 13 | BT167: 47 | BU167: 50 | BV167: 54 | BW167: 38 | BX167: 90 | BY167: 77 | BZ167: 17 | CA167: 43 | CB167: 37 | CC167: 14 | CD167: 58 | CE167: 65 | CF167: 92 | CG167: 33 | CH167: 5 | CI167: 49 | CJ167: 43 | CK167: 75 | CL167: 50 | CM167: 87 | CN167: 91 | CO167: 70 | CP167: 21 | CQ167: 54 | CR167: 2 | CS167: 67 | CT167: 64 | CU167: 93 | CV167: 18
A168: 1 | B168: 76 | C168: 57 | D168: 5 | E168: 61 | F168: 55 | G168: 94 | H168: 22 | I168: 33 | J168: 30 | K168: 94 | L168: 77 | M168: 56 | N168: 26 | O168: 45 | P168: 40 | Q168: 50 | R168: 30 | S168: 66 | T168: 93 | U168: 99 | V168: 89 | W168: 17 | X168: 55 | Y168: 91 | Z168: 30 | AA168: 43 | AB168: 96 | AC168: 1 | AD168: 9 | AE168: 23 | AF168: 30 | AG168: 19 | AH168: 5 | AI168: 13 | AJ168: 93 | AK168: 75 | AL168: 28 | AM168: 52 | AN168: 3 | AO168: 2 | AP168: 50 | AQ168: 21 | AR168: 96 | AS168: 81 | AT168: 18 | AU168: 45 | AV168: 45 | AW168: 68 | AX168: 5 | AY168: 38 | AZ168: 23 | BA168: 80 | BB168: 31 | BC168: 64 | BD168: 23 | BE168: 52 | BF168: 74 | BG168: 86 | BH168: 38 | BI168: 46 | BJ168: 15 | BK168: 14 | BL168: 81 | BM168: 93 | BN168: 90 | BO168: 100 | BP168: 48 | BQ168: 29 | BR168: 85 | BS168: 13 | BT168: 90 | BU168: 15 | BV168: 11 | BW168: 41 | BX168: 53 | BY168: 38 | BZ168: 19 | CA168: 39 | CB168: 56 | CC168: 46 | CD168: 53 | CE168: 100 | CF168: 7 | CG168: 65 | CH168: 57 | CI168: 63 | CJ168: 56 | CK168: 65 | CL168: 2 | CM168: 50 | CN168: 94 | CO168: 92 | CP168: 23 | CQ168: 33 | CR168: 96 | CS168: 99 | CT168: 13 | CU168: 47 | CV168: 91
A169: 40 | B169: 83 | C169: 83 | D169: 77 | E169: 22 | F169: 91 | G169: 36 | H169: 100 | I169: 57 | J169: 6 | K169: 86 | L169: 41 | M169: 8 | N169: 21 | O169: 8 | P169: 42 | Q169: 89 | R169: 56 | S169: 94 | T169: 14 | U169: 65 | V169: 76 | W169: 14 | X169: 48 | Y169: 27 | Z169: 33 | AA169: 46 | AB169: 25 | AC169: 34 | AD169: 83 | AE169: 69 | AF169: 9 | AG169: 72 | AH169: 56 | AI169: 90 | AJ169: 9 | AK169: 38 | AL169: 75 | AM169: 95 | AN169: 5 | AO169: 65 | AP169: 74 | AQ169: 62 | AR169: 32 | AS169: 11 | AT169: 61 | AU169: 67 | AV169: 60 | AW169: 79 | AX169: 74 | AY169: 48 | AZ169: 25 | BA169: 87 | BB169: 39 | BC169: 70 | BD169: 68 | BE169: 40 | BF169: 74 | BG169: 30 | BH169: 33 | BI169: 98 | BJ169: 81 | BK169: 100 | BL169: 71 | BM169: 52 | BN169: 61 | BO169: 61 | BP169: 95 | BQ169: 86 | BR169: 73 | BS169: 79 | BT169: 65 | BU169: 59 | BV169: 62 | BW169: 65 | BX169: 83 | BY169: 86 | BZ169: 27 | CA169: 22 | CB169: 31 | CC169: 23 | CD169: 100 | CE169: 28 | CF169: 40 | CG169: 11 | CH169: 86 | CI169: 4 | CJ169: 94 | CK169: 98 | CL169: 94 | CM169: 30 | CN169: 3 | CO169: 84 | CP169: 11 | CQ169: 4 | CR169: 42 | CS169: 80 | CT169: 29 | CU169: 10 | CV169: 33
A170: 27 | B170: 7 | C170: 68 | D170: 36 | E170: 85 | F170: 85 | G170: 80 | H170: 73 | I170: 86 | J170: 85 | K170: 33 | L170: 6 | M170: 30 | N170: 40 | O170: 70 | P170: 66 | Q170: 45 | R170: 64 | S170: 97 | T170: 16 | U170: 66 | V170: 23 | W170: 62 | X170: 14 | Y170: 23 | Z170: 30 | AA170: 26 | AB170: 80 | AC170: 45 | AD170: 77 | AE170: 23 | AF170: 31 | AG170: 79 | AH170: 29 | AI170: 63 | AJ170: 38 | AK170: 12 | AL170: 81 | AM170: 77 | AN170: 93 | AO170: 26 | AP170: 58 | AQ170: 56 | AR170: 38 | AS170: 62 | AT170: 3 | AU170: 17 | AV170: 56 | AW170: 29 | AX170: 32 | AY170: 95 | AZ170: 28 | BA170: 77 | BB170: 22 | BC170: 68 | BD170: 27 | BE170: 34 | BF170: 59 | BG170: 72 | BH170: 79 | BI170: 28 | BJ170: 40 | BK170: 89 | BL170: 48 | BM170: 10 | BN170: 51 | BO170: 59 | BP170: 51 | BQ170: 14 | BR170: 87 | BS170: 56 | BT170: 46 | BU170: 16 | BV170: 55 | BW170: 47 | BX170: 43 | BY170: 77 | BZ170: 9 | CA170: 31 | CB170: 100 | CC170: 68 | CD170: 49 | CE170: 37 | CF170: 75 | CG170: 95 | CH170: 62 | CI170: 12 | CJ170: 7 | CK170: 48 | CL170: 53 | CM170: 63 | CN170: 27 | CO170: 6 | CP170: 88 | CQ170: 50 | CR170: 26 | CS170: 65 | CT170: 73 | CU170: 80 | CV170: 46
A171: 83 | B171: 52 | C171: 7 | D171: 56 | E171: 98 | F171: 9 | G171: 89 | H171: 31 | I171: 84 | J171: 21 | K171: 5 | L171: 22 | M171: 90 | N171: 30 | O171: 72 | P171: 7 | Q171: 24 | R171: 50 | S171: 71 | T171: 72 | U171: 100 | V171: 54 | W171: 4 | X171: 77 | Y171: 59 | Z171: 90 | AA171: 2 | AB171: 60 | AC171: 8 | AD171: 97 | AE171: 56 | AF171: 19 | AG171: 56 | AH171: 1 | AI171: 81 | AJ171: 71 | AK171: 46 | AL171: 9 | AM171: 53 | AN171: 38 | AO171: 78 | AP171: 64 | AQ171: 73 | AR171: 46 | AS171: 83 | AT171: 5 | AU171: 100 | AV171: 87 | AW171: 90 | AX171: 49 | AY171: 12 | AZ171: 56 | BA171: 96 | BB171: 8 | BC171: 39 | BD171: 75 | BE171: 73 | BF171: 19 | BG171: 94 | BH171: 53 | BI171: 36 | BJ171: 43 | BK171: 33 | BL171: 22 | BM171: 4 | BN171: 86 | BO171: 40 | BP171: 94 | BQ171: 83 | BR171: 76 | BS171: 95 | BT171: 17 | BU171: 81 | BV171: 60 | BW171: 52 | BX171: 31 | BY171: 90 | BZ171: 56 | CA171: 41 | CB171: 74 | CC171: 1 | CD171: 5 | CE171: 50 | CF171: 88 | CG171: 90 | CH171: 73 | CI171: 62 | CJ171: 2 | CK171: 35 | CL171: 14 | CM171: 76 | CN171: 76 | CO171: 72 | CP171: 55 | CQ171: 12 | CR171: 82 | CS171: 40 | CT171: 47 | CU171: 85 | CV171: 21
A172: 15 | B172: 100 | C172: 12 | D172: 85 | E172: 92 | F172: 11 | G172: 83 | H172: 65 | I172: 43 | J172: 57 | K172: 54 | L172: 63 | M172: 62 | N172: 83 | O172: 96 | P172: 91 | Q172: 5 | R172: 20 | S172: 36 | T172: 22 | U172: 21 | V172: 40 | W172: 93 | X172: 55 | Y172: 8 | Z172: 47 | AA172: 22 | AB172: 11 | AC172: 19 | AD172: 41 | AE172: 49 | AF172: 13 | AG172: 86 | AH172: 91 | AI172: 92 | AJ172: 30 | AK172: 10 | AL172: 39 | AM172: 84 | AN172: 95 | AO172: 17 | AP172: 71 | AQ172: 54 | AR172: 57 | AS172: 26 | AT172: 38 | AU172: 50 | AV172: 79 | AW172: 16 | AX172: 87 | AY172: 11 | AZ172: 13 | BA172: 86 | BB172: 2 | BC172: 2 | BD172: 45 | BE172: 16 | BF172: 73 | BG172: 87 | BH172: 32 | BI172: 51 | BJ172: 14 | BK172: 40 | BL172: 55 | BM172: 26 | BN172: 100 | BO172: 73 | BP172: 41 | BQ172: 85 | BR172: 13 | BS172: 93 | BT172: 41 | BU172: 23 | BV172: 32 | BW172: 7 | BX172: 67 | BY172: 49 | BZ172: 86 | CA172: 52 | CB172: 82 | CC172: 90 | CD172: 77 | CE172: 77 | CF172: 31 | CG172: 22 | CH172: 92 | CI172: 85 | CJ172: 16 | CK172: 73 | CL172: 93 | CM172: 62 | CN172: 50 | CO172: 68 | CP172: 15 | CQ172: 42 | CR172: 96 | CS172: 75 | CT172: 46 | CU172: 59 | CV172: 99
A173: 86 | B173: 77 | C173: 36 | D173: 30 | E173: 9 | F173: 54 | G173: 41 | H173: 87 | I173: 87 | J173: 5 | K173: 69 | L173: 69 | M173: 88 | N173: 47 | O173: 73 | P173: 89 | Q173: 98 | R173: 29 | S173: 72 | T173: 72 | U173: 52 | V173: 53 | W173: 55 | X173: 88 | Y173: 95 | Z173: 74 | AA173: 82 | AB173: 9 | AC173: 26 | AD173: 49 | AE173: 61 | AF173: 5 | AG173: 29 | AH173: 57 | AI173: 43 | AJ173: 9 | AK173: 47 | AL173: 13 | AM173: 10 | AN173: 86 | AO173: 93 | AP173: 88 | AQ173: 88 | AR173: 97 | AS173: 9 | AT173: 45 | AU173: 41 | AV173: 8 | AW173: 56 | AX173: 46 | AY173: 98 | AZ173: 81 | BA173: 59 | BB173: 3 | BC173: 59 | BD173: 87 | BE173: 80 | BF173: 88 | BG173: 47 | BH173: 56 | BI173: 59 | BJ173: 74 | BK173: 97 | BL173: 69 | BM173: 31 | BN173: 3 | BO173: 64 | BP173: 55 | BQ173: 13 | BR173: 62 | BS173: 58 | BT173: 94 | BU173: 45 | BV173: 29 | BW173: 16 | BX173: 99 | BY173: 3 | BZ173: 77 | CA173: 81 | CB173: 14 | CC173: 96 | CD173: 52 | CE173: 56 | CF173: 18 | CG173: 66 | CH173: 30 | CI173: 65 | CJ173: 24 | CK173: 8 | CL173: 25 | CM173: 97 | CN173: 87 | CO173: 32 | CP173: 21 | CQ173: 48 | CR173: 82 | CS173: 11 | CT173: 5 | CU173: 61 | CV173: 27
A174: 20 | B174: 61 | C174: 41 | D174: 38 | E174: 99 | F174: 62 | G174: 63 | H174: 93 | I174: 2 | J174: 74 | K174: 49 | L174: 5 | M174: 36 | N174: 86 | O174: 87 | P174: 52 | Q174: 88 | R174: 68 | S174: 23 | T174: 98 | U174: 93 | V174: 79 | W174: 91 | X174: 65 | Y174: 37 | Z174: 18 | AA174: 36 | AB174: 100 | AC174: 16 | AD174: 99 | AE174: 72 | AF174: 53 | AG174: 94 | AH174: 51 | AI174: 27 | AJ174: 68 | AK174: 8 | AL174: 51 | AM174: 70 | AN174: 52 | AO174: 43 | AP174: 65 | AQ174: 15 | AR174: 71 | AS174: 27 | AT174: 12 | AU174: 50 | AV174: 97 | AW174: 14 | AX174: 2 | AY174: 95 | AZ174: 30 | BA174: 16 | BB174: 59 | BC174: 37 | BD174: 66 | BE174: 51 | BF174: 40 | BG174: 29 | BH174: 71 | BI174: 46 | BJ174: 2 | BK174: 69 | BL174: 63 | BM174: 51 | BN174: 39 | BO174: 46 | BP174: 78 | BQ174: 40 | BR174: 40 | BS174: 24 | BT174: 6 | BU174: 49 | BV174: 89 | BW174: 74 | BX174: 9 | BY174: 65 | BZ174: 45 | CA174: 84 | CB174: 3 | CC174: 28 | CD174: 17 | CE174: 1 | CF174: 21 | CG174: 55 | CH174: 93 | CI174: 61 | CJ174: 49 | CK174: 32 | CL174: 2 | CM174: 5 | CN174: 62 | CO174: 20 | CP174: 84 | CQ174: 73 | CR174: 66 | CS174: 53 | CT174: 85 | CU174: 94 | CV174: 47
A175: 89 | B175: 98 | C175: 97 | D175: 14 | E175: 70 | F175: 43 | G175: 53 | H175: 81 | I175: 47 | J175: 9 | K175: 58 | L175: 19 | M175: 95 | N175: 82 | O175: 73 | P175: 91 | Q175: 56 | R175: 12 | S175: 42 | T175: 4 | U175: 2 | V175: 99 | W175: 33 | X175: 67 | Y175: 9 | Z175: 97 | AA175: 22 | AB175: 70 | AC175: 57 | AD175: 56 | AE175: 16 | AF175: 82 | AG175: 67 | AH175: 7 | AI175: 52 | AJ175: 81 | AK175: 38 | AL175: 14 | AM175: 35 | AN175: 58 | AO175: 28 | AP175: 44 | AQ175: 61 | AR175: 70 | AS175: 35 | AT175: 53 | AU175: 81 | AV175: 83 | AW175: 90 | AX175: 81 | AY175: 54 | AZ175: 95 | BA175: 24 | BB175: 28 | BC175: 81 | BD175: 35 | BE175: 51 | BF175: 34 | BG175: 49 | BH175: 67 | BI175: 50 | BJ175: 49 | BK175: 63 | BL175: 11 | BM175: 28 | BN175: 17 | BO175: 30 | BP175: 84 | BQ175: 59 | BR175: 1 | BS175: 64 | BT175: 9 | BU175: 91 | BV175: 10 | BW175: 34 | BX175: 4 | BY175: 6 | BZ175: 75 | CA175: 79 | CB175: 91 | CC175: 31 | CD175: 60 | CE175: 83 | CF175: 58 | CG175: 26 | CH175: 39 | CI175: 21 | CJ175: 39 | CK175: 10 | CL175: 34 | CM175: 95 | CN175: 49 | CO175: 28 | CP175: 75 | CQ175: 78 | CR175: 97 | CS175: 72 | CT175: 85 | CU175: 71 | CV175: 72
A176: 78 | B176: 71 | C176: 92 | D176: 88 | E176: 51 | F176: 3 | G176: 99 | H176: 78 | I176: 57 | J176: 39 | K176: 7 | L176: 66 | M176: 23 | N176: 27 | O176: 41 | P176: 38 | Q176: 11 | R176: 71 | S176: 89 | T176: 17 | U176: 19 | V176: 87 | W176: 58 | X176: 10 | Y176: 14 | Z176: 58 | AA176: 34 | AB176: 57 | AC176: 68 | AD176: 32 | AE176: 35 | AF176: 88 | AG176: 48 | AH176: 87 | AI176: 5 | AJ176: 33 | AK176: 59 | AL176: 44 | AM176: 89 | AN176: 31 | AO176: 62 | AP176: 87 | AQ176: 27 | AR176: 69 | AS176: 32 | AT176: 10 | AU176: 87 | AV176: 25 | AW176: 59 | AX176: 60 | AY176: 81 | AZ176: 86 | BA176: 28 | BB176: 32 | BC176: 58 | BD176: 12 | BE176: 82 | BF176: 87 | BG176: 65 | BH176: 35 | BI176: 36 | BJ176: 52 | BK176: 40 | BL176: 42 | BM176: 99 | BN176: 43 | BO176: 71 | BP176: 47 | BQ176: 34 | BR176: 87 | BS176: 72 | BT176: 8 | BU176: 73 | BV176: 77 | BW176: 13 | BX176: 97 | BY176: 2 | BZ176: 85 | CA176: 64 | CB176: 58 | CC176: 80 | CD176: 69 | CE176: 31 | CF176: 92 | CG176: 46 | CH176: 42 | CI176: 13 | CJ176: 48 | CK176: 28 | CL176: 69 | CM176: 39 | CN176: 38 | CO176: 66 | CP176: 95 | CQ176: 42 | CR176: 40 | CS176: 97 | CT176: 19 | CU176: 97 | CV176: 72
A177: 61 | B177: 39 | C177: 50 | D177: 71 | E177: 25 | F177: 34 | G177: 88 | H177: 93 | I177: 16 | J177: 77 | K177: 63 | L177: 75 | M177: 27 | N177: 83 | O177: 76 | P177: 52 | Q177: 89 | R177: 81 | S177: 91 | T177: 77 | U177: 65 | V177: 93 | W177: 80 | X177: 54 | Y177: 61 | Z177: 27 | AA177: 83 | AB177: 43 | AC177: 34 | AD177: 46 | AE177: 66 | AF177: 29 | AG177: 53 | AH177: 10 | AI177: 68 | AJ177: 4 | AK177: 54 | AL177: 33 | AM177: 14 | AN177: 61 | AO177: 91 | AP177: 25 | AQ177: 60 | AR177: 2 | AS177: 10 | AT177: 91 | AU177: 54 | AV177: 99 | AW177: 87 | AX177: 82 | AY177: 38 | AZ177: 99 | BA177: 81 | BB177: 56 | BC177: 86 | BD177: 54 | BE177: 78 | BF177: 43 | BG177: 90 | BH177: 36 | BI177: 44 | BJ177: 23 | BK177: 7 | BL177: 76 | BM177: 58 | BN177: 40 | BO177: 84 | BP177: 63 | BQ177: 59 | BR177: 94 | BS177: 59 | BT177: 22 | BU177: 66 | BV177: 2 | BW177: 74 | BX177: 97 | BY177: 45 | BZ177: 97 | CA177: 73 | CB177: 16 | CC177: 51 | CD177: 92 | CE177: 26 | CF177: 27 | CG177: 17 | CH177: 97 | CI177: 6 | CJ177: 99 | CK177: 96 | CL177: 42 | CM177: 68 | CN177: 73 | CO177: 93 | CP177: 89 | CQ177: 100 | CR177: 61 | CS177: 91 | CT177: 72 | CU177: 14 | CV177: 31
A178: 26 | B178: 23 | C178: 4 | D178: 36 | E178: 97 | F178: 95 | G178: 50 | H178: 66 | I178: 65 | J178: 54 | K178: 87 | L178: 17 | M178: 12 | N178: 86 | O178: 69 | P178: 38 | Q178: 3 | R178: 27 | S178: 45 | T178: 20 | U178: 17 | V178: 17 | W178: 31 | X178: 77 | Y178: 9 | Z178: 7 | AA178: 65 | AB178: 30 | AC178: 55 | AD178: 33 | AE178: 69 | AF178: 7 | AG178: 16 | AH178: 44 | AI178: 81 | AJ178: 47 | AK178: 4 | AL178: 42 | AM178: 36 | AN178: 60 | AO178: 30 | AP178: 18 | AQ178: 17 | AR178: 58 | AS178: 59 | AT178: 51 | AU178: 14 | AV178: 34 | AW178: 47 | AX178: 31 | AY178: 45 | AZ178: 33 | BA178: 40 | BB178: 54 | BC178: 86 | BD178: 93 | BE178: 70 | BF178: 27 | BG178: 21 | BH178: 95 | BI178: 30 | BJ178: 87 | BK178: 64 | BL178: 92 | BM178: 79 | BN178: 82 | BO178: 78 | BP178: 18 | BQ178: 16 | BR178: 48 | BS178: 71 | BT178: 93 | BU178: 32 | BV178: 15 | BW178: 5 | BX178: 3 | BY178: 77 | BZ178: 6 | CA178: 70 | CB178: 75 | CC178: 89 | CD178: 32 | CE178: 41 | CF178: 5 | CG178: 56 | CH178: 99 | CI178: 45 | CJ178: 15 | CK178: 21 | CL178: 65 | CM178: 29 | CN178: 46 | CO178: 9 | CP178: 50 | CQ178: 28 | CR178: 20 | CS178: 32 | CT178: 39 | CU178: 57 | CV178: 69
A179: 92 | B179: 81 | C179: 78 | D179: 1 | E179: 52 | F179: 5 | G179: 97 | H179: 60 | I179: 67 | J179: 86 | K179: 15 | L179: 86 | M179: 14 | N179: 50 | O179: 56 | P179: 91 | Q179: 32 | R179: 28 | S179: 60 | T179: 20 | U179: 33 | V179: 50 | W179: 74 | X179: 90 | Y179: 58 | Z179: 57 | AA179: 64 | AB179: 40 | AC179: 50 | AD179: 47 | AE179: 77 | AF179: 30 | AG179: 3 | AH179: 62 | AI179: 44 | AJ179: 44 | AK179: 87 | AL179: 19 | AM179: 26 | AN179: 79 | AO179: 55 | AP179: 50 | AQ179: 20 | AR179: 59 | AS179: 24 | AT179: 31 | AU179: 16 | AV179: 95 | AW179: 91 | AX179: 32 | AY179: 37 | AZ179: 9 | BA179: 66 | BB179: 37 | BC179: 29 | BD179: 21 | BE179: 31 | BF179: 10 | BG179: 25 | BH179: 83 | BI179: 5 | BJ179: 83 | BK179: 94 | BL179: 14 | BM179: 83 | BN179: 28 | BO179: 40 | BP179: 11 | BQ179: 54 | BR179: 85 | BS179: 94 | BT179: 92 | BU179: 64 | BV179: 6 | BW179: 28 | BX179: 94 | BY179: 63 | BZ179: 16 | CA179: 97 | CB179: 49 | CC179: 15 | CD179: 88 | CE179: 48 | CF179: 41 | CG179: 86 | CH179: 48 | CI179: 61 | CJ179: 32 | CK179: 14 | CL179: 7 | CM179: 85 | CN179: 66 | CO179: 94 | CP179: 55 | CQ179: 6 | CR179: 82 | CS179: 97 | CT179: 81 | CU179: 77 | CV179: 8
A180: 40 | B180: 26 | C180: 48 | D180: 13 | E180: 99 | F180: 46 | G180: 41 | H180: 98 | I180: 22 | J180: 10 | K180: 87 | L180: 40 | M180: 65 | N180: 7 | O180: 46 | P180: 83 | Q180: 73 | R180: 16 | S180: 93 | T180: 39 | U180: 56 | V180: 98 | W180: 68 | X180: 88 | Y180: 5 | Z180: 35 | AA180: 35 | AB180: 66 | AC180: 28 | AD180: 56 | AE180: 16 | AF180: 36 | AG180: 54 | AH180: 98 | AI180: 88 | AJ180: 51 | AK180: 63 | AL180: 35 | AM180: 40 | AN180: 90 | AO180: 19 | AP180: 82 | AQ180: 80 | AR180: 33 | AS180: 21 | AT180: 33 | AU180: 45 | AV180: 13 | AW180: 2 | AX180: 10 | AY180: 71 | AZ180: 14 | BA180: 97 | BB180: 81 | BC180: 93 | BD180: 38 | BE180: 63 | BF180: 4 | BG180: 56 | BH180: 55 | BI180: 80 | BJ180: 52 | BK180: 16 | BL180: 68 | BM180: 15 | BN180: 93 | BO180: 42 | BP180: 48 | BQ180: 21 | BR180: 64 | BS180: 9 | BT180: 78 | BU180: 5 | BV180: 93 | BW180: 58 | BX180: 4 | BY180: 73 | BZ180: 88 | CA180: 19 | CB180: 32 | CC180: 7 | CD180: 16 | CE180: 2 | CF180: 38 | CG180: 38 | CH180: 61 | CI180: 57 | CJ180: 56 | CK180: 85 | CL180: 32 | CM180: 88 | CN180: 79 | CO180: 1 | CP180: 90 | CQ180: 84 | CR180: 61 | CS180: 82 | CT180: 66 | CU180: 16 | CV180: 63
A181: 23 | B181: 17 | C181: 58 | D181: 80 | E181: 17 | F181: 5 | G181: 3 | H181: 35 | I181: 66 | J181: 20 | K181: 65 | L181: 29 | M181: 64 | N181: 71 | O181: 75 | P181: 50 | Q181: 6 | R181: 27 | S181: 58 | T181: 1 | U181: 24 | V181: 55 | W181: 91 | X181: 21 | Y181: 36 | Z181: 43 | AA181: 92 | AB181: 83 | AC181: 47 | AD181: 72 | AE181: 45 | AF181: 62 | AG181: 10 | AH181: 69 | AI181: 63 | AJ181: 26 | AK181: 69 | AL181: 95 | AM181: 23 | AN181: 36 | AO181: 92 | AP181: 85 | AQ181: 56 | AR181: 25 | AS181: 52 | AT181: 70 | AU181: 70 | AV181: 27 | AW181: 54 | AX181: 88 | AY181: 76 | AZ181: 91 | BA181: 4 | BB181: 15 | BC181: 15 | BD181: 64 | BE181: 50 | BF181: 58 | BG181: 19 | BH181: 64 | BI181: 5 | BJ181: 72 | BK181: 60 | BL181: 19 | BM181: 24 | BN181: 9 | BO181: 19 | BP181: 27 | BQ181: 16 | BR181: 12 | BS181: 99 | BT181: 84 | BU181: 52 | BV181: 53 | BW181: 15 | BX181: 54 | BY181: 82 | BZ181: 43 | CA181: 86 | CB181: 40 | CC181: 40 | CD181: 90 | CE181: 34 | CF181: 28 | CG181: 65 | CH181: 49 | CI181: 96 | CJ181: 48 | CK181: 60 | CL181: 1 | CM181: 59 | CN181: 45 | CO181: 85 | CP181: 1 | CQ181: 7 | CR181: 48 | CS181: 96 | CT181: 49 | CU181: 63 | CV181: 25
A182: 27 | B182: 60 | C182: 49 | D182: 91 | E182: 87 | F182: 2 | G182: 26 | H182: 23 | I182: 82 | J182: 91 | K182: 1 | L182: 9 | M182: 1 | N182: 92 | O182: 60 | P182: 11 | Q182: 62 | R182: 70 | S182: 39 | T182: 58 | U182: 37 | V182: 71 | W182: 52 | X182: 52 | Y182: 41 | Z182: 42 | AA182: 12 | AB182: 14 | AC182: 87 | AD182: 25 | AE182: 79 | AF182: 80 | AG182: 55 | AH182: 63 | AI182: 14 | AJ182: 45 | AK182: 100 | AL182: 65 | AM182: 8 | AN182: 13 | AO182: 59 | AP182: 75 | AQ182: 8 | AR182: 70 | AS182: 39 | AT182: 56 | AU182: 10 | AV182: 28 | AW182: 51 | AX182: 100 | AY182: 89 | AZ182: 2 | BA182: 78 | BB182: 85 | BC182: 67 | BD182: 48 | BE182: 49 | BF182: 95 | BG182: 54 | BH182: 86 | BI182: 5 | BJ182: 97 | BK182: 51 | BL182: 30 | BM182: 31 | BN182: 26 | BO182: 91 | BP182: 15 | BQ182: 15 | BR182: 94 | BS182: 33 | BT182: 22 | BU182: 69 | BV182: 100 | BW182: 22 | BX182: 19 | BY182: 71 | BZ182: 81 | CA182: 15 | CB182: 59 | CC182: 70 | CD182: 56 | CE182: 82 | CF182: 1 | CG182: 39 | CH182: 56 | CI182: 91 | CJ182: 23 | CK182: 76 | CL182: 20 | CM182: 47 | CN182: 95 | CO182: 74 | CP182: 75 | CQ182: 72 | CR182: 53 | CS182: 31 | CT182: 42 | CU182: 49 | CV182: 4
A183: 19 | B183: 51 | C183: 30 | D183: 34 | E183: 36 | F183: 51 | G183: 95 | H183: 24 | I183: 96 | J183: 30 | K183: 78 | L183: 18 | M183: 5 | N183: 62 | O183: 39 | P183: 54 | Q183: 97 | R183: 18 | S183: 94 | T183: 92 | U183: 7 | V183: 7 | W183: 75 | X183: 23 | Y183: 76 | Z183: 37 | AA183: 14 | AB183: 19 | AC183: 48 | AD183: 4 | AE183: 94 | AF183: 52 | AG183: 26 | AH183: 38 | AI183: 59 | AJ183: 93 | AK183: 28 | AL183: 7 | AM183: 32 | AN183: 70 | AO183: 16 | AP183: 9 | AQ183: 2 | AR183: 39 | AS183: 97 | AT183: 71 | AU183: 19 | AV183: 87 | AW183: 31 | AX183: 32 | AY183: 72 | AZ183: 43 | BA183: 85 | BB183: 41 | BC183: 99 | BD183: 15 | BE183: 21 | BF183: 62 | BG183: 14 | BH183: 69 | BI183: 10 | BJ183: 52 | BK183: 41 | BL183: 9 | BM183: 56 | BN183: 55 | BO183: 95 | BP183: 9 | BQ183: 30 | BR183: 13 | BS183: 88 | BT183: 63 | BU183: 63 | BV183: 7 | BW183: 70 | BX183: 6 | BY183: 76 | BZ183: 43 | CA183: 77 | CB183: 19 | CC183: 24 | CD183: 46 | CE183: 1 | CF183: 27 | CG183: 66 | CH183: 88 | CI183: 62 | CJ183: 69 | CK183: 85 | CL183: 24 | CM183: 29 | CN183: 71 | CO183: 24 | CP183: 29 | CQ183: 79 | CR183: 50 | CS183: 57 | CT183: 13 | CU183: 62 | CV183: 67
A184: 75 | B184: 99 | C184: 35 | D184: 76 | E184: 51 | F184: 90 | G184: 7 | H184: 95 | I184: 46 | J184: 28 | K184: 57 | L184: 84 | M184: 32 | N184: 82 | O184: 6 | P184: 7 | Q184: 93 | R184: 48 | S184: 48 | T184: 26 | U184: 84 | V184: 41 | W184: 63 | X184: 91 | Y184: 5 | Z184: 67 | AA184: 13 | AB184: 72 | AC184: 93 | AD184: 59 | AE184: 50 | AF184: 38 | AG184: 78 | AH184: 62 | AI184: 45 | AJ184: 77 | AK184: 47 | AL184: 63 | AM184: 61 | AN184: 82 | AO184: 96 | AP184: 67 | AQ184: 36 | AR184: 59 | AS184: 46 | AT184: 22 | AU184: 47 | AV184: 67 | AW184: 53 | AX184: 19 | AY184: 31 | AZ184: 63 | BA184: 80 | BB184: 13 | BC184: 91 | BD184: 40 | BE184: 100 | BF184: 93 | BG184: 46 | BH184: 88 | BI184: 28 | BJ184: 15 | BK184: 83 | BL184: 29 | BM184: 39 | BN184: 31 | BO184: 14 | BP184: 22 | BQ184: 79 | BR184: 12 | BS184: 86 | BT184: 93 | BU184: 7 | BV184: 46 | BW184: 19 | BX184: 72 | BY184: 51 | BZ184: 10 | CA184: 94 | CB184: 47 | CC184: 5 | CD184: 23 | CE184: 94 | CF184: 3 | CG184: 55 | CH184: 13 | CI184: 61 | CJ184: 82 | CK184: 83 | CL184: 13 | CM184: 26 | CN184: 64 | CO184: 12 | CP184: 7 | CQ184: 27 | CR184: 16 | CS184: 73 | CT184: 80 | CU184: 54 | CV184: 67
A185: 2 | B185: 18 | C185: 4 | D185: 29 | E185: 52 | F185: 97 | G185: 53 | H185: 53 | I185: 8 | J185: 21 | K185: 18 | L185: 88 | M185: 90 | N185: 98 | O185: 66 | P185: 1 | Q185: 11 | R185: 93 | S185: 93 | T185: 27 | U185: 20 | V185: 92 | W185: 6 | X185: 71 | Y185: 28 | Z185: 34 | AA185: 78 | AB185: 18 | AC185: 70 | AD185: 80 | AE185: 93 | AF185: 85 | AG185: 79 | AH185: 56 | AI185: 59 | AJ185: 61 | AK185: 58 | AL185: 69 | AM185: 98 | AN185: 30 | AO185: 48 | AP185: 16 | AQ185: 81 | AR185: 81 | AS185: 65 | AT185: 51 | AU185: 53 | AV185: 87 | AW185: 11 | AX185: 6 | AY185: 7 | AZ185: 2 | BA185: 72 | BB185: 41 | BC185: 29 | BD185: 10 | BE185: 12 | BF185: 66 | BG185: 95 | BH185: 79 | BI185: 49 | BJ185: 25 | BK185: 52 | BL185: 61 | BM185: 53 | BN185: 41 | BO185: 72 | BP185: 71 | BQ185: 22 | BR185: 94 | BS185: 79 | BT185: 41 | BU185: 87 | BV185: 97 | BW185: 30 | BX185: 93 | BY185: 1 | BZ185: 95 | CA185: 25 | CB185: 21 | CC185: 79 | CD185: 83 | CE185: 15 | CF185: 22 | CG185: 56 | CH185: 36 | CI185: 57 | CJ185: 72 | CK185: 18 | CL185: 43 | CM185: 87 | CN185: 22 | CO185: 9 | CP185: 37 | CQ185: 18 | CR185: 89 | CS185: 67 | CT185: 83 | CU185: 92 | CV185: 67
A186: 38 | B186: 60 | C186: 98 | D186: 89 | E186: 51 | F186: 40 | G186: 89 | H186: 90 | I186: 24 | J186: 8 | K186: 79 | L186: 16 | M186: 54 | N186: 22 | O186: 26 | P186: 47 | Q186: 86 | R186: 75 | S186: 29 | T186: 19 | U186: 50 | V186: 44 | W186: 39 | X186: 63 | Y186: 97 | Z186: 52 | AA186: 61 | AB186: 91 | AC186: 38 | AD186: 70 | AE186: 73 | AF186: 45 | AG186: 43 | AH186: 33 | AI186: 60 | AJ186: 63 | AK186: 66 | AL186: 86 | AM186: 65 | AN186: 63 | AO186: 98 | AP186: 64 | AQ186: 88 | AR186: 70 | AS186: 81 | AT186: 64 | AU186: 12 | AV186: 62 | AW186: 89 | AX186: 12 | AY186: 76 | AZ186: 91 | BA186: 54 | BB186: 11 | BC186: 57 | BD186: 37 | BE186: 6 | BF186: 47 | BG186: 17 | BH186: 54 | BI186: 11 | BJ186: 86 | BK186: 96 | BL186: 94 | BM186: 13 | BN186: 91 | BO186: 22 | BP186: 40 | BQ186: 84 | BR186: 59 | BS186: 31 | BT186: 50 | BU186: 21 | BV186: 53 | BW186: 48 | BX186: 95 | BY186: 57 | BZ186: 15 | CA186: 25 | CB186: 81 | CC186: 29 | CD186: 55 | CE186: 22 | CF186: 91 | CG186: 66 | CH186: 90 | CI186: 74 | CJ186: 8 | CK186: 30 | CL186: 15 | CM186: 94 | CN186: 45 | CO186: 27 | CP186: 90 | CQ186: 51 | CR186: 85 | CS186: 83 | CT186: 74 | CU186: 38 | CV186: 46
A187: 3 | B187: 2 | C187: 5 | D187: 66 | E187: 80 | F187: 19 | G187: 87 | H187: 21 | I187: 40 | J187: 2 | K187: 95 | L187: 100 | M187: 92 | N187: 17 | O187: 49 | P187: 34 | Q187: 37 | R187: 88 | S187: 89 | T187: 23 | U187: 33 | V187: 3 | W187: 69 | X187: 20 | Y187: 37 | Z187: 7 | AA187: 36 | AB187: 80 | AC187: 14 | AD187: 19 | AE187: 45 | AF187: 96 | AG187: 2 | AH187: 54 | AI187: 89 | AJ187: 70 | AK187: 49 | AL187: 100 | AM187: 72 | AN187: 12 | AO187: 62 | AP187: 77 | AQ187: 53 | AR187: 88 | AS187: 56 | AT187: 20 | AU187: 26 | AV187: 94 | AW187: 98 | AX187: 3 | AY187: 37 | AZ187: 60 | BA187: 15 | BB187: 36 | BC187: 5 | BD187: 81 | BE187: 42 | BF187: 70 | BG187: 62 | BH187: 31 | BI187: 66 | BJ187: 40 | BK187: 40 | BL187: 54 | BM187: 15 | BN187: 31 | BO187: 91 | BP187: 9 | BQ187: 42 | BR187: 93 | BS187: 23 | BT187: 54 | BU187: 43 | BV187: 20 | BW187: 22 | BX187: 33 | BY187: 72 | BZ187: 42 | CA187: 20 | CB187: 1 | CC187: 73 | CD187: 54 | CE187: 36 | CF187: 81 | CG187: 1 | CH187: 78 | CI187: 2 | CJ187: 93 | CK187: 88 | CL187: 37 | CM187: 80 | CN187: 40 | CO187: 76 | CP187: 87 | CQ187: 94 | CR187: 45 | CS187: 20 | CT187: 31 | CU187: 14 | CV187: 64
A188: 48 | B188: 74 | C188: 12 | D188: 95 | E188: 93 | F188: 29 | G188: 43 | H188: 68 | I188: 88 | J188: 95 | K188: 22 | L188: 14 | M188: 79 | N188: 53 | O188: 40 | P188: 51 | Q188: 20 | R188: 22 | S188: 16 | T188: 9 | U188: 31 | V188: 40 | W188: 29 | X188: 74 | Y188: 65 | Z188: 59 | AA188: 11 | AB188: 59 | AC188: 39 | AD188: 66 | AE188: 17 | AF188: 95 | AG188: 18 | AH188: 10 | AI188: 46 | AJ188: 38 | AK188: 71 | AL188: 41 | AM188: 62 | AN188: 7 | AO188: 89 | AP188: 10 | AQ188: 16 | AR188: 74 | AS188: 31 | AT188: 22 | AU188: 38 | AV188: 79 | AW188: 84 | AX188: 59 | AY188: 71 | AZ188: 33 | BA188: 67 | BB188: 60 | BC188: 60 | BD188: 40 | BE188: 75 | BF188: 11 | BG188: 39 | BH188: 14 | BI188: 1 | BJ188: 98 | BK188: 51 | BL188: 39 | BM188: 80 | BN188: 31 | BO188: 7 | BP188: 55 | BQ188: 80 | BR188: 58 | BS188: 12 | BT188: 80 | BU188: 76 | BV188: 65 | BW188: 97 | BX188: 79 | BY188: 86 | BZ188: 56 | CA188: 81 | CB188: 43 | CC188: 74 | CD188: 21 | CE188: 30 | CF188: 41 | CG188: 60 | CH188: 13 | CI188: 84 | CJ188: 75 | CK188: 47 | CL188: 4 | CM188: 67 | CN188: 93 | CO188: 32 | CP188: 20 | CQ188: 48 | CR188: 5 | CS188: 75 | CT188: 36 | CU188: 1 | CV188: 73
A189: 62 | B189: 58 | C189: 6 | D189: 95 | E189: 23 | F189: 50 | G189: 82 | H189: 77 | I189: 81 | J189: 6 | K189: 40 | L189: 96 | M189: 97 | N189: 37 | O189: 77 | P189: 76 | Q189: 73 | R189: 83 | S189: 33 | T189: 88 | U189: 40 | V189: 79 | W189: 89 | X189: 88 | Y189: 8 | Z189: 85 | AA189: 87 | AB189: 56 | AC189: 22 | AD189: 74 | AE189: 10 | AF189: 39 | AG189: 5 | AH189: 5 | AI189: 73 | AJ189: 4 | AK189: 77 | AL189: 38 | AM189: 95 | AN189: 71 | AO189: 29 | AP189: 46 | AQ189: 5 | AR189: 36 | AS189: 50 | AT189: 76 | AU189: 21 | AV189: 64 | AW189: 2 | AX189: 1 | AY189: 40 | AZ189: 64 | BA189: 96 | BB189: 47 | BC189: 35 | BD189: 53 | BE189: 20 | BF189: 96 | BG189: 41 | BH189: 54 | BI189: 3 | BJ189: 39 | BK189: 80 | BL189: 64 | BM189: 57 | BN189: 30 | BO189: 65 | BP189: 14 | BQ189: 20 | BR189: 13 | BS189: 82 | BT189: 32 | BU189: 3 | BV189: 71 | BW189: 63 | BX189: 11 | BY189: 93 | BZ189: 3 | CA189: 64 | CB189: 57 | CC189: 61 | CD189: 97 | CE189: 7 | CF189: 41 | CG189: 32 | CH189: 14 | CI189: 75 | CJ189: 89 | CK189: 40 | CL189: 90 | CM189: 23 | CN189: 21 | CO189: 35 | CP189: 72 | CQ189: 96 | CR189: 75 | CS189: 46 | CT189: 88 | CU189: 61 | CV189: 11
A190: 73 | B190: 65 | C190: 73 | D190: 70 | E190: 43 | F190: 78 | G190: 70 | H190: 48 | I190: 63 | J190: 88 | K190: 24 | L190: 11 | M190: 100 | N190: 76 | O190: 95 | P190: 14 | Q190: 87 | R190: 99 | S190: 44 | T190: 9 | U190: 58 | V190: 71 | W190: 8 | X190: 87 | Y190: 95 | Z190: 87 | AA190: 53 | AB190: 17 | AC190: 1 | AD190: 54 | AE190: 97 | AF190: 38 | AG190: 1 | AH190: 37 | AI190: 31 | AJ190: 41 | AK190: 73 | AL190: 34 | AM190: 1 | AN190: 62 | AO190: 39 | AP190: 87 | AQ190: 35 | AR190: 59 | AS190: 27 | AT190: 6 | AU190: 93 | AV190: 37 | AW190: 38 | AX190: 24 | AY190: 95 | AZ190: 68 | BA190: 81 | BB190: 19 | BC190: 99 | BD190: 26 | BE190: 6 | BF190: 50 | BG190: 10 | BH190: 21 | BI190: 33 | BJ190: 89 | BK190: 31 | BL190: 73 | BM190: 3 | BN190: 10 | BO190: 5 | BP190: 60 | BQ190: 62 | BR190: 85 | BS190: 23 | BT190: 6 | BU190: 33 | BV190: 95 | BW190: 22 | BX190: 5 | BY190: 68 | BZ190: 11 | CA190: 37 | CB190: 81 | CC190: 71 | CD190: 21 | CE190: 71 | CF190: 42 | CG190: 54 | CH190: 24 | CI190: 65 | CJ190: 45 | CK190: 90 | CL190: 96 | CM190: 99 | CN190: 98 | CO190: 64 | CP190: 53 | CQ190: 43 | CR190: 20 | CS190: 3 | CT190: 33 | CU190: 57 | CV190: 24
A191: 91 | B191: 35 | C191: 91 | D191: 67 | E191: 88 | F191: 85 | G191: 59 | H191: 80 | I191: 32 | J191: 57 | K191: 91 | L191: 43 | M191: 74 | N191: 49 | O191: 47 | P191: 60 | Q191: 34 | R191: 92 | S191: 63 | T191: 45 | U191: 68 | V191: 78 | W191: 81 | X191: 80 | Y191: 12 | Z191: 35 | AA191: 69 | AB191: 19 | AC191: 46 | AD191: 97 | AE191: 88 | AF191: 77 | AG191: 75 | AH191: 42 | AI191: 82 | AJ191: 51 | AK191: 17 | AL191: 70 | AM191: 80 | AN191: 8 | AO191: 94 | AP191: 46 | AQ191: 35 | AR191: 86 | AS191: 32 | AT191: 80 | AU191: 64 | AV191: 98 | AW191: 3 | AX191: 58 | AY191: 8 | AZ191: 62 | BA191: 50 | BB191: 74 | BC191: 77 | BD191: 26 | BE191: 80 | BF191: 40 | BG191: 18 | BH191: 50 | BI191: 82 | BJ191: 27 | BK191: 5 | BL191: 97 | BM191: 95 | BN191: 68 | BO191: 72 | BP191: 25 | BQ191: 23 | BR191: 1 | BS191: 62 | BT191: 16 | BU191: 71 | BV191: 82 | BW191: 56 | BX191: 54 | BY191: 86 | BZ191: 51 | CA191: 80 | CB191: 63 | CC191: 20 | CD191: 39 | CE191: 14 | CF191: 94 | CG191: 17 | CH191: 86 | CI191: 52 | CJ191: 59 | CK191: 77 | CL191: 2 | CM191: 83 | CN191: 99 | CO191: 93 | CP191: 74 | CQ191: 20 | CR191: 43 | CS191: 24 | CT191: 94 | CU191: 58 | CV191: 41
A192: 89 | B192: 89 | C192: 63 | D192: 31 | E192: 56 | F192: 100 | G192: 90 | H192: 3 | I192: 68 | J192: 23 | K192: 13 | L192: 21 | M192: 80 | N192: 27 | O192: 31 | P192: 10 | Q192: 80 | R192: 53 | S192: 17 | T192: 85 | U192: 35 | V192: 21 | W192: 69 | X192: 95 | Y192: 40 | Z192: 99 | AA192: 72 | AB192: 92 | AC192: 9 | AD192: 75 | AE192: 35 | AF192: 85 | AG192: 75 | AH192: 23 | AI192: 8 | AJ192: 83 | AK192: 92 | AL192: 63 | AM192: 87 | AN192: 96 | AO192: 6 | AP192: 44 | AQ192: 60 | AR192: 52 | AS192: 60 | AT192: 63 | AU192: 78 | AV192: 58 | AW192: 11 | AX192: 74 | AY192: 91 | AZ192: 5 | BA192: 72 | BB192: 13 | BC192: 14 | BD192: 94 | BE192: 73 | BF192: 61 | BG192: 23 | BH192: 5 | BI192: 84 | BJ192: 96 | BK192: 48 | BL192: 84 | BM192: 70 | BN192: 49 | BO192: 83 | BP192: 67 | BQ192: 21 | BR192: 71 | BS192: 99 | BT192: 36 | BU192: 96 | BV192: 47 | BW192: 72 | BX192: 30 | BY192: 83 | BZ192: 22 | CA192: 26 | CB192: 38 | CC192: 34 | CD192: 98 | CE192: 19 | CF192: 55 | CG192: 1 | CH192: 52 | CI192: 69 | CJ192: 95 | CK192: 61 | CL192: 21 | CM192: 95 | CN192: 22 | CO192: 3 | CP192: 60 | CQ192: 91 | CR192: 11 | CS192: 38 | CT192: 18 | CU192: 41 | CV192: 58
A193: 93 | B193: 33 | C193: 86 | D193: 74 | E193: 21 | F193: 57 | G193: 12 | H193: 78 | I193: 78 | J193: 18 | K193: 4 | L193: 66 | M193: 81 | N193: 47 | O193: 98 | P193: 9 | Q193: 9 | R193: 18 | S193: 57 | T193: 27 | U193: 28 | V193: 77 | W193: 47 | X193: 3 | Y193: 82 | Z193: 44 | AA193: 17 | AB193: 35 | AC193: 4 | AD193: 86 | AE193: 59 | AF193: 54 | AG193: 21 | AH193: 62 | AI193: 51 | AJ193: 73 | AK193: 61 | AL193: 66 | AM193: 25 | AN193: 3 | AO193: 18 | AP193: 96 | AQ193: 1 | AR193: 58 | AS193: 63 | AT193: 100 | AU193: 90 | AV193: 90 | AW193: 91 | AX193: 27 | AY193: 60 | AZ193: 66 | BA193: 61 | BB193: 41 | BC193: 47 | BD193: 6 | BE193: 51 | BF193: 16 | BG193: 17 | BH193: 30 | BI193: 27 | BJ193: 44 | BK193: 75 | BL193: 70 | BM193: 64 | BN193: 78 | BO193: 34 | BP193: 99 | BQ193: 93 | BR193: 66 | BS193: 52 | BT193: 36 | BU193: 18 | BV193: 45 | BW193: 74 | BX193: 49 | BY193: 69 | BZ193: 55 | CA193: 99 | CB193: 13 | CC193: 8 | CD193: 84 | CE193: 33 | CF193: 29 | CG193: 20 | CH193: 54 | CI193: 62 | CJ193: 93 | CK193: 90 | CL193: 64 | CM193: 72 | CN193: 6 | CO193: 35 | CP193: 44 | CQ193: 81 | CR193: 26 | CS193: 27 | CT193: 36 | CU193: 43 | CV193: 35
A194: 28 | B194: 92 | C194: 4 | D194: 98 | E194: 78 | F194: 69 | G194: 48 | H194: 97 | I194: 68 | J194: 31 | K194: 50 | L194: 74 | M194: 49 | N194: 57 | O194: 98 | P194: 3 | Q194: 89 | R194: 16 | S194: 76 | T194: 35 | U194: 21 | V194: 18 | W194: 97 | X194: 28 | Y194: 31 | Z194: 73 | AA194: 15 | AB194: 42 | AC194: 83 | AD194: 44 | AE194: 8 | AF194: 71 | AG194: 9 | AH194: 7 | AI194: 32 | AJ194: 17 | AK194: 80 | AL194: 80 | AM194: 65 | AN194: 69 | AO194: 66 | AP194: 54 | AQ194: 33 | AR194: 37 | AS194: 66 | AT194: 82 | AU194: 30 | AV194: 26 | AW194: 22 | AX194: 18 | AY194: 8 | AZ194: 45 | BA194: 7 | BB194: 89 | BC194: 95 | BD194: 38 | BE194: 96 | BF194: 40 | BG194: 97 | BH194: 81 | BI194: 62 | BJ194: 26 | BK194: 40 | BL194: 28 | BM194: 63 | BN194: 31 | BO194: 79 | BP194: 22 | BQ194: 8 | BR194: 78 | BS194: 5 | BT194: 6 | BU194: 10 | BV194: 20 | BW194: 71 | BX194: 95 | BY194: 35 | BZ194: 97 | CA194: 25 | CB194: 3 | CC194: 67 | CD194: 66 | CE194: 72 | CF194: 10 | CG194: 1 | CH194: 43 | CI194: 73 | CJ194: 24 | CK194: 16 | CL194: 96 | CM194: 45 | CN194: 58 | CO194: 97 | CP194: 15 | CQ194: 78 | CR194: 85 | CS194: 24 | CT194: 92 | CU194: 69 | CV194: 24
A195: 49 | B195: 91 | C195: 79 | D195: 29 | E195: 61 | F195: 30 | G195: 69 | H195: 77 | I195: 76 | J195: 57 | K195: 42 | L195: 41 | M195: 19 | N195: 53 | O195: 89 | P195: 69 | Q195: 40 | R195: 91 | S195: 47 | T195: 54 | U195: 48 | V195: 76 | W195: 91 | X195: 15 | Y195: 47 | Z195: 76 | AA195: 64 | AB195: 12 | AC195: 56 | AD195: 5 | AE195: 80 | AF195: 84 | AG195: 22 | AH195: 48 | AI195: 21 | AJ195: 66 | AK195: 27 | AL195: 60 | AM195: 6 | AN195: 82 | AO195: 48 | AP195: 98 | AQ195: 26 | AR195: 18 | AS195: 80 | AT195: 14 | AU195: 30 | AV195: 86 | AW195: 95 | AX195: 66 | AY195: 36 | AZ195: 77 | BA195: 86 | BB195: 71 | BC195: 84 | BD195: 69 | BE195: 21 | BF195: 23 | BG195: 57 | BH195: 54 | BI195: 71 | BJ195: 54 | BK195: 55 | BL195: 73 | BM195: 63 | BN195: 9 | BO195: 92 | BP195: 56 | BQ195: 93 | BR195: 94 | BS195: 52 | BT195: 43 | BU195: 92 | BV195: 50 | BW195: 18 | BX195: 63 | BY195: 39 | BZ195: 53 | CA195: 12 | CB195: 82 | CC195: 68 | CD195: 45 | CE195: 18 | CF195: 60 | CG195: 52 | CH195: 98 | CI195: 9 | CJ195: 89 | CK195: 73 | CL195: 94 | CM195: 38 | CN195: 13 | CO195: 15 | CP195: 16 | CQ195: 77 | CR195: 44 | CS195: 20 | CT195: 50 | CU195: 97 | CV195: 20
A196: 56 | B196: 97 | C196: 28 | D196: 8 | E196: 29 | F196: 65 | G196: 73 | H196: 100 | I196: 19 | J196: 30 | K196: 81 | L196: 33 | M196: 3 | N196: 18 | O196: 71 | P196: 93 | Q196: 57 | R196: 97 | S196: 55 | T196: 77 | U196: 3 | V196: 47 | W196: 22 | X196: 46 | Y196: 33 | Z196: 12 | AA196: 40 | AB196: 46 | AC196: 86 | AD196: 42 | AE196: 91 | AF196: 15 | AG196: 45 | AH196: 84 | AI196: 82 | AJ196: 74 | AK196: 15 | AL196: 79 | AM196: 25 | AN196: 88 | AO196: 26 | AP196: 92 | AQ196: 88 | AR196: 99 | AS196: 74 | AT196: 21 | AU196: 49 | AV196: 22 | AW196: 22 | AX196: 31 | AY196: 14 | AZ196: 52 | BA196: 40 | BB196: 77 | BC196: 30 | BD196: 94 | BE196: 91 | BF196: 66 | BG196: 80 | BH196: 89 | BI196: 6 | BJ196: 85 | BK196: 89 | BL196: 99 | BM196: 44 | BN196: 94 | BO196: 55 | BP196: 75 | BQ196: 15 | BR196: 25 | BS196: 27 | BT196: 69 | BU196: 20 | BV196: 46 | BW196: 72 | BX196: 23 | BY196: 58 | BZ196: 36 | CA196: 46 | CB196: 26 | CC196: 68 | CD196: 37 | CE196: 28 | CF196: 52 | CG196: 16 | CH196: 90 | CI196: 89 | CJ196: 90 | CK196: 7 | CL196: 85 | CM196: 84 | CN196: 4 | CO196: 23 | CP196: 83 | CQ196: 22 | CR196: 74 | CS196: 4 | CT196: 32 | CU196: 67 | CV196: 73
A197: 23 | B197: 85 | C197: 13 | D197: 49 | E197: 26 | F197: 85 | G197: 70 | H197: 48 | I197: 100 | J197: 94 | K197: 10 | L197: 28 | M197: 89 | N197: 81 | O197: 63 | P197: 70 | Q197: 32 | R197: 47 | S197: 13 | T197: 5 | U197: 36 | V197: 67 | W197: 30 | X197: 20 | Y197: 11 | Z197: 51 | AA197: 22 | AB197: 60 | AC197: 65 | AD197: 13 | AE197: 36 | AF197: 3 | AG197: 18 | AH197: 71 | AI197: 31 | AJ197: 81 | AK197: 30 | AL197: 49 | AM197: 36 | AN197: 85 | AO197: 26 | AP197: 72 | AQ197: 9 | AR197: 8 | AS197: 100 | AT197: 68 | AU197: 95 | AV197: 73 | AW197: 50 | AX197: 66 | AY197: 6 | AZ197: 96 | BA197: 19 | BB197: 73 | BC197: 97 | BD197: 48 | BE197: 37 | BF197: 52 | BG197: 58 | BH197: 90 | BI197: 36 | BJ197: 76 | BK197: 63 | BL197: 100 | BM197: 18 | BN197: 83 | BO197: 73 | BP197: 54 | BQ197: 74 | BR197: 89 | BS197: 57 | BT197: 17 | BU197: 49 | BV197: 20 | BW197: 47 | BX197: 94 | BY197: 93 | BZ197: 97 | CA197: 61 | CB197: 1 | CC197: 16 | CD197: 69 | CE197: 39 | CF197: 31 | CG197: 27 | CH197: 12 | CI197: 49 | CJ197: 64 | CK197: 2 | CL197: 62 | CM197: 56 | CN197: 37 | CO197: 65 | CP197: 32 | CQ197: 66 | CR197: 25 | CS197: 72 | CT197: 10 | CU197: 37 | CV197: 83
A198: 23 | B198: 8 | C198: 21 | D198: 25 | E198: 47 | F198: 19 | G198: 66 | H198: 36 | I198: 46 | J198: 71 | K198: 31 | L198: 64 | M198: 44 | N198: 74 | O198: 21 | P198: 23 | Q198: 12 | R198: 68 | S198: 38 | T198: 75 | U198: 48 | V198: 19 | W198: 36 | X198: 38 | Y198: 18 | Z198: 68 | AA198: 38 | AB198: 57 | AC198: 27 | AD198: 93 | AE198: 82 | AF198: 27 | AG198: 6 | AH198: 21 | AI198: 96 | AJ198: 17 | AK198: 79 | AL198: 80 | AM198: 32 | AN198: 64 | AO198: 49 | AP198: 83 | AQ198: 32 | AR198: 34 | AS198: 66 | AT198: 34 | AU198: 45 | AV198: 96 | AW198: 73 | AX198: 54 | AY198: 61 | AZ198: 54 | BA198: 30 | BB198: 35 | BC198: 89 | BD198: 51 | BE198: 31 | BF198: 8 | BG198: 47 | BH198: 24 | BI198: 94 | BJ198: 19 | BK198: 69 | BL198: 90 | BM198: 98 | BN198: 66 | BO198: 73 | BP198: 31 | BQ198: 43 | BR198: 57 | BS198: 86 | BT198: 44 | BU198: 83 | BV198: 52 | BW198: 44 | BX198: 91 | BY198: 81 | BZ198: 56 | CA198: 29 | CB198: 56 | CC198: 29 | CD198: 88 | CE198: 16 | CF198: 37 | CG198: 22 | CH198: 37 | CI198: 51 | CJ198: 29 | CK198: 92 | CL198: 6 | CM198: 19 | CN198: 41 | CO198: 18 | CP198: 23 | CQ198: 87 | CR198: 11 | CS198: 16 | CT198: 70 | CU198: 22 | CV198: 69
A199: 68 | B199: 50 | C199: 100 | D199: 82 | E199: 94 | F199: 51 | G199: 65 | H199: 16 | I199: 74 | J199: 89 | K199: 28 | L199: 27 | M199: 25 | N199: 1 | O199: 1 | P199: 75 | Q199: 43 | R199: 54 | S199: 10 | T199: 9 | U199: 20 | V199: 12 | W199: 18 | X199: 43 | Y199: 81 | Z199: 14 | AA199: 59 | AB199: 75 | AC199: 93 | AD199: 14 | AE199: 33 | AF199: 36 | AG199: 95 | AH199: 86 | AI199: 1 | AJ199: 12 | AK199: 28 | AL199: 53 | AM199: 41 | AN199: 46 | AO199: 32 | AP199: 2 | AQ199: 55 | AR199: 87 | AS199: 15 | AT199: 37 | AU199: 44 | AV199: 34 | AW199: 95 | AX199: 21 | AY199: 5 | AZ199: 92 | BA199: 10 | BB199: 77 | BC199: 50 | BD199: 80 | BE199: 34 | BF199: 19 | BG199: 37 | BH199: 6 | BI199: 28 | BJ199: 89 | BK199: 1 | BL199: 30 | BM199: 13 | BN199: 46 | BO199: 56 | BP199: 89 | BQ199: 46 | BR199: 45 | BS199: 38 | BT199: 48 | BU199: 31 | BV199: 21 | BW199: 84 | BX199: 94 | BY199: 12 | BZ199: 74 | CA199: 100 | CB199: 53 | CC199: 32 | CD199: 91 | CE199: 35 | CF199: 25 | CG199: 10 | CH199: 16 | CI199: 22 | CJ199: 99 | CK199: 63 | CL199: 78 | CM199: 84 | CN199: 46 | CO199: 94 | CP199: 15 | CQ199: 22 | CR199: 69 | CS199: 94 | CT199: 85 | CU199: 60 | CV199: 31
A200: 5 | B200: 99 | C200: 61 | D200: 27 | E200: 99 | F200: 35 | G200: 74 | H200: 40 | I200: 12 | J200: 40 | K200: 27 | L200: 56 | M200: 63 | N200: 78 | O200: 67 | P200: 80 | Q200: 87 | R200: 52 | S200: 29 | T200: 79 | U200: 28 | V200: 45 | W200: 96 | X200: 62 | Y200: 30 | Z200: 98 | AA200: 4 | AB200: 12 | AC200: 63 | AD200: 24 | AE200: 66 | AF200: 20 | AG200: 40 | AH200: 19 | AI200: 54 | AJ200: 11 | AK200: 86 | AL200: 88 | AM200: 10 | AN200: 13 | AO200: 20 | AP200: 9 | AQ200: 4 | AR200: 25 | AS200: 81 | AT200: 66 | AU200: 29 | AV200: 31 | AW200: 22 | AX200: 88 | AY200: 1 | AZ200: 75 | BA200: 79 | BB200: 44 | BC200: 50 | BD200: 33 | BE200: 37 | BF200: 4 | BG200: 29 | BH200: 73 | BI200: 16 | BJ200: 85 | BK200: 100 | BL200: 1 | BM200: 3 | BN200: 60 | BO200: 16 | BP200: 1 | BQ200: 42 | BR200: 68 | BS200: 33 | BT200: 77 | BU200: 88 | BV200: 7 | BW200: 26 | BX200: 6 | BY200: 95 | BZ200: 10 | CA200: 77 | CB200: 99 | CC200: 24 | CD200: 23 | CE200: 67 | CF200: 1 | CG200: 35 | CH200: 58 | CI200: 31 | CJ200: 23 | CK200: 36 | CL200: 32 | CM200: 96 | CN200: 80 | CO200: 8 | CP200: 90 | CQ200: 68 | CR200: 2 | CS200: 62 | CT200: 57 | CU200: 77 | CV200: 24
A201: 1 | B201: 22 | C201: 36 | D201: 97 | E201: 81 | F201: 92 | G201: 24 | H201: 15 | I201: 2 | J201: 97 | K201: 82 | L201: 70 | M201: 80 | N201: 45 | O201: 46 | P201: 53 | Q201: 30 | R201: 57 | S201: 14 | T201: 6 | U201: 65 | V201: 10 | W201: 69 | X201: 26 | Y201: 12 | Z201: 81 | AA201: 75 | AB201: 26 | AC201: 78 | AD201: 81 | AE201: 67 | AF201: 45 | AG201: 97 | AH201: 12 | AI201: 40 | AJ201: 59 | AK201: 100 | AL201: 38 | AM201: 81 | AN201: 40 | AO201: 55 | AP201: 64 | AQ201: 97 | AR201: 74 | AS201: 85 | AT201: 93 | AU201: 23 | AV201: 22 | AW201: 28 | AX201: 89 | AY201: 28 | AZ201: 70 | BA201: 87 | BB201: 45 | BC201: 37 | BD201: 39 | BE201: 46 | BF201: 82 | BG201: 14 | BH201: 19 | BI201: 7 | BJ201: 24 | BK201: 34 | BL201: 43 | BM201: 96 | BN201: 30 | BO201: 2 | BP201: 72 | BQ201: 26 | BR201: 7 | BS201: 55 | BT201: 58 | BU201: 89 | BV201: 80 | BW201: 40 | BX201: 98 | BY201: 74 | BZ201: 33 | CA201: 87 | CB201: 79 | CC201: 10 | CD201: 73 | CE201: 48 | CF201: 81 | CG201: 38 | CH201: 66 | CI201: 20 | CJ201: 87 | CK201: 83 | CL201: 15 | CM201: 77 | CN201: 85 | CO201: 70 | CP201: 72 | CQ201: 41 | CR201: 57 | CS201: 95 | CT201: 69 | CU201: 49 | CV201: 68
A202: 61 | B202: 78 | C202: 97 | D202: 56 | E202: 27 | F202: 11 | G202: 70 | H202: 8 | I202: 88 | J202: 86 | K202: 89 | L202: 98 | M202: 7 | N202: 84 | O202: 41 | P202: 43 | Q202: 11 | R202: 18 | S202: 92 | T202: 53 | U202: 42 | V202: 86 | W202: 51 | X202: 80 | Y202: 61 | Z202: 47 | AA202: 36 | AB202: 12 | AC202: 53 | AD202: 65 | AE202: 26 | AF202: 7 | AG202: 40 | AH202: 69 | AI202: 53 | AJ202: 25 | AK202: 83 | AL202: 68 | AM202: 70 | AN202: 64 | AO202: 74 | AP202: 90 | AQ202: 93 | AR202: 56 | AS202: 63 | AT202: 61 | AU202: 57 | AV202: 93 | AW202: 46 | AX202: 25 | AY202: 90 | AZ202: 23 | BA202: 42 | BB202: 87 | BC202: 33 | BD202: 70 | BE202: 90 | BF202: 51 | BG202: 60 | BH202: 15 | BI202: 89 | BJ202: 14 | BK202: 7 | BL202: 95 | BM202: 54 | BN202: 82 | BO202: 32 | BP202: 34 | BQ202: 81 | BR202: 43 | BS202: 65 | BT202: 12 | BU202: 56 | BV202: 90 | BW202: 7 | BX202: 10 | BY202: 7 | BZ202: 33 | CA202: 40 | CB202: 71 | CC202: 31 | CD202: 6 | CE202: 24 | CF202: 66 | CG202: 46 | CH202: 24 | CI202: 98 | CJ202: 1 | CK202: 53 | CL202: 85 | CM202: 8 | CN202: 49 | CO202: 90 | CP202: 41 | CQ202: 54 | CR202: 35 | CS202: 32 | CT202: 22 | CU202: 59 | CV202: 96
A203: 10 | B203: 27 | C203: 50 | D203: 31 | E203: 97 | F203: 27 | G203: 94 | H203: 47 | I203: 90 | J203: 37 | K203: 25 | L203: 33 | M203: 68 | N203: 18 | O203: 69 | P203: 28 | Q203: 96 | R203: 36 | S203: 41 | T203: 97 | U203: 21 | V203: 67 | W203: 81 | X203: 83 | Y203: 31 | Z203: 55 | AA203: 11 | AB203: 85 | AC203: 94 | AD203: 29 | AE203: 98 | AF203: 93 | AG203: 23 | AH203: 34 | AI203: 11 | AJ203: 90 | AK203: 84 | AL203: 79 | AM203: 55 | AN203: 69 | AO203: 8 | AP203: 93 | AQ203: 64 | AR203: 16 | AS203: 66 | AT203: 30 | AU203: 55 | AV203: 6 | AW203: 73 | AX203: 68 | AY203: 14 | AZ203: 38 | BA203: 45 | BB203: 100 | BC203: 32 | BD203: 92 | BE203: 97 | BF203: 94 | BG203: 26 | BH203: 8 | BI203: 49 | BJ203: 57 | BK203: 77 | BL203: 66 | BM203: 5 | BN203: 50 | BO203: 96 | BP203: 42 | BQ203: 80 | BR203: 75 | BS203: 98 | BT203: 50 | BU203: 12 | BV203: 20 | BW203: 95 | BX203: 35 | BY203: 13 | BZ203: 92 | CA203: 42 | CB203: 97 | CC203: 18 | CD203: 24 | CE203: 94 | CF203: 50 | CG203: 96 | CH203: 62 | CI203: 76 | CJ203: 72 | CK203: 64 | CL203: 48 | CM203: 27 | CN203: 2 | CO203: 7 | CP203: 3 | CQ203: 72 | CR203: 35 | CS203: 11 | CT203: 68 | CU203: 43 | CV203: 6
... 359 more rows

Sheet Output
A4: Output
A5: 56 | B5: 54 | C5: 25 | D5: 77 | E5: 3 | F5: 56 | G5: 9 | H5: 86 | I5: 52 | J5: 42 | K5: 6 | L5: 13 | M5: 77 | N5: 42 | O5: 14 | P5: 11 | Q5: 89 | R5: 50 | S5: 92 | T5: 20 | U5: 68 | V5: 48 | W5: 44 | X5: 19 | Y5: 101 | Z5: 69 | AA5: 84 | AB5: 2 | AC5: 81 | AD5: 56 | AE5: 39 | AF5: 35 | AG5: 49 | AH5: 13 | AI5: 32 | AJ5: 68 | AK5: 2 | AL5: 76 | AM5: 16 | AN5: 2 | AO5: 71 | AP5: 61 | AQ5: 73 | AR5: 79 | AS5: 53 | AT5: 68 | AU5: 87 | AV5: 11 | AW5: 4 | AX5: 71 | AY5: 57 | AZ5: 43 | BA5: 86 | BB5: 90 | BC5: 76 | BD5: 55 | BE5: 82 | BF5: 77 | BG5: 39 | BH5: 51 | BI5: 13 | BJ5: 5 | BK5: 41 | BL5: 47 | BM5: 31 | BN5: 41 | BO5: 7 | BP5: 11 | BQ5: 33 | BR5: 4 | BS5: 71 | BT5: 91 | BU5: 6 | BV5: 96 | BW5: 22 | BX5: 82 | BY5: 35 | BZ5: 10 | CA5: 95 | CB5: 2 | CC5: 95 | CD5: 49 | CE5: 31 | CF5: 64 | CG5: 13 | CH5: 63 | CI5: 89 | CJ5: 13 | CK5: 47 | CL5: 7 | CM5: 46 | CN5: 82 | CO5: 100 | CP5: 70 | CQ5: 78 | CR5: 70 | CS5: 56 | CT5: 49 | CU5: 98 | CV5: 35
A6: 77 | B6: 8 | C6: 85 | D6: 81 | E6: 86 | F6: 18 | G6: 81 | H6: 94 | I6: 72 | J6: 26 | K6: 81 | L6: 56 | M6: 75 | N6: 23 | O6: 2 | P6: 8 | Q6: 35 | R6: 4 | S6: 32 | T6: 64 | U6: 56 | V6: 82 | W6: 30 | X6: 83 | Y6: 24 | Z6: 7 | AA6: 91 | AB6: 85 | AC6: 41 | AD6: 52 | AE6: 55 | AF6: 29 | AG6: 29 | AH6: 83 | AI6: 47 | AJ6: 36 | AK6: 32 | AL6: 65 | AM6: 74 | AN6: 97 | AO6: 62 | AP6: 90 | AQ6: 25 | AR6: 23 | AS6: 80 | AT6: 20 | AU6: 19 | AV6: 72 | AW6: 62 | AX6: 25 | AY6: 81 | AZ6: 32 | BA6: 26 | BB6: 4 | BC6: 96 | BD6: 53 | BE6: 36 | BF6: 72 | BG6: 60 | BH6: 32 | BI6: 57 | BJ6: 69 | BK6: 89 | BL6: 99 | BM6: 11 | BN6: 64 | BO6: 95 | BP6: 72 | BQ6: 70 | BR6: 69 | BS6: 73 | BT6: 34 | BU6: 3 | BV6: 66 | BW6: 63 | BX6: 8 | BY6: 101 | BZ6: 33 | CA6: 33 | CB6: 76 | CC6: 12 | CD6: 44 | CE6: 22 | CF6: 18 | CG6: 85 | CH6: 27 | CI6: 95 | CJ6: 18 | CK6: 76 | CL6: 56 | CM6: 33 | CN6: 8 | CO6: 88 | CP6: 72 | CQ6: 97 | CR6: 61 | CS6: 91 | CT6: 96 | CU6: 46 | CV6: 3
A7: 84 | B7: 41 | C7: 58 | D7: 20 | E7: 8 | F7: 38 | G7: 62 | H7: 85 | I7: 18 | J7: 72 | K7: 62 | L7: 95 | M7: 30 | N7: 87 | O7: 27 | P7: 93 | Q7: 57 | R7: 57 | S7: 95 | T7: 22 | U7: 37 | V7: 9 | W7: 2 | X7: 93 | Y7: 48 | Z7: 26 | AA7: 71 | AB7: 43 | AC7: 67 | AD7: 39 | AE7: 29 | AF7: 30 | AG7: 19 | AH7: 23 | AI7: 34 | AJ7: 67 | AK7: 15 | AL7: 27 | AM7: 12 | AN7: 92 | AO7: 11 | AP7: 8 | AQ7: 62 | AR7: 67 | AS7: 21 | AT7: 90 | AU7: 6 | AV7: 74 | AW7: 33 | AX7: 88 | AY7: 66 | AZ7: 4 | BA7: 7 | BB7: 60 | BC7: 16 | BD7: 57 | BE7: 25 | BF7: 18 | BG7: 81 | BH7: 20 | BI7: 13 | BJ7: 84 | BK7: 99 | BL7: 88 | BM7: 56 | BN7: 70 | BO7: 36 | BP7: 52 | BQ7: 16 | BR7: 33 | BS7: 9 | BT7: 98 | BU7: 6 | BV7: 23 | BW7: 66 | BX7: 28 | BY7: 11 | BZ7: 65 | CA7: 92 | CB7: 17 | CC7: 57 | CD7: 5 | CE7: 57 | CF7: 95 | CG7: 20 | CH7: 67 | CI7: 20 | CJ7: 45 | CK7: 37 | CL7: 36 | CM7: 32 | CN7: 42 | CO7: 27 | CP7: 30 | CQ7: 79 | CR7: 60 | CS7: 43 | CT7: 98 | CU7: 67 | CV7: 30
A8: 44 | B8: 84 | C8: 72 | D8: 100 | E8: 34 | F8: 25 | G8: 4 | H8: 96 | I8: 17 | J8: 81 | K8: 63 | L8: 89 | M8: 10 | N8: 49 | O8: 77 | P8: 54 | Q8: 68 | R8: 31 | S8: 53 | T8: 93 | U8: 12 | V8: 61 | W8: 47 | X8: 78 | Y8: 57 | Z8: 63 | AA8: 97 | AB8: 99 | AC8: 72 | AD8: 89 | AE8: 57 | AF8: 20 | AG8: 59 | AH8: 66 | AI8: 36 | AJ8: 45 | AK8: 62 | AL8: 79 | AM8: 15 | AN8: 24 | AO8: 75 | AP8: 100 | AQ8: 73 | AR8: 62 | AS8: 45 | AT8: 12 | AU8: 79 | AV8: 71 | AW8: 21 | AX8: 23 | AY8: 27 | AZ8: 52 | BA8: 38 | BB8: 59 | BC8: 78 | BD8: 40 | BE8: 70 | BF8: 91 | BG8: 61 | BH8: 97 | BI8: 11 | BJ8: 50 | BK8: 77 | BL8: 23 | BM8: 58 | BN8: 41 | BO8: 51 | BP8: 41 | BQ8: 90 | BR8: 8 | BS8: 71 | BT8: 101 | BU8: 93 | BV8: 21 | BW8: 57 | BX8: 77 | BY8: 34 | BZ8: 5 | CA8: 90 | CB8: 56 | CC8: 60 | CD8: 30 | CE8: 31 | CF8: 5 | CG8: 24 | CH8: 32 | CI8: 45 | CJ8: 32 | CK8: 61 | CL8: 86 | CM8: 21 | CN8: 74 | CO8: 98 | CP8: 51 | CQ8: 93 | CR8: 18 | CS8: 54 | CT8: 5 | CU8: 70 | CV8: 34
A9: 26 | B9: 80 | C9: 8 | D9: 24 | E9: 52 | F9: 48 | G9: 52 | H9: 54 | I9: 101 | J9: 80 | K9: 82 | L9: 55 | M9: 83 | N9: 65 | O9: 97 | P9: 27 | Q9: 100 | R9: 23 | S9: 97 | T9: 88 | U9: 63 | V9: 57 | W9: 53 | X9: 39 | Y9: 77 | Z9: 27 | AA9: 63 | AB9: 9 | AC9: 69 | AD9: 53 | AE9: 74 | AF9: 87 | AG9: 93 | AH9: 51 | AI9: 53 | AJ9: 65 | AK9: 65 | AL9: 25 | AM9: 31 | AN9: 70 | AO9: 35 | AP9: 52 | AQ9: 18 | AR9: 74 | AS9: 75 | AT9: 16 | AU9: 11 | AV9: 17 | AW9: 97 | AX9: 80 | AY9: 7 | AZ9: 46 | BA9: 14 | BB9: 99 | BC9: 57 | BD9: 62 | BE9: 99 | BF9: 2 | BG9: 98 | BH9: 35 | BI9: 92 | BJ9: 10 | BK9: 45 | BL9: 17 | BM9: 74 | BN9: 36 | BO9: 76 | BP9: 99 | BQ9: 27 | BR9: 21 | BS9: 79 | BT9: 22 | BU9: 9 | BV9: 93 | BW9: 6 | BX9: 44 | BY9: 4 | BZ9: 42 | CA9: 54 | CB9: 89 | CC9: 63 | CD9: 97 | CE9: 19 | CF9: 10 | CG9: 97 | CH9: 34 | CI9: 35 | CJ9: 96 | CK9: 66 | CL9: 10 | CM9: 100 | CN9: 91 | CO9: 23 | CP9: 90 | CQ9: 68 | CR9: 36 | CS9: 81 | CT9: 73 | CU9: 91 | CV9: 63
A10: 34 | B10: 21 | C10: 52 | D10: 85 | E10: 11 | F10: 15 | G10: 96 | H10: 29 | I10: 15 | J10: 11 | K10: 31 | L10: 91 | M10: 38 | N10: 94 | O10: 11 | P10: 60 | Q10: 50 | R10: 72 | S10: 95 | T10: 28 | U10: 48 | V10: 33 | W10: 41 | X10: 9 | Y10: 11 | Z10: 20 | AA10: 22 | AB10: 81 | AC10: 47 | AD10: 51 | AE10: 55 | AF10: 71 | AG10: 56 | AH10: 53 | AI10: 62 | AJ10: 86 | AK10: 75 | AL10: 16 | AM10: 59 | AN10: 43 | AO10: 5 | AP10: 5 | AQ10: 42 | AR10: 4 | AS10: 4 | AT10: 48 | AU10: 96 | AV10: 73 | AW10: 28 | AX10: 48 | AY10: 13 | AZ10: 72 | BA10: 69 | BB10: 12 | BC10: 56 | BD10: 63 | BE10: 84 | BF10: 87 | BG10: 8 | BH10: 32 | BI10: 38 | BJ10: 63 | BK10: 39 | BL10: 17 | BM10: 18 | BN10: 22 | BO10: 83 | BP10: 39 | BQ10: 15 | BR10: 46 | BS10: 76 | BT10: 58 | BU10: 57 | BV10: 59 | BW10: 70 | BX10: 90 | BY10: 37 | BZ10: 48 | CA10: 41 | CB10: 35 | CC10: 66 | CD10: 30 | CE10: 89 | CF10: 83 | CG10: 61 | CH10: 78 | CI10: 40 | CJ10: 67 | CK10: 10 | CL10: 47 | CM10: 70 | CN10: 79 | CO10: 7 | CP10: 97 | CQ10: 2 | CR10: 19 | CS10: 63 | CT10: 76 | CU10: 52 | CV10: 49
A11: 42 | B11: 93 | C11: 23 | D11: 8 | E11: 18 | F11: 94 | G11: 76 | H11: 3 | I11: 77 | J11: 101 | K11: 95 | L11: 77 | M11: 69 | N11: 42 | O11: 41 | P11: 80 | Q11: 5 | R11: 61 | S11: 74 | T11: 49 | U11: 73 | V11: 95 | W11: 17 | X11: 2 | Y11: 75 | Z11: 21 | AA11: 69 | AB11: 81 | AC11: 40 | AD11: 26 | AE11: 98 | AF11: 35 | AG11: 66 | AH11: 9 | AI11: 11 | AJ11: 83 | AK11: 63 | AL11: 5 | AM11: 60 | AN11: 101 | AO11: 45 | AP11: 93 | AQ11: 96 | AR11: 98 | AS11: 71 | AT11: 67 | AU11: 68 | AV11: 70 | AW11: 97 | AX11: 35 | AY11: 95 | AZ11: 34 | BA11: 57 | BB11: 98 | BC11: 43 | BD11: 9 | BE11: 89 | BF11: 88 | BG11: 21 | BH11: 79 | BI11: 89 | BJ11: 56 | BK11: 69 | BL11: 11 | BM11: 25 | BN11: 14 | BO11: 18 | BP11: 55 | BQ11: 91 | BR11: 11 | BS11: 56 | BT11: 20 | BU11: 98 | BV11: 23 | BW11: 63 | BX11: 78 | BY11: 37 | BZ11: 17 | CA11: 7 | CB11: 29 | CC11: 13 | CD11: 50 | CE11: 14 | CF11: 26 | CG11: 73 | CH11: 50 | CI11: 58 | CJ11: 51 | CK11: 78 | CL11: 85 | CM11: 60 | CN11: 50 | CO11: 15 | CP11: 29 | CQ11: 48 | CR11: 54 | CS11: 20 | CT11: 18 | CU11: 49 | CV11: 23
A12: 79 | B12: 4 | C12: 43 | D12: 68 | E12: 14 | F12: 9 | G12: 63 | H12: 58 | I12: 40 | J12: 93 | K12: 32 | L12: 45 | M12: 71 | N12: 30 | O12: 12 | P12: 96 | Q12: 2 | R12: 47 | S12: 60 | T12: 23 | U12: 75 | V12: 38 | W12: 48 | X12: 45 | Y12: 29 | Z12: 70 | AA12: 93 | AB12: 23 | AC12: 41 | AD12: 34 | AE12: 41 | AF12: 96 | AG12: 17 | AH12: 96 | AI12: 81 | AJ12: 43 | AK12: 29 | AL12: 22 | AM12: 26 | AN12: 59 | AO12: 49 | AP12: 4 | AQ12: 51 | AR12: 97 | AS12: 41 | AT12: 18 | AU12: 52 | AV12: 56 | AW12: 34 | AX12: 6 | AY12: 67 | AZ12: 89 | BA12: 19 | BB12: 61 | BC12: 91 | BD12: 31 | BE12: 58 | BF12: 21 | BG12: 63 | BH12: 77 | BI12: 93 | BJ12: 65 | BK12: 32 | BL12: 46 | BM12: 28 | BN12: 65 | BO12: 96 | BP12: 47 | BQ12: 47 | BR12: 22 | BS12: 89 | BT12: 35 | BU12: 81 | BV12: 71 | BW12: 100 | BX12: 56 | BY12: 11 | BZ12: 27 | CA12: 100 | CB12: 13 | CC12: 74 | CD12: 29 | CE12: 53 | CF12: 29 | CG12: 51 | CH12: 99 | CI12: 7 | CJ12: 93 | CK12: 14 | CL12: 5 | CM12: 50 | CN12: 25 | CO12: 47 | CP12: 49 | CQ12: 80 | CR12: 16 | CS12: 87 | CT12: 86 | CU12: 79 | CV12: 27
A13: 25 | B13: 49 | C13: 17 | D13: 9 | E13: 70 | F13: 30 | G13: 22 | H13: 53 | I13: 31 | J13: 55 | K13: 69 | L13: 3 | M13: 74 | N13: 8 | O13: 2 | P13: 77 | Q13: 5 | R13: 96 | S13: 97 | T13: 76 | U13: 87 | V13: 80 | W13: 44 | X13: 8 | Y13: 76 | Z13: 94 | AA13: 93 | AB13: 88 | AC13: 17 | AD13: 77 | AE13: 86 | AF13: 46 | AG13: 25 | AH13: 61 | AI13: 54 | AJ13: 33 | AK13: 63 | AL13: 10 | AM13: 53 | AN13: 81 | AO13: 66 | AP13: 43 | AQ13: 74 | AR13: 4 | AS13: 75 | AT13: 52 | AU13: 85 | AV13: 18 | AW13: 94 | AX13: 60 | AY13: 40 | AZ13: 38 | BA13: 37 | BB13: 9 | BC13: 44 | BD13: 59 | BE13: 57 | BF13: 66 | BG13: 100 | BH13: 86 | BI13: 20 | BJ13: 25 | BK13: 4 | BL13: 46 | BM13: 82 | BN13: 2 | BO13: 39 | BP13: 85 | BQ13: 59 | BR13: 42 | BS13: 66 | BT13: 99 | BU13: 38 | BV13: 16 | BW13: 12 | BX13: 98 | BY13: 11 | BZ13: 28 | CA13: 76 | CB13: 83 | CC13: 31 | CD13: 64 | CE13: 40 | CF13: 52 | CG13: 89 | CH13: 65 | CI13: 82 | CJ13: 59 | CK13: 88 | CL13: 58 | CM13: 3 | CN13: 52 | CO13: 61 | CP13: 100 | CQ13: 63 | CR13: 12 | CS13: 98 | CT13: 83 | CU13: 67 | CV13: 81
A14: 73 | B14: 63 | C14: 26 | D14: 28 | E14: 34 | F14: 33 | G14: 60 | H14: 36 | I14: 65 | J14: 29 | K14: 100 | L14: 88 | M14: 41 | N14: 71 | O14: 28 | P14: 19 | Q14: 51 | R14: 47 | S14: 18 | T14: 84 | U14: 38 | V14: 39 | W14: 93 | X14: 88 | Y14: 49 | Z14: 31 | AA14: 62 | AB14: 96 | AC14: 38 | AD14: 50 | AE14: 66 | AF14: 99 | AG14: 66 | AH14: 52 | AI14: 95 | AJ14: 98 | AK14: 7 | AL14: 15 | AM14: 23 | AN14: 36 | AO14: 69 | AP14: 42 | AQ14: 49 | AR14: 98 | AS14: 34 | AT14: 75 | AU14: 26 | AV14: 73 | AW14: 38 | AX14: 66 | AY14: 7 | AZ14: 55 | BA14: 86 | BB14: 50 | BC14: 5 | BD14: 95 | BE14: 5 | BF14: 68 | BG14: 92 | BH14: 83 | BI14: 55 | BJ14: 9 | BK14: 84 | BL14: 50 | BM14: 67 | BN14: 56 | BO14: 9 | BP14: 38 | BQ14: 77 | BR14: 51 | BS14: 15 | BT14: 40 | BU14: 60 | BV14: 75 | BW14: 40 | BX14: 45 | BY14: 77 | BZ14: 76 | CA14: 77 | CB14: 57 | CC14: 91 | CD14: 86 | CE14: 42 | CF14: 31 | CG14: 43 | CH14: 101 | CI14: 60 | CJ14: 90 | CK14: 8 | CL14: 40 | CM14: 16 | CN14: 30 | CO14: 83 | CP14: 9 | CQ14: 87 | CR14: 2 | CS14: 39 | CT14: 68 | CU14: 19 | CV14: 19
A15: 60 | B15: 88 | C15: 6 | D15: 94 | E15: 3 | F15: 4 | G15: 82 | H15: 98 | I15: 5 | J15: 2 | K15: 22 | L15: 7 | M15: 17 | N15: 50 | O15: 75 | P15: 76 | Q15: 21 | R15: 91 | S15: 30 | T15: 45 | U15: 16 | V15: 20 | W15: 74 | X15: 30 | Y15: 68 | Z15: 37 | AA15: 37 | AB15: 19 | AC15: 32 | AD15: 60 | AE15: 83 | AF15: 94 | AG15: 76 | AH15: 67 | AI15: 53 | AJ15: 14 | AK15: 25 | AL15: 89 | AM15: 20 | AN15: 17 | AO15: 25 | AP15: 30 | AQ15: 86 | AR15: 93 | AS15: 53 | AT15: 34 | AU15: 63 | AV15: 65 | AW15: 72 | AX15: 82 | AY15: 32 | AZ15: 8 | BA15: 61 | BB15: 15 | BC15: 50 | BD15: 96 | BE15: 28 | BF15: 13 | BG15: 19 | BH15: 83 | BI15: 97 | BJ15: 10 | BK15: 78 | BL15: 52 | BM15: 15 | BN15: 13 | BO15: 47 | BP15: 49 | BQ15: 90 | BR15: 5 | BS15: 46 | BT15: 93 | BU15: 72 | BV15: 86 | BW15: 101 | BX15: 41 | BY15: 40 | BZ15: 11 | CA15: 34 | CB15: 7 | CC15: 6 | CD15: 61 | CE15: 43 | CF15: 31 | CG15: 93 | CH15: 77 | CI15: 7 | CJ15: 6 | CK15: 63 | CL15: 98 | CM15: 43 | CN15: 91 | CO15: 94 | CP15: 37 | CQ15: 29 | CR15: 10 | CS15: 67 | CT15: 36 | CU15: 2 | CV15: 64
A16: 62 | B16: 82 | C16: 71 | D16: 24 | E16: 86 | F16: 81 | G16: 53 | H16: 9 | I16: 96 | J16: 53 | K16: 16 | L16: 66 | M16: 30 | N16: 51 | O16: 86 | P16: 97 | Q16: 3 | R16: 13 | S16: 88 | T16: 54 | U16: 65 | V16: 55 | W16: 67 | X16: 37 | Y16: 77 | Z16: 27 | AA16: 79 | AB16: 94 | AC16: 3 | AD16: 98 | AE16: 40 | AF16: 78 | AG16: 56 | AH16: 52 | AI16: 4 | AJ16: 44 | AK16: 95 | AL16: 34 | AM16: 24 | AN16: 56 | AO16: 46 | AP16: 100 | AQ16: 70 | AR16: 88 | AS16: 56 | AT16: 93 | AU16: 99 | AV16: 70 | AW16: 6 | AX16: 14 | AY16: 7 | AZ16: 97 | BA16: 10 | BB16: 45 | BC16: 34 | BD16: 99 | BE16: 21 | BF16: 3 | BG16: 13 | BH16: 27 | BI16: 30 | BJ16: 63 | BK16: 14 | BL16: 45 | BM16: 23 | BN16: 37 | BO16: 42 | BP16: 89 | BQ16: 13 | BR16: 39 | BS16: 76 | BT16: 44 | BU16: 29 | BV16: 43 | BW16: 53 | BX16: 35 | BY16: 17 | BZ16: 51 | CA16: 80 | CB16: 11 | CC16: 88 | CD16: 80 | CE16: 92 | CF16: 46 | CG16: 82 | CH16: 64 | CI16: 24 | CJ16: 73 | CK16: 46 | CL16: 85 | CM16: 85 | CN16: 87 | CO16: 21 | CP16: 101 | CQ16: 95 | CR16: 57 | CS16: 31 | CT16: 100 | CU16: 51 | CV16: 60
A17: 13 | B17: 13 | C17: 43 | D17: 78 | E17: 33 | F17: 80 | G17: 5 | H17: 57 | I17: 29 | J17: 6 | K17: 11 | L17: 83 | M17: 25 | N17: 89 | O17: 72 | P17: 63 | Q17: 41 | R17: 31 | S17: 87 | T17: 83 | U17: 17 | V17: 47 | W17: 24 | X17: 68 | Y17: 94 | Z17: 57 | AA17: 8 | AB17: 10 | AC17: 68 | AD17: 11 | AE17: 16 | AF17: 69 | AG17: 26 | AH17: 65 | AI17: 6 | AJ17: 22 | AK17: 47 | AL17: 63 | AM17: 5 | AN17: 30 | AO17: 76 | AP17: 45 | AQ17: 21 | AR17: 30 | AS17: 89 | AT17: 74 | AU17: 19 | AV17: 60 | AW17: 23 | AX17: 6 | AY17: 15 | AZ17: 66 | BA17: 71 | BB17: 48 | BC17: 79 | BD17: 3 | BE17: 37 | BF17: 35 | BG17: 18 | BH17: 28 | BI17: 41 | BJ17: 34 | BK17: 42 | BL17: 65 | BM17: 55 | BN17: 66 | BO17: 73 | BP17: 5 | BQ17: 59 | BR17: 39 | BS17: 48 | BT17: 85 | BU17: 24 | BV17: 56 | BW17: 65 | BX17: 92 | BY17: 38 | BZ17: 55 | CA17: 9 | CB17: 23 | CC17: 51 | CD17: 98 | CE17: 94 | CF17: 69 | CG17: 67 | CH17: 14 | CI17: 14 | CJ17: 46 | CK17: 47 | CL17: 81 | CM17: 101 | CN17: 16 | CO17: 5 | CP17: 37 | CQ17: 78 | CR17: 84 | CS17: 72 | CT17: 41 | CU17: 63 | CV17: 74
A18: 3 | B18: 18 | C18: 95 | D18: 11 | E18: 50 | F18: 60 | G18: 94 | H18: 56 | I18: 83 | J18: 88 | K18: 78 | L18: 49 | M18: 91 | N18: 56 | O18: 85 | P18: 17 | Q18: 61 | R18: 15 | S18: 63 | T18: 86 | U18: 15 | V18: 16 | W18: 98 | X18: 15 | Y18: 10 | Z18: 65 | AA18: 6 | AB18: 77 | AC18: 95 | AD18: 8 | AE18: 16 | AF18: 87 | AG18: 35 | AH18: 56 | AI18: 38 | AJ18: 88 | AK18: 38 | AL18: 26 | AM18: 53 | AN18: 67 | AO18: 67 | AP18: 43 | AQ18: 94 | AR18: 4 | AS18: 11 | AT18: 67 | AU18: 16 | AV18: 86 | AW18: 82 | AX18: 78 | AY18: 82 | AZ18: 14 | BA18: 6 | BB18: 79 | BC18: 55 | BD18: 32 | BE18: 68 | BF18: 2 | BG18: 14 | BH18: 8 | BI18: 71 | BJ18: 54 | BK18: 3 | BL18: 61 | BM18: 44 | BN18: 59 | BO18: 90 | BP18: 43 | BQ18: 72 | BR18: 75 | BS18: 73 | BT18: 36 | BU18: 13 | BV18: 22 | BW18: 35 | BX18: 33 | BY18: 40 | BZ18: 93 | CA18: 22 | CB18: 54 | CC18: 37 | CD18: 9 | CE18: 16 | CF18: 82 | CG18: 49 | CH18: 73 | CI18: 66 | CJ18: 32 | CK18: 10 | CL18: 43 | CM18: 39 | CN18: 31 | CO18: 73 | CP18: 34 | CQ18: 78 | CR18: 53 | CS18: 67 | CT18: 5 | CU18: 20 | CV18: 10
A19: 6 | B19: 49 | C19: 91 | D19: 99 | E19: 35 | F19: 49 | G19: 71 | H19: 80 | I19: 19 | J19: 57 | K19: 44 | L19: 77 | M19: 96 | N19: 47 | O19: 37 | P19: 80 | Q19: 13 | R19: 49 | S19: 36 | T19: 60 | U19: 2 | V19: 96 | W19: 73 | X19: 54 | Y19: 49 | Z19: 37 | AA19: 10 | AB19: 56 | AC19: 81 | AD19: 7 | AE19: 90 | AF19: 96 | AG19: 18 | AH19: 19 | AI19: 10 | AJ19: 51 | AK19: 37 | AL19: 55 | AM19: 9 | AN19: 79 | AO19: 80 | AP19: 33 | AQ19: 36 | AR19: 17 | AS19: 17 | AT19: 84 | AU19: 86 | AV19: 39 | AW19: 40 | AX19: 90 | AY19: 78 | AZ19: 72 | BA19: 60 | BB19: 91 | BC19: 59 | BD19: 57 | BE19: 59 | BF19: 46 | BG19: 26 | BH19: 20 | BI19: 36 | BJ19: 72 | BK19: 85 | BL19: 93 | BM19: 19 | BN19: 48 | BO19: 88 | BP19: 5 | BQ19: 89 | BR19: 70 | BS19: 29 | BT19: 4 | BU19: 3 | BV19: 49 | BW19: 22 | BX19: 27 | BY19: 71 | BZ19: 40 | CA19: 76 | CB19: 65 | CC19: 96 | CD19: 68 | CE19: 61 | CF19: 52 | CG19: 51 | CH19: 11 | CI19: 81 | CJ19: 96 | CK19: 50 | CL19: 40 | CM19: 19 | CN19: 56 | CO19: 41 | CP19: 10 | CQ19: 88 | CR19: 17 | CS19: 11 | CT19: 52 | CU19: 62 | CV19: 55
A20: 96 | B20: 89 | C20: 79 | D20: 101 | E20: 55 | F20: 93 | G20: 19 | H20: 76 | I20: 14 | J20: 23 | K20: 30 | L20: 68 | M20: 82 | N20: 35 | O20: 26 | P20: 38 | Q20: 18 | R20: 19 | S20: 51 | T20: 87 | U20: 64 | V20: 10 | W20: 88 | X20: 35 | Y20: 91 | Z20: 26 | AA20: 65 | AB20: 76 | AC20: 59 | AD20: 82 | AE20: 49 | AF20: 71 | AG20: 10 | AH20: 11 | AI20: 9 | AJ20: 94 | AK20: 36 | AL20: 36 | AM20: 64 | AN20: 70 | AO20: 63 | AP20: 30 | AQ20: 14 | AR20: 60 | AS20: 44 | AT20: 57 | AU20: 44 | AV20: 85 | AW20: 26 | AX20: 7 | AY20: 69 | AZ20: 68 | BA20: 47 | BB20: 8 | BC20: 78 | BD20: 83 | BE20: 5 | BF20: 74 | BG20: 26 | BH20: 85 | BI20: 34 | BJ20: 99 | BK20: 94 | BL20: 74 | BM20: 16 | BN20: 92 | BO20: 17 | BP20: 91 | BQ20: 86 | BR20: 51 | BS20: 67 | BT20: 85 | BU20: 59 | BV20: 67 | BW20: 13 | BX20: 17 | BY20: 60 | BZ20: 63 | CA20: 33 | CB20: 34 | CC20: 100 | CD20: 12 | CE20: 74 | CF20: 6 | CG20: 32 | CH20: 95 | CI20: 79 | CJ20: 98 | CK20: 100 | CL20: 44 | CM20: 23 | CN20: 88 | CO20: 50 | CP20: 46 | CQ20: 89 | CR20: 9 | CS20: 88 | CT20: 76 | CU20: 28 | CV20: 70
A21: 49 | B21: 30 | C21: 7 | D21: 51 | E21: 17 | F21: 73 | G21: 82 | H21: 88 | I21: 50 | J21: 13 | K21: 5 | L21: 12 | M21: 46 | N21: 51 | O21: 20 | P21: 32 | Q21: 55 | R21: 23 | S21: 59 | T21: 63 | U21: 75 | V21: 61 | W21: 12 | X21: 64 | Y21: 96 | Z21: 50 | AA21: 71 | AB21: 34 | AC21: 75 | AD21: 68 | AE21: 98 | AF21: 3 | AG21: 31 | AH21: 11 | AI21: 27 | AJ21: 70 | AK21: 34 | AL21: 48 | AM21: 68 | AN21: 85 | AO21: 6 | AP21: 101 | AQ21: 46 | AR21: 42 | AS21: 54 | AT21: 74 | AU21: 94 | AV21: 23 | AW21: 90 | AX21: 12 | AY21: 76 | AZ21: 39 | BA21: 67 | BB21: 66 | BC21: 27 | BD21: 61 | BE21: 25 | BF21: 82 | BG21: 73 | BH21: 64 | BI21: 48 | BJ21: 40 | BK21: 34 | BL21: 97 | BM21: 3 | BN21: 63 | BO21: 21 | BP21: 65 | BQ21: 72 | BR21: 22 | BS21: 63 | BT21: 3 | BU21: 36 | BV21: 68 | BW21: 27 | BX21: 96 | BY21: 74 | BZ21: 35 | CA21: 57 | CB21: 57 | CC21: 60 | CD21: 101 | CE21: 15 | CF21: 19 | CG21: 22 | CH21: 10 | CI21: 86 | CJ21: 53 | CK21: 92 | CL21: 30 | CM21: 81 | CN21: 77 | CO21: 61 | CP21: 9 | CQ21: 60 | CR21: 62 | CS21: 12 | CT21: 95 | CU21: 65 | CV21: 44
A22: 53 | B22: 67 | C22: 31 | D22: 10 | E22: 71 | F22: 54 | G22: 14 | H22: 70 | I22: 76 | J22: 14 | K22: 71 | L22: 62 | M22: 53 | N22: 17 | O22: 17 | P22: 92 | Q22: 36 | R22: 59 | S22: 77 | T22: 100 | U22: 46 | V22: 14 | W22: 17 | X22: 67 | Y22: 12 | Z22: 24 | AA22: 36 | AB22: 27 | AC22: 70 | AD22: 8 | AE22: 94 | AF22: 83 | AG22: 2 | AH22: 97 | AI22: 58 | AJ22: 24 | AK22: 43 | AL22: 32 | AM22: 39 | AN22: 21 | AO22: 72 | AP22: 43 | AQ22: 47 | AR22: 48 | AS22: 77 | AT22: 2 | AU22: 90 | AV22: 77 | AW22: 57 | AX22: 83 | AY22: 26 | AZ22: 60 | BA22: 17 | BB22: 11 | BC22: 38 | BD22: 19 | BE22: 47 | BF22: 75 | BG22: 46 | BH22: 84 | BI22: 98 | BJ22: 22 | BK22: 17 | BL22: 2 | BM22: 50 | BN22: 2 | BO22: 2 | BP22: 82 | BQ22: 84 | BR22: 53 | BS22: 19 | BT22: 47 | BU22: 25 | BV22: 50 | BW22: 39 | BX22: 77 | BY22: 61 | BZ22: 60 | CA22: 48 | CB22: 40 | CC22: 48 | CD22: 86 | CE22: 37 | CF22: 52 | CG22: 95 | CH22: 13 | CI22: 31 | CJ22: 66 | CK22: 73 | CL22: 43 | CM22: 86 | CN22: 45 | CO22: 69 | CP22: 71 | CQ22: 84 | CR22: 61 | CS22: 54 | CT22: 89 | CU22: 19 | CV22: 89
A23: 99 | B23: 53 | C23: 92 | D23: 54 | E23: 72 | F23: 42 | G23: 95 | H23: 61 | I23: 47 | J23: 38 | K23: 35 | L23: 33 | M23: 83 | N23: 63 | O23: 26 | P23: 2 | Q23: 37 | R23: 63 | S23: 35 | T23: 69 | U23: 20 | V23: 77 | W23: 2 | X23: 72 | Y23: 58 | Z23: 52 | AA23: 91 | AB23: 68 | AC23: 90 | AD23: 75 | AE23: 96 | AF23: 40 | AG23: 30 | AH23: 57 | AI23: 88 | AJ23: 34 | AK23: 100 | AL23: 45 | AM23: 19 | AN23: 91 | AO23: 64 | AP23: 59 | AQ23: 38 | AR23: 31 | AS23: 49 | AT23: 31 | AU23: 81 | AV23: 45 | AW23: 49 | AX23: 86 | AY23: 83 | AZ23: 18 | BA23: 59 | BB23: 32 | BC23: 14 | BD23: 16 | BE23: 16 | BF23: 43 | BG23: 2 | BH23: 94 | BI23: 11 | BJ23: 89 | BK23: 43 | BL23: 17 | BM23: 74 | BN23: 17 | BO23: 45 | BP23: 97 | BQ23: 51 | BR23: 63 | BS23: 97 | BT23: 39 | BU23: 83 | BV23: 75 | BW23: 42 | BX23: 21 | BY23: 93 | BZ23: 54 | CA23: 47 | CB23: 15 | CC23: 71 | CD23: 24 | CE23: 30 | CF23: 73 | CG23: 100 | CH23: 61 | CI23: 30 | CJ23: 99 | CK23: 57 | CL23: 56 | CM23: 36 | CN23: 76 | CO23: 13 | CP23: 62 | CQ23: 69 | CR23: 87 | CS23: 16 | CT23: 30 | CU23: 77 | CV23: 80
A24: 98 | B24: 95 | C24: 82 | D24: 86 | E24: 72 | F24: 65 | G24: 93 | H24: 85 | I24: 15 | J24: 73 | K24: 51 | L24: 12 | M24: 76 | N24: 32 | O24: 52 | P24: 95 | Q24: 90 | R24: 4 | S24: 4 | T24: 38 | U24: 37 | V24: 10 | W24: 18 | X24: 7 | Y24: 63 | Z24: 89 | AA24: 95 | AB24: 20 | AC24: 74 | AD24: 60 | AE24: 52 | AF24: 44 | AG24: 64 | AH24: 44 | AI24: 61 | AJ24: 91 | AK24: 63 | AL24: 48 | AM24: 85 | AN24: 86 | AO24: 16 | AP24: 38 | AQ24: 41 | AR24: 14 | AS24: 5 | AT24: 54 | AU24: 78 | AV24: 25 | AW24: 17 | AX24: 24 | AY24: 7 | AZ24: 97 | BA24: 11 | BB24: 51 | BC24: 90 | BD24: 93 | BE24: 100 | BF24: 52 | BG24: 64 | BH24: 75 | BI24: 59 | BJ24: 96 | BK24: 36 | BL24: 6 | BM24: 16 | BN24: 35 | BO24: 42 | BP24: 61 | BQ24: 46 | BR24: 23 | BS24: 80 | BT24: 44 | BU24: 85 | BV24: 93 | BW24: 69 | BX24: 78 | BY24: 82 | BZ24: 46 | CA24: 29 | CB24: 56 | CC24: 97 | CD24: 74 | CE24: 78 | CF24: 38 | CG24: 64 | CH24: 19 | CI24: 3 | CJ24: 5 | CK24: 78 | CL24: 89 | CM24: 89 | CN24: 70 | CO24: 18 | CP24: 13 | CQ24: 25 | CR24: 79 | CS24: 100 | CT24: 45 | CU24: 80 | CV24: 82
A25: 94 | B25: 86 | C25: 35 | D25: 52 | E25: 20 | F25: 40 | G25: 86 | H25: 86 | I25: 54 | J25: 68 | K25: 65 | L25: 70 | M25: 12 | N25: 87 | O25: 35 | P25: 45 | Q25: 98 | R25: 94 | S25: 42 | T25: 45 | U25: 6 | V25: 96 | W25: 51 | X25: 72 | Y25: 67 | Z25: 44 | AA25: 50 | AB25: 46 | AC25: 63 | AD25: 52 | AE25: 24 | AF25: 32 | AG25: 91 | AH25: 40 | AI25: 52 | AJ25: 53 | AK25: 54 | AL25: 5 | AM25: 25 | AN25: 39 | AO25: 38 | AP25: 95 | AQ25: 43 | AR25: 31 | AS25: 34 | AT25: 56 | AU25: 70 | AV25: 15 | AW25: 4 | AX25: 60 | AY25: 14 | AZ25: 97 | BA25: 11 | BB25: 41 | BC25: 21 | BD25: 81 | BE25: 33 | BF25: 79 | BG25: 22 | BH25: 16 | BI25: 38 | BJ25: 48 | BK25: 40 | BL25: 75 | BM25: 15 | BN25: 23 | BO25: 70 | BP25: 4 | BQ25: 55 | BR25: 82 | BS25: 88 | BT25: 53 | BU25: 90 | BV25: 31 | BW25: 97 | BX25: 6 | BY25: 47 | BZ25: 96 | CA25: 25 | CB25: 94 | CC25: 60 | CD25: 3 | CE25: 5 | CF25: 96 | CG25: 50 | CH25: 69 | CI25: 89 | CJ25: 35 | CK25: 40 | CL25: 73 | CM25: 55 | CN25: 41 | CO25: 4 | CP25: 42 | CQ25: 38 | CR25: 67 | CS25: 97 | CT25: 14 | CU25: 52 | CV25: 11
A26: 15 | B26: 48 | C26: 98 | D26: 42 | E26: 35 | F26: 46 | G26: 84 | H26: 33 | I26: 6 | J26: 14 | K26: 95 | L26: 101 | M26: 79 | N26: 98 | O26: 60 | P26: 40 | Q26: 17 | R26: 51 | S26: 62 | T26: 9 | U26: 14 | V26: 61 | W26: 54 | X26: 23 | Y26: 75 | Z26: 27 | AA26: 54 | AB26: 54 | AC26: 58 | AD26: 58 | AE26: 19 | AF26: 101 | AG26: 19 | AH26: 58 | AI26: 50 | AJ26: 48 | AK26: 43 | AL26: 59 | AM26: 71 | AN26: 4 | AO26: 101 | AP26: 96 | AQ26: 54 | AR26: 42 | AS26: 20 | AT26: 45 | AU26: 62 | AV26: 92 | AW26: 65 | AX26: 5 | AY26: 70 | AZ26: 64 | BA26: 95 | BB26: 90 | BC26: 24 | BD26: 33 | BE26: 52 | BF26: 95 | BG26: 92 | BH26: 48 | BI26: 15 | BJ26: 51 | BK26: 26 | BL26: 52 | BM26: 45 | BN26: 5 | BO26: 30 | BP26: 31 | BQ26: 30 | BR26: 83 | BS26: 12 | BT26: 68 | BU26: 34 | BV26: 88 | BW26: 82 | BX26: 90 | BY26: 79 | BZ26: 64 | CA26: 57 | CB26: 70 | CC26: 67 | CD26: 78 | CE26: 2 | CF26: 42 | CG26: 43 | CH26: 77 | CI26: 9 | CJ26: 36 | CK26: 22 | CL26: 40 | CM26: 35 | CN26: 9 | CO26: 30 | CP26: 55 | CQ26: 8 | CR26: 35 | CS26: 82 | CT26: 37 | CU26: 39 | CV26: 7
A27: 17 | B27: 26 | C27: 26 | D27: 32 | E27: 44 | F27: 53 | G27: 96 | H27: 75 | I27: 56 | J27: 10 | K27: 57 | L27: 9 | M27: 70 | N27: 21 | O27: 77 | P27: 35 | Q27: 66 | R27: 61 | S27: 68 | T27: 37 | U27: 84 | V27: 44 | W27: 63 | X27: 2 | Y27: 17 | Z27: 60 | AA27: 84 | AB27: 9 | AC27: 25 | AD27: 19 | AE27: 89 | AF27: 2 | AG27: 44 | AH27: 84 | AI27: 66 | AJ27: 32 | AK27: 65 | AL27: 16 | AM27: 92 | AN27: 13 | AO27: 53 | AP27: 36 | AQ27: 30 | AR27: 66 | AS27: 74 | AT27: 71 | AU27: 12 | AV27: 19 | AW27: 35 | AX27: 83 | AY27: 55 | AZ27: 68 | BA27: 54 | BB27: 12 | BC27: 10 | BD27: 77 | BE27: 88 | BF27: 17 | BG27: 67 | BH27: 65 | BI27: 73 | BJ27: 88 | BK27: 11 | BL27: 88 | BM27: 11 | BN27: 99 | BO27: 72 | BP27: 39 | BQ27: 78 | BR27: 96 | BS27: 53 | BT27: 57 | BU27: 91 | BV27: 3 | BW27: 40 | BX27: 91 | BY27: 51 | BZ27: 7 | CA27: 58 | CB27: 26 | CC27: 4 | CD27: 49 | CE27: 57 | CF27: 52 | CG27: 82 | CH27: 83 | CI27: 67 | CJ27: 18 | CK27: 35 | CL27: 42 | CM27: 40 | CN27: 16 | CO27: 89 | CP27: 41 | CQ27: 50 | CR27: 86 | CS27: 96 | CT27: 90 | CU27: 98 | CV27: 59
A28: 26 | B28: 49 | C28: 12 | D28: 67 | E28: 89 | F28: 86 | G28: 99 | H28: 3 | I28: 96 | J28: 91 | K28: 74 | L28: 98 | M28: 34 | N28: 37 | O28: 95 | P28: 45 | Q28: 35 | R28: 48 | S28: 63 | T28: 17 | U28: 94 | V28: 68 | W28: 36 | X28: 81 | Y28: 41 | Z28: 30 | AA28: 58 | AB28: 92 | AC28: 49 | AD28: 77 | AE28: 38 | AF28: 11 | AG28: 70 | AH28: 38 | AI28: 90 | AJ28: 45 | AK28: 87 | AL28: 16 | AM28: 84 | AN28: 6 | AO28: 20 | AP28: 8 | AQ28: 95 | AR28: 65 | AS28: 97 | AT28: 16 | AU28: 16 | AV28: 71 | AW28: 89 | AX28: 21 | AY28: 20 | AZ28: 86 | BA28: 79 | BB28: 79 | BC28: 54 | BD28: 47 | BE28: 38 | BF28: 69 | BG28: 78 | BH28: 46 | BI28: 49 | BJ28: 42 | BK28: 80 | BL28: 21 | BM28: 92 | BN28: 22 | BO28: 72 | BP28: 70 | BQ28: 53 | BR28: 7 | BS28: 28 | BT28: 53 | BU28: 5 | BV28: 91 | BW28: 47 | BX28: 3 | BY28: 5 | BZ28: 62 | CA28: 68 | CB28: 35 | CC28: 50 | CD28: 54 | CE28: 3 | CF28: 90 | CG28: 18 | CH28: 92 | CI28: 62 | CJ28: 24 | CK28: 11 | CL28: 75 | CM28: 75 | CN28: 77 | CO28: 49 | CP28: 58 | CQ28: 99 | CR28: 60 | CS28: 3 | CT28: 68 | CU28: 19 | CV28: 28
A29: 11 | B29: 63 | C29: 25 | D29: 23 | E29: 94 | F29: 47 | G29: 99 | H29: 55 | I29: 20 | J29: 90 | K29: 97 | L29: 32 | M29: 47 | N29: 27 | O29: 21 | P29: 38 | Q29: 90 | R29: 36 | S29: 75 | T29: 79 | U29: 56 | V29: 5 | W29: 59 | X29: 70 | Y29: 15 | Z29: 94 | AA29: 12 | AB29: 19 | AC29: 71 | AD29: 79 | AE29: 76 | AF29: 16 | AG29: 25 | AH29: 4 | AI29: 37 | AJ29: 32 | AK29: 84 | AL29: 76 | AM29: 38 | AN29: 36 | AO29: 59 | AP29: 46 | AQ29: 86 | AR29: 41 | AS29: 61 | AT29: 13 | AU29: 10 | AV29: 46 | AW29: 42 | AX29: 30 | AY29: 55 | AZ29: 67 | BA29: 11 | BB29: 97 | BC29: 90 | BD29: 8 | BE29: 43 | BF29: 3 | BG29: 63 | BH29: 10 | BI29: 24 | BJ29: 5 | BK29: 98 | BL29: 71 | BM29: 31 | BN29: 4 | BO29: 16 | BP29: 20 | BQ29: 87 | BR29: 36 | BS29: 45 | BT29: 37 | BU29: 85 | BV29: 45 | BW29: 68 | BX29: 35 | BY29: 40 | BZ29: 40 | CA29: 85 | CB29: 35 | CC29: 8 | CD29: 78 | CE29: 76 | CF29: 56 | CG29: 99 | CH29: 75 | CI29: 65 | CJ29: 39 | CK29: 19 | CL29: 12 | CM29: 74 | CN29: 72 | CO29: 27 | CP29: 101 | CQ29: 47 | CR29: 53 | CS29: 14 | CT29: 69 | CU29: 98 | CV29: 40
A30: 29 | B30: 16 | C30: 85 | D30: 67 | E30: 73 | F30: 23 | G30: 88 | H30: 39 | I30: 28 | J30: 81 | K30: 88 | L30: 43 | M30: 67 | N30: 34 | O30: 11 | P30: 33 | Q30: 98 | R30: 75 | S30: 17 | T30: 38 | U30: 17 | V30: 69 | W30: 90 | X30: 53 | Y30: 82 | Z30: 88 | AA30: 65 | AB30: 44 | AC30: 7 | AD30: 34 | AE30: 40 | AF30: 27 | AG30: 27 | AH30: 96 | AI30: 99 | AJ30: 39 | AK30: 9 | AL30: 13 | AM30: 36 | AN30: 25 | AO30: 80 | AP30: 47 | AQ30: 29 | AR30: 73 | AS30: 88 | AT30: 58 | AU30: 10 | AV30: 57 | AW30: 19 | AX30: 84 | AY30: 2 | AZ30: 66 | BA30: 81 | BB30: 72 | BC30: 70 | BD30: 56 | BE30: 95 | BF30: 51 | BG30: 94 | BH30: 6 | BI30: 4 | BJ30: 18 | BK30: 68 | BL30: 12 | BM30: 91 | BN30: 70 | BO30: 93 | BP30: 100 | BQ30: 98 | BR30: 48 | BS30: 20 | BT30: 7 | BU30: 72 | BV30: 20 | BW30: 35 | BX30: 78 | BY30: 95 | BZ30: 29 | CA30: 84 | CB30: 35 | CC30: 44 | CD30: 76 | CE30: 45 | CF30: 100 | CG30: 95 | CH30: 60 | CI30: 80 | CJ30: 40 | CK30: 62 | CL30: 96 | CM30: 28 | CN30: 51 | CO30: 11 | CP30: 77 | CQ30: 45 | CR30: 58 | CS30: 43 | CT30: 80 | CU30: 56 | CV30: 48
A31: 96 | B31: 91 | C31: 37 | D31: 7 | E31: 87 | F31: 42 | G31: 16 | H31: 70 | I31: 50 | J31: 62 | K31: 96 | L31: 36 | M31: 59 | N31: 14 | O31: 100 | P31: 20 | Q31: 74 | R31: 28 | S31: 70 | T31: 46 | U31: 45 | V31: 49 | W31: 83 | X31: 23 | Y31: 22 | Z31: 60 | AA31: 33 | AB31: 27 | AC31: 6 | AD31: 7 | AE31: 70 | AF31: 49 | AG31: 64 | AH31: 83 | AI31: 39 | AJ31: 86 | AK31: 88 | AL31: 23 | AM31: 48 | AN31: 7 | AO31: 11 | AP31: 24 | AQ31: 54 | AR31: 19 | AS31: 6 | AT31: 12 | AU31: 11 | AV31: 84 | AW31: 46 | AX31: 5 | AY31: 99 | AZ31: 53 | BA31: 29 | BB31: 38 | BC31: 65 | BD31: 24 | BE31: 69 | BF31: 81 | BG31: 21 | BH31: 46 | BI31: 85 | BJ31: 44 | BK31: 82 | BL31: 90 | BM31: 55 | BN31: 13 | BO31: 33 | BP31: 70 | BQ31: 16 | BR31: 8 | BS31: 89 | BT31: 101 | BU31: 40 | BV31: 46 | BW31: 37 | BX31: 29 | BY31: 47 | BZ31: 69 | CA31: 63 | CB31: 6 | CC31: 87 | CD31: 37 | CE31: 31 | CF31: 95 | CG31: 66 | CH31: 99 | CI31: 23 | CJ31: 56 | CK31: 22 | CL31: 11 | CM31: 56 | CN31: 44 | CO31: 4 | CP31: 35 | CQ31: 15 | CR31: 86 | CS31: 83 | CT31: 59 | CU31: 101 | CV31: 34
A32: 43 | B32: 57 | C32: 28 | D32: 99 | E32: 94 | F32: 50 | G32: 98 | H32: 97 | I32: 93 | J32: 5 | K32: 87 | L32: 15 | M32: 47 | N32: 5 | O32: 3 | P32: 51 | Q32: 3 | R32: 65 | S32: 82 | T32: 16 | U32: 31 | V32: 98 | W32: 93 | X32: 8 | Y32: 87 | Z32: 12 | AA32: 30 | AB32: 92 | AC32: 20 | AD32: 85 | AE32: 82 | AF32: 39 | AG32: 79 | AH32: 37 | AI32: 47 | AJ32: 43 | AK32: 15 | AL32: 49 | AM32: 6 | AN32: 60 | AO32: 12 | AP32: 10 | AQ32: 17 | AR32: 11 | AS32: 84 | AT32: 76 | AU32: 98 | AV32: 73 | AW32: 6 | AX32: 78 | AY32: 28 | AZ32: 15 | BA32: 94 | BB32: 18 | BC32: 13 | BD32: 26 | BE32: 14 | BF32: 61 | BG32: 91 | BH32: 64 | BI32: 8 | BJ32: 80 | BK32: 63 | BL32: 96 | BM32: 79 | BN32: 79 | BO32: 91 | BP32: 32 | BQ32: 50 | BR32: 40 | BS32: 45 | BT32: 81 | BU32: 4 | BV32: 20 | BW32: 40 | BX32: 18 | BY32: 101 | BZ32: 73 | CA32: 11 | CB32: 34 | CC32: 15 | CD32: 88 | CE32: 9 | CF32: 83 | CG32: 78 | CH32: 76 | CI32: 52 | CJ32: 95 | CK32: 90 | CL32: 81 | CM32: 71 | CN32: 49 | CO32: 61 | CP32: 67 | CQ32: 52 | CR32: 85 | CS32: 83 | CT32: 4 | CU32: 69 | CV32: 37
A33: 100 | B33: 46 | C33: 70 | D33: 65 | E33: 24 | F33: 83 | G33: 14 | H33: 15 | I33: 79 | J33: 89 | K33: 34 | L33: 92 | M33: 53 | N33: 86 | O33: 85 | P33: 86 | Q33: 47 | R33: 16 | S33: 20 | T33: 88 | U33: 21 | V33: 74 | W33: 60 | X33: 23 | Y33: 21 | Z33: 59 | AA33: 27 | AB33: 100 | AC33: 71 | AD33: 51 | AE33: 74 | AF33: 49 | AG33: 75 | AH33: 40 | AI33: 55 | AJ33: 16 | AK33: 32 | AL33: 85 | AM33: 36 | AN33: 38 | AO33: 62 | AP33: 72 | AQ33: 50 | AR33: 34 | AS33: 48 | AT33: 67 | AU33: 98 | AV33: 48 | AW33: 20 | AX33: 93 | AY33: 39 | AZ33: 76 | BA33: 37 | BB33: 3 | BC33: 20 | BD33: 7 | BE33: 44 | BF33: 37 | BG33: 43 | BH33: 50 | BI33: 54 | BJ33: 57 | BK33: 76 | BL33: 47 | BM33: 95 | BN33: 95 | BO33: 58 | BP33: 70 | BQ33: 28 | BR33: 36 | BS33: 79 | BT33: 3 | BU33: 9 | BV33: 51 | BW33: 40 | BX33: 57 | BY33: 61 | BZ33: 73 | CA33: 82 | CB33: 16 | CC33: 41 | CD33: 85 | CE33: 45 | CF33: 36 | CG33: 67 | CH33: 100 | CI33: 23 | CJ33: 5 | CK33: 80 | CL33: 5 | CM33: 37 | CN33: 43 | CO33: 93 | CP33: 93 | CQ33: 29 | CR33: 53 | CS33: 84 | CT33: 77 | CU33: 78 | CV33: 43
A34: 55 | B34: 72 | C34: 26 | D34: 70 | E34: 9 | F34: 22 | G34: 62 | H34: 19 | I34: 18 | J34: 91 | K34: 95 | L34: 95 | M34: 55 | N34: 96 | O34: 56 | P34: 54 | Q34: 101 | R34: 55 | S34: 85 | T34: 10 | U34: 5 | V34: 84 | W34: 15 | X34: 69 | Y34: 77 | Z34: 17 | AA34: 85 | AB34: 34 | AC34: 59 | AD34: 97 | AE34: 23 | AF34: 69 | AG34: 44 | AH34: 99 | AI34: 34 | AJ34: 44 | AK34: 55 | AL34: 75 | AM34: 10 | AN34: 29 | AO34: 7 | AP34: 74 | AQ34: 99 | AR34: 43 | AS34: 31 | AT34: 32 | AU34: 4 | AV34: 9 | AW34: 16 | AX34: 90 | AY34: 44 | AZ34: 67 | BA34: 75 | BB34: 14 | BC34: 88 | BD34: 22 | BE34: 13 | BF34: 86 | BG34: 44 | BH34: 67 | BI34: 96 | BJ34: 16 | BK34: 49 | BL34: 94 | BM34: 84 | BN34: 26 | BO34: 14 | BP34: 4 | BQ34: 78 | BR34: 39 | BS34: 77 | BT34: 59 | BU34: 50 | BV34: 56 | BW34: 27 | BX34: 54 | BY34: 58 | BZ34: 87 | CA34: 94 | CB34: 7 | CC34: 65 | CD34: 82 | CE34: 23 | CF34: 83 | CG34: 93 | CH34: 47 | CI34: 57 | CJ34: 84 | CK34: 26 | CL34: 16 | CM34: 27 | CN34: 51 | CO34: 50 | CP34: 3 | CQ34: 47 | CR34: 54 | CS34: 22 | CT34: 27 | CU34: 88 | CV34: 97
A35: 75 | B35: 25 | C35: 36 | D35: 98 | E35: 12 | F35: 40 | G35: 78 | H35: 79 | I35: 13 | J35: 20 | K35: 79 | L35: 51 | M35: 74 | N35: 51 | O35: 24 | P35: 41 | Q35: 50 | R35: 15 | S35: 47 | T35: 74 | U35: 96 | V35: 75 | W35: 73 | X35: 99 | Y35: 80 | Z35: 101 | AA35: 69 | AB35: 93 | AC35: 34 | AD35: 71 | AE35: 63 | AF35: 76 | AG35: 74 | AH35: 39 | AI35: 22 | AJ35: 6 | AK35: 86 | AL35: 49 | AM35: 2 | AN35: 48 | AO35: 101 | AP35: 18 | AQ35: 59 | AR35: 21 | AS35: 73 | AT35: 41 | AU35: 13 | AV35: 89 | AW35: 7 | AX35: 74 | AY35: 56 | AZ35: 4 | BA35: 33 | BB35: 65 | BC35: 101 | BD35: 10 | BE35: 14 | BF35: 48 | BG35: 91 | BH35: 9 | BI35: 23 | BJ35: 34 | BK35: 71 | BL35: 45 | BM35: 21 | BN35: 91 | BO35: 26 | BP35: 12 | BQ35: 18 | BR35: 36 | BS35: 5 | BT35: 67 | BU35: 11 | BV35: 26 | BW35: 32 | BX35: 9 | BY35: 87 | BZ35: 88 | CA35: 97 | CB35: 62 | CC35: 19 | CD35: 88 | CE35: 82 | CF35: 59 | CG35: 44 | CH35: 43 | CI35: 91 | CJ35: 58 | CK35: 72 | CL35: 93 | CM35: 26 | CN35: 27 | CO35: 20 | CP35: 67 | CQ35: 74 | CR35: 60 | CS35: 69 | CT35: 36 | CU35: 72 | CV35: 46
A36: 23 | B36: 79 | C36: 4 | D36: 11 | E36: 84 | F36: 59 | G36: 38 | H36: 22 | I36: 35 | J36: 44 | K36: 46 | L36: 99 | M36: 51 | N36: 37 | O36: 52 | P36: 36 | Q36: 58 | R36: 46 | S36: 22 | T36: 8 | U36: 101 | V36: 78 | W36: 82 | X36: 53 | Y36: 40 | Z36: 18 | AA36: 41 | AB36: 5 | AC36: 56 | AD36: 65 | AE36: 16 | AF36: 82 | AG36: 4 | AH36: 41 | AI36: 49 | AJ36: 85 | AK36: 75 | AL36: 67 | AM36: 83 | AN36: 39 | AO36: 98 | AP36: 75 | AQ36: 49 | AR36: 90 | AS36: 20 | AT36: 90 | AU36: 12 | AV36: 95 | AW36: 28 | AX36: 85 | AY36: 50 | AZ36: 21 | BA36: 2 | BB36: 75 | BC36: 71 | BD36: 18 | BE36: 76 | BF36: 71 | BG36: 56 | BH36: 12 | BI36: 20 | BJ36: 94 | BK36: 65 | BL36: 84 | BM36: 83 | BN36: 3 | BO36: 43 | BP36: 55 | BQ36: 11 | BR36: 25 | BS36: 13 | BT36: 55 | BU36: 63 | BV36: 88 | BW36: 36 | BX36: 29 | BY36: 21 | BZ36: 38 | CA36: 77 | CB36: 65 | CC36: 52 | CD36: 98 | CE36: 18 | CF36: 7 | CG36: 14 | CH36: 72 | CI36: 80 | CJ36: 4 | CK36: 84 | CL36: 19 | CM36: 26 | CN36: 58 | CO36: 93 | CP36: 40 | CQ36: 44 | CR36: 83 | CS36: 101 | CT36: 63 | CU36: 100 | CV36: 73
A37: 77 | B37: 23 | C37: 67 | D37: 70 | E37: 91 | F37: 30 | G37: 53 | H37: 40 | I37: 13 | J37: 12 | K37: 16 | L37: 21 | M37: 61 | N37: 46 | O37: 94 | P37: 37 | Q37: 27 | R37: 24 | S37: 85 | T37: 43 | U37: 62 | V37: 86 | W37: 70 | X37: 46 | Y37: 12 | Z37: 79 | AA37: 10 | AB37: 3 | AC37: 33 | AD37: 39 | AE37: 4 | AF37: 15 | AG37: 42 | AH37: 67 | AI37: 98 | AJ37: 26 | AK37: 83 | AL37: 61 | AM37: 9 | AN37: 44 | AO37: 31 | AP37: 26 | AQ37: 49 | AR37: 63 | AS37: 42 | AT37: 18 | AU37: 36 | AV37: 76 | AW37: 17 | AX37: 47 | AY37: 101 | AZ37: 41 | BA37: 25 | BB37: 84 | BC37: 69 | BD37: 61 | BE37: 44 | BF37: 99 | BG37: 15 | BH37: 63 | BI37: 72 | BJ37: 82 | BK37: 28 | BL37: 48 | BM37: 10 | BN37: 101 | BO37: 37 | BP37: 54 | BQ37: 41 | BR37: 90 | BS37: 60 | BT37: 17 | BU37: 60 | BV37: 59 | BW37: 51 | BX37: 68 | BY37: 23 | BZ37: 38 | CA37: 13 | CB37: 89 | CC37: 4 | CD37: 45 | CE37: 62 | CF37: 86 | CG37: 80 | CH37: 66 | CI37: 63 | CJ37: 14 | CK37: 95 | CL37: 18 | CM37: 99 | CN37: 58 | CO37: 91 | CP37: 13 | CQ37: 2 | CR37: 72 | CS37: 66 | CT37: 72 | CU37: 74 | CV37: 65
A38: 83 | B38: 85 | C38: 60 | D38: 84 | E38: 81 | F38: 34 | G38: 23 | H38: 83 | I38: 22 | J38: 29 | K38: 88 | L38: 92 | M38: 77 | N38: 75 | O38: 60 | P38: 65 | Q38: 42 | R38: 28 | S38: 76 | T38: 42 | U38: 9 | V38: 23 | W38: 42 | X38: 27 | Y38: 18 | Z38: 92 | AA38: 43 | AB38: 23 | AC38: 5 | AD38: 88 | AE38: 44 | AF38: 50 | AG38: 10 | AH38: 12 | AI38: 22 | AJ38: 5 | AK38: 99 | AL38: 87 | AM38: 88 | AN38: 49 | AO38: 96 | AP38: 42 | AQ38: 36 | AR38: 93 | AS38: 16 | AT38: 73 | AU38: 27 | AV38: 12 | AW38: 22 | AX38: 22 | AY38: 25 | AZ38: 10 | BA38: 96 | BB38: 40 | BC38: 33 | BD38: 91 | BE38: 79 | BF38: 40 | BG38: 51 | BH38: 99 | BI38: 72 | BJ38: 34 | BK38: 24 | BL38: 82 | BM38: 2 | BN38: 72 | BO38: 77 | BP38: 74 | BQ38: 91 | BR38: 32 | BS38: 48 | BT38: 21 | BU38: 36 | BV38: 37 | BW38: 64 | BX38: 54 | BY38: 53 | BZ38: 62 | CA38: 76 | CB38: 51 | CC38: 88 | CD38: 20 | CE38: 13 | CF38: 24 | CG38: 93 | CH38: 6 | CI38: 53 | CJ38: 76 | CK38: 54 | CL38: 4 | CM38: 87 | CN38: 17 | CO38: 10 | CP38: 44 | CQ38: 38 | CR38: 31 | CS38: 85 | CT38: 19 | CU38: 51 | CV38: 77
A39: 26 | B39: 8 | C39: 3 | D39: 8 | E39: 56 | F39: 10 | G39: 69 | H39: 98 | I39: 14 | J39: 89 | K39: 4 | L39: 75 | M39: 18 | N39: 51 | O39: 33 | P39: 36 | Q39: 46 | R39: 11 | S39: 15 | T39: 62 | U39: 72 | V39: 59 | W39: 63 | X39: 91 | Y39: 86 | Z39: 10 | AA39: 91 | AB39: 88 | AC39: 14 | AD39: 27 | AE39: 2 | AF39: 94 | AG39: 8 | AH39: 74 | AI39: 79 | AJ39: 72 | AK39: 73 | AL39: 61 | AM39: 79 | AN39: 78 | AO39: 3 | AP39: 70 | AQ39: 65 | AR39: 75 | AS39: 57 | AT39: 16 | AU39: 32 | AV39: 6 | AW39: 61 | AX39: 23 | AY39: 55 | AZ39: 24 | BA39: 91 | BB39: 95 | BC39: 9 | BD39: 57 | BE39: 5 | BF39: 84 | BG39: 22 | BH39: 48 | BI39: 71 | BJ39: 90 | BK39: 55 | BL39: 44 | BM39: 88 | BN39: 92 | BO39: 84 | BP39: 36 | BQ39: 81 | BR39: 56 | BS39: 36 | BT39: 9 | BU39: 36 | BV39: 98 | BW39: 26 | BX39: 25 | BY39: 14 | BZ39: 50 | CA39: 95 | CB39: 74 | CC39: 76 | CD39: 26 | CE39: 47 | CF39: 31 | CG39: 59 | CH39: 19 | CI39: 40 | CJ39: 5 | CK39: 57 | CL39: 92 | CM39: 2 | CN39: 65 | CO39: 82 | CP39: 90 | CQ39: 3 | CR39: 27 | CS39: 56 | CT39: 75 | CU39: 57 | CV39: 97
A40: 4 | B40: 7 | C40: 67 | D40: 8 | E40: 50 | F40: 30 | G40: 96 | H40: 72 | I40: 28 | J40: 86 | K40: 14 | L40: 92 | M40: 98 | N40: 69 | O40: 93 | P40: 9 | Q40: 41 | R40: 44 | S40: 2 | T40: 72 | U40: 16 | V40: 24 | W40: 48 | X40: 67 | Y40: 94 | Z40: 99 | AA40: 89 | AB40: 6 | AC40: 82 | AD40: 87 | AE40: 28 | AF40: 42 | AG40: 45 | AH40: 97 | AI40: 28 | AJ40: 61 | AK40: 98 | AL40: 6 | AM40: 16 | AN40: 36 | AO40: 83 | AP40: 22 | AQ40: 55 | AR40: 79 | AS40: 3 | AT40: 26 | AU40: 39 | AV40: 88 | AW40: 68 | AX40: 2 | AY40: 49 | AZ40: 82 | BA40: 89 | BB40: 96 | BC40: 27 | BD40: 26 | BE40: 97 | BF40: 19 | BG40: 94 | BH40: 101 | BI40: 76 | BJ40: 83 | BK40: 39 | BL40: 97 | BM40: 48 | BN40: 101 | BO40: 22 | BP40: 85 | BQ40: 21 | BR40: 56 | BS40: 13 | BT40: 47 | BU40: 18 | BV40: 67 | BW40: 27 | BX40: 55 | BY40: 70 | BZ40: 35 | CA40: 38 | CB40: 98 | CC40: 49 | CD40: 25 | CE40: 11 | CF40: 98 | CG40: 74 | CH40: 81 | CI40: 10 | CJ40: 42 | CK40: 2 | CL40: 44 | CM40: 44 | CN40: 41 | CO40: 83 | CP40: 69 | CQ40: 91 | CR40: 71 | CS40: 56 | CT40: 15 | CU40: 72 | CV40: 27
A41: 5 | B41: 68 | C41: 75 | D41: 24 | E41: 39 | F41: 88 | G41: 50 | H41: 30 | I41: 17 | J41: 43 | K41: 48 | L41: 48 | M41: 78 | N41: 16 | O41: 7 | P41: 25 | Q41: 59 | R41: 39 | S41: 97 | T41: 99 | U41: 93 | V41: 79 | W41: 69 | X41: 15 | Y41: 48 | Z41: 64 | AA41: 81 | AB41: 57 | AC41: 5 | AD41: 48 | AE41: 84 | AF41: 91 | AG41: 76 | AH41: 54 | AI41: 99 | AJ41: 35 | AK41: 4 | AL41: 26 | AM41: 4 | AN41: 58 | AO41: 23 | AP41: 19 | AQ41: 28 | AR41: 41 | AS41: 66 | AT41: 14 | AU41: 96 | AV41: 47 | AW41: 51 | AX41: 56 | AY41: 53 | AZ41: 70 | BA41: 3 | BB41: 72 | BC41: 63 | BD41: 43 | BE41: 55 | BF41: 44 | BG41: 100 | BH41: 52 | BI41: 11 | BJ41: 98 | BK41: 27 | BL41: 100 | BM41: 12 | BN41: 51 | BO41: 93 | BP41: 28 | BQ41: 3 | BR41: 86 | BS41: 54 | BT41: 83 | BU41: 56 | BV41: 83 | BW41: 59 | BX41: 25 | BY41: 48 | BZ41: 43 | CA41: 92 | CB41: 36 | CC41: 29 | CD41: 82 | CE41: 85 | CF41: 69 | CG41: 75 | CH41: 14 | CI41: 77 | CJ41: 94 | CK41: 25 | CL41: 76 | CM41: 8 | CN41: 82 | CO41: 53 | CP41: 13 | CQ41: 96 | CR41: 84 | CS41: 74 | CT41: 83 | CU41: 96 | CV41: 99
A42: 29 | B42: 51 | C42: 36 | D42: 55 | E42: 40 | F42: 39 | G42: 79 | H42: 39 | I42: 49 | J42: 16 | K42: 13 | L42: 20 | M42: 17 | N42: 20 | O42: 94 | P42: 75 | Q42: 46 | R42: 35 | S42: 48 | T42: 81 | U42: 84 | V42: 62 | W42: 63 | X42: 42 | Y42: 83 | Z42: 67 | AA42: 43 | AB42: 35 | AC42: 70 | AD42: 78 | AE42: 16 | AF42: 67 | AG42: 60 | AH42: 42 | AI42: 49 | AJ42: 20 | AK42: 51 | AL42: 86 | AM42: 19 | AN42: 22 | AO42: 40 | AP42: 84 | AQ42: 62 | AR42: 56 | AS42: 14 | AT42: 18 | AU42: 64 | AV42: 71 | AW42: 3 | AX42: 48 | AY42: 9 | AZ42: 10 | BA42: 54 | BB42: 49 | BC42: 53 | BD42: 49 | BE42: 5 | BF42: 24 | BG42: 60 | BH42: 2 | BI42: 97 | BJ42: 74 | BK42: 32 | BL42: 42 | BM42: 6 | BN42: 10 | BO42: 39 | BP42: 97 | BQ42: 84 | BR42: 43 | BS42: 56 | BT42: 22 | BU42: 25 | BV42: 3 | BW42: 82 | BX42: 100 | BY42: 27 | BZ42: 12 | CA42: 86 | CB42: 9 | CC42: 20 | CD42: 92 | CE42: 91 | CF42: 10 | CG42: 19 | CH42: 101 | CI42: 99 | CJ42: 6 | CK42: 33 | CL42: 19 | CM42: 37 | CN42: 34 | CO42: 10 | CP42: 87 | CQ42: 100 | CR42: 41 | CS42: 88 | CT42: 5 | CU42: 52 | CV42: 31
A43: 14 | B43: 84 | C43: 44 | D43: 79 | E43: 71 | F43: 12 | G43: 62 | H43: 31 | I43: 19 | J43: 75 | K43: 8 | L43: 20 | M43: 56 | N43: 81 | O43: 4 | P43: 2 | Q43: 44 | R43: 36 | S43: 61 | T43: 17 | U43: 78 | V43: 57 | W43: 2 | X43: 19 | Y43: 99 | Z43: 25 | AA43: 60 | AB43: 6 | AC43: 74 | AD43: 49 | AE43: 51 | AF43: 40 | AG43: 71 | AH43: 17 | AI43: 100 | AJ43: 34 | AK43: 51 | AL43: 100 | AM43: 45 | AN43: 88 | AO43: 7 | AP43: 12 | AQ43: 99 | AR43: 18 | AS43: 2 | AT43: 59 | AU43: 92 | AV43: 50 | AW43: 14 | AX43: 77 | AY43: 85 | AZ43: 50 | BA43: 97 | BB43: 54 | BC43: 85 | BD43: 94 | BE43: 11 | BF43: 78 | BG43: 93 | BH43: 65 | BI43: 24 | BJ43: 23 | BK43: 68 | BL43: 67 | BM43: 44 | BN43: 28 | BO43: 9 | BP43: 31 | BQ43: 33 | BR43: 96 | BS43: 31 | BT43: 101 | BU43: 99 | BV43: 93 | BW43: 52 | BX43: 95 | BY43: 91 | BZ43: 76 | CA43: 86 | CB43: 77 | CC43: 11 | CD43: 85 | CE43: 98 | CF43: 46 | CG43: 10 | CH43: 82 | CI43: 76 | CJ43: 88 | CK43: 54 | CL43: 5 | CM43: 25 | CN43: 62 | CO43: 70 | CP43: 44 | CQ43: 35 | CR43: 68 | CS43: 81 | CT43: 90 | CU43: 86 | CV43: 98
A44: 14 | B44: 22 | C44: 18 | D44: 34 | E44: 96 | F44: 20 | G44: 23 | H44: 42 | I44: 49 | J44: 13 | K44: 55 | L44: 18 | M44: 24 | N44: 9 | O44: 56 | P44: 2 | Q44: 83 | R44: 72 | S44: 51 | T44: 71 | U44: 49 | V44: 84 | W44: 40 | X44: 74 | Y44: 87 | Z44: 75 | AA44: 77 | AB44: 55 | AC44: 3 | AD44: 77 | AE44: 64 | AF44: 14 | AG44: 39 | AH44: 62 | AI44: 10 | AJ44: 72 | AK44: 53 | AL44: 29 | AM44: 25 | AN44: 37 | AO44: 2 | AP44: 40 | AQ44: 46 | AR44: 45 | AS44: 50 | AT44: 26 | AU44: 3 | AV44: 42 | AW44: 93 | AX44: 79 | AY44: 42 | AZ44: 70 | BA44: 27 | BB44: 38 | BC44: 80 | BD44: 58 | BE44: 58 | BF44: 54 | BG44: 44 | BH44: 47 | BI44: 21 | BJ44: 38 | BK44: 12 | BL44: 60 | BM44: 12 | BN44: 26 | BO44: 6 | BP44: 38 | BQ44: 51 | BR44: 4 | BS44: 91 | BT44: 59 | BU44: 58 | BV44: 88 | BW44: 78 | BX44: 99 | BY44: 72 | BZ44: 65 | CA44: 80 | CB44: 15 | CC44: 79 | CD44: 55 | CE44: 99 | CF44: 101 | CG44: 97 | CH44: 59 | CI44: 98 | CJ44: 10 | CK44: 37 | CL44: 14 | CM44: 35 | CN44: 42 | CO44: 11 | CP44: 100 | CQ44: 41 | CR44: 22 | CS44: 42 | CT44: 29 | CU44: 27 | CV44: 91
A45: 59 | B45: 23 | C45: 98 | D45: 69 | E45: 7 | F45: 9 | G45: 34 | H45: 100 | I45: 58 | J45: 10 | K45: 64 | L45: 35 | M45: 2 | N45: 11 | O45: 32 | P45: 41 | Q45: 52 | R45: 58 | S45: 8 | T45: 23 | U45: 14 | V45: 25 | W45: 58 | X45: 8 | Y45: 19 | Z45: 37 | AA45: 86 | AB45: 50 | AC45: 58 | AD45: 90 | AE45: 39 | AF45: 15 | AG45: 90 | AH45: 67 | AI45: 2 | AJ45: 93 | AK45: 52 | AL45: 66 | AM45: 23 | AN45: 54 | AO45: 48 | AP45: 68 | AQ45: 65 | AR45: 16 | AS45: 28 | AT45: 23 | AU45: 68 | AV45: 15 | AW45: 72 | AX45: 72 | AY45: 68 | AZ45: 85 | BA45: 2 | BB45: 52 | BC45: 26 | BD45: 30 | BE45: 11 | BF45: 9 | BG45: 60 | BH45: 99 | BI45: 43 | BJ45: 19 | BK45: 76 | BL45: 6 | BM45: 21 | BN45: 6 | BO45: 43 | BP45: 15 | BQ45: 99 | BR45: 68 | BS45: 34 | BT45: 56 | BU45: 30 | BV45: 95 | BW45: 97 | BX45: 101 | BY45: 19 | BZ45: 60 | CA45: 29 | CB45: 12 | CC45: 33 | CD45: 92 | CE45: 90 | CF45: 32 | CG45: 90 | CH45: 7 | CI45: 19 | CJ45: 47 | CK45: 4 | CL45: 26 | CM45: 28 | CN45: 46 | CO45: 42 | CP45: 99 | CQ45: 59 | CR45: 92 | CS45: 52 | CT45: 98 | CU45: 92 | CV45: 11
A46: 30 | B46: 76 | C46: 23 | D46: 19 | E46: 42 | F46: 58 | G46: 17 | H46: 5 | I46: 29 | J46: 75 | K46: 9 | L46: 65 | M46: 23 | N46: 42 | O46: 16 | P46: 55 | Q46: 25 | R46: 94 | S46: 98 | T46: 10 | U46: 28 | V46: 39 | W46: 47 | X46: 23 | Y46: 35 | Z46: 50 | AA46: 34 | AB46: 37 | AC46: 45 | AD46: 68 | AE46: 98 | AF46: 82 | AG46: 42 | AH46: 27 | AI46: 82 | AJ46: 97 | AK46: 97 | AL46: 60 | AM46: 32 | AN46: 38 | AO46: 65 | AP46: 19 | AQ46: 16 | AR46: 94 | AS46: 2 | AT46: 79 | AU46: 62 | AV46: 39 | AW46: 90 | AX46: 82 | AY46: 87 | AZ46: 87 | BA46: 86 | BB46: 63 | BC46: 13 | BD46: 21 | BE46: 71 | BF46: 47 | BG46: 35 | BH46: 90 | BI46: 81 | BJ46: 42 | BK46: 49 | BL46: 54 | BM46: 84 | BN46: 33 | BO46: 46 | BP46: 9 | BQ46: 101 | BR46: 96 | BS46: 79 | BT46: 6 | BU46: 43 | BV46: 79 | BW46: 52 | BX46: 80 | BY46: 67 | BZ46: 95 | CA46: 16 | CB46: 4 | CC46: 80 | CD46: 35 | CE46: 64 | CF46: 101 | CG46: 65 | CH46: 59 | CI46: 70 | CJ46: 53 | CK46: 33 | CL46: 45 | CM46: 20 | CN46: 98 | CO46: 52 | CP46: 75 | CQ46: 66 | CR46: 50 | CS46: 63 | CT46: 81 | CU46: 86 | CV46: 36
A47: 43 | B47: 63 | C47: 2 | D47: 19 | E47: 98 | F47: 72 | G47: 33 | H47: 50 | I47: 2 | J47: 14 | K47: 42 | L47: 100 | M47: 74 | N47: 32 | O47: 99 | P47: 69 | Q47: 76 | R47: 58 | S47: 47 | T47: 44 | U47: 74 | V47: 30 | W47: 65 | X47: 25 | Y47: 79 | Z47: 82 | AA47: 37 | AB47: 52 | AC47: 96 | AD47: 74 | AE47: 53 | AF47: 21 | AG47: 54 | AH47: 92 | AI47: 11 | AJ47: 96 | AK47: 67 | AL47: 18 | AM47: 83 | AN47: 81 | AO47: 64 | AP47: 92 | AQ47: 99 | AR47: 87 | AS47: 87 | AT47: 61 | AU47: 23 | AV47: 48 | AW47: 29 | AX47: 94 | AY47: 37 | AZ47: 77 | BA47: 34 | BB47: 99 | BC47: 2 | BD47: 10 | BE47: 81 | BF47: 27 | BG47: 54 | BH47: 32 | BI47: 95 | BJ47: 13 | BK47: 3 | BL47: 7 | BM47: 60 | BN47: 53 | BO47: 19 | BP47: 74 | BQ47: 28 | BR47: 50 | BS47: 5 | BT47: 16 | BU47: 47 | BV47: 100 | BW47: 35 | BX47: 16 | BY47: 96 | BZ47: 26 | CA47: 13 | CB47: 83 | CC47: 70 | CD47: 70 | CE47: 86 | CF47: 65 | CG47: 76 | CH47: 31 | CI47: 49 | CJ47: 88 | CK47: 16 | CL47: 81 | CM47: 8 | CN47: 39 | CO47: 14 | CP47: 62 | CQ47: 50 | CR47: 75 | CS47: 65 | CT47: 42 | CU47: 14 | CV47: 68
A48: 3 | B48: 26 | C48: 15 | D48: 22 | E48: 31 | F48: 47 | G48: 47 | H48: 41 | I48: 99 | J48: 5 | K48: 44 | L48: 72 | M48: 34 | N48: 94 | O48: 49 | P48: 25 | Q48: 25 | R48: 22 | S48: 65 | T48: 31 | U48: 7 | V48: 4 | W48: 81 | X48: 97 | Y48: 32 | Z48: 67 | AA48: 21 | AB48: 43 | AC48: 40 | AD48: 27 | AE48: 13 | AF48: 77 | AG48: 57 | AH48: 98 | AI48: 49 | AJ48: 32 | AK48: 25 | AL48: 43 | AM48: 17 | AN48: 49 | AO48: 46 | AP48: 9 | AQ48: 49 | AR48: 25 | AS48: 33 | AT48: 55 | AU48: 60 | AV48: 28 | AW48: 62 | AX48: 89 | AY48: 65 | AZ48: 47 | BA48: 38 | BB48: 64 | BC48: 4 | BD48: 69 | BE48: 95 | BF48: 72 | BG48: 33 | BH48: 19 | BI48: 54 | BJ48: 72 | BK48: 77 | BL48: 70 | BM48: 37 | BN48: 39 | BO48: 77 | BP48: 11 | BQ48: 94 | BR48: 88 | BS48: 12 | BT48: 33 | BU48: 89 | BV48: 101 | BW48: 81 | BX48: 66 | BY48: 46 | BZ48: 85 | CA48: 26 | CB48: 67 | CC48: 13 | CD48: 61 | CE48: 81 | CF48: 69 | CG48: 35 | CH48: 43 | CI48: 31 | CJ48: 64 | CK48: 34 | CL48: 43 | CM48: 44 | CN48: 20 | CO48: 51 | CP48: 32 | CQ48: 47 | CR48: 79 | CS48: 62 | CT48: 99 | CU48: 90 | CV48: 91
A49: 2 | B49: 19 | C49: 79 | D49: 87 | E49: 9 | F49: 50 | G49: 7 | H49: 32 | I49: 35 | J49: 13 | K49: 20 | L49: 92 | M49: 44 | N49: 36 | O49: 73 | P49: 19 | Q49: 66 | R49: 57 | S49: 20 | T49: 45 | U49: 85 | V49: 11 | W49: 53 | X49: 91 | Y49: 13 | Z49: 52 | AA49: 33 | AB49: 69 | AC49: 17 | AD49: 64 | AE49: 100 | AF49: 32 | AG49: 71 | AH49: 53 | AI49: 100 | AJ49: 82 | AK49: 11 | AL49: 64 | AM49: 76 | AN49: 57 | AO49: 28 | AP49: 22 | AQ49: 50 | AR49: 8 | AS49: 82 | AT49: 76 | AU49: 62 | AV49: 75 | AW49: 73 | AX49: 49 | AY49: 54 | AZ49: 23 | BA49: 31 | BB49: 15 | BC49: 78 | BD49: 6 | BE49: 8 | BF49: 36 | BG49: 25 | BH49: 29 | BI49: 44 | BJ49: 59 | BK49: 45 | BL49: 40 | BM49: 48 | BN49: 22 | BO49: 90 | BP49: 84 | BQ49: 59 | BR49: 4 | BS49: 75 | BT49: 53 | BU49: 5 | BV49: 56 | BW49: 43 | BX49: 65 | BY49: 25 | BZ49: 50 | CA49: 83 | CB49: 28 | CC49: 79 | CD49: 97 | CE49: 22 | CF49: 41 | CG49: 100 | CH49: 94 | CI49: 2 | CJ49: 96 | CK49: 6 | CL49: 13 | CM49: 57 | CN49: 33 | CO49: 74 | CP49: 69 | CQ49: 74 | CR49: 14 | CS49: 2 | CT49: 89 | CU49: 50 | CV49: 14
A50: 11 | B50: 23 | C50: 43 | D50: 5 | E50: 33 | F50: 24 | G50: 87 | H50: 30 | I50: 31 | J50: 53 | K50: 85 | L50: 66 | M50: 82 | N50: 90 | O50: 81 | P50: 13 | Q50: 34 | R50: 47 | S50: 17 | T50: 39 | U50: 79 | V50: 70 | W50: 78 | X50: 71 | Y50: 64 | Z50: 36 | AA50: 33 | AB50: 57 | AC50: 42 | AD50: 61 | AE50: 6 | AF50: 66 | AG50: 62 | AH50: 92 | AI50: 97 | AJ50: 64 | AK50: 84 | AL50: 68 | AM50: 28 | AN50: 97 | AO50: 82 | AP50: 48 | AQ50: 85 | AR50: 89 | AS50: 79 | AT50: 7 | AU50: 56 | AV50: 47 | AW50: 25 | AX50: 6 | AY50: 65 | AZ50: 50 | BA50: 14 | BB50: 17 | BC50: 81 | BD50: 68 | BE50: 56 | BF50: 11 | BG50: 24 | BH50: 87 | BI50: 91 | BJ50: 95 | BK50: 12 | BL50: 65 | BM50: 43 | BN50: 41 | BO50: 83 | BP50: 13 | BQ50: 63 | BR50: 61 | BS50: 58 | BT50: 54 | BU50: 20 | BV50: 23 | BW50: 85 | BX50: 67 | BY50: 89 | BZ50: 42 | CA50: 67 | CB50: 56 | CC50: 26 | CD50: 87 | CE50: 41 | CF50: 14 | CG50: 74 | CH50: 11 | CI50: 80 | CJ50: 76 | CK50: 58 | CL50: 59 | CM50: 65 | CN50: 80 | CO50: 62 | CP50: 66 | CQ50: 77 | CR50: 35 | CS50: 95 | CT50: 37 | CU50: 98 | CV50: 14
A51: 56 | B51: 24 | C51: 70 | D51: 30 | E51: 23 | F51: 75 | G51: 95 | H51: 33 | I51: 69 | J51: 9 | K51: 19 | L51: 20 | M51: 18 | N51: 49 | O51: 18 | P51: 46 | Q51: 58 | R51: 75 | S51: 70 | T51: 76 | U51: 38 | V51: 93 | W51: 98 | X51: 53 | Y51: 65 | Z51: 45 | AA51: 5 | AB51: 32 | AC51: 61 | AD51: 40 | AE51: 11 | AF51: 84 | AG51: 33 | AH51: 57 | AI51: 92 | AJ51: 46 | AK51: 88 | AL51: 54 | AM51: 63 | AN51: 77 | AO51: 85 | AP51: 61 | AQ51: 13 | AR51: 86 | AS51: 11 | AT51: 40 | AU51: 66 | AV51: 42 | AW51: 69 | AX51: 80 | AY51: 88 | AZ51: 41 | BA51: 74 | BB51: 36 | BC51: 29 | BD51: 38 | BE51: 16 | BF51: 22 | BG51: 98 | BH51: 87 | BI51: 4 | BJ51: 25 | BK51: 40 | BL51: 39 | BM51: 81 | BN51: 11 | BO51: 87 | BP51: 93 | BQ51: 48 | BR51: 85 | BS51: 68 | BT51: 98 | BU51: 82 | BV51: 69 | BW51: 92 | BX51: 95 | BY51: 34 | BZ51: 39 | CA51: 81 | CB51: 52 | CC51: 19 | CD51: 89 | CE51: 90 | CF51: 92 | CG51: 7 | CH51: 76 | CI51: 45 | CJ51: 35 | CK51: 76 | CL51: 82 | CM51: 2 | CN51: 58 | CO51: 14 | CP51: 53 | CQ51: 93 | CR51: 48 | CS51: 99 | CT51: 92 | CU51: 44 | CV51: 25
A52: 71 | B52: 38 | C52: 43 | D52: 5 | E52: 53 | F52: 42 | G52: 52 | H52: 51 | I52: 58 | J52: 26 | K52: 30 | L52: 24 | M52: 94 | N52: 62 | O52: 86 | P52: 54 | Q52: 26 | R52: 93 | S52: 71 | T52: 44 | U52: 98 | V52: 47 | W52: 86 | X52: 54 | Y52: 77 | Z52: 5 | AA52: 44 | AB52: 88 | AC52: 60 | AD52: 88 | AE52: 28 | AF52: 51 | AG52: 22 | AH52: 51 | AI52: 45 | AJ52: 94 | AK52: 6 | AL52: 48 | AM52: 12 | AN52: 17 | AO52: 60 | AP52: 16 | AQ52: 7 | AR52: 71 | AS52: 92 | AT52: 32 | AU52: 25 | AV52: 81 | AW52: 19 | AX52: 24 | AY52: 69 | AZ52: 70 | BA52: 90 | BB52: 61 | BC52: 101 | BD52: 21 | BE52: 94 | BF52: 56 | BG52: 73 | BH52: 11 | BI52: 30 | BJ52: 70 | BK52: 16 | BL52: 45 | BM52: 63 | BN52: 50 | BO52: 66 | BP52: 81 | BQ52: 53 | BR52: 55 | BS52: 20 | BT52: 64 | BU52: 86 | BV52: 3 | BW52: 59 | BX52: 60 | BY52: 38 | BZ52: 8 | CA52: 24 | CB52: 51 | CC52: 58 | CD52: 86 | CE52: 10 | CF52: 74 | CG52: 96 | CH52: 97 | CI52: 87 | CJ52: 15 | CK52: 34 | CL52: 2 | CM52: 50 | CN52: 71 | CO52: 79 | CP52: 95 | CQ52: 34 | CR52: 7 | CS52: 13 | CT52: 60 | CU52: 88 | CV52: 5
A53: 18 | B53: 98 | C53: 21 | D53: 59 | E53: 96 | F53: 100 | G53: 7 | H53: 7 | I53: 81 | J53: 61 | K53: 18 | L53: 101 | M53: 60 | N53: 85 | O53: 44 | P53: 59 | Q53: 60 | R53: 82 | S53: 19 | T53: 11 | U53: 92 | V53: 47 | W53: 15 | X53: 90 | Y53: 48 | Z53: 68 | AA53: 24 | AB53: 56 | AC53: 98 | AD53: 5 | AE53: 19 | AF53: 19 | AG53: 71 | AH53: 23 | AI53: 86 | AJ53: 66 | AK53: 53 | AL53: 81 | AM53: 36 | AN53: 21 | AO53: 35 | AP53: 62 | AQ53: 17 | AR53: 63 | AS53: 7 | AT53: 69 | AU53: 87 | AV53: 79 | AW53: 81 | AX53: 9 | AY53: 16 | AZ53: 11 | BA53: 41 | BB53: 13 | BC53: 25 | BD53: 78 | BE53: 47 | BF53: 8 | BG53: 43 | BH53: 56 | BI53: 100 | BJ53: 91 | BK53: 48 | BL53: 54 | BM53: 29 | BN53: 29 | BO53: 37 | BP53: 47 | BQ53: 65 | BR53: 73 | BS53: 13 | BT53: 4 | BU53: 45 | BV53: 33 | BW53: 8 | BX53: 84 | BY53: 66 | BZ53: 71 | CA53: 87 | CB53: 53 | CC53: 61 | CD53: 41 | CE53: 82 | CF53: 50 | CG53: 90 | CH53: 68 | CI53: 21 | CJ53: 64 | CK53: 65 | CL53: 81 | CM53: 46 | CN53: 28 | CO53: 26 | CP53: 25 | CQ53: 81 | CR53: 24 | CS53: 84 | CT53: 57 | CU53: 32 | CV53: 86
A54: 69 | B54: 28 | C54: 53 | D54: 5 | E54: 78 | F54: 21 | G54: 63 | H54: 5 | I54: 56 | J54: 75 | K54: 56 | L54: 45 | M54: 58 | N54: 94 | O54: 55 | P54: 64 | Q54: 51 | R54: 45 | S54: 52 | T54: 9 | U54: 84 | V54: 64 | W54: 23 | X54: 98 | Y54: 88 | Z54: 88 | AA54: 7 | AB54: 93 | AC54: 28 | AD54: 13 | AE54: 97 | AF54: 75 | AG54: 10 | AH54: 49 | AI54: 52 | AJ54: 36 | AK54: 78 | AL54: 72 | AM54: 23 | AN54: 65 | AO54: 55 | AP54: 83 | AQ54: 69 | AR54: 44 | AS54: 44 | AT54: 38 | AU54: 28 | AV54: 39 | AW54: 55 | AX54: 43 | AY54: 24 | AZ54: 48 | BA54: 3 | BB54: 96 | BC54: 28 | BD54: 35 | BE54: 32 | BF54: 17 | BG54: 10 | BH54: 22 | BI54: 56 | BJ54: 25 | BK54: 8 | BL54: 64 | BM54: 30 | BN54: 65 | BO54: 39 | BP54: 32 | BQ54: 62 | BR54: 91 | BS54: 4 | BT54: 28 | BU54: 42 | BV54: 9 | BW54: 97 | BX54: 52 | BY54: 98 | BZ54: 86 | CA54: 99 | CB54: 18 | CC54: 35 | CD54: 10 | CE54: 70 | CF54: 81 | CG54: 57 | CH54: 19 | CI54: 101 | CJ54: 87 | CK54: 47 | CL54: 87 | CM54: 79 | CN54: 13 | CO54: 22 | CP54: 90 | CQ54: 59 | CR54: 46 | CS54: 62 | CT54: 60 | CU54: 94 | CV54: 98
A55: 49 | B55: 33 | C55: 75 | D55: 75 | E55: 41 | F55: 41 | G55: 2 | H55: 38 | I55: 66 | J55: 85 | K55: 20 | L55: 7 | M55: 62 | N55: 69 | O55: 29 | P55: 7 | Q55: 15 | R55: 75 | S55: 78 | T55: 7 | U55: 72 | V55: 87 | W55: 8 | X55: 53 | Y55: 75 | Z55: 72 | AA55: 17 | AB55: 58 | AC55: 35 | AD55: 92 | AE55: 83 | AF55: 86 | AG55: 35 | AH55: 33 | AI55: 36 | AJ55: 71 | AK55: 67 | AL55: 2 | AM55: 65 | AN55: 56 | AO55: 54 | AP55: 48 | AQ55: 95 | AR55: 58 | AS55: 67 | AT55: 38 | AU55: 31 | AV55: 29 | AW55: 45 | AX55: 28 | AY55: 10 | AZ55: 57 | BA55: 32 | BB55: 11 | BC55: 83 | BD55: 36 | BE55: 77 | BF55: 67 | BG55: 34 | BH55: 66 | BI55: 76 | BJ55: 53 | BK55: 87 | BL55: 50 | BM55: 3 | BN55: 45 | BO55: 11 | BP55: 73 | BQ55: 61 | BR55: 89 | BS55: 67 | BT55: 93 | BU55: 41 | BV55: 90 | BW55: 24 | BX55: 64 | BY55: 96 | BZ55: 43 | CA55: 89 | CB55: 78 | CC55: 19 | CD55: 32 | CE55: 55 | CF55: 17 | CG55: 94 | CH55: 21 | CI55: 50 | CJ55: 91 | CK55: 101 | CL55: 51 | CM55: 90 | CN55: 37 | CO55: 15 | CP55: 89 | CQ55: 50 | CR55: 61 | CS55: 33 | CT55: 39 | CU55: 56 | CV55: 71
A56: 36 | B56: 36 | C56: 72 | D56: 68 | E56: 10 | F56: 2 | G56: 40 | H56: 39 | I56: 19 | J56: 3 | K56: 60 | L56: 66 | M56: 54 | N56: 46 | O56: 60 | P56: 87 | Q56: 51 | R56: 39 | S56: 41 | T56: 4 | U56: 82 | V56: 4 | W56: 45 | X56: 54 | Y56: 46 | Z56: 54 | AA56: 16 | AB56: 46 | AC56: 56 | AD56: 57 | AE56: 70 | AF56: 28 | AG56: 72 | AH56: 6 | AI56: 58 | AJ56: 81 | AK56: 31 | AL56: 59 | AM56: 47 | AN56: 57 | AO56: 72 | AP56: 17 | AQ56: 82 | AR56: 82 | AS56: 58 | AT56: 12 | AU56: 6 | AV56: 42 | AW56: 97 | AX56: 9 | AY56: 27 | AZ56: 65 | BA56: 87 | BB56: 10 | BC56: 101 | BD56: 76 | BE56: 91 | BF56: 32 | BG56: 8 | BH56: 15 | BI56: 90 | BJ56: 100 | BK56: 14 | BL56: 91 | BM56: 29 | BN56: 35 | BO56: 47 | BP56: 39 | BQ56: 27 | BR56: 101 | BS56: 11 | BT56: 15 | BU56: 75 | BV56: 14 | BW56: 66 | BX56: 33 | BY56: 58 | BZ56: 3 | CA56: 33 | CB56: 98 | CC56: 42 | CD56: 69 | CE56: 11 | CF56: 10 | CG56: 14 | CH56: 66 | CI56: 79 | CJ56: 55 | CK56: 92 | CL56: 75 | CM56: 48 | CN56: 92 | CO56: 90 | CP56: 8 | CQ56: 30 | CR56: 96 | CS56: 77 | CT56: 31 | CU56: 93 | CV56: 31
A57: 57 | B57: 5 | C57: 55 | D57: 73 | E57: 24 | F57: 23 | G57: 87 | H57: 88 | I57: 61 | J57: 32 | K57: 89 | L57: 81 | M57: 47 | N57: 43 | O57: 37 | P57: 55 | Q57: 29 | R57: 46 | S57: 62 | T57: 46 | U57: 54 | V57: 28 | W57: 74 | X57: 56 | Y57: 99 | Z57: 39 | AA57: 52 | AB57: 60 | AC57: 20 | AD57: 41 | AE57: 12 | AF57: 71 | AG57: 88 | AH57: 86 | AI57: 64 | AJ57: 13 | AK57: 39 | AL57: 12 | AM57: 74 | AN57: 89 | AO57: 39 | AP57: 93 | AQ57: 83 | AR57: 39 | AS57: 94 | AT57: 19 | AU57: 2 | AV57: 55 | AW57: 45 | AX57: 6 | AY57: 20 | AZ57: 67 | BA57: 75 | BB57: 30 | BC57: 73 | BD57: 45 | BE57: 7 | BF57: 76 | BG57: 71 | BH57: 86 | BI57: 88 | BJ57: 34 | BK57: 51 | BL57: 90 | BM57: 68 | BN57: 70 | BO57: 32 | BP57: 25 | BQ57: 64 | BR57: 7 | BS57: 71 | BT57: 54 | BU57: 12 | BV57: 31 | BW57: 11 | BX57: 11 | BY57: 44 | BZ57: 94 | CA57: 92 | CB57: 19 | CC57: 11 | CD57: 29 | CE57: 51 | CF57: 69 | CG57: 9 | CH57: 51 | CI57: 46 | CJ57: 61 | CK57: 91 | CL57: 67 | CM57: 95 | CN57: 14 | CO57: 6 | CP57: 50 | CQ57: 50 | CR57: 21 | CS57: 22 | CT57: 34 | CU57: 76 | CV57: 70
A58: 60 | B58: 40 | C58: 34 | D58: 38 | E58: 83 | F58: 6 | G58: 11 | H58: 18 | I58: 27 | J58: 76 | K58: 46 | L58: 59 | M58: 100 | N58: 71 | O58: 53 | P58: 85 | Q58: 72 | R58: 50 | S58: 74 | T58: 43 | U58: 96 | V58: 72 | W58: 62 | X58: 85 | Y58: 17 | Z58: 44 | AA58: 36 | AB58: 28 | AC58: 24 | AD58: 71 | AE58: 3 | AF58: 58 | AG58: 70 | AH58: 43 | AI58: 35 | AJ58: 78 | AK58: 81 | AL58: 49 | AM58: 56 | AN58: 69 | AO58: 9 | AP58: 89 | AQ58: 86 | AR58: 71 | AS58: 42 | AT58: 60 | AU58: 93 | AV58: 100 | AW58: 79 | AX58: 27 | AY58: 16 | AZ58: 75 | BA58: 62 | BB58: 33 | BC58: 59 | BD58: 5 | BE58: 65 | BF58: 14 | BG58: 78 | BH58: 51 | BI58: 55 | BJ58: 84 | BK58: 37 | BL58: 51 | BM58: 76 | BN58: 78 | BO58: 38 | BP58: 39 | BQ58: 100 | BR58: 72 | BS58: 3 | BT58: 21 | BU58: 21 | BV58: 32 | BW58: 42 | BX58: 58 | BY58: 49 | BZ58: 3 | CA58: 89 | CB58: 20 | CC58: 16 | CD58: 86 | CE58: 17 | CF58: 46 | CG58: 12 | CH58: 58 | CI58: 39 | CJ58: 18 | CK58: 44 | CL58: 63 | CM58: 18 | CN58: 30 | CO58: 93 | CP58: 51 | CQ58: 79 | CR58: 71 | CS58: 71 | CT58: 61 | CU58: 30 | CV58: 25
A59: 15 | B59: 101 | C59: 85 | D59: 61 | E59: 56 | F59: 22 | G59: 69 | H59: 25 | I59: 88 | J59: 13 | K59: 29 | L59: 65 | M59: 85 | N59: 87 | O59: 11 | P59: 17 | Q59: 15 | R59: 79 | S59: 30 | T59: 93 | U59: 45 | V59: 74 | W59: 57 | X59: 24 | Y59: 66 | Z59: 99 | AA59: 39 | AB59: 80 | AC59: 69 | AD59: 51 | AE59: 83 | AF59: 3 | AG59: 47 | AH59: 64 | AI59: 20 | AJ59: 54 | AK59: 76 | AL59: 78 | AM59: 56 | AN59: 69 | AO59: 25 | AP59: 73 | AQ59: 88 | AR59: 6 | AS59: 25 | AT59: 66 | AU59: 93 | AV59: 41 | AW59: 91 | AX59: 28 | AY59: 47 | AZ59: 11 | BA59: 58 | BB59: 56 | BC59: 17 | BD59: 95 | BE59: 11 | BF59: 36 | BG59: 61 | BH59: 68 | BI59: 80 | BJ59: 6 | BK59: 9 | BL59: 62 | BM59: 30 | BN59: 83 | BO59: 52 | BP59: 88 | BQ59: 19 | BR59: 95 | BS59: 77 | BT59: 67 | BU59: 55 | BV59: 41 | BW59: 88 | BX59: 11 | BY59: 76 | BZ59: 73 | CA59: 19 | CB59: 86 | CC59: 9 | CD59: 73 | CE59: 11 | CF59: 58 | CG59: 4 | CH59: 45 | CI59: 97 | CJ59: 101 | CK59: 47 | CL59: 27 | CM59: 48 | CN59: 95 | CO59: 63 | CP59: 19 | CQ59: 76 | CR59: 4 | CS59: 14 | CT59: 24 | CU59: 51 | CV59: 86
A60: 20 | B60: 51 | C60: 13 | D60: 56 | E60: 22 | F60: 19 | G60: 59 | H60: 3 | I60: 30 | J60: 11 | K60: 28 | L60: 87 | M60: 46 | N60: 71 | O60: 89 | P60: 12 | Q60: 67 | R60: 95 | S60: 22 | T60: 8 | U60: 10 | V60: 21 | W60: 28 | X60: 84 | Y60: 77 | Z60: 81 | AA60: 90 | AB60: 16 | AC60: 21 | AD60: 84 | AE60: 17 | AF60: 98 | AG60: 3 | AH60: 4 | AI60: 51 | AJ60: 44 | AK60: 94 | AL60: 25 | AM60: 47 | AN60: 74 | AO60: 6 | AP60: 43 | AQ60: 47 | AR60: 16 | AS60: 82 | AT60: 90 | AU60: 53 | AV60: 21 | AW60: 3 | AX60: 47 | AY60: 80 | AZ60: 6 | BA60: 97 | BB60: 40 | BC60: 76 | BD60: 26 | BE60: 79 | BF60: 52 | BG60: 42 | BH60: 32 | BI60: 30 | BJ60: 5 | BK60: 38 | BL60: 91 | BM60: 86 | BN60: 16 | BO60: 34 | BP60: 101 | BQ60: 101 | BR60: 86 | BS60: 15 | BT60: 15 | BU60: 84 | BV60: 31 | BW60: 91 | BX60: 22 | BY60: 37 | BZ60: 94 | CA60: 9 | CB60: 3 | CC60: 25 | CD60: 87 | CE60: 68 | CF60: 22 | CG60: 40 | CH60: 36 | CI60: 6 | CJ60: 98 | CK60: 98 | CL60: 30 | CM60: 4 | CN60: 2 | CO60: 25 | CP60: 30 | CQ60: 85 | CR60: 85 | CS60: 33 | CT60: 75 | CU60: 4 | CV60: 4
A61: 84 | B61: 20 | C61: 89 | D61: 6 | E61: 84 | F61: 99 | G61: 12 | H61: 69 | I61: 66 | J61: 39 | K61: 87 | L61: 27 | M61: 94 | N61: 94 | O61: 10 | P61: 20 | Q61: 61 | R61: 37 | S61: 45 | T61: 60 | U61: 12 | V61: 6 | W61: 5 | X61: 12 | Y61: 71 | Z61: 60 | AA61: 21 | AB61: 50 | AC61: 40 | AD61: 10 | AE61: 45 | AF61: 90 | AG61: 72 | AH61: 53 | AI61: 18 | AJ61: 10 | AK61: 57 | AL61: 85 | AM61: 21 | AN61: 90 | AO61: 15 | AP61: 52 | AQ61: 71 | AR61: 52 | AS61: 48 | AT61: 31 | AU61: 17 | AV61: 83 | AW61: 14 | AX61: 10 | AY61: 91 | AZ61: 63 | BA61: 80 | BB61: 39 | BC61: 21 | BD61: 52 | BE61: 40 | BF61: 53 | BG61: 65 | BH61: 56 | BI61: 10 | BJ61: 41 | BK61: 24 | BL61: 91 | BM61: 46 | BN61: 95 | BO61: 89 | BP61: 61 | BQ61: 67 | BR61: 82 | BS61: 25 | BT61: 39 | BU61: 25 | BV61: 75 | BW61: 19 | BX61: 70 | BY61: 10 | BZ61: 13 | CA61: 62 | CB61: 13 | CC61: 33 | CD61: 60 | CE61: 30 | CF61: 64 | CG61: 21 | CH61: 12 | CI61: 57 | CJ61: 97 | CK61: 9 | CL61: 56 | CM61: 78 | CN61: 6 | CO61: 76 | CP61: 65 | CQ61: 101 | CR61: 2 | CS61: 95 | CT61: 52 | CU61: 27 | CV61: 58
A62: 73 | B62: 14 | C62: 57 | D62: 20 | E62: 56 | F62: 21 | G62: 29 | H62: 70 | I62: 51 | J62: 19 | K62: 64 | L62: 95 | M62: 47 | N62: 80 | O62: 63 | P62: 83 | Q62: 45 | R62: 61 | S62: 70 | T62: 20 | U62: 13 | V62: 41 | W62: 48 | X62: 22 | Y62: 81 | Z62: 75 | AA62: 46 | AB62: 6 | AC62: 21 | AD62: 73 | AE62: 91 | AF62: 81 | AG62: 82 | AH62: 15 | AI62: 6 | AJ62: 95 | AK62: 81 | AL62: 93 | AM62: 48 | AN62: 99 | AO62: 66 | AP62: 31 | AQ62: 44 | AR62: 48 | AS62: 19 | AT62: 47 | AU62: 11 | AV62: 42 | AW62: 19 | AX62: 76 | AY62: 27 | AZ62: 67 | BA62: 27 | BB62: 50 | BC62: 15 | BD62: 4 | BE62: 27 | BF62: 27 | BG62: 79 | BH62: 76 | BI62: 40 | BJ62: 22 | BK62: 30 | BL62: 46 | BM62: 11 | BN62: 48 | BO62: 71 | BP62: 18 | BQ62: 99 | BR62: 65 | BS62: 78 | BT62: 31 | BU62: 33 | BV62: 75 | BW62: 62 | BX62: 76 | BY62: 98 | BZ62: 23 | CA62: 67 | CB62: 72 | CC62: 82 | CD62: 92 | CE62: 17 | CF62: 62 | CG62: 92 | CH62: 98 | CI62: 7 | CJ62: 46 | CK62: 60 | CL62: 66 | CM62: 87 | CN62: 17 | CO62: 39 | CP62: 93 | CQ62: 92 | CR62: 70 | CS62: 78 | CT62: 48 | CU62: 62 | CV62: 53
A63: 51 | B63: 99 | C63: 59 | D63: 50 | E63: 101 | F63: 17 | G63: 89 | H63: 63 | I63: 9 | J63: 88 | K63: 59 | L63: 17 | M63: 31 | N63: 91 | O63: 96 | P63: 62 | Q63: 71 | R63: 78 | S63: 28 | T63: 40 | U63: 88 | V63: 47 | W63: 35 | X63: 54 | Y63: 38 | Z63: 4 | AA63: 75 | AB63: 92 | AC63: 62 | AD63: 74 | AE63: 71 | AF63: 96 | AG63: 79 | AH63: 36 | AI63: 50 | AJ63: 98 | AK63: 5 | AL63: 40 | AM63: 96 | AN63: 37 | AO63: 93 | AP63: 89 | AQ63: 92 | AR63: 69 | AS63: 59 | AT63: 51 | AU63: 44 | AV63: 7 | AW63: 63 | AX63: 40 | AY63: 62 | AZ63: 2 | BA63: 69 | BB63: 12 | BC63: 62 | BD63: 37 | BE63: 17 | BF63: 60 | BG63: 91 | BH63: 37 | BI63: 6 | BJ63: 10 | BK63: 84 | BL63: 28 | BM63: 88 | BN63: 46 | BO63: 77 | BP63: 77 | BQ63: 72 | BR63: 38 | BS63: 3 | BT63: 10 | BU63: 29 | BV63: 65 | BW63: 88 | BX63: 75 | BY63: 61 | BZ63: 8 | CA63: 79 | CB63: 67 | CC63: 34 | CD63: 37 | CE63: 8 | CF63: 100 | CG63: 11 | CH63: 84 | CI63: 2 | CJ63: 37 | CK63: 63 | CL63: 16 | CM63: 92 | CN63: 37 | CO63: 72 | CP63: 73 | CQ63: 17 | CR63: 64 | CS63: 2 | CT63: 69 | CU63: 47 | CV63: 75
A64: 17 | B64: 100 | C64: 83 | D64: 61 | E64: 76 | F64: 39 | G64: 60 | H64: 82 | I64: 27 | J64: 15 | K64: 33 | L64: 40 | M64: 64 | N64: 85 | O64: 23 | P64: 83 | Q64: 86 | R64: 50 | S64: 64 | T64: 98 | U64: 7 | V64: 31 | W64: 93 | X64: 97 | Y64: 2 | Z64: 88 | AA64: 35 | AB64: 21 | AC64: 23 | AD64: 57 | AE64: 86 | AF64: 27 | AG64: 70 | AH64: 99 | AI64: 23 | AJ64: 54 | AK64: 20 | AL64: 33 | AM64: 62 | AN64: 64 | AO64: 78 | AP64: 72 | AQ64: 2 | AR64: 30 | AS64: 80 | AT64: 98 | AU64: 35 | AV64: 6 | AW64: 36 | AX64: 49 | AY64: 93 | AZ64: 19 | BA64: 96 | BB64: 2 | BC64: 33 | BD64: 80 | BE64: 63 | BF64: 51 | BG64: 17 | BH64: 89 | BI64: 38 | BJ64: 84 | BK64: 30 | BL64: 71 | BM64: 16 | BN64: 21 | BO64: 93 | BP64: 35 | BQ64: 10 | BR64: 68 | BS64: 24 | BT64: 47 | BU64: 9 | BV64: 35 | BW64: 64 | BX64: 45 | BY64: 36 | BZ64: 38 | CA64: 95 | CB64: 73 | CC64: 78 | CD64: 30 | CE64: 86 | CF64: 30 | CG64: 49 | CH64: 5 | CI64: 85 | CJ64: 88 | CK64: 83 | CL64: 61 | CM64: 8 | CN64: 52 | CO64: 16 | CP64: 87 | CQ64: 21 | CR64: 38 | CS64: 64 | CT64: 22 | CU64: 93 | CV64: 79
A65: 30 | B65: 27 | C65: 52 | D65: 93 | E65: 24 | F65: 84 | G65: 87 | H65: 84 | I65: 10 | J65: 40 | K65: 73 | L65: 55 | M65: 39 | N65: 39 | O65: 39 | P65: 52 | Q65: 71 | R65: 7 | S65: 99 | T65: 10 | U65: 16 | V65: 86 | W65: 26 | X65: 29 | Y65: 18 | Z65: 89 | AA65: 82 | AB65: 74 | AC65: 17 | AD65: 23 | AE65: 98 | AF65: 82 | AG65: 77 | AH65: 23 | AI65: 15 | AJ65: 64 | AK65: 3 | AL65: 21 | AM65: 9 | AN65: 68 | AO65: 45 | AP65: 6 | AQ65: 25 | AR65: 7 | AS65: 59 | AT65: 80 | AU65: 96 | AV65: 32 | AW65: 13 | AX65: 10 | AY65: 53 | AZ65: 2 | BA65: 2 | BB65: 87 | BC65: 78 | BD65: 13 | BE65: 95 | BF65: 18 | BG65: 10 | BH65: 28 | BI65: 61 | BJ65: 90 | BK65: 88 | BL65: 71 | BM65: 52 | BN65: 49 | BO65: 72 | BP65: 50 | BQ65: 16 | BR65: 32 | BS65: 81 | BT65: 4 | BU65: 45 | BV65: 98 | BW65: 33 | BX65: 24 | BY65: 59 | BZ65: 69 | CA65: 90 | CB65: 82 | CC65: 40 | CD65: 82 | CE65: 32 | CF65: 70 | CG65: 93 | CH65: 2 | CI65: 3 | CJ65: 66 | CK65: 90 | CL65: 61 | CM65: 20 | CN65: 29 | CO65: 15 | CP65: 73 | CQ65: 75 | CR65: 99 | CS65: 48 | CT65: 42 | CU65: 76 | CV65: 30
A66: 61 | B66: 73 | C66: 18 | D66: 65 | E66: 58 | F66: 99 | G66: 35 | H66: 94 | I66: 28 | J66: 55 | K66: 46 | L66: 28 | M66: 34 | N66: 48 | O66: 55 | P66: 69 | Q66: 100 | R66: 78 | S66: 25 | T66: 32 | U66: 39 | V66: 12 | W66: 80 | X66: 36 | Y66: 54 | Z66: 19 | AA66: 52 | AB66: 31 | AC66: 73 | AD66: 13 | AE66: 44 | AF66: 31 | AG66: 78 | AH66: 64 | AI66: 55 | AJ66: 37 | AK66: 95 | AL66: 64 | AM66: 66 | AN66: 98 | AO66: 41 | AP66: 94 | AQ66: 7 | AR66: 58 | AS66: 23 | AT66: 61 | AU66: 88 | AV66: 86 | AW66: 100 | AX66: 50 | AY66: 29 | AZ66: 24 | BA66: 22 | BB66: 85 | BC66: 73 | BD66: 79 | BE66: 85 | BF66: 39 | BG66: 21 | BH66: 71 | BI66: 28 | BJ66: 53 | BK66: 48 | BL66: 46 | BM66: 55 | BN66: 95 | BO66: 93 | BP66: 84 | BQ66: 11 | BR66: 51 | BS66: 77 | BT66: 55 | BU66: 11 | BV66: 13 | BW66: 56 | BX66: 9 | BY66: 77 | BZ66: 54 | CA66: 40 | CB66: 87 | CC66: 60 | CD66: 80 | CE66: 78 | CF66: 31 | CG66: 56 | CH66: 55 | CI66: 62 | CJ66: 6 | CK66: 69 | CL66: 82 | CM66: 57 | CN66: 30 | CO66: 60 | CP66: 92 | CQ66: 101 | CR66: 52 | CS66: 22 | CT66: 100 | CU66: 99 | CV66: 47
A67: 59 | B67: 70 | C67: 46 | D67: 101 | E67: 8 | F67: 25 | G67: 49 | H67: 45 | I67: 14 | J67: 76 | K67: 19 | L67: 7 | M67: 16 | N67: 80 | O67: 97 | P67: 7 | Q67: 93 | R67: 27 | S67: 101 | T67: 40 | U67: 96 | V67: 76 | W67: 46 | X67: 97 | Y67: 70 | Z67: 26 | AA67: 43 | AB67: 41 | AC67: 74 | AD67: 25 | AE67: 39 | AF67: 69 | AG67: 25 | AH67: 58 | AI67: 69 | AJ67: 37 | AK67: 9 | AL67: 69 | AM67: 91 | AN67: 76 | AO67: 63 | AP67: 31 | AQ67: 24 | AR67: 46 | AS67: 38 | AT67: 90 | AU67: 91 | AV67: 91 | AW67: 92 | AX67: 84 | AY67: 68 | AZ67: 96 | BA67: 79 | BB67: 86 | BC67: 38 | BD67: 37 | BE67: 17 | BF67: 78 | BG67: 24 | BH67: 44 | BI67: 39 | BJ67: 84 | BK67: 21 | BL67: 58 | BM67: 86 | BN67: 35 | BO67: 34 | BP67: 51 | BQ67: 18 | BR67: 5 | BS67: 88 | BT67: 26 | BU67: 43 | BV67: 73 | BW67: 83 | BX67: 53 | BY67: 63 | BZ67: 42 | CA67: 58 | CB67: 47 | CC67: 39 | CD67: 11 | CE67: 9 | CF67: 24 | CG67: 29 | CH67: 33 | CI67: 94 | CJ67: 22 | CK67: 99 | CL67: 23 | CM67: 58 | CN67: 23 | CO67: 68 | CP67: 85 | CQ67: 31 | CR67: 45 | CS67: 82 | CT67: 80 | CU67: 51 | CV67: 36
A68: 48 | B68: 13 | C68: 44 | D68: 83 | E68: 25 | F68: 85 | G68: 47 | H68: 24 | I68: 95 | J68: 84 | K68: 64 | L68: 97 | M68: 79 | N68: 33 | O68: 71 | P68: 7 | Q68: 46 | R68: 89 | S68: 53 | T68: 94 | U68: 87 | V68: 100 | W68: 31 | X68: 50 | Y68: 98 | Z68: 25 | AA68: 24 | AB68: 81 | AC68: 92 | AD68: 65 | AE68: 98 | AF68: 40 | AG68: 73 | AH68: 98 | AI68: 86 | AJ68: 41 | AK68: 84 | AL68: 28 | AM68: 42 | AN68: 40 | AO68: 50 | AP68: 3 | AQ68: 40 | AR68: 29 | AS68: 9 | AT68: 58 | AU68: 37 | AV68: 43 | AW68: 7 | AX68: 59 | AY68: 51 | AZ68: 53 | BA68: 61 | BB68: 16 | BC68: 68 | BD68: 70 | BE68: 39 | BF68: 15 | BG68: 34 | BH68: 51 | BI68: 2 | BJ68: 58 | BK68: 90 | BL68: 45 | BM68: 41 | BN68: 26 | BO68: 10 | BP68: 33 | BQ68: 39 | BR68: 92 | BS68: 67 | BT68: 95 | BU68: 9 | BV68: 78 | BW68: 59 | BX68: 7 | BY68: 38 | BZ68: 72 | CA68: 7 | CB68: 55 | CC68: 7 | CD68: 31 | CE68: 94 | CF68: 30 | CG68: 37 | CH68: 34 | CI68: 66 | CJ68: 6 | CK68: 66 | CL68: 71 | CM68: 70 | CN68: 17 | CO68: 47 | CP68: 58 | CQ68: 50 | CR68: 45 | CS68: 4 | CT68: 100 | CU68: 12 | CV68: 68
A69: 47 | B69: 89 | C69: 101 | D69: 65 | E69: 31 | F69: 40 | G69: 101 | H69: 89 | I69: 56 | J69: 13 | K69: 84 | L69: 35 | M69: 90 | N69: 34 | O69: 60 | P69: 8 | Q69: 51 | R69: 14 | S69: 73 | T69: 46 | U69: 62 | V69: 46 | W69: 42 | X69: 16 | Y69: 8 | Z69: 70 | AA69: 59 | AB69: 72 | AC69: 63 | AD69: 39 | AE69: 17 | AF69: 33 | AG69: 76 | AH69: 81 | AI69: 52 | AJ69: 30 | AK69: 13 | AL69: 29 | AM69: 51 | AN69: 74 | AO69: 85 | AP69: 81 | AQ69: 87 | AR69: 89 | AS69: 3 | AT69: 93 | AU69: 92 | AV69: 37 | AW69: 97 | AX69: 79 | AY69: 31 | AZ69: 71 | BA69: 44 | BB69: 31 | BC69: 78 | BD69: 17 | BE69: 21 | BF69: 26 | BG69: 71 | BH69: 19 | BI69: 88 | BJ69: 40 | BK69: 71 | BL69: 79 | BM69: 7 | BN69: 61 | BO69: 59 | BP69: 5 | BQ69: 47 | BR69: 84 | BS69: 73 | BT69: 88 | BU69: 71 | BV69: 101 | BW69: 2 | BX69: 65 | BY69: 58 | BZ69: 66 | CA69: 72 | CB69: 17 | CC69: 96 | CD69: 81 | CE69: 64 | CF69: 58 | CG69: 6 | CH69: 26 | CI69: 20 | CJ69: 10 | CK69: 38 | CL69: 74 | CM69: 17 | CN69: 67 | CO69: 93 | CP69: 88 | CQ69: 95 | CR69: 18 | CS69: 40 | CT69: 82 | CU69: 31 | CV69: 66
A70: 13 | B70: 7 | C70: 80 | D70: 41 | E70: 49 | F70: 87 | G70: 44 | H70: 57 | I70: 25 | J70: 44 | K70: 17 | L70: 53 | M70: 87 | N70: 69 | O70: 41 | P70: 73 | Q70: 68 | R70: 70 | S70: 42 | T70: 53 | U70: 19 | V70: 32 | W70: 74 | X70: 18 | Y70: 60 | Z70: 9 | AA70: 14 | AB70: 64 | AC70: 11 | AD70: 94 | AE70: 37 | AF70: 33 | AG70: 100 | AH70: 5 | AI70: 97 | AJ70: 2 | AK70: 60 | AL70: 86 | AM70: 46 | AN70: 59 | AO70: 52 | AP70: 73 | AQ70: 75 | AR70: 52 | AS70: 77 | AT70: 9 | AU70: 49 | AV70: 101 | AW70: 37 | AX70: 30 | AY70: 40 | AZ70: 48 | BA70: 16 | BB70: 78 | BC70: 18 | BD70: 23 | BE70: 8 | BF70: 51 | BG70: 76 | BH70: 90 | BI70: 93 | BJ70: 24 | BK70: 57 | BL70: 76 | BM70: 73 | BN70: 56 | BO70: 2 | BP70: 32 | BQ70: 54 | BR70: 48 | BS70: 7 | BT70: 94 | BU70: 22 | BV70: 33 | BW70: 77 | BX70: 65 | BY70: 93 | BZ70: 64 | CA70: 68 | CB70: 31 | CC70: 6 | CD70: 12 | CE70: 8 | CF70: 68 | CG70: 60 | CH70: 44 | CI70: 6 | CJ70: 31 | CK70: 43 | CL70: 36 | CM70: 99 | CN70: 46 | CO70: 11 | CP70: 86 | CQ70: 6 | CR70: 55 | CS70: 91 | CT70: 17 | CU70: 95 | CV70: 49
A71: 22 | B71: 39 | C71: 72 | D71: 55 | E71: 75 | F71: 94 | G71: 18 | H71: 77 | I71: 67 | J71: 66 | K71: 97 | L71: 66 | M71: 18 | N71: 49 | O71: 91 | P71: 29 | Q71: 85 | R71: 16 | S71: 77 | T71: 53 | U71: 35 | V71: 82 | W71: 78 | X71: 43 | Y71: 23 | Z71: 11 | AA71: 56 | AB71: 37 | AC71: 59 | AD71: 89 | AE71: 64 | AF71: 66 | AG71: 2 | AH71: 46 | AI71: 77 | AJ71: 2 | AK71: 27 | AL71: 93 | AM71: 56 | AN71: 73 | AO71: 79 | AP71: 53 | AQ71: 64 | AR71: 62 | AS71: 46 | AT71: 11 | AU71: 36 | AV71: 43 | AW71: 78 | AX71: 75 | AY71: 68 | AZ71: 95 | BA71: 47 | BB71: 24 | BC71: 20 | BD71: 99 | BE71: 64 | BF71: 48 | BG71: 23 | BH71: 31 | BI71: 88 | BJ71: 59 | BK71: 51 | BL71: 9 | BM71: 40 | BN71: 57 | BO71: 99 | BP71: 50 | BQ71: 35 | BR71: 52 | BS71: 71 | BT71: 27 | BU71: 90 | BV71: 85 | BW71: 87 | BX71: 22 | BY71: 84 | BZ71: 20 | CA71: 86 | CB71: 2 | CC71: 29 | CD71: 80 | CE71: 67 | CF71: 47 | CG71: 34 | CH71: 89 | CI71: 91 | CJ71: 80 | CK71: 16 | CL71: 87 | CM71: 61 | CN71: 77 | CO71: 100 | CP71: 38 | CQ71: 33 | CR71: 13 | CS71: 36 | CT71: 43 | CU71: 14 | CV71: 7
A72: 21 | B72: 12 | C72: 14 | D72: 69 | E72: 68 | F72: 54 | G72: 43 | H72: 63 | I72: 12 | J72: 17 | K72: 43 | L72: 58 | M72: 60 | N72: 79 | O72: 17 | P72: 35 | Q72: 15 | R72: 76 | S72: 81 | T72: 93 | U72: 100 | V72: 82 | W72: 66 | X72: 69 | Y72: 22 | Z72: 68 | AA72: 80 | AB72: 45 | AC72: 9 | AD72: 60 | AE72: 13 | AF72: 64 | AG72: 73 | AH72: 50 | AI72: 15 | AJ72: 100 | AK72: 39 | AL72: 98 | AM72: 64 | AN72: 64 | AO72: 85 | AP72: 98 | AQ72: 88 | AR72: 48 | AS72: 47 | AT72: 11 | AU72: 79 | AV72: 96 | AW72: 101 | AX72: 71 | AY72: 48 | AZ72: 83 | BA72: 44 | BB72: 91 | BC72: 91 | BD72: 93 | BE72: 81 | BF72: 12 | BG72: 73 | BH72: 21 | BI72: 47 | BJ72: 93 | BK72: 92 | BL72: 100 | BM72: 89 | BN72: 35 | BO72: 27 | BP72: 23 | BQ72: 47 | BR72: 72 | BS72: 7 | BT72: 31 | BU72: 92 | BV72: 101 | BW72: 46 | BX72: 96 | BY72: 80 | BZ72: 88 | CA72: 23 | CB72: 47 | CC72: 60 | CD72: 7 | CE72: 36 | CF72: 40 | CG72: 89 | CH72: 90 | CI72: 21 | CJ72: 32 | CK72: 28 | CL72: 91 | CM72: 26 | CN72: 22 | CO72: 31 | CP72: 11 | CQ72: 49 | CR72: 80 | CS72: 96 | CT72: 17 | CU72: 71 | CV72: 4
A73: 4 | B73: 79 | C73: 71 | D73: 78 | E73: 92 | F73: 30 | G73: 5 | H73: 47 | I73: 61 | J73: 77 | K73: 95 | L73: 22 | M73: 20 | N73: 54 | O73: 69 | P73: 4 | Q73: 58 | R73: 80 | S73: 18 | T73: 11 | U73: 49 | V73: 11 | W73: 76 | X73: 50 | Y73: 91 | Z73: 88 | AA73: 2 | AB73: 34 | AC73: 13 | AD73: 42 | AE73: 85 | AF73: 97 | AG73: 6 | AH73: 100 | AI73: 99 | AJ73: 65 | AK73: 40 | AL73: 5 | AM73: 45 | AN73: 63 | AO73: 78 | AP73: 48 | AQ73: 45 | AR73: 4 | AS73: 53 | AT73: 51 | AU73: 3 | AV73: 61 | AW73: 19 | AX73: 58 | AY73: 42 | AZ73: 100 | BA73: 12 | BB73: 41 | BC73: 32 | BD73: 81 | BE73: 84 | BF73: 39 | BG73: 60 | BH73: 28 | BI73: 84 | BJ73: 58 | BK73: 38 | BL73: 72 | BM73: 37 | BN73: 69 | BO73: 74 | BP73: 78 | BQ73: 64 | BR73: 88 | BS73: 53 | BT73: 62 | BU73: 81 | BV73: 46 | BW73: 65 | BX73: 81 | BY73: 8 | BZ73: 8 | CA73: 98 | CB73: 100 | CC73: 67 | CD73: 61 | CE73: 98 | CF73: 96 | CG73: 87 | CH73: 7 | CI73: 77 | CJ73: 70 | CK73: 4 | CL73: 49 | CM73: 39 | CN73: 101 | CO73: 41 | CP73: 61 | CQ73: 38 | CR73: 90 | CS73: 4 | CT73: 50 | CU73: 25 | CV73: 48
A74: 14 | B74: 22 | C74: 78 | D74: 18 | E74: 94 | F74: 27 | G74: 43 | H74: 25 | I74: 37 | J74: 53 | K74: 65 | L74: 19 | M74: 23 | N74: 89 | O74: 92 | P74: 17 | Q74: 42 | R74: 94 | S74: 54 | T74: 54 | U74: 66 | V74: 40 | W74: 89 | X74: 18 | Y74: 83 | Z74: 74 | AA74: 75 | AB74: 12 | AC74: 2 | AD74: 84 | AE74: 86 | AF74: 50 | AG74: 92 | AH74: 16 | AI74: 95 | AJ74: 51 | AK74: 49 | AL74: 100 | AM74: 47 | AN74: 2 | AO74: 85 | AP74: 42 | AQ74: 49 | AR74: 75 | AS74: 63 | AT74: 36 | AU74: 56 | AV74: 2 | AW74: 14 | AX74: 52 | AY74: 76 | AZ74: 54 | BA74: 71 | BB74: 5 | BC74: 38 | BD74: 21 | BE74: 43 | BF74: 84 | BG74: 47 | BH74: 82 | BI74: 77 | BJ74: 41 | BK74: 76 | BL74: 67 | BM74: 12 | BN74: 80 | BO74: 6 | BP74: 8 | BQ74: 42 | BR74: 67 | BS74: 91 | BT74: 25 | BU74: 13 | BV74: 47 | BW74: 33 | BX74: 6 | BY74: 81 | BZ74: 55 | CA74: 90 | CB74: 16 | CC74: 83 | CD74: 66 | CE74: 21 | CF74: 82 | CG74: 4 | CH74: 13 | CI74: 32 | CJ74: 50 | CK74: 96 | CL74: 88 | CM74: 76 | CN74: 66 | CO74: 87 | CP74: 13 | CQ74: 60 | CR74: 49 | CS74: 36 | CT74: 50 | CU74: 15 | CV74: 9
A75: 71 | B75: 41 | C75: 71 | D75: 56 | E75: 27 | F75: 82 | G75: 66 | H75: 48 | I75: 87 | J75: 85 | K75: 72 | L75: 82 | M75: 76 | N75: 19 | O75: 38 | P75: 34 | Q75: 85 | R75: 74 | S75: 60 | T75: 39 | U75: 92 | V75: 78 | W75: 8 | X75: 92 | Y75: 34 | Z75: 43 | AA75: 31 | AB75: 14 | AC75: 41 | AD75: 13 | AE75: 42 | AF75: 51 | AG75: 8 | AH75: 57 | AI75: 61 | AJ75: 30 | AK75: 34 | AL75: 45 | AM75: 14 | AN75: 4 | AO75: 68 | AP75: 25 | AQ75: 33 | AR75: 20 | AS75: 47 | AT75: 95 | AU75: 49 | AV75: 31 | AW75: 99 | AX75: 20 | AY75: 59 | AZ75: 69 | BA75: 58 | BB75: 40 | BC75: 95 | BD75: 81 | BE75: 101 | BF75: 18 | BG75: 85 | BH75: 21 | BI75: 63 | BJ75: 96 | BK75: 61 | BL75: 43 | BM75: 51 | BN75: 69 | BO75: 34 | BP75: 66 | BQ75: 5 | BR75: 63 | BS75: 57 | BT75: 3 | BU75: 14 | BV75: 25 | BW75: 91 | BX75: 66 | BY75: 80 | BZ75: 20 | CA75: 70 | CB75: 73 | CC75: 39 | CD75: 36 | CE75: 95 | CF75: 47 | CG75: 58 | CH75: 63 | CI75: 38 | CJ75: 59 | CK75: 3 | CL75: 69 | CM75: 80 | CN75: 54 | CO75: 70 | CP75: 34 | CQ75: 59 | CR75: 6 | CS75: 67 | CT75: 49 | CU75: 69 | CV75: 35
A76: 98 | B76: 13 | C76: 71 | D76: 97 | E76: 4 | F76: 16 | G76: 72 | H76: 39 | I76: 36 | J76: 80 | K76: 15 | L76: 75 | M76: 18 | N76: 21 | O76: 76 | P76: 23 | Q76: 10 | R76: 39 | S76: 38 | T76: 95 | U76: 90 | V76: 9 | W76: 91 | X76: 71 | Y76: 88 | Z76: 92 | AA76: 59 | AB76: 38 | AC76: 41 | AD76: 36 | AE76: 89 | AF76: 27 | AG76: 94 | AH76: 85 | AI76: 86 | AJ76: 21 | AK76: 16 | AL76: 50 | AM76: 19 | AN76: 68 | AO76: 54 | AP76: 87 | AQ76: 9 | AR76: 24 | AS76: 60 | AT76: 28 | AU76: 85 | AV76: 75 | AW76: 72 | AX76: 38 | AY76: 72 | AZ76: 40 | BA76: 58 | BB76: 45 | BC76: 93 | BD76: 51 | BE76: 67 | BF76: 73 | BG76: 35 | BH76: 17 | BI76: 7 | BJ76: 8 | BK76: 36 | BL76: 84 | BM76: 44 | BN76: 96 | BO76: 70 | BP76: 15 | BQ76: 33 | BR76: 83 | BS76: 36 | BT76: 98 | BU76: 38 | BV76: 6 | BW76: 59 | BX76: 57 | BY76: 68 | BZ76: 11 | CA76: 57 | CB76: 18 | CC76: 73 | CD76: 40 | CE76: 62 | CF76: 61 | CG76: 59 | CH76: 61 | CI76: 23 | CJ76: 9 | CK76: 94 | CL76: 68 | CM76: 50 | CN76: 42 | CO76: 13 | CP76: 21 | CQ76: 74 | CR76: 39 | CS76: 46 | CT76: 56 | CU76: 11 | CV76: 54
A77: 86 | B77: 91 | C77: 96 | D77: 29 | E77: 10 | F77: 47 | G77: 94 | H77: 54 | I77: 100 | J77: 75 | K77: 13 | L77: 92 | M77: 20 | N77: 37 | O77: 95 | P77: 42 | Q77: 8 | R77: 21 | S77: 58 | T77: 7 | U77: 79 | V77: 75 | W77: 59 | X77: 73 | Y77: 93 | Z77: 25 | AA77: 23 | AB77: 19 | AC77: 87 | AD77: 63 | AE77: 89 | AF77: 69 | AG77: 49 | AH77: 16 | AI77: 63 | AJ77: 65 | AK77: 30 | AL77: 66 | AM77: 89 | AN77: 40 | AO77: 2 | AP77: 81 | AQ77: 20 | AR77: 76 | AS77: 68 | AT77: 98 | AU77: 55 | AV77: 43 | AW77: 31 | AX77: 92 | AY77: 80 | AZ77: 59 | BA77: 37 | BB77: 90 | BC77: 93 | BD77: 92 | BE77: 68 | BF77: 30 | BG77: 16 | BH77: 10 | BI77: 38 | BJ77: 20 | BK77: 47 | BL77: 36 | BM77: 35 | BN77: 90 | BO77: 19 | BP77: 72 | BQ77: 4 | BR77: 75 | BS77: 8 | BT77: 65 | BU77: 43 | BV77: 90 | BW77: 57 | BX77: 67 | BY77: 70 | BZ77: 65 | CA77: 83 | CB77: 19 | CC77: 44 | CD77: 13 | CE77: 81 | CF77: 75 | CG77: 59 | CH77: 55 | CI77: 2 | CJ77: 23 | CK77: 40 | CL77: 56 | CM77: 61 | CN77: 69 | CO77: 97 | CP77: 97 | CQ77: 64 | CR77: 68 | CS77: 2 | CT77: 95 | CU77: 40 | CV77: 101
